Workbook

Sheet Supuestos
A2: 0 | B2: Selección del servicio regulado
B3: 1
B4: =B3+2 -> 3
A6: 1 | B6: Supuestos macroeconómicos
B8: Indicador | C8: 2013 | D8: 2014 | E8: 2015 | F8: 2016 | G8: 2017 | H8: 2018
B9: Estados Unidos
B10: Inflación anual, CPI (%) | C10: 1.466045528 | D10: 1.7 | E10: 2.1 | F10: 2.3 | G10: 2 | H10: 2
B11: CPI US | C11: 100 | D11: =+C11*(1+(D10/100)) -> 101.7 | E11: =+D11*(1+(E10/100)) -> 103.8357 | F11: =+E11*(1+(F10/100)) -> 106.2239211 | G11: =+F11*(1+(G10/100)) -> 108.3483995 | H11: =+G11*(1+(H10/100)) -> 110.5153675
B12: Perú
B13: Inflación anual, IPC (%) | C13: 2.9 | D13: 2.8 | E13: 2 | F13: 2 | G13: =+F13 -> 2 | H13: =+G13 -> 2
B14: IPC PE | C14: 100 | D14: =+C14*(1+(D13/100)) -> 102.8 | E14: =+D14*(1+(E13/100)) -> 104.856 | F14: =+E14*(1+(F13/100)) -> 106.95312 | G14: =+F14*(1+(G13/100)) -> 109.0921824 | H14: =+G14*(1+(H13/100)) -> 111.274026
B15: Tipo de cambio (S/. por US$)
B16: TC real | C16: =+C17*C11/C14 -> 2.7 | D16: 2.779931907 | E16: 2.881684281 | F16: 2.900091644 | G16: 2.900091644 | H16: 2.900091644
B17: TC nominal (promedio) | C17: 2.7 | D17: 2.81 | E17: 2.91 | F17: 2.92 | G17: =+F17 -> 2.92 | H17: =+G17 -> 2.92
B18: TC nominal (fin de periodo) | C18: 2.8 | D18: 2.85 | E18: 2.95 | F18: 2.9 | G18: =+F18 -> 2.9 | H18: =+G18 -> 2.9
B19: 1/ 2014 en adelante es proyectado. Proyecciones realizadas en abril del 2014.
B20: Fuente: BCR, Bloomberg, APOYO Consultoría
A22: 2 | B22: Escenarios de demanda
C24: 2
B26: Escenarios | C26: Descripción
B34: Moneda tarifas | C34: WACC - pretax
B35: =+IF(OR(servicio2=2,servicio2=4),B36,B37) -> Tarifas en soles | C35: =+IF(OR(servicio2=2,servicio2=4),C36,C37) -> 0.08510628852
B36: Tarifas en US$ | C36: =+' WACC'!C15 -> 0.06834885317
B37: Tarifas en soles | C37: =+' WACC'!C16 -> 0.08510628852
B39: Resumen de tarifas
B41: Incremento en tarifas | C41: VAN
B42: =+'FC A y S'!C85 -> 0.2774809004 | C42: =+'FC A y S'!C82 -> 0
B47: Nivel tarifario | C47: Unidades | D47: 2013 | E47: 2014-2018
B48: =+'FC A y S'!B24 -> Hasta 10 | C48: =+'FC A y S'!D24 -> S/. / tonelada (PMD) | D48: =+'FC A y S'!E24 -> 2.16 | E48: =+'FC A y S'!F24 -> 2.759358745
B49: =+'FC A y S'!B25 -> Hasta 10 - Nazca | C49: =+'FC A y S'!D25 -> S/. / tonelada (PMD) | D49: =+'FC A y S'!E25 -> 2.16 | E49: =+'FC A y S'!F25 -> 2.759358745
B50: =+'FC A y S'!B26 -> Más de 10 hasta 35 TM | C50: =+'FC A y S'!D26 -> S/. / tonelada (PMD) | D50: =+'FC A y S'!E26 -> 2.43 | E50: =+'FC A y S'!F26 -> 3.104278588
B51: =+'FC A y S'!B27 -> Más de 35 hasta 70 TM | C51: =+'FC A y S'!D27 -> S/. / tonelada (PMD) | D51: =+'FC A y S'!E27 -> 2.7 | E51: =+'FC A y S'!F27 -> 3.449198431
B52: =+'FC A y S'!B28 -> Más de 70 hasta 105 TM | C52: =+'FC A y S'!D28 -> S/. / tonelada (PMD) | D52: =+'FC A y S'!E28 -> 2.97 | E52: =+'FC A y S'!F28 -> 3.794118274
B53: =+'FC A y S'!B29 -> Más de 105 TM | C53: =+'FC A y S'!D29 -> S/. / tonelada (PMD) | D53: =+'FC A y S'!E29 -> 3.24 | E53: =+'FC A y S'!F29 -> 4.139038117

Sheet FC A y S
B2: ESTIMACIÓN DE TARIFAS DE APROXIMACIÓN Y SOBREVUELO
B4: Servicio regulado: | C4: =+servicio -> Aproximación
B5: Periodo: | C5: 2014-2018 | E5: 2 | F5: 3 | G5: 4 | H5: 5 | I5: 6 | J5: 7
B6: Moneda (costos) | C6: =+C7&" miles" -> S/. miles
B7: Moneda (tarifas) | C7: =+Vínculos!E9 -> S/.
D9: Tipo de cambio | E9: =+IF($C$6="US$ miles",INDEX(TCR,1,MATCH(E$11,Supuestos!$C$8:$H$8,0)),1) -> 1 | F9: =+IF($C$6="US$ miles",INDEX(TCR,1,MATCH(F$11,Supuestos!$C$8:$H$8,0)),1) -> 1 | G9: =+IF($C$6="US$ miles",INDEX(TCR,1,MATCH(G$11,Supuestos!$C$8:$H$8,0)),1) -> 1 | H9: =+IF($C$6="US$ miles",INDEX(TCR,1,MATCH(H$11,Supuestos!$C$8:$H$8,0)),1) -> 1 | I9: =+IF($C$6="US$ miles",INDEX(TCR,1,MATCH(I$11,Supuestos!$C$8:$H$8,0)),1) -> 1 | J9: =+IF($C$6="US$ miles",INDEX(TCR,1,MATCH(J$11,Supuestos!$C$8:$H$8,0)),1) -> 1
B11: Concepto | C11: Unidad de medida | E11: 2013 | F11: 2014 | G11: 2015 | H11: 2016 | I11: 2017 | J11: 2018
B12: Ingresos brutos
B14: =+Vínculos!D9 -> miles de toneladas (PMD)
B15: =+Vínculos!F12 -> Hasta 10 | D15: =+IF(Vínculos!$F12="","",$B$14) -> miles de toneladas (PMD) | E15: =+Demanda!E159 -> 50.81621 | F15: =+Demanda!F159 -> 55.16029205 | G15: =+Demanda!G159 -> 60.34395608 | H15: =+Demanda!H159 -> 65.65201842 | I15: =+Demanda!I159 -> 71.09849561 | J15: =+Demanda!J159 -> 77.01968382
B16: =+Vínculos!F13 -> Hasta 10 - Nazca | D16: =+IF(Vínculos!$F13="","",$B$14) -> miles de toneladas (PMD) | E16: =+Demanda!E160 -> 0.28559 | F16: =+Demanda!F160 -> 0.310003989 | G16: =+Demanda!G160 -> 0.3391364766 | H16: =+Demanda!H160 -> 0.3689680899 | I16: =+Demanda!I160 -> 0.3995776025 | J16: =+Demanda!J160 -> 0.4328550182
B17: =+Vínculos!F14 -> Más de 10 hasta 35 TM | D17: =+IF(Vínculos!$F14="","",$B$14) -> miles de toneladas (PMD) | E17: =+Demanda!E161 -> 92.76177 | F17: =+Demanda!F161 -> 100.6916164 | G17: =+Demanda!G161 -> 110.1540665 | H17: =+Demanda!H161 -> 119.8435978 | I17: =+Demanda!I161 -> 129.7857966 | J17: =+Demanda!J161 -> 140.5945504
B18: =+Vínculos!F15 -> Más de 35 hasta 70 TM | D18: =+IF(Vínculos!$F15="","",$B$14) -> miles de toneladas (PMD) | E18: =+Demanda!E162 -> 2084.74893 | F18: =+Demanda!F162 -> 2262.966086 | G18: =+Demanda!G162 -> 2475.627322 | H18: =+Demanda!H162 -> 2693.392033 | I18: =+Demanda!I162 -> 2916.835251 | J18: =+Demanda!J162 -> 3159.753619
B19: =+Vínculos!F16 -> Más de 70 hasta 105 TM | D19: =+IF(Vínculos!$F16="","",$B$14) -> miles de toneladas (PMD) | E19: =+Demanda!E163 -> 697.35572 | F19: =+Demanda!F163 -> 756.9699743 | G19: =+Demanda!G163 -> 828.1058925 | H19: =+Demanda!H163 -> 900.9489408 | I19: =+Demanda!I163 -> 975.6914692 | J19: =+Demanda!J163 -> 1056.948503
B20: =+Vínculos!F17 -> Más de 105 TM | D20: =+IF(Vínculos!$F17="","",$B$14) -> miles de toneladas (PMD) | E20: =+Demanda!E164 -> 1.81552 | F20: =+Demanda!F164 -> 1.970721811 | G20: =+Demanda!G164 -> 2.155919521 | H20: =+Demanda!H164 -> 2.345561632 | I20: =+Demanda!I164 -> 2.540148916 | J20: =+Demanda!J164 -> 2.751696287
B21: Cargo mínimo | D21: # de operaciones | E21: =+Demanda!E165 -> 1377 | F21: =+Demanda!F165 -> 1494.714426 | G21: =+Demanda!G165 -> 1635.179552 | H21: =+Demanda!H165 -> 1779.015581 | I21: =+Demanda!I165 -> 1926.602327 | J21: =+Demanda!J165 -> 2087.052628
B23: Tarifa (sin IGV)
B24: =+Vínculos!F12 -> Hasta 10 | D24: =IF($B24="","",Vínculos!$F$9) -> S/. / tonelada (PMD) | E24: =INDEX(Vínculos!D39:G39,1,servicio2) -> 2.16 | F24: =(+$C$84*$E24/SUM($E$24:$E$29)) -> 2.759358745 | G24: =+F24 -> 2.759358745 | H24: 2.759358745 | I24: 2.759358745 | J24: 2.759358745
B25: =+Vínculos!F13 -> Hasta 10 - Nazca | D25: =+D24 -> S/. / tonelada (PMD) | E25: =INDEX(Vínculos!D40:G40,1,servicio2) -> 2.16 | F25: =+$C$84*$E25/SUM($E$24:$E$29) -> 2.759358745 | G25: 2.759358745 | H25: 2.759358745 | I25: 2.759358745 | J25: 2.759358745
B26: =+Vínculos!F14 -> Más de 10 hasta 35 TM | D26: =+D25 -> S/. / tonelada (PMD) | E26: =INDEX(Vínculos!D41:G41,1,servicio2) -> 2.43 | F26: 3.104278588 | G26: 3.104278588 | H26: 3.104278588 | I26: 3.104278588 | J26: 3.104278588
B27: =+Vínculos!F15 -> Más de 35 hasta 70 TM | D27: =+D26 -> S/. / tonelada (PMD) | E27: =INDEX(Vínculos!D42:G42,1,servicio2) -> 2.7 | F27: 3.449198431 | G27: 3.449198431 | H27: 3.449198431 | I27: 3.449198431 | J27: 3.449198431
B28: =+Vínculos!F16 -> Más de 70 hasta 105 TM | D28: =+D27 -> S/. / tonelada (PMD) | E28: =INDEX(Vínculos!D43:G43,1,servicio2) -> 2.97 | F28: 3.794118274 | G28: 3.794118274 | H28: 3.794118274 | I28: 3.794118274 | J28: 3.794118274
B29: =+Vínculos!F17 -> Más de 105 TM | D29: =+D28 -> S/. / tonelada (PMD) | E29: =INDEX(Vínculos!D44:G44,1,servicio2) -> 3.24 | F29: 4.139038117 | G29: 4.139038117 | H29: 4.139038117 | I29: 4.139038117 | J29: 4.139038117
B30: Cargo mínimo | D30: =IF($B30="","",CONCATENATE(Vínculos!$E$9,"/",D21)) -> S/./# de operaciones | E30: =INDEX(Vínculos!D45:G45,1,servicio2) -> 5.4 | F30: 6.898396862 | G30: =+F30 -> 6.898396862 | H30: =+G30 -> 6.898396862 | I30: =+H30 -> 6.898396862 | J30: =+I30 -> 6.898396862
B32: Ingresos por tarifas reguladas | D32: =+C6 -> S/. miles | E32: =+SUMPRODUCT(E15:E20,E24:E29)+E21*E30/1000 -> 8049.077673 | F32: =(+SUMPRODUCT(F15:F20,F24:F29)+F21*F30/1000)*0.5+(+SUMPRODUCT(F15:F20,E24:E29)+F21*E30/1000)*0.5 -> 9949.360152 | G32: =+SUMPRODUCT(G15:G20,G24:G29)+G21*G30/1000 -> 12210.46046 | H32: =+SUMPRODUCT(H15:H20,H24:H29)+H21*H30/1000 -> 13284.53464 | I32: =+SUMPRODUCT(I15:I20,I24:I29)+I21*I30/1000 -> 14386.61675 | J32: =+SUMPRODUCT(J15:J20,J24:J29)+J21*J30/1000 -> 15584.75554
B34: Ajustes
B35: Ingresos no atribuibles1/ | E35: =Demanda!E180/E$9 -> 10.713546 | F35: =Demanda!F180/F$9 -> 11.28349902 | G35: =Demanda!G180/G$9 -> 12.01416367 | H35: =Demanda!H180/H$9 -> 12.38296143 | I35: =Demanda!I180/I$9 -> 12.65140738 | J35: =Demanda!J180/J$9 -> 12.92769274
A36: 1 | B36: Ingresos A&D Lima 2/ | E36: 0 | F36: =+CHOOSE(servicio2,'Ingresos AIJCh'!D18, 'Ingresos AIJCh'!D19,'Ingresos AIJCh'!D20,'Ingresos AIJCh'!D21)*$A36 -> 0 | G36: =+CHOOSE(servicio2,'Ingresos AIJCh'!E18, 'Ingresos AIJCh'!E19,'Ingresos AIJCh'!E20,'Ingresos AIJCh'!E21)*$A36 -> 0 | H36: =+CHOOSE(servicio2,'Ingresos AIJCh'!F18, 'Ingresos AIJCh'!F19,'Ingresos AIJCh'!F20,'Ingresos AIJCh'!F21)*$A36 -> 0 | I36: =+CHOOSE(servicio2,'Ingresos AIJCh'!G18, 'Ingresos AIJCh'!G19,'Ingresos AIJCh'!G20,'Ingresos AIJCh'!G21)*$A36 -> 0 | J36: =+CHOOSE(servicio2,'Ingresos AIJCh'!H18, 'Ingresos AIJCh'!H19,'Ingresos AIJCh'!H20,'Ingresos AIJCh'!H21)*$A36 -> 0
A37: 1 | B37: Ingresos TUUA Lima 3/ | E37: 0 | F37: =+CHOOSE(servicio2,'Ingresos AIJCh'!D24, 'Ingresos AIJCh'!H30,'Ingresos AIJCh'!D14,'Ingresos AIJCh'!D15)*$A37 -> 79899.10795 | G37: =+CHOOSE(servicio2,'Ingresos AIJCh'!E24, 'Ingresos AIJCh'!I30,'Ingresos AIJCh'!E14,'Ingresos AIJCh'!E15)*$A37 -> 84173.71023 | H37: =+CHOOSE(servicio2,'Ingresos AIJCh'!F24, 'Ingresos AIJCh'!J30,'Ingresos AIJCh'!F14,'Ingresos AIJCh'!F15)*$A37 -> 88677.00373 | I37: =+CHOOSE(servicio2,'Ingresos AIJCh'!G24, 'Ingresos AIJCh'!K30,'Ingresos AIJCh'!G14,'Ingresos AIJCh'!G15)*$A37 -> 93421.22342 | J37: =+CHOOSE(servicio2,'Ingresos AIJCh'!H24, 'Ingresos AIJCh'!L30,'Ingresos AIJCh'!H14,'Ingresos AIJCh'!H15)*$A37 -> 98419.25888
B38: Brecha | E38: =+E39-E32-SUM(E35:E36) -> 118.7380515 | F38: 0 | G38: 0 | H38: 0 | I38: 0 | J38: 0
B39: Ingresos brutos totales | D39: =+C6 -> S/. miles | E39: =+Demanda!E182/E$9 -> 8178.529271 | F39: =+SUM(F32:F38) -> 89859.7516 | G39: =+SUM(G32:G38) -> 96396.18485 | H39: =+SUM(H32:H38) -> 101973.9213 | I39: =+SUM(I32:I38) -> 107820.4916 | J39: =+SUM(J32:J38) -> 114016.9421
B41: Pago a Ositran | C41: 0.01 | F41: =-$C41*F$39 -> -898.597516 | G41: =-$C41*G$39 -> -963.9618485 | H41: =-$C41*H$39 -> -1019.739213 | I41: =-$C41*I$39 -> -1078.204916 | J41: =-$C41*J$39 -> -1140.169421
B43: Contribuciones totales | D43: =+C6 -> S/. miles | E43: =-Opex!L211/E$9 -> -1040.381336 | F43: =+SUM(F41:F42) -> -898.597516 | G43: =+SUM(G41:G42) -> -963.9618485 | H43: =+SUM(H41:H42) -> -1019.739213 | I43: =+SUM(I41:I42) -> -1078.204916 | J43: =+SUM(J41:J42) -> -1140.169421
B45: Ingresos netos | D45: =+C6 -> S/. miles | E45: =+E39+E43 -> 7138.147935 | F45: 88961.15409 | G45: 95432.223 | H45: 100954.1821 | I45: 106742.2867 | J45: 112876.7727
B47: Egresos netos | D47: =+C6 -> S/. miles | E47: =+SUM(E48:E54) -> -57919.51322 | F47: -59322.7991 | G47: -64717.65565 | H47: -64677.8788 | I47: -67329.35369 | J47: -67160.9571
B48: Gastos de personal | E48: =-Opex!L421/E$9 -> -38032.20891 | F48: =-Opex!M421/F$9 -> -38991.16837 | G48: =-Opex!N421/G$9 -> -43773.49021 | H48: =-Opex!O421/H$9 -> -43248.49728 | I48: =-Opex!P421/I$9 -> -44309.58305 | J48: =-Opex!Q421/J$9 -> -45401.80918
B49: Gastos de operación incrementales | E49: =-Opex!L420/E$9 -> -403.1771627 | F49: =-Opex!M420/F$9 -> -422.2486359 | G49: =-Opex!N420/G$9 -> -554.8314522 | H49: =-Opex!O420/H$9 -> -578.0307501 | I49: =-Opex!P420/I$9 -> -1721.085399 | J49: =-Opex!Q420/J$9 -> 0
B50: Servicios prestados por terceros | E50: =-Opex!L422/E$9 -> -10071.9166 | F50: =-Opex!M422/F$9 -> -10325.87397 | G50: =-Opex!N422/G$9 -> -10612.49574 | H50: =-Opex!O422/H$9 -> -10888.40686 | I50: =-Opex!P422/I$9 -> -11155.54986 | J50: =-Opex!Q422/J$9 -> -11430.53288
B51: Mantenimiento de activos | E51: =-Opex!L423/E$9 -> -676.6989835 | F51: =-Opex!M423/F$9 -> -693.7615448 | G51: =-Opex!N423/G$9 -> -713.0187195 | H51: =-Opex!O423/H$9 -> -731.5562809 | I51: =-Opex!P423/I$9 -> -749.5047418 | J51: =-Opex!Q423/J$9 -> -767.9799476
B52: Suministros y materiales | E52: =-Opex!L424/E$9 -> -5939.155531 | F52: =-Opex!M424/F$9 -> -6088.907795 | G52: =-Opex!N424/G$9 -> -6257.921431 | H52: =-Opex!O424/H$9 -> -6420.619268 | I52: =-Opex!P424/I$9 -> -6578.146771 | J52: =-Opex!Q424/J$9 -> -6740.297333
B53: Tributos y seguros | E53: =-Opex!L425/E$9 -> -2618.570738 | F53: =-Opex!M425/F$9 -> -2618.570738 | G53: =-Opex!N425/G$9 -> -2618.570738 | H53: =-Opex!O425/H$9 -> -2618.570738 | I53: =-Opex!P425/I$9 -> -2618.570738 | J53: =-Opex!Q425/J$9 -> -2618.570738
B54: Otros Costos | E54: =-Opex!L426/E$9 -> -177.7852864 | F54: =-Opex!M426/F$9 -> -182.2680364 | G54: =-Opex!N426/G$9 -> -187.3273647 | H54: =-Opex!O426/H$9 -> -192.1976331 | I54: =-Opex!P426/I$9 -> -196.9131304 | J54: =-Opex!Q426/J$9 -> -201.7670164
B56: EBITDA | D56: =+C6 -> S/. miles | E56: =+E45+E47 -> -50781.36528 | F56: 29638.35499 | G56: 30714.56735 | H56: 36276.30331 | I56: 39412.93297 | J56: 45715.81559
B58: Depreciación y amortización | E58: =(E93+E94)/E$9 -> -4943.182519 | F58: -6012.380164 | G58: -7679.307035 | H58: -9311.829051 | I58: -10213.50902 | J58: -6814.807294
B60: EBIT | D60: =+C6 -> S/. miles | E60: =+E56+E58 -> -55724.5478 | F60: =+F56+F58 -> 23625.97483 | G60: 23035.26031 | H60: 26964.47426 | I60: 29199.42395 | J60: 38901.00829
B62: Pago de IR | C62: 0.335 | D62: =+C6 -> S/. miles | E62: - | F62: =MAX($C$62*F60,0) -> 7914.701567 | G62: =MAX($C$62*G60,0) -> 7716.812205 | H62: =MAX($C$62*H60,0) -> 9033.098877 | I62: =MAX($C$62*I60,0) -> 9781.807024 | J62: =MAX($C$62*J60,0) -> 13031.83778
B63: Ingresos/Gastos financieros | D63: =+C6 -> S/. miles | E63: 0 | F63: 0 | G63: 0 | H63: 0 | I63: 0 | J63: 0
B65: Utilidad Neta | D65: =+C6 -> S/. miles | E65: =+E60-SUM(E62:E63) -> -55724.5478 | F65: 15711.27326 | G65: 15318.44811 | H65: 17931.37538 | I65: 19417.61693 | J65: 25869.17052
B66: 1/ Incluye servicios de aeronavegación a militares, policías, embajadas, entre otros.
B67: 2/ [nota sobre los ingresos del 50% de A/D de Lima]
B68: 3/ [nota sobre 50% de los ingresos por 20% del TUUA de Lima]
B70: Flujo de caja | D70: Unidad de medida | E70: 2013 | F70: 2014 | G70: 2015 | H70: 2016 | I70: 2017 | J70: 2018
B72: Flujo de caja operativo (FCO) | D72: =+C6 -> S/. miles | E72: =E56 -> -50781.36528 | F72: =F56 -> 29638.35499 | G72: 30714.56735 | H72: 36276.30331 | I72: 39412.93297 | J72: 45715.81559
B74: Var. capital de trabajo neto | F74: =+F104 -> -4919.382846 | G74: =+G104 -> -215.3495607 | H74: =+H104 -> -336.413561 | I74: =+I104 -> -264.0908898 | J74: =+J104 -> 4264.338549
B75: Valor de activos inicial | D75: =+C6 -> S/. miles | E75: =-E95 -> -39026.33943
B76: Inversiones | D76: =+C6 -> S/. miles | E76: =-(+E89) -> -4973.171804 | F76: =-(+F89) -> -7448.303337 | G76: =-(+G89) -> -13425.0696 | H76: =-(+H89) -> -10064.39226 | I76: =-(+I89) -> -10775.55522 | J76: 0
B77: Valor de activos residual | D77: =+C6 -> S/. miles | J77: =+J95 -> 40707.82727
F78: =F62 -> 7914.701567 | G78: =G62 -> 7716.812205 | H78: =H62 -> 9033.098877 | I78: =I62 -> 9781.807024 | J78: =J62 -> 13031.83778
B79: Flujo de caja económico (FCE) | D79: =+C6 -> S/. miles | E79: =SUM(E74:E77)+E72 -> -94780.87651 | F79: =SUM(F74:F77)+F72-F78 -> 9355.967242 | G79: =SUM(G74:G77)+G72-G78 -> 9357.335984 | H79: =SUM(H74:H77)+H72-H78 -> 16842.39862 | I79: =SUM(I74:I77)+I72-I78 -> 18591.47984 | J79: =SUM(J74:J77)+J72-J78 -> 77656.14363
B81: WACC | C81: =+wacc -> 0.08510628852
B82: VAN | C82: =+NPV(C81,F79:J79)+E79 -> 0
B84: Tarifa global | C84: 20.0053509
B85: Var% tarifas | C85: =+F24/E24-1 -> 0.2774809004
B87: Activos | E87: 2013 | F87: 2014 | G87: 2015 | H87: 2016 | I87: 2017 | J87: 2018
B88: Valor inicial de activos | D88: =+C6 -> S/. miles | E88: =+E95-E93-E94 -> 43969.52195 | F88: =+E95 -> 39026.33943 | G88: =+F95 -> 40462.2626 | H88: =+G95 -> 46208.02517 | I88: =+H95 -> 46960.58837 | J88: =+I95 -> 47522.63457
B89: CAPEX global | D89: =+C6 -> S/. miles | E89: =+Activo_nvo!H1478/E9 -> 4973.171804 | F89: =+Activo_nvo!I1478/F9 -> 7448.303337 | G89: =+Activo_nvo!J1478/G9 -> 13425.0696 | H89: =+Activo_nvo!K1478/H9 -> 10064.39226 | I89: =+Activo_nvo!L1478/I9 -> 10775.55522 | J89: =+Activo_nvo!M1478/J9 -> 0
B90: CAPEX reasignados | E90: =+Activo_nvo!H1484/E9 -> 0 | F90: =+Activo_nvo!I1484/F9 -> 0 | G90: =+Activo_nvo!J1484/G9 -> 0 | H90: =+Activo_nvo!K1484/H9 -> 0 | I90: =+Activo_nvo!L1484/I9 -> 0 | J90: =+Activo_nvo!M1484/J9 -> 0
B91: CAPEX no atribuible | E91: =+Activo_nvo!H1485/E9 -> 0 | F91: =+Activo_nvo!I1485/F9 -> 0 | G91: =+Activo_nvo!J1485/G9 -> 0 | H91: =+Activo_nvo!K1485/H9 -> 0 | I91: =+Activo_nvo!L1485/I9 -> 0 | J91: =+Activo_nvo!M1485/J9 -> 0
B92: CAPEX efectivo | D92: =+C6 -> S/. miles | E92: =+SUM(E89:E91) -> 4973.171804 | F92: =+SUM(F89:F91) -> 7448.303337 | G92: 13425.0696 | H92: 10064.39226 | I92: 10775.55522 | J92: 0
B93: Activos existentes | E93: =-Activo_ext!H86/E$9 -> -4356.877383 | F93: =-Activo_ext!I86/F$9 -> -4181.471868 | G93: =-Activo_ext!J86/G$9 -> -4003.184291 | H93: =-Activo_ext!K86/H$9 -> -3676.37147 | I93: =-Activo_ext!L86/I$9 -> -3415.634161 | J93: =-Activo_ext!M86/J$9 -> -3220.870432
B94: Activos nuevos | E94: =-Activo_nvo!H1489/E$9 -> -586.3051359 | F94: =-Activo_nvo!I1489/F$9 -> -1830.908297 | G94: =-Activo_nvo!J1489/G$9 -> -3676.122744 | H94: =-Activo_nvo!K1489/H$9 -> -5635.457581 | I94: =-Activo_nvo!L1489/I$9 -> -6797.87486 | J94: =-Activo_nvo!M1489/J$9 -> -3593.936862
B95: Valor final | D95: =+C6 -> S/. miles | E95: =+Activo_ext!H88/E$9 -> 39026.33943 | F95: =+F88+F92+F93+F94 -> 40462.2626 | G95: =+G88+G92+G93+G94 -> 46208.02517 | H95: =+H88+H92+H93+H94 -> 46960.58837 | I95: =+I88+I92+I93+I94 -> 47522.63457 | J95: =+J88+J92+J93+J94 -> 40707.82727
B98: Capital de trabajo | E98: 2013 | F98: 2014 | G98: 2015 | H98: 2016 | I98: 2017 | J98: 2018
B99: Caja | C99: 2 | E99: =+E45/365*$C$99 -> 39.11313937 | F99: 487.4583786 | G99: 522.9162904 | H99: 553.1736006 | I99: 584.889242 | J99: 618.502864
B100: Cuentas por cobrar | C100: =+SUMIF(Vínculos!$C$143:$C$145,B100,Vínculos!$D$143:$D$145) -> 0.05520660223 | E100: =$C$100*E45 -> 394.0728937 | F100: 4911.243048 | G100: 5268.488775 | H100: 5573.337376 | I100: 5892.878961 | J100: 6231.543091
B101: Inventario | C101: =+SUMIF(Vínculos!$C$143:$C$145,B101,Vínculos!$D$143:$D$145) -> 0.02878259378 | E101: =-$C$101*E47 -> 1667.073821 | F101: 1707.464028 | G101: 1862.741993 | H101: 1861.597112 | I101: 1937.913437 | J101: 1933.066546
B102: Cuentas por pagar | C102: =+SUMIF(Vínculos!$C$143:$C$145,B102,Vínculos!$D$143:$D$145) -> 0.06165725444 | E102: =-$C$102*E47 -> 3571.158163 | F102: 3657.680918 | G102: 3990.312961 | H102: 3987.86043 | I102: 4151.343092 | J102: 4140.96022
B103: Capital de trabajo | E103: =+SUM(E99:E101)-E102 -> -1470.898309 | F103: 3448.484537 | G103: 3663.834098 | H103: 4000.247659 | I103: 4264.338549 | J103: 4642.152281
B104: Variación del capital de trabajo | E104: =-E103 -> 1470.898309 | F104: =+E103-F103 -> -4919.382846 | G104: =+F103-G103 -> -215.3495607 | H104: =+G103-H103 -> -336.413561 | I104: =+H103-I103 -> -264.0908898 | J104: =+I103-J103+J103 -> 4264.338549

Sheet SNAR Propuesta
B2: TARIFAS VIGENTES 2014
B4: SNAR NACIONAL* | C4: Unidad de Cobro | D4: Tarifa Máxima US$ sin IGV | E4: Tarifa Máxima US$ con IGV
B5: Hasta 10 TM | C5: Por kilómetro recorrido | D5: 0.1 | E5: 0.118
B6: Hasta 10 TM - Nazca | D6: 0.1 | E6: 0.118
B7: Más de 10 hasta 35 TM | D7: 0.11 | E7: 0.1298
B8: Más de 35 hasta 70 TM | D8: 0.15 | E8: 0.177
B9: Más de 70 hasta 105 TM | D9: 0.23 | E9: 0.2714
B10: Más de 105 TM | D10: 0.3 | E10: 0.354
B11: (*) Cargo mínimo igual a US$ 5 más IGV, vigente desde 00.00 horas UTC del 12/06/2004 | D11: 5 | E11: 5.9
B14: SNAR INTERNACIONAL** | C14: Unidad de Cobro | D14: Tarifa Máxima US$ sin IGV | E14: Tarifa Máxima US$ con IGV
B15: Hasta 10 TM | C15: Por kilómetro recorrido | D15: 0.13 | E15: 0.1534
B16: Más de 10 hasta 35 TM | D16: 0.15 | E16: 0.177
B17: Más de 35 hasta 70 TM | D17: 0.2 | E17: 0.236
B18: Más de 70 hasta 105 TM | D18: 0.3 | E18: 0.354
B19: Más de 105 TM | D19: 0.4 | E19: 0.472
B20: (**) Cargo mínimo igual a US$ 7 más IGV, vigente desde 00.00 horas UTC del 12/06/2004 | D20: 7 | E20: 8.26
B24: TARIFAS PROPUESTAS - SNAR (Nacional e Internacional)
L25: 2013 | M25: 2014 I | N25: 2014 II | O25: 2015 | P25: 2016 | Q25: 2017 | R25: 2018
B26: SNAR NACIONAL | C26: Unidad de Cobro | D26: Tarifa Máxima 2013 | E26: Tarifa Máxima Propuesta | G26: VAR % (USD)
D27: USD sin IGV | E27: USD sin IGV | F27: S/. Sin IGV
B28: Hasta 10 TM | C28: Por kilómetro recorrido | D28: =D5 -> 0.1 | E28: =D49 -> 0.1045190066 | F28: =E28*'FC SNAR N e I'!$F$2 -> 0.2905557214 | G28: =E28/D28-1 -> 0.0451900663 | L28: 386.722908 | M28: 314.9776073 | N28: =$E$28*([7]Demanda!G6+[7]Demanda!G7)/4 -> 92.99758935 | O28: =$E$28*([7]Demanda!H6+[7]Demanda!H7) -> 407.1329143 | P28: =$E$28*([7]Demanda!I6+[7]Demanda!I7) -> 443.1522496 | Q28: =$E$28*([7]Demanda!J6+[7]Demanda!J7) -> 480.142108 | R28: =$E$28*([7]Demanda!K6+[7]Demanda!K7) -> 520.3791793
B29: Hasta 10 TM - Nazca | D29: =D6 -> 0.1 | E29: =E28*D50 -> 0.1045190066 | F29: =E29*'FC SNAR N e I'!$F$2 -> 0.2905557214 | G29: 0.0451900663
B30: Más de 10 hasta 35 TM | D30: =D7 -> 0.11 | E30: =E28*D51 -> 0.1149709073 | F30: =E30*'FC SNAR N e I'!$F$2 -> 0.3196112935 | G30: 0.0451900663 | L30: 562.3586908 | M30: 458.0292277 | N30: ='SNAR Propuesta'!$E$30*[7]Demanda!G8/4 -> 135.233785 | O30: ='SNAR Propuesta'!$E$30*[7]Demanda!H8 -> 592.0381956 | P30: ='SNAR Propuesta'!$E$30*[7]Demanda!I8 -> 644.4162312 | Q30: ='SNAR Propuesta'!$E$30*[7]Demanda!J8 -> 698.2055669 | R30: ='SNAR Propuesta'!$E$30*[7]Demanda!K8 -> 756.7168841
B31: Más de 35 hasta 70 TM | D31: 0.15 | E31: =E28*D52 -> 0.1567785099 | F31: =E31*'FC SNAR N e I'!$F$2 -> 0.4358335821 | G31: 0.0451900663 | L31: 7108.001703 | M31: 5789.316647 | N31: =$E$31*[7]Demanda!G9/4 -> 1709.304025 | O31: =$E$31*[7]Demanda!H9 -> 7483.139447 | P31: =$E$31*[7]Demanda!I9 -> 8145.178057 | Q31: =$E$31*[7]Demanda!J9 -> 8825.054968 | R31: =$E$31*[7]Demanda!K9 -> 9564.615945
B32: Más de 70 hasta 105 TM | D32: 0.23 | E32: =E28*D53 -> 0.2403937152 | F32: =E32*'FC SNAR N e I'!$F$2 -> 0.6682781592 | G32: 0.0451900663 | L32: 2817.998626 | M32: 2295.20012 | N32: =$E$32*[7]Demanda!G10/4 -> 677.6611201 | O32: =$E$32*[7]Demanda!H10 -> 2966.72364 | P32: =$E$32*[7]Demanda!I10 -> 3229.191767 | Q32: =$E$32*[7]Demanda!J10 -> 3498.731967 | R32: =$E$32*[7]Demanda!K10 -> 3791.934178
B33: Más de 105 TM | D33: =D10 -> 0.3 | E33: =E28*D54 -> 0.3135570199 | F33: =E33*'FC SNAR N e I'!$F$2 -> 0.8716671641 | G33: 0.0451900663 | L33: 2.2136505 | M33: 1.802971387 | N33: =$E$33*[7]Demanda!G11/4 -> 0.5323298824 | O33: =$E$33*[7]Demanda!H11 -> 2.330479939 | P33: =$E$33*[7]Demanda!I11 -> 2.536659139 | Q33: =$E$33*[7]Demanda!J11 -> 2.748393734 | R33: =$E$33*[7]Demanda!K11 -> 2.978715785
B34: Cargo mínimo | D34: =D11 -> 5 | E34: =E28*D55 -> 5.225950331 | F34: =E34*'FC SNAR N e I'!$F$2 -> 14.52778607 | G34: 0.0451900663 | L34: 12.2602 | M34: 9.985672897 | N34: =$E$34*[7]Demanda!G12/1000/4 -> 2.948284214 | O34: =$E$34*[7]Demanda!H12/1000 -> 12.9072544 | P34: =$E$34*[7]Demanda!I12/1000 -> 14.04916827 | Q34: =$E$34*[7]Demanda!J12/1000 -> 15.22185045 | R34: =$E$34*[7]Demanda!K12/1000 -> 16.49747838
B37: SNAR INTERNACIONAL | C37: Unidad de Cobro | D37: Tarifa Máxima 2013 USD sin IGV | E37: Tarifa Máxima Propuesta USD sin IGV | G37: VAR % (USD)
B38: Hasta 10 TM | C38: Por kilómetro recorrido | D38: =D15 -> 0.13 | E38: =D59 -> 0.1441757313 | G38: =E38/D38-1 -> 0.1090440868 | L38: 166.0492551 | M38: 132.8998233 | N38: =$E$38*[7]Demanda!G16/4 -> 41.63609128 | O38: =$E$38*[7]Demanda!H16 -> 178.3479543 | P38: =$E$38*[7]Demanda!I16 -> 190.1766483 | Q38: =$E$38*[7]Demanda!J16 -> 203.0299072 | R38: =$E$38*[7]Demanda!K16 -> 216.7483493
B39: Más de 10 hasta 35 TM | D39: 0.15 | E39: =E38*D60 -> 0.166356613 | G39: 0.1090440868 | L39: 179.1179077 | M39: 143.3595005 | N39: =$E$39*[7]Demanda!G17/4 -> 44.91299614 | O39: =$E$39*[7]Demanda!H17 -> 192.3845572 | P39: =$E$39*[7]Demanda!I17 -> 205.1442105 | Q39: =$E$39*[7]Demanda!J17 -> 219.0090655 | R39: =$E$39*[7]Demanda!K17 -> 233.8071965
B40: Más de 35 hasta 70 TM | D40: 0.2 | E40: =E38*D61 -> 0.2218088174 | G40: 0.1090440868 | L40: 2282.531006 | M40: 1826.855333 | N40: =$E$40*[7]Demanda!G18/4 -> 572.3342104 | O40: =$E$40*[7]Demanda!H18 -> 2451.590255 | P40: =$E$40*[7]Demanda!I18 -> 2614.188761 | Q40: =$E$40*[7]Demanda!J18 -> 2790.871047 | R40: =$E$40*[7]Demanda!K18 -> 2979.446233
B41: Más de 70 hasta 105 TM | D41: 0.3 | E41: =E38*D62 -> 0.332713226 | G41: 0.1090440868 | L41: 8627.012561 | M41: 6904.7491 | N41: =$E$41*[7]Demanda!G19/4 -> 2163.183944 | O41: =$E$41*[7]Demanda!H19 -> 9265.985815 | P41: =$E$41*[7]Demanda!I19 -> 9880.540164 | Q41: =$E$41*[7]Demanda!J19 -> 10548.32531 | R41: =$E$41*[7]Demanda!K19 -> 11261.06064
B42: Más de 105 TM | D42: 0.4 | E42: =E38*D63 -> 0.4436176347 | G42: 0.1090440868 | L42: 9391.307111 | M42: 7516.462839 | N42: =$E$42*[7]Demanda!G20/4 -> 2354.827307 | O42: =$E$42*[7]Demanda!H20 -> 10086.88904 | P42: =$E$42*[7]Demanda!I20 -> 10755.88872 | Q42: =$E$42*[7]Demanda!J20 -> 11482.83508 | R42: =$E$42*[7]Demanda!K20 -> 12258.71391
B43: Cargo mínimo | D43: 7 | E43: =E38*D64 -> 7.763308608 | G43: 0.1090440868 | L43: 0.18172 | M43: 0.1454421212 | N43: =$E$43*[7]Demanda!G22/1000/4 -> 0.04556545889 | O43: =$E$43*[7]Demanda!H22/1000 -> 0.1951793776 | P43: =$E$43*[7]Demanda!I22/1000 -> 0.2081243937 | Q43: =$E$43*[7]Demanda!J22/1000 -> 0.222190667 | R43: =$E$43*[7]Demanda!K22/1000 -> 0.2372037743
B46: Parámetros del modelo
B48: SNAR NACIONAL
B49: Hasta 10 TM | C49: Tarifa base | D49: 0.1045190066
B50: Hasta 10 TM - Nazca | C50: Estructura tarifaria | D50: =D29/$D$28 -> 1
B51: Más de 10 hasta 35 TM | D51: 1.1
B52: Más de 35 hasta 70 TM | D52: 1.5
B53: Más de 70 hasta 105 TM | D53: 2.3
B54: Más de 105 TM | D54: 3
B55: Cargo Mínimo | D55: 50
B58: SNAR INTERNACIONAL
B59: Hasta 10 TM | C59: Tarifa base | D59: 0.1441757313
B60: Más de 10 hasta 35 TM | C60: Estructura tarifaria | D60: =D39/$D$38 -> 1.153846154
B61: Más de 35 hasta 70 TM | D61: =D40/$D$38 -> 1.538461538
B62: Más de 70 hasta 105 TM | D62: =D41/$D$38 -> 2.307692308
B63: Más de 105 TM | D63: =D42/$D$38 -> 3.076923077
B64: Cargo Mínimo | D64: =D43/$D$38 -> 53.84615385
B67: Restricciones del modelo
B69: Se conserva la estructura tarifaria
B70: Promedio de tarifas | C70: Relación entre tarifas se mantiene fija (51.8%)
B71: =AVERAGE(E28:E33) -> 0.1724563609 | C71: =B72/B71-1 -> 0.5176848396 | D71: 0.5176842466
B72: =AVERAGE(E38:E42) -> 0.2617344045
B75: Valor actual neto del flujo de caja económico igual a cero
B76: VAN | D76: ='FC SNAR N e I'!C89 -> -1.258740667e-09

Sheet FC SNAR N e I
B2: Tipo de cambio | E2: 2.7 | F2: 2.779931907 | G2: 2.881684281 | H2: 2.900091644 | I2: 2.900091644 | J2: 2.900091644
B4: ESTIMACIÓN DE TARIFAS DE SNAR NACIONAL E INTERNACIONAL
B6: Concepto | C6: Unidad | E6: 2013 | F6: 2014 | G6: 2015 | H6: 2016 | I6: 2017 | J6: 2018
B8: Ingresos Brutos | D8: US$ miles | E8: =E10+E49 -> 28633.28772 | F8: 32544.61596 | G8: 36142.76756 | H8: 38707.35062 | I8: 41522.67101 | J8: =J10+J49 -> 44550.73828
B10: Ingresos por tarifas reguladas | D10: =D8 -> US$ miles | E10: =E11+E30 -> 26659.19885 | F10: 29759.10973 | G10: 33234.86088 | H10: 35607.64704 | I10: 38204.21783 | J10: 40996.01189
B11: Ingreso SNAR Nacional | E11: =(SUMPRODUCT(E13:E18,E22:E27)+E19*E28/1000)/E2 -> 9162.419564 | F11: =((+SUMPRODUCT(F13:F18,F22:F27)+F19*F28/1000)*0.5+(+SUMPRODUCT(F13:F18,E22:E27)+F19*E28/1000)*0.5)/F2 -> 10069.36959 | G11: =(SUMPRODUCT(G13:G18,G22:G27)+G19*G28/1000)/G2 -> 11059.46808 | H11: =(SUMPRODUCT(H13:H18,H22:H27)+H19*H28/1000)/H2 -> 11961.50041 | I11: =(SUMPRODUCT(I13:I18,I22:I27)+I19*I28/1000)/I2 -> 12959.92523 | J11: =(SUMPRODUCT(J13:J18,J22:J27)+J19*J28/1000)/J2 -> 14045.99835
B12: Demanda - miles de Km recorridos
B13: Hasta 10 | D13: miles de Km recorridos | E13: =Demanda!E191 -> 3249.5904 | F13: =Demanda!F191 -> 3528.963289 | G13: =Demanda!G191 -> 3862.350407 | H13: =Demanda!H191 -> 4204.055264 | I13: =Demanda!I191 -> 4554.967188 | J13: =Demanda!J191 -> 4936.684469
B14: Hasta 10 - Nazca | D14: miles de Km recorridos | E14: =Demanda!E192 -> 27.72238 | F14: =Demanda!F192 -> 30.1057208 | G14: =Demanda!G192 -> 32.94985906 | H14: =Demanda!H192 -> 35.86495626 | I14: =Demanda!I192 -> 38.85859931 | J14: =Demanda!J192 -> 42.11504403
B15: Más de 10 hasta 35 TM | D15: miles de Km recorridos | E15: =Demanda!E193 -> 4332.50147 | F15: =Demanda!F193 -> 4704.97409 | G15: =Demanda!G193 -> 5149.460934 | H15: =Demanda!H193 -> 5605.037364 | I15: =Demanda!I193 -> 6072.889075 | J15: =Demanda!J193 -> 6581.811886
B16: Más de 35 hasta 70 TM | D16: miles de Km recorridos | E16: =Demanda!E194 -> 40158.20171 | F16: =Demanda!F194 -> 43610.67154 | G16: =Demanda!G194 -> 47730.64529 | H16: =Demanda!H194 -> 51953.40905 | I16: =Demanda!I194 -> 56289.95308 | J16: =Demanda!J194 -> 61007.18745
B17: Más de 70 hasta 105 TM | D17: miles de Km recorridos | E17: =Demanda!E195 -> 10383.19317 | F17: =Demanda!F195 -> 11275.85419 | G17: =Demanda!G195 -> 12341.10316 | H17: =Demanda!H195 -> 13432.92924 | I17: =Demanda!I195 -> 14554.17403 | J17: =Demanda!J195 -> 15773.84905
B18: Más de 105 TM | D18: miles de Km recorridos | E18: =Demanda!E196 -> 6.25325 | F18: =Demanda!F196 -> 6.790852683 | G18: =Demanda!G196 -> 7.432395997 | H18: =Demanda!H196 -> 8.089945299 | I18: =Demanda!I196 -> 8.765211939 | J18: =Demanda!J196 -> 9.499757925
B19: Cargo mínimo | D19: # de operaciones | E19: =Demanda!E197 -> 2078 | F19: =Demanda!F197 -> 2256.649242 | G19: =Demanda!G197 -> 2469.838705 | H19: =Demanda!H197 -> 2688.347072 | I19: =Demanda!I197 -> 2912.743039 | J19: =Demanda!J197 -> 3156.837959
B21: Tarifa (sin IGV)
B22: Hasta 10 | D22: S/. / km recorrido | E22: 0.216 | F22: ='SNAR Propuesta'!F28 -> 0.2905557214 | G22: =+F22 -> 0.2905557214 | H22: 0.2905557214 | I22: 0.2905557214 | J22: 0.2905557214
B23: Hasta 10 - Nazca | D23: S/. / km recorrido | E23: 0.1701 | F23: ='SNAR Propuesta'!F29 -> 0.2905557214 | G23: 0.2905557214 | H23: 0.2905557214 | I23: 0.2905557214 | J23: 0.2905557214
B24: Más de 10 hasta 35 TM | D24: S/. / km recorrido | E24: 0.297 | F24: ='SNAR Propuesta'!F30 -> 0.3196112935 | G24: 0.3196112935 | H24: 0.3196112935 | I24: 0.3196112935 | J24: 0.3196112935
B25: Más de 35 hasta 70 TM | D25: S/. / km recorrido | E25: 0.405 | F25: ='SNAR Propuesta'!F31 -> 0.4358335821 | G25: 0.4358335821 | H25: 0.4358335821 | I25: 0.4358335821 | J25: 0.4358335821
B26: Más de 70 hasta 105 TM | D26: S/. / km recorrido | E26: 0.621 | F26: ='SNAR Propuesta'!F32 -> 0.6682781592 | G26: 0.6682781592 | H26: 0.6682781592 | I26: 0.6682781592 | J26: 0.6682781592
B27: Más de 105 TM | D27: S/. / km recorrido | E27: 0.81 | F27: ='SNAR Propuesta'!F33 -> 0.8716671641 | G27: 0.8716671641 | H27: 0.8716671641 | I27: 0.8716671641 | J27: 0.8716671641
B28: Cargo mínimo | D28: S/./# de operaciones | E28: 13.5 | F28: ='SNAR Propuesta'!F34 -> 14.52778607 | G28: 14.52778607 | H28: 14.52778607 | I28: 14.52778607 | J28: 14.52778607
B30: Ingreso SNAR Internacional | E30: =+SUMPRODUCT(E32:E36,E41:E45)+E38*E47/1000 -> 17496.77929 | F30: =(+SUMPRODUCT(F32:F36,F41:F45)+F38*F47/1000)*0.5+(+SUMPRODUCT(F32:F36,E41:E45)+F38*E47/1000)*0.5 -> 19689.74014 | G30: =+SUMPRODUCT(G32:G37,G41:G46)+G38*G47/1000 -> 22175.3928 | H30: =+SUMPRODUCT(H32:H37,H41:H46)+H38*H47/1000 -> 23646.14663 | I30: =+SUMPRODUCT(I32:I37,I41:I46)+I38*I47/1000 -> 25244.2926 | J30: =+SUMPRODUCT(J32:J37,J41:J46)+J38*J47/1000 -> 26950.01354
B31: Demanda - miles de Km recorridos
B32: Hasta 10 | D32: miles de Km recorridos | E32: =Demanda!E214 -> 1082.45929 | F32: =Demanda!F214 -> 1155.148399 | G32: =Demanda!G214 -> 1237.017858 | H32: =Demanda!H214 -> 1319.061444 | I32: =Demanda!I214 -> 1408.211392 | J32: =Demanda!J214 -> 1503.362232
B33: Más de 10 hasta 35 TM | D33: miles de Km recorridos | E33: =Demanda!E215 -> 1011.96558 | F33: =Demanda!F215 -> 1079.920908 | G33: =Demanda!G215 -> 1156.458729 | H33: =Demanda!H215 -> 1233.159336 | I33: =Demanda!I215 -> 1316.503513 | J33: =Demanda!J215 -> 1405.457783
B34: Más de 35 hasta 70 TM | D34: miles de Km recorridos | E34: =Demanda!E216 -> 9671.74155 | F34: =Demanda!F216 -> 10321.21657 | G34: =Demanda!G216 -> 11052.71776 | H34: =Demanda!H216 -> 11785.77476 | I34: =Demanda!I216 -> 12582.32689 | J34: =Demanda!J216 -> 13432.49682
B35: Más de 70 hasta 105 TM | D35: miles de Km recorridos | E35: =Demanda!E217 -> 24370.09198 | F35: =Demanda!F217 -> 26006.58795 | G35: =Demanda!G217 -> 27849.76698 | H35: =Demanda!H217 -> 29696.86622 | I35: =Demanda!I217 -> 31703.95549 | J35: =Demanda!J217 -> 33846.14666
B36: Más de 105 TM | D36: miles de Km recorridos | E36: =Demanda!E218 -> 19896.8371 | F36: =Demanda!F218 -> 21232.94587 | G36: =Demanda!G218 -> 22737.79997 | H36: =Demanda!H218 -> 24245.85472 | I36: =Demanda!I218 -> 25884.5325 | J36: =Demanda!J218 -> 27633.51354
E37: =Demanda!E219 -> 0 | F37: =Demanda!F219 -> 0 | G37: =Demanda!G219 -> 0 | H37: =Demanda!H219 -> 0 | I37: =Demanda!I219 -> 0 | J37: =Demanda!J219 -> 0
B38: Cargo mínimo | D38: # de operaciones | E38: =Demanda!E220 -> 22 | F38: =Demanda!F220 -> 23.47733998 | G38: =Demanda!G220 -> 25.14126225 | H38: =Demanda!H220 -> 26.80872347 | I38: =Demanda!I220 -> 28.62061503 | J38: =Demanda!J220 -> 30.55446927
B40: Tarifa (sin IGV)
B41: Hasta 10 | D41: US$ / km recorrido | E41: 0.13 | F41: ='SNAR Propuesta'!E38 -> 0.1441757313 | G41: =+F41 -> 0.1441757313 | H41: 0.1441757313 | I41: 0.1441757313 | J41: 0.1441757313
B42: Más de 10 hasta 35 TM | D42: US$ / km recorrido | E42: 0.15 | F42: ='SNAR Propuesta'!E39 -> 0.166356613 | G42: 0.166356613 | H42: 0.166356613 | I42: 0.166356613 | J42: 0.166356613
B43: Más de 35 hasta 70 TM | D43: US$ / km recorrido | E43: 0.2 | F43: ='SNAR Propuesta'!E40 -> 0.2218088174 | G43: 0.2218088174 | H43: 0.2218088174 | I43: 0.2218088174 | J43: 0.2218088174
B44: Más de 70 hasta 105 TM | D44: US$ / km recorrido | E44: 0.3 | F44: ='SNAR Propuesta'!E41 -> 0.332713226 | G44: 0.332713226 | H44: 0.332713226 | I44: 0.332713226 | J44: 0.332713226
B45: Más de 105 TM | D45: US$ / km recorrido | E45: 0.4 | F45: ='SNAR Propuesta'!E42 -> 0.4436176347 | G45: 0.4436176347 | H45: 0.4436176347 | I45: 0.4436176347 | J45: 0.4436176347
B47: Cargo mínimo | D47: US$/# de operaciones | E47: 7 | F47: ='SNAR Propuesta'!E43 -> 7.763308608 | G47: =+F47 -> 7.763308608 | H47: =+G47 -> 7.763308608 | I47: =+H47 -> 7.763308608 | J47: =+I47 -> 7.763308608
B49: Ajustes | D49: =D10 -> US$ miles | E49: =E51+E56 -> 1974.088866 | F49: =F51+F56 -> 2785.506232 | G49: 2907.906677 | H49: 3099.703582 | I49: 3318.453181 | J49: 3554.726397
B51: Ajustes SNAR Nacional | E51: =SUM(E52:E54) -> 1047.367236 | F51: 2591.380516 | G51: 2702.934705 | H51: 2879.392737 | I51: 3080.542184 | J51: 3297.611513
B52: Ingresos no atribuibles | E52: =Demanda!E205/'FC SNAR N e I'!E2 -> 657.4486893 | F52: =Demanda!F205/'FC SNAR N e I'!F2 -> 727.9694312 | G52: =Demanda!G205/'FC SNAR N e I'!G2 -> 809.1483847 | H52: =Demanda!H205/'FC SNAR N e I'!H2 -> 896.9521036 | I52: =Demanda!I205/'FC SNAR N e I'!I2 -> 992.0409763 | J52: =Demanda!J205/'FC SNAR N e I'!J2 -> 1097.375491
B53: Ingresos LAP | E53: 0 | F53: 1863.411085 | G53: 1893.786321 | H53: 1982.440634 | I53: 2088.501207 | J53: 2200.236022
B54: Brecha | E54: 389.9185469 | F54: 0 | G54: 0 | H54: 0 | I54: 0 | J54: 0
B56: Ajustes SNAR Internacional | E56: =SUM(E57:E59) -> 926.7216298 | F56: 194.125716 | G56: 204.971972 | H56: 220.3108446 | I56: 237.9109971 | J56: 257.1148836
B57: Ingresos no atribuibles | E57: =Demanda!E228/'FC SNAR N e I'!E2 -> 69.386242 | F57: =Demanda!F228/'FC SNAR N e I'!F2 -> 77.28491756 | G57: =Demanda!G228/'FC SNAR N e I'!G2 -> 86.22656603 | H57: =Demanda!H228/'FC SNAR N e I'!H2 -> 96.00657897 | I57: =Demanda!I228/'FC SNAR N e I'!I2 -> 106.9564533 | J57: =Demanda!J228/'FC SNAR N e I'!J2 -> 119.1542716
B58: Ingresos LAP | E58: 0 | F58: ='Ingresos AIJCh'!D13/'FC SNAR N e I'!F2 -> 116.8407984 | G58: ='Ingresos AIJCh'!E13/'FC SNAR N e I'!G2 -> 118.745406 | H58: ='Ingresos AIJCh'!F13/'FC SNAR N e I'!H2 -> 124.3042656 | I58: ='Ingresos AIJCh'!G13/'FC SNAR N e I'!I2 -> 130.9545438 | J58: ='Ingresos AIJCh'!H13/'FC SNAR N e I'!J2 -> 137.9606119
B59: Brecha | E59: 857.3353878 | F59: 0 | G59: 0 | H59: 0 | I59: 0 | J59: 0
B61: Contribuciones totales | D61: =D49 -> US$ miles | E61: -2609.592938 | F61: =SUM(F62:F63) -> -3579.907755 | G61: =SUM(G62:G63) -> -3975.704432 | H61: =SUM(H62:H63) -> -4257.808568 | I61: =SUM(I62:I63) -> -4567.493811 | J61: =SUM(J62:J63) -> -4900.581211
B62: Pago a Ositran | C62: 0.01 | F62: =-$C$62*F8 -> -325.4461596 | G62: =-$C$62*G8 -> -361.4276756 | H62: =-$C$62*H8 -> -387.0735062 | I62: =-$C$62*I8 -> -415.2267101 | J62: =-$C$62*J8 -> -445.5073828
B63: Pago al MTC | C63: 0.1 | F63: =-$C$63*F8 -> -3254.461596 | G63: =-$C$63*G8 -> -3614.276756 | H63: =-$C$63*H8 -> -3870.735062 | I63: =-$C$63*I8 -> -4152.267101 | J63: =-$C$63*J8 -> -4455.073828
B65: Ingresos Netos | E65: =E61+E8 -> 26023.69478 | F65: =F61+F8 -> 28964.7082 | G65: 32167.06313 | H65: 34449.54205 | I65: 36955.1772 | J65: =J61+J8 -> 39650.15707
B67: Egresos SNAR Nacional e Internacional | D67: =D61 -> US$ miles | E67: =SUM(E68:E75) -> -25598.7818 | F67: -26361.97401 | G67: =SUM(G68:G75) -> -28149.35072 | H67: -28350.57326 | I67: -29971.32008 | J67: -30751.24544
B68: Gastos de personal | E68: =-(Opex!L224+Opex!L236)/$E$2 -> -17600.57836 | F68: =-(Opex!M224+Opex!M236)/F2 -> -17485.38446 | G68: =-(Opex!N224+Opex!N236)/G2 -> -18886.19467 | H68: =-(Opex!O224+Opex!O236)/H2 -> -18484.50659 | I68: =-(Opex!P224+Opex!P236)/I2 -> -18904.10814 | J68: =-(Opex!Q224+Opex!Q236)/J2 -> -19334.25852
B69: Gastos de operación incrementales | E69: =-(Activo_nvo!H1441+Activo_nvo!H1440)/E2 -> -299.2692227 | F69: =-(Activo_nvo!I1441+Activo_nvo!I1440)/F2 -> -409.7443624 | G69: =-(Activo_nvo!J1441+Activo_nvo!J1440)/G2 -> -402.7885301 | H69: =-(Activo_nvo!K1441+Activo_nvo!K1440)/H2 -> -397.0021859 | I69: =-(Activo_nvo!L1441+Activo_nvo!L1440)/I2 -> -1122.576199 | J69: =-(Activo_nvo!M1441+Activo_nvo!M1440)/J2 -> 0
B70: Servicios prestados por terceros | E70: =-(Opex!L225+Opex!L237)/'FC SNAR N e I'!E2 -> -4148.261882 | F70: =-(Opex!M225+Opex!M237)/'FC SNAR N e I'!F2 -> -4123.283085 | G70: =-(Opex!N225+Opex!N237)/'FC SNAR N e I'!G2 -> -4077.891583 | H70: =-(Opex!O225+Opex!O237)/'FC SNAR N e I'!H2 -> -4147.960987 | I70: =-(Opex!P225+Opex!P237)/'FC SNAR N e I'!I2 -> -4244.058492 | J70: =-(Opex!Q225+Opex!Q237)/'FC SNAR N e I'!J2 -> -4342.651943
B71: Mantenimiento de activos | E71: =-(Opex!L226+Opex!L238)/'FC SNAR N e I'!E2 -> -494.7858686 | F71: =-(Opex!M226+Opex!M238)/'FC SNAR N e I'!F2 -> -491.5653706 | G71: =-(Opex!N226+Opex!N238)/'FC SNAR N e I'!G2 -> -485.8648892 | H71: =-(Opex!O226+Opex!O238)/'FC SNAR N e I'!H2 -> -493.9328036 | I71: =-(Opex!P226+Opex!P238)/'FC SNAR N e I'!I2 -> -505.1614622 | J71: =-(Opex!Q226+Opex!Q238)/'FC SNAR N e I'!J2 -> -516.6730838
B72: Suministros y materiales | E72: =-(Opex!L227+Opex!L239)/'FC SNAR N e I'!E2 -> -512.6412128 | F72: =-(Opex!M227+Opex!M239)/'FC SNAR N e I'!F2 -> -509.3565838 | G72: =-(Opex!N227+Opex!N239)/'FC SNAR N e I'!G2 -> -503.5122501 | H72: =-(Opex!O227+Opex!O239)/'FC SNAR N e I'!H2 -> -511.933876 | I72: =-(Opex!P227+Opex!P239)/'FC SNAR N e I'!I2 -> -523.6181621 | J72: =-(Opex!Q227+Opex!Q239)/'FC SNAR N e I'!J2 -> -535.5988067
B73: Tributos y seguros | E73: =-(Opex!L228+Opex!L240)/'FC SNAR N e I'!E2 -> -784.9230651 | F73: =-(Opex!M228+Opex!M240)/'FC SNAR N e I'!F2 -> -762.3540241 | G73: =-(Opex!N228+Opex!N240)/'FC SNAR N e I'!G2 -> -735.4352764 | H73: =-(Opex!O228+Opex!O240)/'FC SNAR N e I'!H2 -> -730.7673467 | I73: =-(Opex!P228+Opex!P240)/'FC SNAR N e I'!I2 -> -730.7673467 | J73: =-(Opex!Q228+Opex!Q240)/'FC SNAR N e I'!J2 -> -730.7673467
B74: Otros Costos | E74: =-(Opex!L229+Opex!L241)/'FC SNAR N e I'!E2 -> -1758.322191 | F74: =-(Opex!M229+Opex!M241)/'FC SNAR N e I'!F2 -> -1746.141068 | G74: =-(Opex!N229+Opex!N241)/'FC SNAR N e I'!G2 -> -1725.008634 | H74: =-(Opex!O229+Opex!O241)/'FC SNAR N e I'!H2 -> -1752.795044 | I74: =-(Opex!P229+Opex!P241)/'FC SNAR N e I'!I2 -> -1791.985527 | J74: =-(Opex!Q229+Opex!Q241)/'FC SNAR N e I'!J2 -> -1832.136554
B75: Pago de IR | C75: 0.335 | E75: =IF(E103<0,0,$C$75*-E103) -> 0 | F75: =IF(F103<0,0,$C$75*-F103) -> -834.1450584 | G75: =IF(G103<0,0,$C$75*-G103) -> -1332.654891 | H75: -1831.674419 | I75: -2149.044747 | J75: -3459.159187
B77: Flujo de Caja Operativo | E77: =E65+E67 -> 424.9129812 | F77: 2602.734191 | G77: 4017.71241 | H77: 6098.968794 | I77: 6983.857125 | J77: 8898.911633
B79: Valor de los activos inicial | D79: =D67 -> US$ miles | E79: =(-E111/E2)-E119 -> -26815.48692
B80: Inversiones | D80: =D79 -> US$ miles | E80: =(-E108/E2)-E116 -> -761.6783642 | F80: =(-F108/F2)-F116 -> -2649.593152 | G80: =(-G108/G2)-G116 -> -5313.59716 | H80: =(-H108/H2)-H116 -> -5101.309439 | I80: =(-I108/I2)-I116 -> -3814.182033
B81: Recupero Inversión | D81: =D80 -> US$ miles | J81: =(J111/J2)+J119 -> 25415.8398
B82: Capital de trabajo | D82: =D81 -> US$ miles | F82: =Activo_ext!I102+Activo_ext!I113 -> -185.6208051 | G82: =Activo_ext!J102+Activo_ext!J113 -> -158.1464591 | H82: =Activo_ext!K102+Activo_ext!K113 -> -152.800922 | I82: =Activo_ext!L102+Activo_ext!L113 -> -110.8476413 | J82: =Activo_ext!M102+Activo_ext!M113 -> 1318.446166
B84: Flujo de Caja Económico | D84: =D82 -> US$ miles | E84: =SUM(E77:E82) -> -27152.25231 | F84: =SUM(F77:F82) -> -232.479767 | G84: -1454.031209 | H84: 844.8584328 | I84: 3058.827451 | J84: =SUM(J77:J82) -> 35633.1976
B88: WACC | C88: 0.06834885317
B89: VAN | C89: =NPV(C88,F84:J84)+E84 -> -1.258740667e-09
B92: P&L | E92: 2013 | F92: 2014 | G92: 2015 | H92: 2016 | I92: 2017 | J92: 2018
B93: Ingresos Brutos | E93: =E8 -> 28633.28772 | F93: 32544.61596 | G93: 36142.76756 | H93: 38707.35062 | I93: 41522.67101 | J93: 44550.73828
B94: Retribución al Estado | E94: =E61 -> -2609.592938 | F94: -3579.907755 | G94: -3975.704432 | H94: -4257.808568 | I94: -4567.493811 | J94: -4900.581211
B95: Gastos de personal | E95: =E68 -> -17600.57836 | F95: =F68 -> -17485.38446 | G95: -18886.19467 | H95: -18484.50659 | I95: -18904.10814 | J95: -19334.25852
B96: Gastos de operación incrementales | E96: -299.2692227 | F96: -409.7443624 | G96: -402.7885301 | H96: -397.0021859 | I96: -1122.576199 | J96: 0
B97: Servicios prestados por terceros | E97: -4148.261882 | F97: -4123.283085 | G97: -4077.891583 | H97: -4147.960987 | I97: -4244.058492 | J97: -4342.651943
B98: Mantenimiento de activos | E98: -494.7858686 | F98: -491.5653706 | G98: -485.8648892 | H98: -493.9328036 | I98: -505.1614622 | J98: -516.6730838
B99: Suministros y materiales | E99: -512.6412128 | F99: -509.3565838 | G99: -503.5122501 | H99: -511.933876 | I99: -523.6181621 | J99: -535.5988067
B100: Tributos y seguros | E100: -784.9230651 | F100: -762.3540241 | G100: -735.4352764 | H100: -730.7673467 | I100: -730.7673467 | J100: -730.7673467
B101: Otros Costos | E101: -1758.322191 | F101: -1746.141068 | G101: -1725.008634 | H101: -1752.795044 | I101: -1791.985527 | J101: -1832.136554
B102: Depreciación y amortización | E102: =(Activo_nvo!H1503+Activo_ext!H65+Activo_ext!H73+Activo_nvo!H1511)/'FC SNAR N e I'!E2*-1 -> -1910.075496 | F102: =(Activo_nvo!I1503+Activo_ext!I65+Activo_ext!I72+Activo_nvo!I1511)/'FC SNAR N e I'!F2*-1 -> -946.894 | G102: =(Activo_nvo!J1503+Activo_ext!J65+Activo_ext!J72+Activo_nvo!J1511)/'FC SNAR N e I'!G2*-1 -> -1372.293 | H102: =(Activo_nvo!K1503+Activo_ext!K65+Activo_ext!K72+Activo_nvo!K1511)/'FC SNAR N e I'!H2*-1 -> -2462.95838 | I102: =(Activo_nvo!L1503+Activo_ext!L65+Activo_ext!L72+Activo_nvo!L1511)/'FC SNAR N e I'!I2*-1 -> -2717.842925 | J102: =(Activo_nvo!M1503+Activo_ext!M65+Activo_ext!M72+Activo_nvo!M1511)/'FC SNAR N e I'!J2*-1 -> -2032.222501
B103: Utilidad Neta | E103: =SUM(E93:E102) -> -1485.162514 | F103: =SUM(F93:F102) -> 2489.985249 | G103: =SUM(G93:G102) -> 3978.074301 | H103: =SUM(H93:H102) -> 5467.684832 | I103: 6415.058947 | J103: 10325.84832
B106: Activos SNAR Nacional | E106: 2013 | F106: 2014 | G106: 2015 | H106: 2016 | I106: 2017 | J106: 2018
B107: Valor inicial de activos | D107: S/. miles | E107: =+E111-E109-E110 -> 34275.15947 | F107: =+E111 -> 30758.45385 | G107: =+F111 -> 30986.31222 | H107: =+G111 -> 34808.63541 | I107: =+H111 -> 37580.3782 | J107: =+I111 -> 37766.97538
B108: CAPEX efectivo | D108: =D107 -> S/. miles | E108: =(Activo_nvo!H1506) -> 1097.000475 | F108: =(Activo_nvo!I1506) -> 3929.024916 | G108: =(Activo_nvo!J1506) -> 8167.825592 | H108: =(Activo_nvo!K1506) -> 7891.595601 | I108: =(Activo_nvo!L1506) -> 5900.442331 | J108: =(Activo_nvo!M1506) -> 0
B109: Activos existentes | D109: S/. miles | E109: =(-Activo_nvo!H1503) -> -82.85007579 | F109: =(-Activo_nvo!I1503) -> -405.5561598 | G109: =(-Activo_nvo!J1503) -> -1190.408667 | H109: =(-Activo_nvo!K1503) -> -2222.335286 | I109: =(-Activo_nvo!L1503) -> -3021.826701 | J109: =(-Activo_nvo!M1503) -> -1667.193997
B110: Activos nuevos | D110: S/. miles | E110: =(-Activo_ext!H65) -> -3433.855542 | F110: =-Activo_ext!I58*Activo_ext!$C$65 -> -3295.610384 | G110: =-Activo_ext!J58*Activo_ext!$C$65 -> -3155.093741 | H110: =-Activo_ext!K58*Activo_ext!$C$65 -> -2897.517519 | I110: =(-Activo_ext!L65) -> -2692.018448 | J110: =(-Activo_ext!M65) -> -2538.516192
B111: Valor final | D111: =D108 -> S/. miles | E111: =Activo_ext!F39 -> 30758.45385 | F111: =+F107+F108+F109+F110 -> 30986.31222 | G111: =+G107+G108+G109+G110 -> 34808.63541 | H111: =+H107+H108+H109+H110 -> 37580.3782 | I111: =+I107+I108+I109+I110 -> 37766.97538 | J111: =+J107+J108+J109+J110 -> 33561.26519
B114: Activos SNAR Internacional | E114: 2013 | F114: 2014 | G114: 2015 | H114: 2016 | I114: 2017 | J114: 2018
B115: Valor inicial de activos | D115: US$ miles | E115: =+E119-E117-E118 -> 17172.17361 | F115: =+E119 -> 15423.46698 | G115: =+F119 -> 14927.07245 | H115: =+G119 -> 15562.61075 | I115: =+H119 -> 15919.81411 | J115: =+I119 -> 15531.27674
B116: CAPEX efectivo | D116: US$ miles | E116: =+(Activo_nvo!H1513)/'FC SNAR N e I'!E2 -> 355.381892 | F116: =+(Activo_nvo!I1513)/'FC SNAR N e I'!F2 -> 1236.240219 | G116: =+(Activo_nvo!J1513)/'FC SNAR N e I'!G2 -> 2479.204216 | H116: =+(Activo_nvo!K1513)/'FC SNAR N e I'!H2 -> 2380.155569 | I116: =+(Activo_nvo!L1513)/'FC SNAR N e I'!I2 -> 1779.611042 | J116: =+(Activo_nvo!M1513)/'FC SNAR N e I'!J2 -> 0
B117: Activos existentes | D117: US$ miles | E117: =-Activo_nvo!H1511 -> -26.83993067 | F117: =-Activo_nvo!I1511 -> -127.6054101 | G117: =-Activo_nvo!J1511 -> -361.3282572 | H117: =-Activo_nvo!K1511 -> -670.2704972 | I117: =-Activo_nvo!L1511 -> -911.4022072 | J117: =-Activo_nvo!M1511 -> -502.8363436
B118: Activos nuevos | D118: US$ miles | E118: =-Activo_ext!H66/E2 -> -1721.866704 | F118: =-Activo_ext!I66/F2 -> -1605.02934 | G118: =-Activo_ext!J66/G2 -> -1482.337655 | H118: =-Activo_ext!K66/H2 -> -1352.681716 | I118: =-Activo_ext!L66/I2 -> -1256.746201 | J118: =-Activo_ext!M66/J2 -> -1185.084962
B119: Valor final | D119: US$ miles | E119: =Activo_ext!F40/'FC SNAR N e I'!E2 -> 15423.46698 | F119: =+F115+F116+F117+F118 -> 14927.07245 | G119: =+G115+G116+G117+G118 -> 15562.61075 | H119: =+H115+H116+H117+H118 -> 15919.81411 | I119: =+I115+I116+I117+I118 -> 15531.27674 | J119: =+J115+J116+J117+J118 -> 13843.35544

Sheet Vínculos
B2: Vínculos del servicio regulado
B4: =+Supuestos!$B$3 -> 1 | C4: Servicio regulado | D4: Unidades de demanda | E4: Moneda | F4: Unidades de tarifas
B5: 1 | C5: Aproximación | D5: miles de toneladas (PMD) | E5: S/. | F5: S/. / tonelada (PMD)
B6: 2 | C6: Sobrevuelo | D6: miles de Km recorridos | E6: US$ | F6: US$ / km recorrido
B7: 3
B8: 4
B9: Resultado | C9: =+VLOOKUP(Vínculos!$B$4,Vínculos!$B$5:$E$6,2) -> Aproximación | D9: =+VLOOKUP(Vínculos!$B$4,Vínculos!$B$5:$E$6,3) -> miles de toneladas (PMD) | E9: =+VLOOKUP(Vínculos!$B$4,Vínculos!$B$5:$E$6,4) -> S/. | F9: =+VLOOKUP(Vínculos!$B$4,Vínculos!$B$5:$F$6,5) -> S/. / tonelada (PMD)
B11: Nivel | C11: Tarifas para servicios 1,3 | D11: Tarifas para servicios 2 | E11: Tarifas para servicios 5 | F11: Resultado
B12: 1 | C12: Hasta 10 | D12: Hasta 10 | E12: Hasta 55 TM | F12: =+IF(IF(OR($B$4=1,$B$4=3),C12,IF($B$4=2,D12,E12))=0,"",IF(OR($B$4=1,$B$4=3),C12,IF($B$4=2,D12,E12))) -> Hasta 10
B13: 2 | C13: Hasta 10 - Nazca | D13: Más de 10 hasta 35 TM | E13: Más de 55 hasta 115 TM | F13: Hasta 10 - Nazca
B14: 3 | C14: Más de 10 hasta 35 TM | D14: Más de 35 hasta 70 TM | E14: Más de 115 hasta 200 TM | F14: Más de 10 hasta 35 TM
B15: 4 | C15: Más de 35 hasta 70 TM | D15: Más de 70 hasta 105 TM | E15: Más de 200 TM | F15: Más de 35 hasta 70 TM
B16: 5 | C16: Más de 70 hasta 105 TM | D16: Más de 105 TM | F16: Más de 70 hasta 105 TM
B17: 6 | C17: Más de 105 TM | F17: Más de 105 TM
B19: Tarifas reguladas vigentes
D20: 1 | E20: 2 | F20: 3 | G20: 4
B21: Nivel | C21: Moneda | D21: SNAR nacional | E21: SNAR internacional | F21: Aproximación | G21: Sobrevuelo
B22: Tarifas reguladas (US$, 2013)
B23: 1 | C23: US$ | D23: 0.08 | E23: 0.13 | F23: 0.8 | G23: 0.25
B24: 2 | C24: US$ | D24: 0.063 | E24: 0.15 | F24: 0.8 | G24: 0.37
B25: 3 | C25: US$ | D25: 0.11 | E25: 0.2 | F25: 0.9 | G25: 0.73
B26: 4 | C26: US$ | D26: 0.15 | E26: 0.3 | F26: 1 | G26: 1.09
B27: 5 | C27: US$ | D27: 0.23 | E27: 0.4 | F27: 1.1
B28: 6 | C28: US$ | D28: 0.3 | F28: 1.2
B29: 7 | C29: US$ | D29: 5 | E29: 7 | F29: 2
B30: Tarifas reguladas (S/., 2013)
B31: 1 | C31: S/. | D31: =+D23*tc_13 -> 0.216 | E31: =+E23*tc_13 -> 0.351 | F31: =+F23*tc_13 -> 2.16 | G31: 0.675
B32: 2 | C32: S/. | D32: 0.1701 | E32: 0.405 | F32: 2.16 | G32: 0.999
B33: 3 | C33: S/. | D33: 0.297 | E33: 0.54 | F33: 2.43 | G33: 1.971
B34: 4 | C34: S/. | D34: 0.405 | E34: 0.81 | F34: 2.7 | G34: 2.943
B35: 5 | C35: S/. | D35: =+D27*tc_13 -> 0.621 | E35: =+E27*tc_13 -> 1.08 | F35: =+F27*tc_13 -> 2.97
B36: 6 | C36: S/. | D36: =+D28*tc_13 -> 0.81 | F36: =+F28*tc_13 -> 3.24
B37: 7 | C37: S/. | D37: =+D29*tc_13 -> 13.5 | E37: =+E29*tc_13 -> 18.9 | F37: =+F29*tc_13 -> 5.4
B38: =+"Tarifas reguladas ("&$E$9&", 2013)" -> Tarifas reguladas (S/., 2013)
B39: 1 | C39: S/. | D39: =+SUMIFS(D$21:D$38,$B$21:$B$38,$B39,$C$21:$C$38,$E$9) -> 0.216 | E39: =+SUMIFS(E$21:E$38,$B$21:$B$38,$B39,$C$21:$C$38,$E$9) -> 0.351 | F39: =+SUMIFS(F$21:F$38,$B$21:$B$38,$B39,$C$21:$C$38,$E$9) -> 2.16 | G39: 0.675
B40: 2 | C40: S/. | D40: 0.1701 | E40: 0.405 | F40: =+SUMIFS(F$21:F$38,$B$21:$B$38,$B40,$C$21:$C$38,$E$9) -> 2.16 | G40: 0.999
B41: 3 | C41: S/. | D41: 0.297 | E41: 0.54 | F41: 2.43 | G41: 1.971
B42: 4 | C42: S/. | D42: 0.405 | E42: 0.81 | F42: 2.7 | G42: 2.943
B43: 5 | C43: S/. | D43: 0.621 | E43: 1.08 | F43: 2.97 | G43: 0
B44: 6 | C44: S/. | D44: 0.81 | E44: 0 | F44: 3.24 | G44: 0
B45: 7 | C45: S/. | D45: 13.5 | E45: 18.9 | F45: =+SUMIFS(F$21:F$38,$B$21:$B$38,$B45,$C$21:$C$38,$E$9) -> 5.4 | G45: 0
B47: Ajustes generales
B49: Contabilidad regulatoria de aeronavegación (2013)
F50: =+F52+F53+F59 -> 19918.71655
B51: Servicio 1/ | C51: Código | D51: Gastos totales S/. Miles | E51: % del total | F51: Deprec. anual S/. Miles | G51: % del total
B52: SNAR nacional | C52: SNAR | D52: =+INDEX('2013'!$A$20:$Y$20,1,MATCH(B52,'2013'!$A$6:$Y$6,0))/1000 -> 36612.61236 | E52: =+D52/$D$62 -> 0.1588719647 | F52: =(INDEX('2013'!$A$12:'2013'!$Y$12,1,MATCH(B52,'2013'!$A$6:$Y$6,0))+INDEX('2013'!$A$13:'2013'!$Y$13,1,MATCH(B52,'2013'!$A$6:$Y$6,0)))/1000 -> 4930.127414 | G52: =+F52/$F$62 -> 0.1392509291
B53: SNAR internacional | C53: SNAR | D53: =+INDEX('2013'!$A$20:$Y$20,1,MATCH(B53,'2013'!$A$6:$Y$6,0))/1000 -> 50522.23535 | E53: 0.2192295571 | F53: =(INDEX('2013'!$A$12:'2013'!$Y$12,1,MATCH(B53,'2013'!$A$6:$Y$6,0))+INDEX('2013'!$A$13:'2013'!$Y$13,1,MATCH(B53,'2013'!$A$6:$Y$6,0)))/1000 -> 6674.817789 | G53: =+F53/$F$62 -> 0.1885295248
B54: Aproximación | C54: APROX | D54: =+INDEX('2013'!$A$20:$Y$20,1,MATCH(B54,'2013'!$A$6:$Y$6,0))/1000 -> 64812.06516 | E54: =+D54/$D$62 -> 0.2812369691 | F54: =(INDEX('2013'!$A$12:'2013'!$Y$12,1,MATCH(B54,'2013'!$A$6:$Y$6,0))+INDEX('2013'!$A$13:'2013'!$Y$13,1,MATCH(B54,'2013'!$A$6:$Y$6,0)))/1000 -> 6255.347776 | G54: 0.1766816385
B55: Pista y rodadura | C55: A/D | D55: =+INDEX('2013'!$A$20:$Y$20,1,MATCH(B55,'2013'!$A$6:$Y$6,0))/1000 -> 12209.85474 | E55: 0.05298184114 | F55: =(INDEX('2013'!$A$12:'2013'!$Y$12,1,MATCH(B55,'2013'!$A$6:$Y$6,0))+INDEX('2013'!$A$13:'2013'!$Y$13,1,MATCH(B55,'2013'!$A$6:$Y$6,0)))/1000 -> 8785.30934 | G55: 0.2481401362
B56: Total servicios con tarifa regulada | D56: =SUM(D52:D55) -> 164156.7676 | E56: 0.7123203322 | F56: =SUM(F52:F55) -> 26645.60232 | G56: 0.7526022286
B57: Asistencia en Tierra | C57: A/D | D57: =+INDEX('2013'!$A$20:$Y$20,1,MATCH(B57,'2013'!$A$6:$Y$6,0))/1000 -> 1006.369588 | E57: 0.004366908107 | F57: =(INDEX('2013'!$A$12:'2013'!$Y$12,1,MATCH(B57,'2013'!$A$6:$Y$6,0))+INDEX('2013'!$A$13:'2013'!$Y$13,1,MATCH(B57,'2013'!$A$6:$Y$6,0)))/1000 -> 138.9073604 | G57: 0.003923423751
B58: Total de servicios sin tarifa regulada | D58: =+D57 -> 1006.369588 | E58: 0.004366908107 | F58: =+F57 -> 138.9073604 | G58: 0.003923423751
B59: Sobrevuelo | C59: SV | D59: =+INDEX('2013'!$A$20:$Y$20,1,MATCH(B59,'2013'!$A$6:$Y$6,0))/1000 -> 63036.7903 | E59: 0.2735335744 | F59: =(INDEX('2013'!$A$12:'2013'!$Y$12,1,MATCH(B59,'2013'!$A$6:$Y$6,0))+INDEX('2013'!$A$13:'2013'!$Y$13,1,MATCH(B59,'2013'!$A$6:$Y$6,0)))/1000 -> 8313.771347 | G59: 0.2348215953
B60: Otros Aeronavegación | D60: =+INDEX('2013'!$A$20:$Y$20,1,MATCH(B60,'2013'!$A$6:$Y$6,0))/1000 -> 2253.648226 | E60: 0.009779185324 | F60: =(INDEX('2013'!$A$12:'2013'!$Y$12,1,MATCH(B60,'2013'!$A$6:$Y$6,0))+INDEX('2013'!$A$13:'2013'!$Y$13,1,MATCH(B60,'2013'!$A$6:$Y$6,0)))/1000 -> 306.3474847 | G60: 0.008652752411
B61: Total de servicios no regulados | D61: =+SUM(D59:D60) -> 65290.43853 | E61: 0.2833127597 | F61: =+SUM(F59:F60) -> 8620.118831 | G61: 0.2434743477
B62: Total costos de aeronavegación | D62: =+D56+D58+D61 -> 230453.5757 | E62: =+E56+E58+E61 -> 1 | F62: =+F56+F58+F61 -> 35404.62851 | G62: =+G56+G58+G61 -> 1
B63: 1/ Fuente: EE.FF. Regulados de Corpac | G63: =+G52+G53+G54+G59 -> 0.7392836877
B65: Información para proporciones de inversiones
B67: Nomenclatura | C67: SNAR | D67: Sobrevuelo | E67: Aproximación | F67: Pista y rodadura
B68: APROX - A/D | C68: 0 | D68: 0 | E68: 1 | F68: 1
B69: SV-SNAR- APROX - A/D | C69: 1 | D69: 1 | E69: 1 | F69: 1
B70: SV-SNAR | C70: 1 | D70: 1 | E70: 0 | F70: 0
B71: SV-SNAR- A/D | C71: 1 | D71: 1 | E71: 0 | F71: 1
B72: A/D | C72: 0 | D72: 0 | E72: 0 | F72: 1
B73: DEPRECIACIONES POR COMBOS DE SERVICIOS
B74: Nomenclatura | C74: =+C67 -> SNAR | D74: SV | E74: APROX | F74: A/D | G74: Total
B75: APROX - A/D | C75: =+SUMIF($C$52:$C$61,C$74,$F$52:$F$61)*C68 -> 0 | D75: =+SUMIF($C$52:$C$61,D$74,$F$52:$F$61)*D68 -> 0 | E75: 6255.347776 | F75: 8924.2167 | G75: =+SUM(C75:F75) -> 15179.56448
B76: SV-SNAR- APROX - A/D | C76: 11604.9452 | D76: 8313.771347 | E76: 6255.347776 | F76: 8924.2167 | G76: =+SUM(C76:F76) -> 35098.28103
B77: SV-SNAR | C77: 11604.9452 | D77: 8313.771347 | E77: 0 | F77: 0 | G77: =+SUM(C77:F77) -> 19918.71655
B78: SV-SNAR- A/D | C78: 11604.9452 | D78: 8313.771347 | E78: 0 | F78: 8924.2167 | G78: =+SUM(C78:F78) -> 28842.93325
B79: A/D | C79: 0 | D79: 0 | E79: 0 | F79: 8924.2167 | G79: =+SUM(C79:F79) -> 8924.2167
B81: Nomenclatura | C81: SNAR | D81: SV | E81: APROX | F81: A/D | G81: Total
B82: APROX - A/D | C82: =C75/$G75 -> 0 | D82: 0 | E82: 0.4120900692 | F82: 0.5879099308 | G82: =+SUM(C82:F82) -> 1
B83: SV-SNAR- APROX - A/D | C83: 0.3306414122 | D83: 0.236871183 | E83: 0.1782237646 | F83: 0.2542636403 | G83: =+SUM(C83:F83) -> 1
B84: SV-SNAR | C84: 0.5826151085 | D84: 0.4173848915 | E84: 0 | F84: 0 | G84: =+SUM(C84:F84) -> 1
B85: SV-SNAR- A/D | C85: 0.4023496883 | D85: 0.2882429216 | E85: 0 | F85: 0.3094073901 | G85: =+SUM(C85:F85) -> 1
B86: A/D | C86: 0 | D86: 0 | E86: 0 | F86: 1 | G86: =+SUM(C86:F86) -> 1
R87: TODO | S87: =+O51+S71 -> 0
B89: Información para ajustes
B90: 1 | C90: =+B90+1 -> 2 | D90: 3 | E90: 4 | F90: 5 | G90: 6 | H90: 7
B91: Servicios | C91: Código | D91: unidades | E91: # de unidades totales (2013) | F91: Distribución - origen | G91: Distribución - depreciación | H91: Usuarios atribuibles
B92: SNAR nacional | C92: SNAR | D92: km recorridos | E92: 64917 | F92: =+E92/SUMIF($C$92:$C$95,C92,$E$92:$E$95) -> 0.5334226247 | G92: =SUMIFS($G$52:$G$61,$B$52:$B$61,B92,$C$52:$C$61,C92) -> 0.1392509291 | H92: 0.9131491671
B93: SNAR internacional | C93: SNAR | D93: km recorridos | E93: 56782 | F93: =+E93/SUMIF($C$92:$C$95,C93,$E$92:$E$95) -> 0.4665773753 | G93: =SUMIFS($G$52:$G$61,$B$52:$B$61,B93,$C$52:$C$61,C93) -> 0.1885295248 | H93: 0.9869856484
B94: Aproximación | C94: APROX | D94: # operaciones | E94: 64133 | F94: 1 | G94: =SUMIFS($G$52:$G$61,$B$52:$B$61,B94,$C$52:$C$61,C94) -> 0.1766816385 | H94: 0.9343700092
B95: Sobrevuelo | C95: SV | D95: km recorridos | E95: 36106.52172 | F95: =+E95/SUMIF($C$92:$C$95,C95,$E$92:$E$95) -> 1 | G95: =SUMIFS($G$52:$G$61,$B$52:$B$61,B95,$C$52:$C$61,C95) -> 0.2348215953 | H95: 0.995011127
B98: Ajustes de costos totales
B99: Servicios | C99: Porcentaje de ejecución de costos | D99: Usuarios atribuibles
B100: SNAR nacional | C100: 1 | D100: =SUMIF($B$92:$B$95,B100,$H$92:$H$95) -> 0.9131491671
B101: SNAR internacional | C101: 1 | D101: =SUMIF($B$92:$B$95,B101,$H$92:$H$95) -> 0.9869856484
B102: Aproximación | C102: 1 | D102: =SUMIF($B$92:$B$95,B102,$H$92:$H$95) -> 0.9343700092
B103: Sobrevuelo | C103: 1 | D103: =SUMIF($B$92:$B$95,B103,$H$92:$H$95) -> 0.995011127
B106: Ajustes de activos existentes
B107: Servicios | C107: Distribución según participación en la depreciación de activos de aeronavegación
B108: SNAR nacional | C108: =+SUMIF($B$92:$B$95,B108,$G$92:$G$95) -> 0.1392509291
B109: SNAR internacional | C109: =+SUMIF($B$92:$B$95,B109,$G$92:$G$95) -> 0.1885295248
B110: Aproximación | C110: =+SUMIF($B$92:$B$95,B110,$G$92:$G$95) -> 0.1766816385
B111: Sobrevuelo | C111: =+SUMIF($B$92:$B$95,B111,$G$92:$G$95) -> 0.2348215953
B114: Ajustes de activos nuevos
B115: Servicios | C115: Distribución según origen | D115: Porcentaje de ejecución de inversiones | E115: Ajuste de inversiones | F115: Usuarios atribuibles
B116: SNAR nacional | C116: =+SUMIF($B$92:$B$95,B116,$F$92:$F$95) -> 0.5334226247 | D116: 0.6 | E116: =+C116*D116 -> 0.3200535748 | F116: =SUMIF($B$92:$B$95,B116,$H$92:$H$95) -> 0.9131491671
B117: SNAR internacional | C117: =+SUMIF($B$92:$B$95,B117,$F$92:$F$95) -> 0.4665773753 | D117: 0.6 | E117: =+C117*D117 -> 0.2799464252 | F117: =SUMIF($B$92:$B$95,B117,$H$92:$H$95) -> 0.9869856484
B118: Aproximación | C118: =+SUMIF($B$92:$B$95,B118,$F$92:$F$95) -> 1 | D118: 0.6 | E118: =+C118*D118 -> 0.6 | F118: =SUMIF($B$92:$B$95,B118,$H$92:$H$95) -> 0.9343700092
B119: Sobrevuelo | C119: =+SUMIF($B$92:$B$95,B119,$F$92:$F$95) -> 1 | D119: 0.6 | E119: =+C119*D119 -> 0.6 | F119: =SUMIF($B$92:$B$95,B119,$H$92:$H$95) -> 0.995011127
B122: Estimación de capital de trabajo neto (CTN)
B124: Cuentas de GB y P&L totales de Corpac | C124: 2009 | D124: 2010 | E124: 2011 | F124: 2012 | G124: 2013
B125: Ingresos totales | C125: 192286952 | D125: 200889650 | E125: 207958284 | F125: 225854592 | G125: 255814923
B126: Ingresos aeronavegación | C126: 110813844
B127: Costos operativos totales | C127: 137012785 | D127: 155828833 | E127: 191986513 | F127: 197603755 | G127: 210958987
B128: Costos operativos aeronavegación | C128: 112845406
B129: Inventario/Existencias | C129: 4926693 | D129: 4485158 | E129: 4796181 | F129: 4799123 | G129: 8632626
B130: Cuentas por cobrar comerciales | C130: 4635821 | D130: 11090435 | E130: 11093806 | F130: 13306510 | G130: 15002292
B131: Cuentas por cobrar a partes relacionadas | C131: 25135 | E131: 198549 | F131: 498401 | G131: 362476
B132: Otras cuentas por cobrar | C132: 10677267 | D132: 9747221 | E132: 39553414 | F132: 9401098 | G132: 5436607
B133: Cuentas por pagar comerciales | C133: 41041024 | D133: 16213396 | E133: 11766562 | F133: 12183705 | G133: 12689816
B134: Cuentas por pagar a partes relacionadas | C134: 196964 | D134: 0 | E134: 1819652 | F134: 840335 | G134: 685132
B135: Otras cuentas por pagar | C135: 17582903 | D135: 11213551 | E135: 6112918 | F135: 11731172 | G135: 8374011
B136: Componentes CTN
B137: Cuentas por cobrar / Ventas | C137: =C130/C125 -> 0.02410886933 | D137: =D130/D125 -> 0.05520660223 | E137: =E130/E125 -> 0.05334630478 | F137: =F130/F125 -> 0.05891626946 | G137: =G130/G125 -> 0.05864510101
B138: Inventario / costos operativos | C138: =C129/C127 -> 0.03595790714 | D138: =D129/D127 -> 0.02878259378 | E138: =E129/E127 -> 0.02498186422 | F138: =F129/F127 -> 0.0242865982 | G138: =G129/G127 -> 0.0409208734
B139: Cuentas por pagar / costos operativos | C139: =C133/C127 -> 0.2995415647 | D139: =D133/D127 -> 0.1040461877 | E139: =E133/E127 -> 0.06128848228 | F139: =F133/F127 -> 0.06165725444 | G139: =G133/G127 -> 0.06015300026
B140: 1/ Fuente: EE.FF. Regulados de Corpac
B142: Estimación | C142: Cuenta de balance | D142: p50, 2009-2013
B143: Cuentas por pagar / costos operativos | C143: Cuentas por pagar | D143: =+MEDIAN(C139:G139) -> 0.06165725444
B144: Inventario / costos operativos | C144: Inventario | D144: =+MEDIAN(C138:G138) -> 0.02878259378
B145: Cuentas por cobrar / Ventas | C145: Cuentas por cobrar | D145: =+MEDIAN(C137:G137) -> 0.05520660223
B148: Estimación de la tasa de ejecución
B153: Aproximación: PMD promedio para aeronaves
B155: Nivel | C155: Aproximación
B156: Tarifas reguladas (US$, 2013) | C156: (PMD promedio)
B157: 1 | C157: 4.461062682
B158: 2 | C158: 4.285652174
B159: 3 | C159: 16.77428029
B160: 4 | C160: 62.39895031
B161: 5 | C161: 76.57359394
B162: 6 | C162: 302.5866667

Sheet Demanda
E2: 2013 | F2: 2014 | G2: 2015 | H2: 2016 | I2: 2017 | J2: 2018
A4: ESTIMACIÓN DE DEMANDA
A5: Servicio regulado: | B5: =+servicio -> Aproximación
A6: Periodo: | B6: 2014-2018
A9: SUPUESTOS
A13: Distribución de demanda por unidad de tarifa 1/
A15: Nivel de tarifa | B15: SNAR nacional | C15: SNAR internacional | D15: Aproximación | E15: Sobrevuelo
A16: 1 | B16: 0.0558217268 | C16: 0.0193180436 | D16: 0.01733920793 | E16: 0.03744522891
A17: 2 | B17: 0.0004762172865 | C17: 0.01805998191 | D17: 9.7447338e-05 | E17: 0.341038314
A18: 3 | B18: 0.07442406077 | C18: 0.1726061448 | D18: 0.0316516249 | E18: 0.3879864543
A19: 4 | B19: 0.689840838 | C19: 0.4349193578 | D19: 0.7113457531 | E19: 0.2335300028
A20: 5 | B20: 0.1783633323 | C20: 0.3550876879 | D20: 0.2379476121
A21: 6 | B21: 0.0001074188344 | D21: 0.000619481043
A22: 7 | B22: 0.0009664060216 | C22: 8.784017233e-06 | D22: 0.000998873601
A23: Total | B23: =SUM(B16:B22) -> 1 | C23: =SUM(C16:C22) -> 1 | D23: =SUM(D16:D22) -> 1 | E23: =SUM(E16:E22) -> 1
A24: 1/ Corresponde de distribución observada en las operaciones por rango tarifario (2013)
A30: Contribuciones
A32: Contribuciones | B32: Unidad | C32: % | D32: Servicios que afecta
A33: Ositran 1/ | B33: Facturación anual deducida de IGV | C33: 0.01 | D33: Todos
A35: 1/ p1: "http://www.ositran.gob.pe/RepositorioAPS/0/0/par/R007-2003-CD/R007-2003-CD.pdf"
A36: 2/ p23: "http://www.mtc.gob.pe/portal/transportes/aereo/normaslegales/docs/PDF/Ley_de_Aeronautica_Civil_27261.pdf"
A37: 3/ p60: "http://www.mtc.gob.pe/portal/transportes/aereo/normaslegales/docs/PDF/reglamento_de_la_lac27261.pdf"
A40: ESTIMACIÓN
A42: Proyecciones de demanda
A44: Usuarios atribuibles
A46: Servicios | B46: Unidades | C46: Escenario | D46: CARG 13-18
A48: SNAR nacional | B48: miles de km | C48: 2 | D48: 0.08722980465 | E48: 58213.72047 | F48: 63218.45438 | G48: 69190.80846 | H48: 75312.16795 | I48: 81598.46443 | J48: 88436.61334 | K48: =+F48/E48-1 -> 0.08597172394 | L48: 0.09447168778 | M48: 0.08847070337 | N48: 0.0834698648 | O48: 0.08380242154
A49: SNAR internacional | B49: miles de km | C49: =+C48 -> 2 | D49: 0.06789957268 | E49: 56033.5877 | F49: 59796.34495 | G49: 64034.32378 | H49: 68281.31626 | I49: 72896.1701 | J49: 77821.66062 | K49: 0.06715181744 | L49: 0.070873543 | M49: 0.06632368761 | N49: 0.06758589454 | O49: 0.06756857743
A50: Aproximación | B50: miles de PMD | C50: =+C49 -> 2 | D50: =+POWER(J50/E50,0.2)-1 -> 0.08672558548 | E50: 2930.71115 | F50: 3181.246357 | G50: 3480.202575 | H50: 3786.333188 | I50: 4100.446567 | J50: 4441.937841 | K50: 0.08548614804 | L50: 0.09397455728 | M50: 0.08796344634 | N50: 0.08295978284 | O50: 0.08328148383
A51: Sobrevuelo | B51: miles de km | C51: =+C50 -> 2 | D51: 0.0606794467 | E51: 35926.39087 | F51: 38339.1111 | G51: 40918.4684 | H51: 43220.26681 | I51: 45655.43568 | J51: 48231.89857 | K51: 0.06715732285 | L51: 0.06727744129 | M51: 0.05625328871 | N51: 0.05634321695 | O51: 0.05643277415
A55: Usuarios no atribuibles
A57: Servicios | B57: Unidades | D57: CARG 13-18
A58: SNAR nacional | B58: miles de km | C58: 2 | D58: =+POWER(J58/E58,0.2)-1 -> 0.1078951942 | E58: 6702.86202 | F58: 7421.839501 | G58: 8249.480248 | H58: 9144.662218 | I58: 10114.11824 | J58: 11188.03128
A59: SNAR internacional | B59: miles de km | C59: =+C58 -> 2 | D59: =+POWER(J59/E59,0.2)-1 -> 0.114210508 | E59: 748.90379 | F59: 834.1562535 | G59: 930.6657953 | H59: 1036.224023 | I59: 1154.40887 | J59: 1286.063102
A60: Aproximación | B60: miles de PMD | C60: =+C59 -> 2 | D60: =+POWER(J60/E60,0.2)-1 -> 0.02354741306 | E60: 68.94576 | F60: 70.5257521 | G60: 72.44113318 | H60: 74.19094227 | I60: 75.79930214 | J60: 77.4546308
A61: Sobrevuelo | B61: miles de km | C61: =+C60 -> 2 | D61: =+POWER(J61/E61,0.2)-1 -> 0.0606794467 | E61: 180.13085 | F61: 192.2279556 | G61: 205.1605606 | H61: 216.7015169 | I61: 228.9111775 | J61: 241.8292703
A63: Usuarios totales
A65: Servicios | B65: Unidades | C65: Escenario | D65: CARG 13-18
A67: SNAR nacional | B67: miles de km | C67: 2 | D67: =+POWER(J67/E67,0.2)-1 -> 0.08943726699 | E67: =+E58+E48 -> 64916.58249 | F67: 70640.29388 | G67: 77440.28871 | H67: 84456.83017 | I67: 91712.58267 | J67: 99624.64462 | K67: =+F67/E67-1 -> 0.08817025123 | L67: 0.09626226701 | M67: 0.09060582777 | N67: 0.08591078409 | O67: 0.08627019021
A68: SNAR internacional | B68: miles de km | C68: =+C67 -> 2 | D68: =+POWER(J68/E68,0.2)-1 -> 0.06856486127 | E68: =+E59+E49 -> 56782.49149 | F68: 60630.5012 | G68: 64964.98957 | H68: 69317.54029 | I68: 74050.57897 | J68: 79107.72372 | K68: 0.06776753915 | L68: 0.0714902282 | M68: 0.0669984055 | N68: 0.06828053429 | O68: 0.06829311554
A69: Aproximación | B69: miles de PMD | C69: =+C68 -> 2 | D69: =+POWER(J69/E69,0.2)-1 -> 0.08542968478 | E69: =+E60+E50 -> 2999.65691 | F69: 3251.772109 | G69: 3552.643708 | H69: 3860.52413 | I69: 4176.245869 | J69: 4519.392472 | K69: 0.08404801179 | L69: 0.09252542582 | M69: 0.0866623413 | N69: 0.08178209182 | O69: 0.08216628376
A70: Sobrevuelo | B70: miles de km | C70: =+C69 -> 2 | D70: =+POWER(J70/E70,0.2)-1 -> 0.0606794467 | E70: =+E61+E51 -> 36106.52172 | F70: 38531.33906 | G70: 41123.62896 | H70: 43436.96833 | I70: 45884.34686 | J70: 48473.72784 | K70: 0.06715732285 | L70: 0.06727744129 | M70: 0.05625328871 | N70: 0.05634321695 | O70: 0.05643277415
A74: Ajuste de ingresos
A76: Tipo de cambio | E76: =INDEX(TCR,1,MATCH(E$2,Supuestos!$C$8:$H$8,0)) -> 2.7 | F76: =INDEX(TCR,1,MATCH(F$2,Supuestos!$C$8:$H$8,0)) -> 2.779931907 | G76: =INDEX(TCR,1,MATCH(G$2,Supuestos!$C$8:$H$8,0)) -> 2.881684281 | H76: =INDEX(TCR,1,MATCH(H$2,Supuestos!$C$8:$H$8,0)) -> 2.900091644 | I76: =INDEX(TCR,1,MATCH(I$2,Supuestos!$C$8:$H$8,0)) -> 2.900091644 | J76: =INDEX(TCR,1,MATCH(J$2,Supuestos!$C$8:$H$8,0)) -> 2.900091644
A78: BD operaciones registradas - Ingresos totales
A79: En miles de soles de 2013
A81: Usuarios atribuibles
A82: Servicios | B82: US$ 2013
A83: SNAR nacional | B83: 8921935.425 | D83: 2 | E83: =+B83*E$76/1000 -> 24089.22565 | F83: =+SUMIF($A$48:$A$51,$A83,F$48:F$51)*$D83*F$76 -> 351485.9968
A84: SNAR internacional | B84: 17371777.23 | E84: =+B84*E$76/1000 -> 46903.79853
A85: Aproximación | B85: 2981740.27 | E85: =+B85*E$76/1000 -> 8050.69873
A86: Sobrevuelo | B86: 24078614.51 | E86: =+B86*E$76/1000 -> 65012.25918
A87: Total | B87: =SUM(B83:B86) -> 53354067.44 | E87: =SUM(E83:E86) -> 144055.9821
A89: Usuarios no atribuibles
A90: Servicios | B90: US$ 2013 | C90: Volumen (unidades) | D90: Tarifa US$ por cada mil
A91: SNAR nacional | B91: 657448.6893 | C91: =+E58 -> 6702.86202 | D91: =+B91/C91/1000 -> 0.09808477145 | E91: =+B91*E$76/1000 -> 1775.111461 | F91: =+SUMIF($A$58:$A$61,$A91,F$58:F$61)*$D91*F$76 -> 2023.705449 | G91: 2331.710182 | H91: 2601.243301 | I91: 2877.009746 | J91: 3182.489492
A92: SNAR internacional | B92: 69386.242 | C92: =+E59 -> 748.90379 | D92: =+B92/C92/1000 -> 0.09265040841 | E92: =+B92*E$76/1000 -> 187.3428534 | F92: 214.8468082 | G92: 248.47774 | H92: 278.4278775 | I92: 310.1835164 | J92: 345.5583075
A93: Aproximación | B93: 3967.98 | C93: 68.94576 | D93: =+B93/C93/1000 -> 0.05755219755 | E93: =+B93*E$76/1000 -> 10.713546 | F93: 11.28349902 | G93: 12.01416367 | H93: 12.38296143 | I93: 12.65140738 | J93: 12.92769274
A94: Sobrevuelo | B94: 144.2 | C94: =+E61 -> 180.13085 | D94: =+B94/C94/1000 -> 0.0008005291709 | E94: =+B94*E$76/1000 -> 0.38934 | F94: 0.4277872805 | G94: 0.4732792203 | H94: 0.5030959664 | I94: 0.5314420116 | J94: 0.5614327586
A95: Total | B95: =SUM(B91:B94) -> 730947.1113 | E95: =SUM(E91:E94) -> 1973.557201 | F95: 2250.263543 | G95: 2592.675364 | H95: 2892.557236 | I95: 3200.376112 | J95: 3541.536925
A97: Todo usuario
A98: Servicios | B98: US$ 2013
A99: SNAR nacional | B99: =+B83+B91 -> 9579384.114 | E99: =+B99*E$76/1000 -> 25864.33711
A100: SNAR internacional | B100: =+B84+B92 -> 17441163.48 | E100: =+B100*E$76/1000 -> 47091.14138
A101: Aproximación | B101: =+B85+B93 -> 2985708.25 | E101: =+B101*E$76/1000 -> 8061.412276
A102: Sobrevuelo | B102: =+B86+B94 -> 24078758.71 | E102: =+B102*E$76/1000 -> 65012.64852
A103: Total | B103: =SUM(B99:B102) -> 54085014.55 | E103: =SUM(E99:E102) -> 146029.5393
E104: =+E103-E87-E95 -> 9.549694369e-12
A106: EE.FF. - Ingresos totales
A107: En miles de soles de 2013
A109: Servicios | B109: Diferencial
A110: SNAR nacional | B110: =+E110-E99 -> 1703.005601 | E110: =+Opex!L123 -> 27567.34271
A111: SNAR internacional | B111: =+E111-E100 -> 2652.311097 | E111: =+Opex!L139 -> 49743.45248
A112: Aproximación | B112: =+E112-E101 -> 117.1169953 | E112: =+Opex!L155 -> 8178.529271
A113: Sobrevuelo | B113: =+E113-E102 -> -1411.497792 | E113: =+Opex!L171 -> 63601.15073
A114: Total | E114: =SUM(E110:E113) -> 149090.4752
E115: =+E114-Opex!L186 -> 0
A117: RESULTADOS
A122: Usuarios totales (para proyección de costos) | C122: =+escenario -> 2
A124: Servicios | B124: Unidades | C124: Escenario
A125: SNAR nacional | B125: miles de km | C125: =+$C$122 -> 2 | D125: =+POWER(J125/E125,0.2)-1 -> 0.08943726699 | E125: =+SUMIFS(E$66:E$71,$A$66:$A$71,$A125,$C$66:$C$71,$C125) -> 64916.58249 | F125: 70640.29388 | G125: 77440.28871 | H125: 84456.83017 | I125: 91712.58267 | J125: 99624.64462
A126: SNAR internacional | B126: miles de km | C126: =+$C$122 -> 2 | D126: =+POWER(J126/E126,0.2)-1 -> 0.06856486127 | E126: 56782.49149 | F126: 60630.5012 | G126: 64964.98957 | H126: 69317.54029 | I126: 74050.57897 | J126: 79107.72372
A127: Aproximación | B127: miles de PMD | C127: =+$C$122 -> 2 | D127: =+POWER(J127/E127,0.2)-1 -> 0.08542968478 | E127: 2999.65691 | F127: 3251.772109 | G127: 3552.643708 | H127: 3860.52413 | I127: 4176.245869 | J127: 4519.392472
A128: Sobrevuelo | B128: miles de km | C128: =+$C$122 -> 2 | D128: =+POWER(J128/E128,0.2)-1 -> 0.0606794467 | E128: 36106.52172 | F128: 38531.33906 | G128: 41123.62896 | H128: 43436.96833 | I128: 45884.34686 | J128: 48473.72784
A131: Usuarios atribuibles (para proyección de ingresos) | C131: =+escenario -> 2
A133: Servicios | B133: Unidades | C133: Escenario
A134: SNAR nacional | B134: miles de km | C134: =+$C$122 -> 2 | D134: =+POWER(J134/E134,0.2)-1 -> 0.08722980465 | E134: =+SUMIFS(E$47:E$52,$A$47:$A$52,$A134,$C$47:$C$52,$C134) -> 58213.72047 | F134: 63218.45438 | G134: 69190.80846 | H134: 75312.16795 | I134: 81598.46443 | J134: 88436.61334
A135: SNAR internacional | B135: miles de km | C135: =+$C$122 -> 2 | D135: =+POWER(J135/E135,0.2)-1 -> 0.06789957268 | E135: 56033.5877 | F135: 59796.34495 | G135: 64034.32378 | H135: 68281.31626 | I135: 72896.1701 | J135: 77821.66062
A136: Aproximación | B136: miles de PMD | C136: =+$C$122 -> 2 | D136: =+POWER(J136/E136,0.2)-1 -> 0.08672558548 | E136: 2930.71115 | F136: 3181.246357 | G136: 3480.202575 | H136: 3786.333188 | I136: 4100.446567 | J136: 4441.937841
A137: Sobrevuelo | B137: miles de km | C137: =+$C$122 -> 2 | D137: =+POWER(J137/E137,0.2)-1 -> 0.0606794467 | E137: 35926.39087 | F137: 38339.1111 | G137: 40918.4684 | H137: 43220.26681 | I137: 45655.43568 | J137: 48231.89857
A139: Usuarios atribuibles (para proyección de cargo mínimo) | C139: =+escenario -> 2
A141: Servicios | B141: Unidades | C141: Escenario
A142: SNAR nacional | B142: # de operaciones | C142: 2 | E142: 2078 | F142: =+E142*F48/E48 -> 2256.649242 | G142: =+F142*G48/F48 -> 2469.838705 | H142: =+G142*H48/G48 -> 2688.347072 | I142: =+H142*I48/H48 -> 2912.743039 | J142: =+I142*J48/I48 -> 3156.837959
E143: =+CHOOSE($C$139,#REF!,E142,#REF!) -> 2078 | F143: =+CHOOSE($C$139,#REF!,F142,#REF!) -> 2256.649242 | G143: =+CHOOSE($C$139,#REF!,G142,#REF!) -> 2469.838705 | H143: =+CHOOSE($C$139,#REF!,H142,#REF!) -> 2688.347072 | I143: =+CHOOSE($C$139,#REF!,I142,#REF!) -> 2912.743039 | J143: =+CHOOSE($C$139,#REF!,J142,#REF!) -> 3156.837959
A145: SNAR internacional | B145: # de operaciones | C145: =+C142 -> 2 | E145: 22 | F145: =+E145*F49/E49 -> 23.47733998 | G145: =+F145*G49/F49 -> 25.14126225 | H145: =+G145*H49/G49 -> 26.80872347 | I145: =+H145*I49/H49 -> 28.62061503 | J145: =+I145*J49/I49 -> 30.55446927
E146: 22 | F146: =+CHOOSE($C$139,#REF!,F145,#REF!) -> 23.47733998 | G146: =+CHOOSE($C$139,#REF!,G145,#REF!) -> 25.14126225 | H146: =+CHOOSE($C$139,#REF!,H145,#REF!) -> 26.80872347 | I146: =+CHOOSE($C$139,#REF!,I145,#REF!) -> 28.62061503 | J146: =+CHOOSE($C$139,#REF!,J145,#REF!) -> 30.55446927
A148: Aproximación | B148: # de operaciones
A149: Aproximación | B149: # de operaciones | C149: =+C145 -> 2 | E149: 1377 | F149: =+E149*F50/E50 -> 1494.714426 | G149: =+F149*G50/F50 -> 1635.179552 | H149: =+G149*H50/G50 -> 1779.015581 | I149: =+H149*I50/H50 -> 1926.602327 | J149: =+I149*J50/I50 -> 2087.052628
A150: Aproximación | B150: # de operaciones
C151: =+A150 -> Aproximación | E151: 1377 | F151: =+CHOOSE($C$139,F148,F149,F150) -> 1494.714426 | G151: =+CHOOSE($C$139,G148,G149,G150) -> 1635.179552 | H151: =+CHOOSE($C$139,H148,H149,H150) -> 1779.015581 | I151: =+CHOOSE($C$139,I148,I149,I150) -> 1926.602327 | J151: =+CHOOSE($C$139,J148,J149,J150) -> 2087.052628
A153: Sobrevuelo | B153: # de operaciones | E153: 0 | F153: 0 | G153: 0 | H153: 0 | I153: 0 | J153: 0
C154: =+A153 -> Sobrevuelo | E154: =+E153 -> 0 | F154: 0 | G154: 0 | H154: 0 | I154: 0 | J154: 0
A156: Servicio regulado | B156: =+servicio -> Aproximación
A158: Nivel de tarifa | B158: Distribución
A159: 1 | B159: =+INDEX($B$16:$E$22,MATCH($A159,$A$16:$A$22,0),MATCH($B$156,$B$15:$E$15,0)) -> 0.01733920793 | C159: =+'FC A y S'!D15 -> miles de toneladas (PMD) | E159: =+INDEX($E$134:$J$137,MATCH($B$156,$A$134:$A$137,0),MATCH(E$2,$E$2:$J$2,0))*$B159 -> 50.81621 | F159: 55.16029205 | G159: 60.34395608 | H159: 65.65201842 | I159: 71.09849561 | J159: 77.01968382
A160: 2 | B160: 9.7447338e-05 | C160: =+C159 -> miles de toneladas (PMD) | E160: 0.28559 | F160: 0.310003989 | G160: 0.3391364766 | H160: 0.3689680899 | I160: 0.3995776025 | J160: 0.4328550182
A161: 3 | B161: 0.0316516249 | C161: =+C160 -> miles de toneladas (PMD) | E161: 92.76177 | F161: 100.6916164 | G161: 110.1540665 | H161: 119.8435978 | I161: 129.7857966 | J161: 140.5945504
A162: 4 | B162: 0.7113457531 | C162: =+C161 -> miles de toneladas (PMD) | E162: 2084.74893 | F162: 2262.966086 | G162: 2475.627322 | H162: 2693.392033 | I162: 2916.835251 | J162: 3159.753619
A163: 5 | B163: 0.2379476121 | C163: =+C162 -> miles de toneladas (PMD) | E163: 697.35572 | F163: 756.9699743 | G163: 828.1058925 | H163: 900.9489408 | I163: 975.6914692 | J163: 1056.948503
A164: 6 | B164: 0.000619481043 | C164: =+C163 -> miles de toneladas (PMD) | E164: 1.81552 | F164: 1.970721811 | G164: 2.155919521 | H164: 2.345561632 | I164: 2.540148916 | J164: 2.751696287
A165: 7 | B165: 0.000998873601 | C165: # de operaciones | E165: =+INDEX($E$142:$J$154,MATCH($B$156,$C$142:$C$154,0), MATCH(E2,$E$2:$J$2,0)) -> 1377 | F165: 1494.714426 | G165: 1635.179552 | H165: 1779.015581 | I165: 1926.602327 | J165: 2087.052628
A166: Total
A169: Ajuste de ingresos (2013)
A170: En S/. miles del 2013
A172: Servicio regulado | B172: =+servicio -> Aproximación
A173: Atribución
A175: Ingreso vía tarifas reguladas
A176: Usuarios "gravados" | E176: =+'FC A y S'!E32 -> 8049.077673
A177: Total | E177: =+E176 -> 8049.077673
A179: Otros ingresos
A180: Tarifas no atribuibles1/ | E180: =+SUMIF($A$91:$A$94,$B$172,E$91:E$94) -> 10.713546 | F180: =SUMIF($A$91:$A$94,$B$172,F$91:F$94) -> 11.28349902 | G180: =SUMIF($A$91:$A$94,$B$172,G$91:G$94) -> 12.01416367 | H180: =SUMIF($A$91:$A$94,$B$172,H$91:H$94) -> 12.38296143 | I180: =SUMIF($A$91:$A$94,$B$172,I$91:I$94) -> 12.65140738 | J180: =SUMIF($A$91:$A$94,$B$172,J$91:J$94) -> 12.92769274
A181: Gap | E181: =+E182-E177-E180 -> 118.7380515
A182: EE.FF. | E182: =+SUMIF(A110:A113,B172,E110:E113) -> 8178.529271
A186: Servicios de SNAR
A188: SNAR Nacional
A190: Nivel de tarifa | B190: Distribución
A191: 1 | B191: =B16 -> 0.0558217268 | C191: =+'[8]Flujo de Caja'!D25 -> S/. / tonelada (PMD) | E191: =$B$191*E134 -> 3249.5904 | F191: 3528.963289 | G191: 3862.350407 | H191: 4204.055264 | I191: 4554.967188 | J191: 4936.684469
A192: 2 | B192: 0.0004762172865 | C192: =+C191 -> S/. / tonelada (PMD) | E192: =$B$192*E134 -> 27.72238 | F192: 30.1057208 | G192: 32.94985906 | H192: 35.86495626 | I192: 38.85859931 | J192: 42.11504403
A193: 3 | B193: 0.07442406077 | C193: =+C192 -> S/. / tonelada (PMD) | E193: =$B$193*E134 -> 4332.50147 | F193: 4704.97409 | G193: 5149.460934 | H193: 5605.037364 | I193: 6072.889075 | J193: 6581.811886
A194: 4 | B194: 0.689840838 | C194: =+C193 -> S/. / tonelada (PMD) | E194: =$B$194*E134 -> 40158.20171 | F194: 43610.67154 | G194: 47730.64529 | H194: 51953.40905 | I194: 56289.95308 | J194: 61007.18745
A195: 5 | B195: 0.1783633323 | C195: =+C194 -> S/. / tonelada (PMD) | E195: =$B$195*E134 -> 10383.19317 | F195: 11275.85419 | G195: 12341.10316 | H195: 13432.92924 | I195: 14554.17403 | J195: 15773.84905
A196: 6 | B196: 0.0001074188344 | C196: =+C195 -> S/. / tonelada (PMD) | E196: =$B$196*E134 -> 6.25325 | F196: 6.790852683 | G196: 7.432395997 | H196: 8.089945299 | I196: 8.765211939 | J196: 9.499757925
A197: 7 | B197: 0.0009664060216 | C197: # de operaciones | E197: =E142 -> 2078 | F197: 2256.649242 | G197: 2469.838705 | H197: 2688.347072 | I197: 2912.743039 | J197: 3156.837959
A200: Ingreso vía tarifas reguladas
A201: Usuarios "gravados" | E201: ='FC SNAR N e I'!E11*'FC SNAR N e I'!E2 -> 24738.53282
A202: Total | E202: =+E201 -> 24738.53282
A204: Otros ingresos
A205: Tarifas no atribuibles1/ | E205: =E91 -> 1775.111461 | F205: =F91 -> 2023.705449 | G205: 2331.710182 | H205: 2601.243301 | I205: 2877.009746 | J205: 3182.489492
A206: Gap | E206: =+E207-E202-E205 -> 1053.698425
A207: EE.FF. | E207: =E110 -> 27567.34271
A211: SNAR Internacional
A213: Nivel de tarifa | B213: Distribución
A214: 1 | B214: =C16 -> 0.0193180436 | C214: miles de Km recorridos | E214: =$B$214*E135 -> 1082.45929 | F214: 1155.148399 | G214: 1237.017858 | H214: 1319.061444 | I214: 1408.211392 | J214: 1503.362232
A215: 2 | B215: 0.01805998191 | C215: miles de Km recorridos | E215: =$B$215*E135 -> 1011.96558 | F215: 1079.920908 | G215: 1156.458729 | H215: 1233.159336 | I215: 1316.503513 | J215: 1405.457783
A216: 3 | B216: 0.1726061448 | C216: miles de Km recorridos | E216: =$B$216*E135 -> 9671.74155 | F216: 10321.21657 | G216: 11052.71776 | H216: 11785.77476 | I216: 12582.32689 | J216: 13432.49682
A217: 4 | B217: 0.4349193578 | C217: miles de Km recorridos | E217: =$B$217*E135 -> 24370.09198 | F217: 26006.58795 | G217: 27849.76698 | H217: 29696.86622 | I217: 31703.95549 | J217: 33846.14666
A218: 5 | B218: 0.3550876879 | C218: miles de Km recorridos | E218: =$B$218*E135 -> 19896.8371 | F218: 21232.94587 | G218: 22737.79997 | H218: 24245.85472 | I218: 25884.5325 | J218: 27633.51354
A219: 6 | B219: 0 | C219: miles de Km recorridos | E219: =$B$219*E135 -> 0 | F219: 0 | G219: 0 | H219: 0 | I219: 0 | J219: 0
A220: 7 | B220: 8.784017233e-06 | C220: # de operaciones | E220: =E145 -> 22 | F220: 23.47733998 | G220: 25.14126225 | H220: 26.80872347 | I220: 28.62061503 | J220: 30.55446927
A223: Ingreso vía tarifas reguladas
A224: Usuarios "gravados" | E224: ='FC SNAR N e I'!E30 -> 17496.77929
A225: Total | E225: =+E224 -> 17496.77929
A227: Otros ingresos
A228: Tarifas no atribuibles1/ | E228: =E92 -> 187.3428534 | F228: =F92 -> 214.8468082 | G228: 248.47774 | H228: 278.4278775 | I228: 310.1835164 | J228: 345.5583075
A229: Gap | E229: =+E230-E225-E228 -> 32059.33034
A230: EE.FF. | E230: =E111 -> 49743.45248

Sheet Opex
C2: 2004 | D2: 2005 | E2: 2006 | F2: 2007 | G2: 2008 | H2: 2009 | I2: 2010 | J2: 2011 | K2: 2012 | L2: 2013 | M2: 2014 | N2: 2015 | O2: 2016 | P2: 2017 | Q2: 2018
A4: ESTIMACIÓN DE COSTOS
A5: Servicio regulado: | B5: =+servicio -> Aproximación
A6: Periodo: | B6: 2014-2018
A9: SUPUESTOS
A11: Ajustes de costos operativos
B12: 2 | C12: =+B12+1 -> 3 | D12: =+C12+1 -> 4
A13: Servicios | B13: Número de columna en "data histórica" | C13: =+Vínculos!C99 -> Porcentaje de ejecución de costos | D13: =+Vínculos!D99 -> Usuarios atribuibles
A14: SNAR nacional | B14: =+COLUMN('2009'!E6) -> 5 | C14: =+Vínculos!C100 -> 1 | D14: =+Vínculos!D100 -> 0.9131491671
A15: SNAR internacional | B15: =+COLUMN('2009'!F6) -> 6 | C15: =+Vínculos!C101 -> 1 | D15: =+Vínculos!D101 -> 0.9869856484
A16: Aproximación | B16: =+COLUMN('2009'!G6) -> 7 | C16: =+Vínculos!C102 -> 1 | D16: =+Vínculos!D102 -> 0.9343700092
A17: Sobrevuelo | B17: =+COLUMN('2009'!R6) -> 18 | C17: =+Vínculos!C103 -> 1 | D17: =+Vínculos!D103 -> 0.995011127
A19: Características de costos operativos
B20: 2 | C20: =+B20+1 -> 3 | D20: =+C20+1 -> 4 | E20: =+D20+1 -> 5 | F20: =+E20+1 -> 6
A21: Gastos por operación | B21: Tipo de moneda | C21: Soles | D21: Dólares | E21: Tipo de costo | F21: Elasticidad costo-ingreso
A22: Gastos de personal | B22: Soles / Dólares | C22: 0.9713354794 | D22: 0.02866452058 | E22: Variable | F22: =+IF(E22="Variable",SUMIF($A$106:$A$114,A22,$C$106:$C$114),0) -> 0.3
A23: Depreciación | B23: Soles | C23: 1 | D23: 0 | E23: Fijo | F23: =+IF(E23="Variable",SUMIF($A$106:$A$114,A23,$C$106:$C$114),0) -> 0
A24: Amortización de intangibles | B24: Soles | C24: 1 | D24: 0 | E24: Fijo | F24: 0
A25: Servicios prestados por terceros | B25: Soles / Dólares | C25: 0.8060045371 | D25: 0.1939954629 | E25: Variable | F25: 0.3
A26: Mantenimiento | B26: Soles / Dólares | C26: 0.1366711788 | D26: 0.8633288212 | E26: Variable | F26: 0.3
A27: Suministros y materiales | B27: Soles / Dólares | C27: 0.9814102114 | D27: 0.01858978856 | E27: Variable | F27: 0.3
A28: Tributos y seguros | B28: Soles / Dólares | C28: 0.8785 | D28: 0.1215 | E28: Fijo | F28: 0
A29: Contribución | B29: Soles | C29: 1 | D29: 0 | E29: Variable | F29: 0.3
A30: Otros costos | B30: Soles | C30: 1 | D30: 0 | E30: Variable | F30: 0.3
A31: Fuente: Corpac, APOYO Consultoría
A33: ESTIMACIÓN
A35: Elasticidades
A37: IPC (Var. promedio anual) | C37: 3.661545755 | D37: 1.617698556 | E37: 2.001381535 | F37: 1.778682562 | G37: 5.787880832 | H37: 2.935344727 | I37: 1.529527307 | J37: 3.369665486 | K37: 3.655413909 | L37: =+INDEX(inf,1,MATCH(L$2,Supuestos!$C$8:$H$8,0)) -> 2.9 | M37: =+INDEX(inf,1,MATCH(M$2,Supuestos!$C$8:$H$8,0)) -> 2.8 | N37: =+INDEX(inf,1,MATCH(N$2,Supuestos!$C$8:$H$8,0)) -> 2 | O37: =+INDEX(inf,1,MATCH(O$2,Supuestos!$C$8:$H$8,0)) -> 2 | P37: =+INDEX(inf,1,MATCH(P$2,Supuestos!$C$8:$H$8,0)) -> 2 | Q37: =+INDEX(inf,1,MATCH(Q$2,Supuestos!$C$8:$H$8,0)) -> 2
A38: Deflactor | C38: =+D38*(1-(D37/100)) -> 77.08619798 | D38: 78.35372506 | E38: 79.95390781 | F38: 81.4017872 | G38: 86.40267083 | H38: 89.01558511 | I38: 90.39825105 | J38: 93.55059309 | K38: 97.1 | L38: 100 | M38: =+L38*(1+(M37/100)) -> 102.8 | N38: =+M38*(1+(N37/100)) -> 104.856 | O38: =+N38*(1+(O37/100)) -> 106.95312 | P38: =+O38*(1+(P37/100)) -> 109.0921824 | Q38: =+P38*(1+(Q37/100)) -> 111.274026
A39: Fuente: BCRP, APOYO Consultoría
A41: EE.FF. Regulatorios de Corpac
A43: Ingresos (S/. reales)
B44: Código
A45: Servicio de navegación aérea en ruta - SNAR | B45: STR001 | C45: 85611544.72 | D45: 53049555.56 | E45: 51754047.82 | F45: 54087055.78 | G45: 55714806.72 | H45: 59790396.01 | I45: 62982542.08 | J45: 67094700.92 | K45: 69594763.05
A46: Servicio de Aproximacion | B46: STR002 | C46: 9676077.87 | D46: 5379683.38 | E46: 5314280.35 | F46: 5197476 | G46: 5106661.73 | H46: 5426923.93 | I46: 6075805.22 | J46: 6567189.21 | K46: 6988471.89
A47: Pista y rodadura | B47: STR003 | C47: 22986344.1 | D47: 7651142.16 | E47: 7785022.59 | F47: 5625616.41 | G47: 5164148.82 | H47: 5462474.66 | I47: 5158138.31 | J47: 4041601.28 | K47: 4478170.78
A48: Mangas | B48: STR004 | C48: 455496.72 | D48: 519283.63 | E48: 517193.25 | F48: 481433.09 | G48: 436580.34 | H48: 596483.98 | I48: 491117.83 | J48: 523695.63 | K48: 722390.64
A49: Terminal de Pasajeros (TUUA) | B49: STR005 | C49: 14898619.8 | D49: 15633766.73 | E49: 16027046.38 | F49: 13592186.37 | G49: 13222173.09 | H49: 12812914.88 | I49: 14799643.43 | J49: 8885673.51 | K49: 9633253.97
A50: Asistencia en tierra | B50: SSR006 | C50: 2174854.47 | D50: 1935172.3 | E50: 2641928.24 | F50: 1308351.15 | G50: 1162073.95 | H50: 1033810.37 | I50: 1263316.7 | J50: 921164.64 | K50: 1029454.77
A51: Almacenamiento y transporte de combustible | B51: SSR007 | C51: 1057441.52 | D51: 946358.25 | E51: 1009424.41 | F51: 335643.83 | G51: 262015.08 | H51: 278816.94 | I51: 249389.3 | J51: 3494.73 | K51: 581.12
A52: Check in counters | B52: SSR008 | C52: 513596.96 | D52: 477438.21 | E52: 523108.1 | F52: 325249.61 | G52: 261374.83 | H52: 242119.6 | I52: 329776.14 | J52: 217034.73 | K52: 169256.42
A53: Documento de identidad | B53: SSR011 | C53: 76097.04 | D53: 87664.88 | E53: 107413.93 | F53: 72260.67 | G53: 67410.91 | H53: 58484 | I53: 74247.93 | J53: 59677.59 | K53: 50577.81
A54: Alquiler de Ofic, Almacén, Taller y Hangar | B54: SSR012 | C54: 1458820.95 | D54: 1536980.5 | E54: 1358783.28 | F54: 360142.05 | G54: 528735.18 | H54: 544566.74 | I54: 567248.07 | J54: 404191.85 | K54: 448425.13
A55: Otros Aeronavegación | B55: SNR014 | D55: 34413528.1 | E55: 38058596.27 | F55: 42922493.19 | G55: 42352028.96 | H55: 1136251.59 | I55: 912179.59 | J55: 268752.2 | K55: 346441.02
A56: Otros Aeroportuario | B56: SNR015 | C56: 1111742.58 | D56: 442760.11 | E56: 378383.17 | F56: 84164.15 | G56: 70646.12 | H56: 162657.48 | I56: 68045.24 | J56: 6233.28 | K56: 0
A57: Actividades Auxiliares | B57: SNR018 | C57: 26956075.15 | D57: 5550505.71 | E57: 6005265.85 | F57: 5014224.22 | G57: 5113160.56 | H57: 5247453.71 | I57: 5748288.21 | J57: 3545362.04 | K57: 4078960.48
A58: Total ingresos | C58: =SUM(C45:C57) -> 166976711.9 | D58: =SUM(D45:D57) -> 127623839.5 | E58: 131480493.6 | F58: 129406296.5 | G58: 129461816.3 | H58: 92793353.89 | I58: 98719738.05 | J58: 92538771.61 | K58: 97540747.08
A61: Gastos (S/. nominales)
B62: Código
A63: Gastos de personal | B63: R-01 | C63: 81668006.25 | D63: 83106524.65 | E63: 81241154.14 | F63: 79492364.61 | G63: 87576695.24 | H63: 91270987.77 | I63: 97416867.67 | J63: 115986506.8 | K63: 145509661.2
A64: Depreciación | B64: R-02 | C64: 27327906.71 | D64: 26543607.63 | E64: 19963837.21 | F64: 16541575.05 | G64: 15895699.07 | H64: 19938612.04 | I64: 20775782.58 | J64: 31329157.44 | K64: 26737368.62
A65: Amortización de intangibles | B65: R-03 | C65: 33547968.75 | D65: 30848745.22 | E65: 30235822.17 | F65: 26902342.09 | G65: 30487939.5 | H65: 31896055.79 | I65: 33744258.79 | J65: 36236810.63 | K65: 32469112.66
A66: Servicios prestados por terceros | B66: R-04 | C66: 214725.11 | D66: 227072.78 | E66: 228567.08 | F66: 242230.54 | G66: 231797.99 | H66: 203833.73 | I66: 146070.12 | J66: 82857.03 | K66: 81368.66
A67: Mantenimiento | B67: R-05 | C67: 3850481.42 | D67: 3803526.72 | E67: 5463033.94 | F67: 6726303.04 | G67: 9551517.29 | H67: 8453908.75 | I67: 7210095.32 | J67: 7580626.9 | K67: 4388228.74
A68: Suministros y materiales | B68: R-06 | C68: 3301221.12 | D68: 4787582.91 | E68: 4030365.82 | F68: 3534013.59 | G68: 4836727.39 | H68: 4715487.81 | I68: 5430843.88 | J68: 5230095.82 | K68: 4810339.59
A69: Tributos y seguros | B69: R-07 | C69: 9734164.63 | D69: 8502672.36 | E69: 7382901.74 | F69: 5147135.26 | G69: 5311908.97 | H69: 5964502.87 | I69: 6529846.32 | J69: 6120848.45 | K69: 5524642.103
A70: Contribución | B70: R-09 | C70: 9178139.96 | D70: 9675136 | E70: 10533973 | F70: 11296619 | G70: 11256583 | H70: 11878539 | I70: 12244695.34 | J70: 13452469.14 | K70: 13054920.15
A71: Otros costos | B71: R-10 | C71: 376693.76 | D71: 627951.32 | E71: 1192639.72 | F71: 1259150.37 | G71: 1362130.53 | H71: 5349406.7 | I71: 7834140.41 | J71: 13671544.75 | K71: 6246527.15
A72: Total gastos | C72: =SUM(C63:C71) -> 169199307.7 | D72: =SUM(D63:D71) -> 168122819.6 | E72: 160272294.8 | F72: 151141733.6 | G72: 166510999 | H72: 179671334.5 | I72: 191332600.4 | J72: 229690917 | K72: 238822168.9
A74: Gastos (S/. reales)
B75: Código
A76: Gastos de personal | B76: R-01 | C76: =+C63/(C$38/100) -> 105943746.6 | D76: =+D63/(D$38/100) -> 106065824.7 | E76: =+E63/(E$38/100) -> 101609985.5 | F76: 97654323.5 | G76: 101358782.5 | H76: 102533716.6 | I76: 107764106.7 | J76: 123982652.6 | K76: =+K63/(K$38/100) -> 149855469.9
A77: Depreciación | B77: R-02 | C77: =+C64/(C$38/100) -> 35451102.05 | D77: =+D64/(D$38/100) -> 33876637.78 | E77: 24969182.57 | F77: 20320899.11 | G77: 18397231.15 | H77: 22399012.5 | I77: 22982505.01 | J77: 33488999.27 | K77: 27535910.01
A78: Amortización de intangibles | B78: R-03 | C78: =+C65/(C$38/100) -> 43520071.85 | D78: =+D65/(D$38/100) -> 39371127.79 | E78: 37816565.82 | F78: 33048834.69 | G78: 35285876.24 | H78: 35831990.26 | I78: 37328442.09 | J78: 38734987.6 | K78: 33438838.99
A79: Servicios prestados por terceros | B79: R-04 | C79: =+C66/(C$38/100) -> 278551.953 | D79: =+D66/(D$38/100) -> 289804.7027 | E79: 285873.5567 | F79: 297573.9825 | G79: 268276.4176 | H79: 228986.5643 | I79: 161585.1173 | J79: 88569.21935 | K79: 83798.82595
A80: Mantenimiento | B80: R-05 | C80: =+C67/(C$38/100) -> 4995033.509 | D80: =+D67/(D$38/100) -> 4854302.354 | E80: 6832729.118 | F80: 8263090.125 | G80: 11054655.14 | H80: 9497110.803 | I80: 7975923.468 | J80: 8103237.67 | K80: 4519288.095
A81: Suministros y materiales | B81: R-06 | C81: =+C68/(C$38/100) -> 4282506.086 | D81: =+D68/(D$38/100) -> 6110217.359 | E81: 5040861.579 | F81: 4341444.717 | G81: 5597891.065 | H81: 5297373.268 | I81: 6007686.893 | J81: 5590660.248 | K81: 4954005.757
A82: Tributos y seguros | B82: R-07 | C82: =+C69/(C$38/100) -> 12627636.18 | D82: 10851650.45 | E82: 9233947.336 | F82: 6323123.161 | G82: 6147852.745 | H82: 6700515.267 | I82: 7223421.078 | J82: 6542821.641 | K82: 5689641.713
A83: Contribución | B83: R-09 | C83: =+C70/(C$38/100) -> 11906333.69 | D83: 12348023.01 | E83: 13175057.09 | F83: 13877605.63 | G83: 13028049.82 | H83: 13344336.26 | I83: 13545279.03 | J83: 14379886.54 | K83: 13444819.93
A84: Otros costos | B84: R-10 | C84: =+C71/(C$38/100) -> 488665.6365 | D84: 801431.3544 | E84: 1491659.073 | F84: 1546833.814 | G84: 1576491.232 | H84: 6009516.978 | I84: 8666252.189 | J84: 14614065.29 | K84: 6433086.663
A85: Total gastos | C85: =SUM(C76:C84) -> 219493647.5 | D85: =SUM(D76:D84) -> 214569019.5 | E85: 200455861.6 | F85: 185673728.7 | G85: 192715106.4 | H85: 201842558.5 | I85: 211655201.5 | J85: 245525880 | K85: 245954859.9
A87: Crecimiento de demanda proyectado
A89: SNAR nacional | B89: Var. % | L89: 0 | M89: =+Demanda!F67/Demanda!E67*100-100 -> 8.817025123 | N89: =+Demanda!G67/Demanda!F67*100-100 -> 9.626226701 | O89: =+Demanda!H67/Demanda!G67*100-100 -> 9.060582777 | P89: =+Demanda!I67/Demanda!H67*100-100 -> 8.591078409 | Q89: =+Demanda!J67/Demanda!I67*100-100 -> 8.627019021
A90: SNAR internacional | B90: Var. % | L90: 0 | M90: =+Demanda!F68/Demanda!E68*100-100 -> 6.776753915 | N90: =+Demanda!G68/Demanda!F68*100-100 -> 7.14902282 | O90: =+Demanda!H68/Demanda!G68*100-100 -> 6.69984055 | P90: =+Demanda!I68/Demanda!H68*100-100 -> 6.828053429 | Q90: =+Demanda!J68/Demanda!I68*100-100 -> 6.829311554
A91: Aproximación | B91: Var. % | L91: 0 | M91: =+Demanda!F69/Demanda!E69*100-100 -> 8.404801179 | N91: =+Demanda!G69/Demanda!F69*100-100 -> 9.252542582 | O91: =+Demanda!H69/Demanda!G69*100-100 -> 8.66623413 | P91: =+Demanda!I69/Demanda!H69*100-100 -> 8.178209182 | Q91: =+Demanda!J69/Demanda!I69*100-100 -> 8.216628376
A92: Sobrevuelo | B92: Var. % | L92: 0 | M92: =+Demanda!F70/Demanda!E70*100-100 -> 6.715732285 | N92: =+Demanda!G70/Demanda!F70*100-100 -> 6.727744129 | O92: =+Demanda!H70/Demanda!G70*100-100 -> 5.625328871 | P92: =+Demanda!I70/Demanda!H70*100-100 -> 5.634321695 | Q92: =+Demanda!J70/Demanda!I70*100-100 -> 5.643277415
A94: SNAR nacional | B94: Var. Acum | L94: 1 | M94: =+L94+M89/100 -> 1.088170251 | N94: 1.184432518 | O94: 1.275038346 | P94: 1.36094913 | Q94: 1.44721932
A95: SNAR internacional | B95: Var. Acum | L95: 1 | M95: 1.067767539 | N95: 1.139257767 | O95: 1.206256173 | P95: 1.274536707 | Q95: 1.342829823
A96: Aproximación | B96: Var. Acum | L96: 1 | M96: 1.084048012 | N96: 1.176573438 | O96: 1.263235779 | P96: 1.345017871 | Q96: 1.427184154
A97: Sobrevuelo | B97: Var. Acum | L97: 1 | M97: 1.067157323 | N97: 1.134434764 | O97: 1.190688053 | P97: 1.24703127 | Q97: 1.303464044
A99: SNAR nacional | B99: Var. Incremental | M99: =+IF(M94<1.05,0,IF(AND(M94>1.05,L94<1.05),(M94-1),(M94-1))) -> 0.08817025123 | N99: =+IF(N94<1.05,0,IF(AND(N94>1.05,M94<1.05),(N94-1.05),(N89/100))) -> 0.09626226701 | O99: 0.09060582777 | P99: 0.08591078409 | Q99: 0.08627019021
A100: SNAR internacional | B100: Var. Incremental | M100: =+IF(M95<1.05,0,IF(AND(M95>1.05,L95<1.05),(M95-1),(M95-1))) -> 0.06776753915 | N100: 0.0714902282 | O100: 0.0669984055 | P100: 0.06828053429 | Q100: 0.06829311554
A101: Aproximación | B101: Var. Incremental | M101: =+IF(M96<1.05,0,IF(AND(M96>1.05,L96<1.05),(M96-1),(M96-1))) -> 0.08404801179 | N101: 0.09252542582 | O101: 0.0866623413 | P101: 0.08178209182 | Q101: 0.08216628376
A102: Sobrevuelo | B102: Var. Incremental | M102: =+IF(M97<1.05,0,IF(AND(M97>1.05,L97<1.05),(M97-1),(M97-1))) -> 0.06715732285 | N102: 0.06727744129 | O102: 0.05625328871 | P102: 0.05634321695 | Q102: 0.05643277415
A104: Elasticidad costo/ingresos
B105: Código | C105: P50
A106: Gastos de personal | B106: R-01 - ingreso | C106: 0.3 | M106: =+C106*M99 -> 0.02645107537
A107: Depreciación | B107: R-02 - ingreso | C107: 0.3
A108: Amortización de intangibles | B108: R-03 - ingreso | C108: 0.3
A109: Servicios prestados por terceros | B109: R-04 - ingreso | C109: 0.3
A110: Mantenimiento | B110: R-05 - ingreso | C110: 0.3
A111: Suministros y materiales | B111: R-06 - ingreso | C111: 0.3
A112: Tributos y seguros | B112: R-07 - ingreso | C112: 0.3
A113: Contribución | B113: R-09 - ingreso | C113: 0.3
A114: Otros costos | B114: R-10 - ingreso | C114: 0.3
A115: Total gastos | C115: 0.3
A118: Costos operativos históricos
A119: En S/. miles del 2013
A121: SNAR nacional
A122: Columna: | B122: =+VLOOKUP(A121,$A$14:$E$17,$B$12,0) -> 5
A123: Ingresos totales | B123: 9 | D123: =IF(AND(D$2<=2013,D$2>=2009),INDIRECT(D$2&"!"&ADDRESS($B123,$B$122))/1000,0) -> 0 | E123: 0 | F123: 0 | G123: 0 | H123: 16499.87567 | I123: 19411.16063 | J123: 21492.66554 | K123: 23056.09237 | L123: 27567.34271 | M123: 0 | N123: 0 | O123: 0 | P123: 0 | Q123: 0
A124: Costos operativos
A125: Gastos de personal | B125: 11 | D125: =IF(AND(D$2<=2013,D$2>=2009),INDIRECT(D$2&"!"&ADDRESS($B125,$B$122))/1000,0)/(D$38/100) -> 0 | E125: 0 | F125: 0 | G125: 0 | H125: 8539.298309 | I125: 12742.11911 | J125: 14634.54193 | K125: 17551.85024 | L125: 19685.42358 | M125: 0 | N125: 0 | O125: 0 | P125: 0 | Q125: 0
A126: Depreciación | B126: 12 | D126: 0 | E126: 0 | F126: 0 | G126: 0 | H126: 1596.442804 | I126: 1894.123341 | J126: 2633.23228 | K126: 2378.470233 | L126: 4827.617011 | M126: 0 | N126: 0 | O126: 0 | P126: 0 | Q126: 0
A127: Amortización de intangibles | B127: 13 | D127: 0 | E127: 0 | F127: 0 | G127: 0 | H127: 20.72561022 | I127: 28.2581176 | J127: 4.702158849 | K127: 2.885923481 | L127: 102.5104031 | M127: 0 | N127: 0 | O127: 0 | P127: 0 | Q127: 0
A128: Servicios prestados por terceros | B128: 14 | D128: 0 | E128: 0 | F128: 0 | G128: 0 | H128: 1920.727041 | I128: 3189.463525 | J128: 4911.337956 | K128: 4149.574845 | L128: 5625.714958 | M128: 0 | N128: 0 | O128: 0 | P128: 0 | Q128: 0
A129: Mantenimiento | B129: 15 | D129: 0 | E129: 0 | F129: 0 | G129: 0 | H129: 220.4904522 | I129: 471.6217626 | J129: 458.5754431 | K129: 415.5200134 | L129: 561.4894078 | M129: 0 | N129: 0 | O129: 0 | P129: 0 | Q129: 0
A130: Suministros y materiales | B130: 16 | D130: 0 | E130: 0 | F130: 0 | G130: 0 | H130: 431.4930278 | I130: 661.3116275 | J130: 612.7966856 | K130: 572.2253107 | L130: 605.408663 | M130: 0 | N130: 0 | O130: 0 | P130: 0 | Q130: 0
A131: Tributos y seguros | B131: 17 | D131: 0 | E131: 0 | F131: 0 | G131: 0 | H131: 433.6995833 | I131: 566.0520437 | J131: 611.2056207 | K131: 549.0841984 | L131: 933.9574645 | M131: 0 | N131: 0 | O131: 0 | P131: 0 | Q131: 0
A132: Contribución | B132: 18 | D132: 0 | E132: 0 | F132: 0 | G132: 0 | H132: 1849.943924 | I132: 2180.52518 | J132: 2360.744274 | K132: 2176.885646 | L132: 2609.592938 | M132: 0 | N132: 0 | O132: 0 | P132: 0 | Q132: 0
A133: Otros costos | B133: 19 | D133: 0 | E133: 0 | F133: 0 | G133: 0 | H133: 392.594987 | I133: 415.16729 | J133: 407.9350668 | K133: 215.9731521 | L133: 1660.897932 | M133: 0 | N133: 0 | O133: 0 | P133: 0 | Q133: 0
A134: Costos totales | D134: =+SUM(D125:D133) -> 0 | E134: 0 | F134: 0 | G134: 0 | H134: 15405.41574 | I134: 22148.64199 | J134: 26635.07142 | K134: 28012.46957 | L134: 36612.61236 | M134: 0 | N134: 0 | O134: 0 | P134: 0 | Q134: 0
A137: SNAR internacional
A138: Columna: | B138: =+VLOOKUP(A137,$A$14:$E$17,$B$12,0) -> 6
A139: Ingresos totales | B139: 9 | D139: =IF(AND(D$2<=2013,D$2>=2009),INDIRECT(D$2&"!"&ADDRESS($B139,$B$138))/1000,0) -> 0 | E139: 0 | F139: 0 | G139: 0 | H139: 43290.52034 | I139: 43571.38145 | J139: 45602.03538 | K139: 46538.67068 | L139: 49743.45248 | M139: 0 | N139: 0 | O139: 0 | P139: 0 | Q139: 0
A140: Costos operativos
A141: Gastos de personal | B141: 11 | D141: =IF(AND(D$2<=2013,D$2>=2009),INDIRECT(D$2&"!"&ADDRESS($B141,$B$138))/1000,0)/(D$38/100) -> 0 | E141: 0 | F141: 0 | G141: 0 | H141: 22942.73076 | I141: 26417.69863 | J141: 27942.13858 | K141: 24764.28952 | L141: 27836.13799 | M141: 0 | N141: 0 | O141: 0 | P141: 0 | Q141: 0
A142: Depreciación | B142: 12 | D142: 0 | E142: 0 | F142: 0 | G142: 0 | H142: 3235.114307 | I142: 3265.924757 | J142: 5761.478861 | K142: 2406.755826 | L142: 6483.39433 | M142: 0 | N142: 0 | O142: 0 | P142: 0 | Q142: 0
A143: Amortización de intangibles | B143: 13 | D143: 0 | E143: 0 | F143: 0 | G143: 0 | H143: 58.68857824 | I143: 67.21402525 | J143: 10.54771069 | K143: 6.1578567 | L143: 191.423459 | M143: 0 | N143: 0 | O143: 0 | P143: 0 | Q143: 0
A144: Servicios prestados por terceros | B144: 14 | D144: 0 | E144: 0 | F144: 0 | G144: 0 | H144: 5300.960456 | I144: 5925.938189 | J144: 6402.655575 | K144: 4128.998207 | L144: 5574.592122 | M144: 0 | N144: 0 | O144: 0 | P144: 0 | Q144: 0
A145: Mantenimiento | B145: 15 | D145: 0 | E145: 0 | F145: 0 | G145: 0 | H145: 704.6750379 | I145: 714.5691439 | J145: 683.1046238 | K145: 590.3048808 | L145: 774.4324374 | M145: 0 | N145: 0 | O145: 0 | P145: 0 | Q145: 0
A146: Suministros y materiales | B146: 16 | D146: 0 | E146: 0 | F146: 0 | G146: 0 | H146: 1129.403412 | I146: 1382.74097 | J146: 972.2591537 | K146: 787.0539262 | L146: 778.7226115 | M146: 0 | N146: 0 | O146: 0 | P146: 0 | Q146: 0
A147: Tributos y seguros | B147: 17 | D147: 0 | E147: 0 | F147: 0 | G147: 0 | H147: 1204.13245 | I147: 1248.145297 | J147: 1209.49782 | K147: 812.9959738 | L147: 1185.334811 | M147: 0 | N147: 0 | O147: 0 | P147: 0 | Q147: 0
A148: Contribución | B148: 18 | D148: 0 | E148: 0 | F148: 0 | G148: 0 | H148: 5238.485268 | I148: 5137.662778 | J148: 5200.172371 | K148: 4254.780812 | L148: 4611.625606 | M148: 0 | N148: 0 | O148: 0 | P148: 0 | Q148: 0
A149: Otros costos | B149: 19 | D149: 0 | E149: 0 | F149: 0 | G149: 0 | H149: 1104.512954 | I149: 910.843938 | J149: 653.2567962 | K149: 397.9804777 | L149: 3086.571985 | M149: 0 | N149: 0 | O149: 0 | P149: 0 | Q149: 0
A150: Costos totales | D150: =+SUM(D141:D149) -> 0 | E150: 0 | F150: 0 | G150: 0 | H150: 40918.70322 | I150: 45070.73773 | J150: 48835.11149 | K150: 38149.31748 | L150: 50522.23535 | M150: 0 | N150: 0 | O150: 0 | P150: 0 | Q150: 0
A153: Aproximación
A154: Columna: | B154: =+VLOOKUP(A153,$A$14:$E$17,$B$12,0) -> 7
A155: Ingresos totales | B155: 9 | D155: =IF(AND(D$2<=2013,D$2>=2009),INDIRECT(D$2&"!"&ADDRESS($B155,$B$154))/1000,0) -> 0 | E155: 0 | F155: 0 | G155: 0 | H155: 5426.92393 | I155: 6075.80522 | J155: 0 | K155: 6988.47189 | L155: 8178.529271 | M155: 0 | N155: 0 | O155: 0 | P155: 0 | Q155: 0
A156: Costos operativos
A157: Gastos de personal | B157: 11 | D157: =IF(AND(D$2<=2013,D$2>=2009),INDIRECT(D$2&"!"&ADDRESS($B157,$B$154))/1000,0)/(D$38/100) -> 0 | E157: 0 | F157: 0 | G157: 0 | H157: 25696.79038 | I157: 28352.13816 | J157: 33227.56819 | K157: 41416.61435 | L157: 38032.20891 | M157: 0 | N157: 0 | O157: 0 | P157: 0 | Q157: 0
A158: Depreciación | B158: 12 | D158: 0 | E158: 0 | F158: 0 | G158: 0 | H158: 3617.808189 | I158: 6273.39456 | J158: 6815.732599 | K158: 6740.974643 | L158: 6255.347776 | M158: 0 | N158: 0 | O158: 0 | P158: 0 | Q158: 0
A159: Amortización de intangibles | B159: 13 | D159: 0 | E159: 0 | F159: 0 | G159: 0 | H159: 0.9240179672 | I159: 0.90988486 | J159: 0.659418588 | K159: 0.003296875023 | L159: 0 | M159: 0 | N159: 0 | O159: 0 | P159: 0 | Q159: 0
A160: Servicios prestados por terceros | B160: 14 | D160: 0 | E160: 0 | F160: 0 | G160: 0 | H160: 5058.91582 | I160: 7137.722331 | J160: 5167.376518 | K160: 9218.092965 | L160: 10071.9166 | M160: 0 | N160: 0 | O160: 0 | P160: 0 | Q160: 0
A161: Mantenimiento | B161: 15 | D161: 0 | E161: 0 | F161: 0 | G161: 0 | H161: 286.0618526 | I161: 676.7425427 | J161: 1259.572025 | K161: 550.1851651 | L161: 676.6989835 | M161: 0 | N161: 0 | O161: 0 | P161: 0 | Q161: 0
A162: Suministros y materiales | B162: 16 | D162: 0 | E162: 0 | F162: 0 | G162: 0 | H162: 905.8768282 | I162: 1075.575378 | J162: 2450.483951 | K162: 1361.251884 | L162: 5939.155531 | M162: 0 | N162: 0 | O162: 0 | P162: 0 | Q162: 0
A163: Tributos y seguros | B163: 17 | D163: 0 | E163: 0 | F163: 0 | G163: 0 | H163: 2462.636418 | I163: 2352.7948 | J163: 2686.130175 | K163: 1754.549573 | L163: 2618.570738 | M163: 0 | N163: 0 | O163: 0 | P163: 0 | Q163: 0
A164: Contribución | B164: 18 | D164: 0 | E164: 0 | F164: 0 | G164: 0 | H164: 996.0930694 | I164: 1152.221105 | J164: 1405.113957 | K164: 852.2348168 | L164: 1040.381336 | M164: 0 | N164: 0 | O164: 0 | P164: 0 | Q164: 0
A165: Otros costos | B165: 19 | D165: 0 | E165: 0 | F165: 0 | G165: 0 | H165: 160.0060397 | I165: 2144.031469 | J165: 96.96878128 | K165: 380.3145756 | L165: 177.7852864 | M165: 0 | N165: 0 | O165: 0 | P165: 0 | Q165: 0
A166: Costos totales | D166: =+SUM(D157:D165) -> 0 | E166: 0 | F166: 0 | G166: 0 | H166: 39185.11261 | I166: 49165.53023 | J166: 53109.60561 | K166: 62274.22127 | L166: 64812.06516 | M166: 0 | N166: 0 | O166: 0 | P166: 0 | Q166: 0
A169: Sobrevuelo
A170: Columna: | B170: =+VLOOKUP(A169,$A$14:$E$17,$B$12,0) -> 18
A171: Ingresos totales | B171: 9 | D171: =IF(AND(D$2<=2013,D$2>=2009),INDIRECT(D$2&"!"&ADDRESS($B171,$B$170))/1000,0) -> 0 | E171: 0 | F171: 0 | G171: 0 | H171: 39694.45004 | I171: 41091.98607 | J171: 46636.84876 | K171: 57060.45307 | L171: 63601.15073 | M171: 0 | N171: 0 | O171: 0 | P171: 0 | Q171: 0
A172: Costos operativos
A173: Gastos de personal | B173: 11 | D173: =IF(AND(D$2<=2013,D$2>=2009),INDIRECT(D$2&"!"&ADDRESS($B173,$B$170))/1000,0)/(D$38/100) -> 0 | E173: 0 | F173: 0 | G173: 0 | H173: 20241.9434 | I173: 23964.35212 | J173: 24461.34301 | K173: 29560.63078 | L173: 34877.72193 | M173: 0 | N173: 0 | O173: 0 | P173: 0 | Q173: 0
A174: Depreciación | B174: 12 | D174: 0 | E174: 0 | F174: 0 | G174: 0 | H174: 2124.103688 | I174: 2319.519649 | J174: 4418.691167 | K174: 2714.752137 | L174: 8063.406364 | M174: 0 | N174: 0 | O174: 0 | P174: 0 | Q174: 0
A175: Amortización de intangibles | B175: 13 | D175: 0 | E175: 0 | F175: 0 | G175: 0 | H175: 54.51821939 | I175: 63.97819777 | J175: 11.14418105 | K175: 7.660526701 | L175: 250.364983 | M175: 0 | N175: 0 | O175: 0 | P175: 0 | Q175: 0
A176: Servicios prestados por terceros | B176: 14 | D176: 0 | E176: 0 | F176: 0 | G176: 0 | H176: 4409.795231 | I176: 5016.644687 | J176: 4278.98386 | K176: 4716.738601 | L176: 6770.403652 | M176: 0 | N176: 0 | O176: 0 | P176: 0 | Q176: 0
A177: Mantenimiento | B177: 15 | D177: 0 | E177: 0 | F177: 0 | G177: 0 | H177: 432.0986508 | I177: 431.0353548 | J177: 271.1957664 | K177: 735.4544189 | L177: 972.6585223 | M177: 0 | N177: 0 | O177: 0 | P177: 0 | Q177: 0
A178: Suministros y materiales | B178: 16 | D178: 0 | E178: 0 | F178: 0 | G178: 0 | H178: 907.7090481 | I178: 1192.972089 | J178: 742.1981869 | K178: 942.5263775 | L178: 974.3590804 | M178: 0 | N178: 0 | O178: 0 | P178: 0 | Q178: 0
A179: Tributos y seguros | B179: 17 | D179: 0 | E179: 0 | F179: 0 | G179: 0 | H179: 1102.465748 | I179: 1157.571865 | J179: 1135.645458 | K179: 969.0751215 | L179: 1505.245686 | M179: 0 | N179: 0 | O179: 0 | P179: 0 | Q179: 0
A180: Contribución | B180: 18 | D180: 0 | E180: 0 | F180: 0 | G180: 0 | H180: 4866.233016 | I180: 4852.05598 | J180: 5241.400351 | K180: 5176.431584 | L180: 5820.666388 | M180: 0 | N180: 0 | O180: 0 | P180: 0 | Q180: 0
A181: Otros costos | B181: 19 | D181: 0 | E181: 0 | F181: 0 | G181: 0 | H181: 1018.896534 | I181: 822.0346482 | J181: 656.2946156 | K181: 460.3465062 | L181: 3801.963701 | M181: 0 | N181: 0 | O181: 0 | P181: 0 | Q181: 0
A182: Costos totales | D182: =+SUM(D173:D181) -> 0 | E182: 0 | F182: 0 | G182: 0 | H182: 35157.76353 | I182: 39820.16459 | J182: 41216.8966 | K182: 45283.61605 | L182: 63036.7903 | M182: 0 | N182: 0 | O182: 0 | P182: 0 | Q182: 0
A185: Servicios regulados
A186: Ingresos totales | D186: =+D123+D139+D155+D171 -> 0 | E186: 0 | F186: 0 | G186: 0 | H186: 104911.77 | I186: 110150.3334 | J186: 113731.5497 | K186: 133643.688 | L186: 149090.4752 | M186: 0 | N186: 0 | O186: 0 | P186: 0 | Q186: 0
A187: Costos operativos
A188: Gastos de personal | D188: =+D125+D141+D157+D173 -> 0 | E188: 0 | F188: 0 | G188: 0 | H188: 77420.76284 | I188: 91476.30802 | J188: 100265.5917 | K188: 113293.3849 | L188: 120431.4924 | M188: 0 | N188: 0 | O188: 0 | P188: 0 | Q188: 0
A189: Depreciación | D189: =+D126+D142+D158+D174 -> 0 | E189: 0 | F189: 0 | G189: 0 | H189: 10573.46899 | I189: 13752.96231 | J189: 19629.13491 | K189: 14240.95284 | L189: 25629.76548 | M189: 0 | N189: 0 | O189: 0 | P189: 0 | Q189: 0
A190: Amortización de intangibles | D190: =+D127+D143+D159+D175 -> 0 | E190: 0 | F190: 0 | G190: 0 | H190: 134.8564258 | I190: 160.3602255 | J190: 27.05346918 | K190: 16.70760376 | L190: 544.2988451 | M190: 0 | N190: 0 | O190: 0 | P190: 0 | Q190: 0
A191: Servicios prestados por terceros | D191: =+D128+D144+D160+D176 -> 0 | E191: 0 | F191: 0 | G191: 0 | H191: 16690.39855 | I191: 21269.76873 | J191: 20760.35391 | K191: 22213.40462 | L191: 28042.62733 | M191: 0 | N191: 0 | O191: 0 | P191: 0 | Q191: 0
A192: Mantenimiento | D192: =+D129+D145+D161+D177 -> 0 | E192: 0 | F192: 0 | G192: 0 | H192: 1643.325993 | I192: 2293.968804 | J192: 2672.447859 | K192: 2291.464478 | L192: 2985.279351 | M192: 0 | N192: 0 | O192: 0 | P192: 0 | Q192: 0
A193: Suministros y materiales | D193: =+D130+D146+D162+D178 -> 0 | E193: 0 | F193: 0 | G193: 0 | H193: 3374.482316 | I193: 4312.600064 | J193: 4777.737977 | K193: 3663.057498 | L193: 8297.645886 | M193: 0 | N193: 0 | O193: 0 | P193: 0 | Q193: 0
A194: Tributos y seguros | D194: =+D131+D147+D163+D179 -> 0 | E194: 0 | F194: 0 | G194: 0 | H194: 5202.9342 | I194: 5324.564006 | J194: 5642.479073 | K194: 4085.704867 | L194: 6243.1087 | M194: 0 | N194: 0 | O194: 0 | P194: 0 | Q194: 0
A195: Contribución | D195: =+D132+D148+D164+D180 -> 0 | E195: 0 | F195: 0 | G195: 0 | H195: 12950.75528 | I195: 13322.46504 | J195: 14207.43095 | K195: 12460.33286 | L195: 14082.26627 | M195: 0 | N195: 0 | O195: 0 | P195: 0 | Q195: 0
A196: Otros costos | D196: =+D133+D149+D165+D181 -> 0 | E196: 0 | F196: 0 | G196: 0 | H196: 2676.010515 | I196: 4292.077345 | J196: 1814.45526 | K196: 1454.614712 | L196: 8727.218904 | M196: 0 | N196: 0 | O196: 0 | P196: 0 | Q196: 0
A197: Costos totales | D197: =+SUM(D188:D196) -> 0 | E197: 0 | F197: 0 | G197: 0 | H197: 130666.9951 | I197: 156205.0745 | J197: =+SUM(J188:J196) -> 169796.6851 | K197: 173719.6244 | L197: 214983.7032 | M197: 0 | N197: 0 | O197: 0 | P197: 0 | Q197: 0
L198: =+L197-L189-L190-L195 -> 174727.3726
A200: Servicio regulado: | B200: =+servicio -> Aproximación
A202: Ingresos totales | B202: =+(IF(B200=A121,0, IF(B200=A137,1,IF(B200=A153,2,3)))*(ROW(A137)-ROW(A121)))+(ROW(A123)-ROW(A121)) -> 34 | D202: =OFFSET($A$121,$B202,COLUMN(D$2)-1) -> 0 | E202: =OFFSET($A$121,$B202,COLUMN(E$2)-1) -> 0 | F202: =OFFSET($A$121,$B202,COLUMN(F$2)-1) -> 0 | G202: =OFFSET($A$121,$B202,COLUMN(G$2)-1) -> 0 | I202: =OFFSET($A$121,$B202,COLUMN(I$2)-1) -> 6075.80522 | J202: 0 | K202: 6988.47189 | L202: 8178.529271 | M202: 0 | N202: 0 | O202: 0 | P202: 0 | Q202: 0
A203: Costos operativos | B203: =+B202+1 -> 35
A204: Gastos de personal | B204: =+B203+1 -> 36 | D204: =OFFSET($A$121,$B204,COLUMN(D$2)-1) -> 0 | E204: 0 | F204: 0 | G204: 0 | H204: 25696.79038 | I204: 28352.13816 | J204: 33227.56819 | K204: 41416.61435 | L204: 38032.20891 | M204: 0 | N204: 0 | O204: 0 | P204: 0 | Q204: 0
A205: Depreciación | B205: =+B204+1 -> 37 | D205: 0 | E205: 0 | F205: 0 | G205: 0 | H205: 3617.808189 | I205: 6273.39456 | J205: 6815.732599 | K205: 6740.974643 | L205: 6255.347776 | M205: 0 | N205: 0 | O205: 0 | P205: 0 | Q205: 0
A206: Amortización de intangibles | B206: 38 | D206: 0 | E206: 0 | F206: 0 | G206: 0 | H206: 0.9240179672 | I206: 0.90988486 | J206: 0.659418588 | K206: 0.003296875023 | L206: 0 | M206: 0 | N206: 0 | O206: 0 | P206: 0 | Q206: 0
A207: Servicios prestados por terceros | B207: 39 | D207: 0 | E207: 0 | F207: 0 | G207: 0 | H207: 5058.91582 | I207: 7137.722331 | J207: 5167.376518 | K207: 9218.092965 | L207: 10071.9166 | M207: 0 | N207: 0 | O207: 0 | P207: 0 | Q207: 0
A208: Mantenimiento | B208: 40 | D208: 0 | E208: 0 | F208: 0 | G208: 0 | H208: 286.0618526 | I208: 676.7425427 | J208: 1259.572025 | K208: 550.1851651 | L208: 676.6989835 | M208: 0 | N208: 0 | O208: 0 | P208: 0 | Q208: 0
A209: Suministros y materiales | B209: 41 | D209: 0 | E209: 0 | F209: 0 | G209: 0 | H209: 905.8768282 | I209: 1075.575378 | J209: 2450.483951 | K209: 1361.251884 | L209: 5939.155531 | M209: 0 | N209: 0 | O209: 0 | P209: 0 | Q209: 0
A210: Tributos y seguros | B210: 42 | D210: 0 | E210: 0 | F210: 0 | G210: 0 | H210: 2462.636418 | I210: 2352.7948 | J210: 2686.130175 | K210: 1754.549573 | L210: 2618.570738 | M210: 0 | N210: 0 | O210: 0 | P210: 0 | Q210: 0
A211: Contribución | B211: 43 | D211: 0 | E211: 0 | F211: 0 | G211: 0 | H211: 996.0930694 | I211: 1152.221105 | J211: 1405.113957 | K211: 852.2348168 | L211: 1040.381336 | M211: 0 | N211: 0 | O211: 0 | P211: 0 | Q211: 0
A212: Otros costos | B212: =+B211+1 -> 44 | D212: 0 | E212: 0 | F212: 0 | G212: 0 | H212: 160.0060397 | I212: 2144.031469 | J212: 96.96878128 | K212: 380.3145756 | L212: 177.7852864 | M212: 0 | N212: 0 | O212: 0 | P212: 0 | Q212: 0
A213: Costos totales | D213: =+SUM(D204:D212) -> 0 | E213: =+SUM(E204:E212) -> 0 | F213: =+SUM(F204:F212) -> 0 | G213: =+SUM(G204:G212) -> 0 | H213: =+SUM(H204:H212) -> 39185.11261 | I213: =+SUM(I204:I212) -> 49165.53023 | J213: 53109.60561 | K213: 62274.22127 | L213: 64812.06516 | M213: 0 | N213: 0 | O213: 0 | P213: 0 | Q213: 0
A216: Proyección
A217: En S/. miles del 2013 | L217: -19685.42358 | O217: =+Supuestos!B42 -> 0.2774809004 | P217: =+Supuestos!C42 -> 0
L218: -431.0198305
A219: Escenario: x% ejecución, 0% de reasignación, 100% de usuarios | L219: -5625.714958
L220: -561.4894078
A221: SNAR nacional | B221: =+VLOOKUP(A221,$A$14:$E$17,$C$12,0) -> 1 | L221: -605.408663
A222: Crecimiento operaciones para elasticidad | L222: -933.9574645 | M222: =+M99 -> 0.08817025123 | N222: =+N99 -> 0.09626226701 | O222: =+O99 -> 0.09060582777 | P222: =+P99 -> 0.08591078409 | Q222: =+Q99 -> 0.08627019021
B223: Elasticidad | C223: Tipo | L223: -1660.897932
A224: Gastos de personal | B224: =+SUMIF($A$22:$A$30,A224,$F$22:$F$30) -> 0.3 | C224: =+VLOOKUP(A224,$A$22:$F$30,$E$20,0) -> Variable | D224: =+SUMIF($A$125:$A$133,$A224,D$125:D$133)*$B$221 -> 0 | E224: 0 | F224: 0 | G224: 0 | H224: 8539.298309 | I224: 12742.11911 | J224: 14634.54193 | K224: 17551.85024 | L224: =+SUMIF($A$125:$A$133,$A224,L$125:L$133)*$B$221 -> 19685.42358 | M224: =+($B224*(M$222)+1)*L224*$B$221 -> 20206.1242 | N224: =+($B224*(N$222)+1)*M224*$B$221+Laudo!E17+Laudo!F17+Laudo!G17 -> 22704.77585 | O224: =+Laudo!M17 -> 22460.14782 | P224: =+(($B224*(P$222)+1)*O224*$B$221) -> 23039.0185 | Q224: =+($B224*(Q$222)+1)*P224*$B$221 -> 23635.29265
A225: Servicios prestados por terceros | B225: 0.3 | C225: Variable | D225: 0 | E225: 0 | F225: 0 | G225: 0 | H225: 1920.727041 | I225: 3189.463525 | J225: 4911.337956 | K225: 4149.574845 | L225: 5625.714958 | M225: 5774.521168 | N225: 5941.281718 | O225: 6102.776142 | P225: 6260.064427 | Q225: 6422.081512
A226: Mantenimiento | B226: 0.3 | C226: Variable | D226: 0 | E226: 0 | F226: 0 | G226: 0 | H226: 220.4904522 | I226: 471.6217626 | J226: 458.5754431 | K226: 415.5200134 | L226: 561.4894078 | M226: 576.3414064 | N226: 592.9853855 | O226: 609.103765 | P226: 624.8023396 | Q226: 640.9728846
A227: Suministros y materiales | B227: 0.3 | C227: Variable | D227: 0 | E227: 0 | F227: 0 | G227: 0 | H227: 431.4930278 | I227: 661.3116275 | J227: 612.7966856 | K227: 572.2253107 | L227: 605.408663 | M227: 621.4223732 | N227: 639.3682311 | O227: 656.7473775 | P227: 673.6738821 | Q227: 691.1092743
A228: Tributos y seguros | B228: 0 | C228: Fijo | D228: 0 | E228: 0 | F228: 0 | G228: 0 | H228: 433.6995833 | I228: 566.0520437 | J228: 611.2056207 | K228: 549.0841984 | L228: 933.9574645 | M228: 933.9574645 | N228: 933.9574645 | O228: 933.9574645 | P228: 933.9574645 | Q228: 933.9574645
A229: Otros costos | B229: 0.3 | C229: Variable | D229: 0 | E229: 0 | F229: 0 | G229: 0 | H229: 392.594987 | I229: 415.16729 | J229: 407.9350668 | K229: 215.9731521 | L229: 1660.897932 | M229: 1704.830468 | N229: 1754.063722 | O229: 1801.742241 | P229: 1848.178967 | Q229: 1896.011793
A230: Total | D230: =SUM(D224:D229) -> 0 | E230: =SUM(E224:E229) -> 0 | F230: 0 | G230: 0 | H230: 11938.3034 | I230: 18045.73535 | J230: 21636.3927 | K230: 23454.22776 | L230: 29072.89201 | M230: 29817.19708 | N230: 32566.43237 | O230: 32564.47481 | P230: 33379.69558 | Q230: 34219.42558
A233: SNAR internacional | B233: =+VLOOKUP(A233,$A$14:$E$17,$C$12,0) -> 1
A234: Crecimiento operaciones para elasticidad | M234: =+M100 -> 0.06776753915 | N234: =+N100 -> 0.0714902282 | O234: =+O100 -> 0.0669984055 | P234: =+P100 -> 0.06828053429 | Q234: =+Q100 -> 0.06829311554
B235: Elasticidad | C235: Tipo
A236: Gastos de personal | B236: =+SUMIF($A$22:$A$30,A236,$F$22:$F$30) -> 0.3 | C236: =+VLOOKUP(A236,$A$22:$F$30,$E$20,0) -> Variable | D236: =+SUMIF($A$141:$A$149,$A236,D$141:D$149)*$B$233 -> 0 | E236: 0 | F236: 0 | G236: 0 | H236: 22942.73076 | I236: 26417.69863 | J236: 27942.13858 | K236: 24764.28952 | L236: 27836.13799 | M236: =+($B236*(M$234)+1)*L236*$B$233 -> 28402.05396 | N236: =+($B236*(N$234)+1)*M236*$B$233+Laudo!E18+Laudo!F18+Laudo!G18 -> 31719.27446 | O236: =+Laudo!M18 -> 31146.6153 | P236: =+(($B236*(P$234)+1)*O236*$B$233) -> 31784.62756 | Q236: =+($B236*(Q$234)+1)*P236*$B$233 -> 32435.82893
... 179 more rows

Sheet Activo_nvo
D2: 2009 | E2: 2010 | F2: 2011 | G2: 2012 | H2: 2013 | I2: 2014 | J2: 2015 | K2: 2016 | L2: 2017 | M2: 2018
A4: ESTIMACIÓN DE INVERSIONES, DEPRECIACIÓN E INTANGIBLES: ACTIVOS NUEVOS
A5: Servicio regulado: | B5: =+servicio -> Aproximación
A6: Periodo: | B6: 2014-2018
A8: SUPUESTOS
A10: Ajustes de activos nuevos
A11: 1 | B11: =+A11+1 -> 2 | C11: 3 | D11: 4 | E11: 5 | F11: 6 | G11: 7
A12: Servicio | B12: Código | C12: =+Vínculos!C115 -> Distribución según origen | D12: =+Vínculos!D115 -> Porcentaje de ejecución de inversiones | E12: =+Vínculos!E115 -> Ajuste de inversiones | F12: =+Vínculos!F115 -> Usuarios atribuibles
A13: SNAR nacional | B13: SNAR | C13: =+Vínculos!C116 -> 0.5334226247 | D13: =+Vínculos!D116 -> 0.6 | E13: =+Vínculos!E116 -> 0.3200535748 | F13: =+Vínculos!F116 -> 0.9131491671
A14: SNAR internacional | B14: SNAR | C14: =+Vínculos!C117 -> 0.4665773753 | D14: =+Vínculos!D117 -> 0.6 | E14: =+Vínculos!E117 -> 0.2799464252 | F14: =+Vínculos!F117 -> 0.9869856484
A15: Aproximación | B15: APROX | C15: =+Vínculos!C118 -> 1 | D15: =+Vínculos!D118 -> 0.6 | E15: =+Vínculos!E118 -> 0.6 | F15: =+Vínculos!F118 -> 0.9343700092
A16: Sobrevuelo | B16: SV | C16: =+Vínculos!C119 -> 1 | D16: =+Vínculos!D119 -> 0.6 | E16: =+Vínculos!E119 -> 0.6 | F16: =+Vínculos!F119 -> 0.995011127
A18: Estimaciones de vida últil de inversiones
A20: ID | B20: Años de vida
A21: Obra | B21: 20
A22: Aeronave | B22: 20
A23: Estaciones | B23: 10
A24: Red | B24: 10
A25: Equipos | B25: 10
A26: Vehículos | B26: 5
A27: Sistemas | B27: 4
A28: Actividad | B28: 4
A29: Estudios | B29: 1
A30: Fuente: Corpac-activos existentes
A33: ESTIMACIONES
A35: CAPEX
A37: Distribución de las inversiones, según los costos
A39: Nomenclatura | B39: SNAR | C39: SV | D39: APROX | E39: A/D | F39: Total
A40: APROX - A/D | B40: =+Vínculos!C82 -> 0 | C40: =+Vínculos!D82 -> 0 | D40: =+Vínculos!E82 -> 0.4120900692 | E40: =+Vínculos!F82 -> 0.5879099308 | F40: =SUM(B40:E40) -> 1
A41: SV-SNAR- APROX - A/D | B41: =+Vínculos!C83 -> 0.3306414122 | C41: =+Vínculos!D83 -> 0.236871183 | D41: =+Vínculos!E83 -> 0.1782237646 | E41: =+Vínculos!F83 -> 0.2542636403 | F41: =SUM(B41:E41) -> 1
A42: SV-SNAR | B42: =+Vínculos!C84 -> 0.5826151085 | C42: =+Vínculos!D84 -> 0.4173848915 | D42: =+Vínculos!E84 -> 0 | E42: =+Vínculos!F84 -> 0 | F42: =SUM(B42:E42) -> 1
A43: SV-SNAR- A/D | B43: =+Vínculos!C85 -> 0.4023496883 | C43: =+Vínculos!D85 -> 0.2882429216 | D43: =+Vínculos!E85 -> 0 | E43: =+Vínculos!F85 -> 0.3094073901 | F43: =SUM(B43:E43) -> 1
A44: A/D | B44: =+Vínculos!C86 -> 0 | C44: =+Vínculos!D86 -> 0 | D44: =+Vínculos!E86 -> 0 | E44: =+Vínculos!F86 -> 1 | F44: =SUM(B44:E44) -> 1
A46: PROGRAMA DE INVERSIONES CORPAC S.A. 2014-2017 - AERONAVEGACIÓN
A47: Proyectos de inversión y gastos de capital no ligados a proyectos
A48: (en S/.)
A50: Tipo | B50: Descripción | C50: Servicio | D50: Unidad de medida | E50: nd1 | F50: nd2 | G50: Inversión 2013 | H50: Meta física 2014-2017 | I50: Inversión 2014-2017 | J50: Meta física 2014 | K50: Inversión 2014 | L50: Meta física 2015 | M50: Inversión 2015 | N50: Meta física 2016 | O50: Inversión 2016 | P50: Meta física 2017 | Q50: Inversión 2017 | R50: SNAR | S50: SV | T50: APROX | U50: A/D | V50: 2013 | W50: 2014 | X50: 2015 | Y50: 2016 | Z50: 2017 | AA50: =+CONCATENATE(V50,"_",$R$50) -> 2013_SNAR | AB50: =+CONCATENATE(W50,"_",$R$50) -> 2014_SNAR | AC50: =+CONCATENATE(X50,"_",$R$50) -> 2015_SNAR | AD50: =+CONCATENATE(Y50,"_",$R$50) -> 2016_SNAR | AE50: =+CONCATENATE(Z50,"_",$R$50) -> 2017_SNAR | AF50: =+CONCATENATE(V50,"_",$S$50) -> 2013_SV | AG50: =+CONCATENATE(W50,"_",$S$50) -> 2014_SV | AH50: =+CONCATENATE(X50,"_",$S$50) -> 2015_SV | AI50: =+CONCATENATE(Y50,"_",$S$50) -> 2016_SV | AJ50: =+CONCATENATE(Z50,"_",$S$50) -> 2017_SV | AK50: =+CONCATENATE(V50,"_",$T$50) -> 2013_APROX | AL50: =+CONCATENATE(W50,"_",$T$50) -> 2014_APROX | AM50: =+CONCATENATE(X50,"_",$T$50) -> 2015_APROX | AN50: =+CONCATENATE(Y50,"_",$T$50) -> 2016_APROX | AO50: =+CONCATENATE(Z50,"_",$T$50) -> 2017_APROX | AP50: =+CONCATENATE(V50,"_",$U$50) -> 2013_A/D | AQ50: =+CONCATENATE(W50,"_",$U$50) -> 2014_A/D | AR50: =+CONCATENATE(X50,"_",$U$50) -> 2015_A/D | AS50: =+CONCATENATE(Y50,"_",$U$50) -> 2016_A/D | AT50: =+CONCATENATE(Z50,"_",$U$50) -> 2017_A/D
A51: Proyecto de inversión | B51: Ampliación del sistema de ayudas luminosas del Aeropuerto del Cusco | C51: APROX - A/D | D51: Sistemas | G51: 8405478.255 | R51: =+IFERROR(INDEX(Activo_nvo!$B$40:$E$44,MATCH($C51,Activo_nvo!$A$40:$A$44,0),MATCH(R$50,Activo_nvo!$B$39:$E$39,0)),"0") -> 0 | S51: =+IFERROR(INDEX(Activo_nvo!$B$40:$E$44,MATCH($C51,Activo_nvo!$A$40:$A$44,0),MATCH(S$50,Activo_nvo!$B$39:$E$39,0)),"0") -> 0 | T51: =+IFERROR(INDEX(Activo_nvo!$B$40:$E$44,MATCH($C51,Activo_nvo!$A$40:$A$44,0),MATCH(T$50,Activo_nvo!$B$39:$E$39,0)),"0") -> 0.4120900692 | U51: =+IFERROR(INDEX(Activo_nvo!$B$40:$E$44,MATCH($C51,Activo_nvo!$A$40:$A$44,0),MATCH(U$50,Activo_nvo!$B$39:$E$39,0)),"0") -> 0.5879099308 | V51: =+G51 -> 8405478.255 | W51: =+K51 -> 0 | X51: =+M51 -> 0 | Y51: =+O51 -> 0 | Z51: =+Q51 -> 0 | AA51: =+$R51*V51 -> 0 | AB51: =+$R51*W51 -> 0 | AC51: =+$R51*X51 -> 0 | AD51: =+$R51*Y51 -> 0 | AE51: =+$R51*Z51 -> 0 | AF51: =+$S51*V51 -> 0 | AG51: =+$S51*W51 -> 0 | AH51: =+$S51*X51 -> 0 | AI51: =+$S51*Y51 -> 0 | AJ51: =+$S51*Z51 -> 0 | AK51: =+$T51*V51 -> 3463814.116 | AL51: =+$T51*W51 -> 0 | AM51: =+$T51*X51 -> 0 | AN51: =+$T51*Y51 -> 0 | AO51: =+$T51*Z51 -> 0 | AP51: =+$U51*V51 -> 4941664.139 | AQ51: =+$U51*W51 -> 0 | AR51: 0 | AS51: 0 | AT51: 0
A52: Proyecto de inversión | B52: Modernización de Sistemas de Ayudas Luminosas en Aeropuertos del Perú (II Etapa). | C52: APROX - A/D | D52: Sistemas | E52: 0.2 | G52: =(2481466.16494973)*2.70278198811423 -> 6706862.055 | H52: =+J52+L52+N52+P52 -> 0 | I52: 2477392 | K52: 2477392 | R52: =+IFERROR(INDEX(Activo_nvo!$B$40:$E$44,MATCH($C52,Activo_nvo!$A$40:$A$44,0),MATCH(R$50,Activo_nvo!$B$39:$E$39,0)),"0") -> 0 | S52: =+IFERROR(INDEX(Activo_nvo!$B$40:$E$44,MATCH($C52,Activo_nvo!$A$40:$A$44,0),MATCH(S$50,Activo_nvo!$B$39:$E$39,0)),"0") -> 0 | T52: =+IFERROR(INDEX(Activo_nvo!$B$40:$E$44,MATCH($C52,Activo_nvo!$A$40:$A$44,0),MATCH(T$50,Activo_nvo!$B$39:$E$39,0)),"0") -> 0.4120900692 | U52: =+IFERROR(INDEX(Activo_nvo!$B$40:$E$44,MATCH($C52,Activo_nvo!$A$40:$A$44,0),MATCH(U$50,Activo_nvo!$B$39:$E$39,0)),"0") -> 0.5879099308 | V52: =+G52 -> 6706862.055 | W52: =+K52 -> 2477392 | X52: =+M52 -> 0 | Y52: =+O52 -> 0 | Z52: =+Q52 -> 0 | AA52: =+$R52*V52 -> 0 | AB52: 0 | AC52: 0 | AD52: 0 | AE52: 0 | AF52: =+$S52*V52 -> 0 | AG52: 0 | AH52: 0 | AI52: 0 | AJ52: 0 | AK52: =+$T52*V52 -> 2763831.249 | AL52: 1020908.641 | AM52: 0 | AN52: 0 | AO52: 0 | AP52: =+$U52*V52 -> 3943030.806 | AQ52: 1456483.359 | AR52: 0 | AS52: 0 | AT52: 0
A53: Proyecto de inversión | B53: Modernización de la Estación Meteorológica en el Aeropuerto de Chiclayo. | C53: SV-SNAR- APROX - A/D | D53: Sistemas | G53: 45234.87708 | H53: 0 | I53: 1067150 | K53: 1067150 | R53: =+IFERROR(INDEX(Activo_nvo!$B$40:$E$44,MATCH($C53,Activo_nvo!$A$40:$A$44,0),MATCH(R$50,Activo_nvo!$B$39:$E$39,0)),"0") -> 0.3306414122 | S53: =+IFERROR(INDEX(Activo_nvo!$B$40:$E$44,MATCH($C53,Activo_nvo!$A$40:$A$44,0),MATCH(S$50,Activo_nvo!$B$39:$E$39,0)),"0") -> 0.236871183 | T53: =+IFERROR(INDEX(Activo_nvo!$B$40:$E$44,MATCH($C53,Activo_nvo!$A$40:$A$44,0),MATCH(T$50,Activo_nvo!$B$39:$E$39,0)),"0") -> 0.1782237646 | U53: =+IFERROR(INDEX(Activo_nvo!$B$40:$E$44,MATCH($C53,Activo_nvo!$A$40:$A$44,0),MATCH(U$50,Activo_nvo!$B$39:$E$39,0)),"0") -> 0.2542636403 | V53: 45234.87708 | W53: 1067150 | X53: 0 | Y53: 0 | Z53: 0 | AA53: 14956.52364 | AB53: 352843.983 | AC53: 0 | AD53: 0 | AE53: 0 | AF53: 10714.83884 | AG53: 252777.0829 | AH53: 0 | AI53: 0 | AJ53: 0 | AK53: 8061.930085 | AL53: 190191.4904 | AM53: 0 | AN53: 0 | AO53: 0 | AP53: 11501.58451 | AQ53: 271337.4437 | AR53: 0 | AS53: 0 | AT53: 0
A54: Proyecto de inversión | B54: Modernización de la Estación Meteorológica en el Aeropuerto de Pisco. | C54: SV-SNAR- APROX - A/D | D54: Sistemas | H54: 0 | I54: 1067150 | K54: 1067150 | R54: =+IFERROR(INDEX(Activo_nvo!$B$40:$E$44,MATCH($C54,Activo_nvo!$A$40:$A$44,0),MATCH(R$50,Activo_nvo!$B$39:$E$39,0)),"0") -> 0.3306414122 | S54: =+IFERROR(INDEX(Activo_nvo!$B$40:$E$44,MATCH($C54,Activo_nvo!$A$40:$A$44,0),MATCH(S$50,Activo_nvo!$B$39:$E$39,0)),"0") -> 0.236871183 | T54: =+IFERROR(INDEX(Activo_nvo!$B$40:$E$44,MATCH($C54,Activo_nvo!$A$40:$A$44,0),MATCH(T$50,Activo_nvo!$B$39:$E$39,0)),"0") -> 0.1782237646 | U54: =+IFERROR(INDEX(Activo_nvo!$B$40:$E$44,MATCH($C54,Activo_nvo!$A$40:$A$44,0),MATCH(U$50,Activo_nvo!$B$39:$E$39,0)),"0") -> 0.2542636403 | V54: 0 | W54: 1067150 | X54: 0 | Y54: 0 | Z54: 0 | AA54: 0 | AB54: 352843.983 | AC54: 0 | AD54: 0 | AE54: 0 | AF54: 0 | AG54: 252777.0829 | AH54: 0 | AI54: 0 | AJ54: 0 | AK54: 0 | AL54: 190191.4904 | AM54: 0 | AN54: 0 | AO54: 0 | AP54: 0 | AQ54: 271337.4437 | AR54: 0 | AS54: 0 | AT54: 0
A55: Proyecto de inversión | B55: Adquisición de Aeronave de Inspección en Vuelo (incluye UP Grade de Consola ADFIS -14). | C55: SV-SNAR- APROX - A/D | D55: Aeronave | H55: 1 | I55: 35314417 | K55: 4925580 | L55: 1 | M55: 23040199 | O55: 7348638 | R55: =+IFERROR(INDEX(Activo_nvo!$B$40:$E$44,MATCH($C55,Activo_nvo!$A$40:$A$44,0),MATCH(R$50,Activo_nvo!$B$39:$E$39,0)),"0") -> 0.3306414122 | S55: =+IFERROR(INDEX(Activo_nvo!$B$40:$E$44,MATCH($C55,Activo_nvo!$A$40:$A$44,0),MATCH(S$50,Activo_nvo!$B$39:$E$39,0)),"0") -> 0.236871183 | T55: =+IFERROR(INDEX(Activo_nvo!$B$40:$E$44,MATCH($C55,Activo_nvo!$A$40:$A$44,0),MATCH(T$50,Activo_nvo!$B$39:$E$39,0)),"0") -> 0.1782237646 | U55: =+IFERROR(INDEX(Activo_nvo!$B$40:$E$44,MATCH($C55,Activo_nvo!$A$40:$A$44,0),MATCH(U$50,Activo_nvo!$B$39:$E$39,0)),"0") -> 0.2542636403 | V55: 0 | W55: 4925580 | X55: 23040199 | Y55: 7348638 | Z55: 0 | AA55: 0 | AB55: 1628600.727 | AC55: 7618043.934 | AD55: 2429764.046 | AE55: 0 | AF55: 0 | AG55: 1166727.961 | AH55: 5457559.193 | AI55: 1740680.576 | AJ55: 0 | AK55: 0 | AL55: 877855.4105 | AM55: 4106311.003 | AN55: 1309701.929 | AO55: 0 | AP55: 0 | AQ55: 1252395.901 | AR55: 5858284.87 | AS55: 1868491.449 | AT55: 0
A56: Proyecto de inversión | B56: Adquisición de un Sistema de Vigilancia de Superfície para el Aeropuerto Internacional Jorge Chávez. | C56: SV-SNAR- APROX - A/D | D56: Sistemas | H56: 1 | I56: 4860000 | N56: 0.2 | O56: 972000 | P56: 0.8 | Q56: 3888000 | R56: =+IFERROR(INDEX(Activo_nvo!$B$40:$E$44,MATCH($C56,Activo_nvo!$A$40:$A$44,0),MATCH(R$50,Activo_nvo!$B$39:$E$39,0)),"0") -> 0.3306414122 | S56: =+IFERROR(INDEX(Activo_nvo!$B$40:$E$44,MATCH($C56,Activo_nvo!$A$40:$A$44,0),MATCH(S$50,Activo_nvo!$B$39:$E$39,0)),"0") -> 0.236871183 | T56: =+IFERROR(INDEX(Activo_nvo!$B$40:$E$44,MATCH($C56,Activo_nvo!$A$40:$A$44,0),MATCH(T$50,Activo_nvo!$B$39:$E$39,0)),"0") -> 0.1782237646 | U56: =+IFERROR(INDEX(Activo_nvo!$B$40:$E$44,MATCH($C56,Activo_nvo!$A$40:$A$44,0),MATCH(U$50,Activo_nvo!$B$39:$E$39,0)),"0") -> 0.2542636403 | V56: 0 | W56: 0 | X56: 0 | Y56: 972000 | Z56: 3888000 | AA56: 0 | AB56: 0 | AC56: 0 | AD56: 321383.4526 | AE56: 1285533.81 | AF56: 0 | AG56: 0 | AH56: 0 | AI56: 230238.7898 | AJ56: 920955.1594 | AK56: 0 | AL56: 0 | AM56: 0 | AN56: 173233.4992 | AO56: 692933.9968 | AP56: 0 | AQ56: 0 | AR56: 0 | AS56: 247144.2583 | AT56: 988577.0333
A57: Proyecto de inversión | B57: Implantación de Estaciones Automáticas de Observaciones Meteorológicas (AWOS). | C57: SV-SNAR- APROX - A/D | D57: Sistemas | G57: 44698.60852 | H57: 14 | I57: 9415792 | L57: 5 | M57: 941580 | N57: 5 | O57: 4707896 | P57: 4 | Q57: 3766316 | R57: =+IFERROR(INDEX(Activo_nvo!$B$40:$E$44,MATCH($C57,Activo_nvo!$A$40:$A$44,0),MATCH(R$50,Activo_nvo!$B$39:$E$39,0)),"0") -> 0.3306414122 | S57: =+IFERROR(INDEX(Activo_nvo!$B$40:$E$44,MATCH($C57,Activo_nvo!$A$40:$A$44,0),MATCH(S$50,Activo_nvo!$B$39:$E$39,0)),"0") -> 0.236871183 | T57: =+IFERROR(INDEX(Activo_nvo!$B$40:$E$44,MATCH($C57,Activo_nvo!$A$40:$A$44,0),MATCH(T$50,Activo_nvo!$B$39:$E$39,0)),"0") -> 0.1782237646 | U57: =+IFERROR(INDEX(Activo_nvo!$B$40:$E$44,MATCH($C57,Activo_nvo!$A$40:$A$44,0),MATCH(U$50,Activo_nvo!$B$39:$E$39,0)),"0") -> 0.2542636403 | V57: 44698.60852 | W57: 0 | X57: 941580 | Y57: 4707896 | Z57: 3766316 | AA57: 14779.21104 | AB57: 0 | AC57: 311325.3409 | AD57: 1556625.382 | AE57: 1245300.041 | AF57: 10587.81228 | AG57: 0 | AH57: 223033.1685 | AI57: 1115164.895 | AJ57: 892131.7263 | AK57: 7966.354284 | AL57: 0 | AM57: 167811.9323 | AN57: 839058.9486 | AO57: 671247.0163 | AP57: 11365.23092 | AQ57: 0 | AR57: 239409.5584 | AS57: 1197046.775 | AT57: 957637.2165
A58: Proyecto de inversión | B58: Mejoramiento de la conectividad de la red de comunicaciones aeronáuticas | C58: SV-SNAR- APROX - A/D | D58: Red | G58: 971786.0891 | R58: =+IFERROR(INDEX(Activo_nvo!$B$40:$E$44,MATCH($C58,Activo_nvo!$A$40:$A$44,0),MATCH(R$50,Activo_nvo!$B$39:$E$39,0)),"0") -> 0.3306414122 | S58: =+IFERROR(INDEX(Activo_nvo!$B$40:$E$44,MATCH($C58,Activo_nvo!$A$40:$A$44,0),MATCH(S$50,Activo_nvo!$B$39:$E$39,0)),"0") -> 0.236871183 | T58: =+IFERROR(INDEX(Activo_nvo!$B$40:$E$44,MATCH($C58,Activo_nvo!$A$40:$A$44,0),MATCH(T$50,Activo_nvo!$B$39:$E$39,0)),"0") -> 0.1782237646 | U58: =+IFERROR(INDEX(Activo_nvo!$B$40:$E$44,MATCH($C58,Activo_nvo!$A$40:$A$44,0),MATCH(U$50,Activo_nvo!$B$39:$E$39,0)),"0") -> 0.2542636403 | V58: 971786.0891 | W58: 0 | X58: 0 | Y58: 0 | Z58: 0 | AA58: 321312.7248 | AB58: 0 | AC58: 0 | AD58: 0 | AE58: 0 | AF58: 230188.1205 | AG58: 0 | AH58: 0 | AI58: 0 | AJ58: 0 | AK58: 173195.3752 | AL58: 0 | AM58: 0 | AN58: 0 | AO58: 0 | AP58: 247089.8686 | AQ58: 0 | AR58: 0 | AS58: 0 | AT58: 0
A59: Proyecto de inversión | B59: Proyecto de Comunicaciones Satelitales VSAT (Mejoramiento de la Conectividad de la Red de Comunicaciones Aeronáuticas de CORPAC S.A.) | C59: SV-SNAR- APROX - A/D | D59: Red | H59: =+J59+L59+N59+P59 -> 17 | I59: =+K59+M59+O59+Q59+O56H136I57:M59I56:Q59H136I57:M59I56:S5I57:M59 ->  | K59: 8197672 | L59: 12 | M59: 13829765 | N59: 5 | O59: 5808872 | R59: =+IFERROR(INDEX(Activo_nvo!$B$40:$E$44,MATCH($C59,Activo_nvo!$A$40:$A$44,0),MATCH(R$50,Activo_nvo!$B$39:$E$39,0)),"0") -> 0.3306414122 | S59: =+IFERROR(INDEX(Activo_nvo!$B$40:$E$44,MATCH($C59,Activo_nvo!$A$40:$A$44,0),MATCH(S$50,Activo_nvo!$B$39:$E$39,0)),"0") -> 0.236871183 | T59: =+IFERROR(INDEX(Activo_nvo!$B$40:$E$44,MATCH($C59,Activo_nvo!$A$40:$A$44,0),MATCH(T$50,Activo_nvo!$B$39:$E$39,0)),"0") -> 0.1782237646 | U59: =+IFERROR(INDEX(Activo_nvo!$B$40:$E$44,MATCH($C59,Activo_nvo!$A$40:$A$44,0),MATCH(U$50,Activo_nvo!$B$39:$E$39,0)),"0") -> 0.2542636403 | V59: 0 | W59: 8197672 | X59: 13829765 | Y59: 5808872 | Z59: 0 | AA59: 0 | AB59: 2710489.846 | AC59: 4572693.029 | AD59: 1920653.641 | AE59: 0 | AF59: 0 | AG59: 1941792.264 | AH59: 3275872.796 | AI59: 1375954.382 | AJ59: 0 | AK59: 0 | AL59: 1461019.965 | AM59: 2464792.782 | AN59: 1035279.036 | AO59: 0 | AP59: 0 | AQ59: 2084369.924 | AR59: 3516406.393 | AS59: 1476984.941 | AT59: 0
A60: Proyecto de inversión | B60: Proyecto de Comunicaciones Satelitales VSAT (Mejoramiento de la Conectividad de la Red de Comunicaciones Aeronáuticas de CORPAC S.A.) II ETAPA | C60: SV-SNAR- APROX - A/D | D60: Red | H60: =+J60+L60+N60+P60 -> 12 | I60: =+K60+M60+O60+Q60 -> 14310000 | O60: 2862000 | P60: 12 | Q60: 11448000 | R60: =+IFERROR(INDEX(Activo_nvo!$B$40:$E$44,MATCH($C60,Activo_nvo!$A$40:$A$44,0),MATCH(R$50,Activo_nvo!$B$39:$E$39,0)),"0") -> 0.3306414122 | S60: =+IFERROR(INDEX(Activo_nvo!$B$40:$E$44,MATCH($C60,Activo_nvo!$A$40:$A$44,0),MATCH(S$50,Activo_nvo!$B$39:$E$39,0)),"0") -> 0.236871183 | T60: =+IFERROR(INDEX(Activo_nvo!$B$40:$E$44,MATCH($C60,Activo_nvo!$A$40:$A$44,0),MATCH(T$50,Activo_nvo!$B$39:$E$39,0)),"0") -> 0.1782237646 | U60: =+IFERROR(INDEX(Activo_nvo!$B$40:$E$44,MATCH($C60,Activo_nvo!$A$40:$A$44,0),MATCH(U$50,Activo_nvo!$B$39:$E$39,0)),"0") -> 0.2542636403 | V60: 0 | W60: 0 | X60: 0 | Y60: 2862000 | Z60: 11448000 | AA60: 0 | AB60: 0 | AC60: 0 | AD60: 946295.7216 | AE60: 3785182.886 | AF60: 0 | AG60: 0 | AH60: 0 | AI60: 677925.3256 | AJ60: 2711701.303 | AK60: 0 | AL60: 0 | AM60: 0 | AN60: 510076.4143 | AO60: 2040305.657 | AP60: 0 | AQ60: 0 | AR60: 0 | AS60: 727702.5384 | AT60: 2910810.154
A61: Proyecto de inversión | B61: Automatización y Modernización de los Servicios de Tránsito Aéreo Red de Radares de Vigilancia Aérea ( a cargo del MTC) | C61: SV-SNAR | D61: Obra | G61: 1035079.305 | H61: 0 | I61: 313738 | K61: 313738 | R61: =+IFERROR(INDEX(Activo_nvo!$B$40:$E$44,MATCH($C61,Activo_nvo!$A$40:$A$44,0),MATCH(R$50,Activo_nvo!$B$39:$E$39,0)),"0") -> 0.5826151085 | S61: =+IFERROR(INDEX(Activo_nvo!$B$40:$E$44,MATCH($C61,Activo_nvo!$A$40:$A$44,0),MATCH(S$50,Activo_nvo!$B$39:$E$39,0)),"0") -> 0.4173848915 | T61: =+IFERROR(INDEX(Activo_nvo!$B$40:$E$44,MATCH($C61,Activo_nvo!$A$40:$A$44,0),MATCH(T$50,Activo_nvo!$B$39:$E$39,0)),"0") -> 0 | U61: =+IFERROR(INDEX(Activo_nvo!$B$40:$E$44,MATCH($C61,Activo_nvo!$A$40:$A$44,0),MATCH(U$50,Activo_nvo!$B$39:$E$39,0)),"0") -> 0 | V61: 1035079.305 | W61: 313738 | X61: 0 | Y61: 0 | Z61: 0 | AA61: 603052.8413 | AB61: 182788.4989 | AC61: 0 | AD61: 0 | AE61: 0 | AF61: 432026.4633 | AG61: 130949.5011 | AH61: 0 | AI61: 0 | AJ61: 0 | AK61: 0 | AL61: 0 | AM61: 0 | AN61: 0 | AO61: 0 | AP61: 0 | AQ61: 0 | AR61: 0 | AS61: 0 | AT61: 0
A62: Proyecto de inversión | B62: Construcción de la nueva torre de control del Aeropuerto de Puerto Maldonado. | C62: SV-SNAR- APROX - A/D | D62: Obra | H62: =+J62+L62+N62+P62 -> 1 | I62: 4050000 | N62: 1 | O62: 4050000 | R62: =+IFERROR(INDEX(Activo_nvo!$B$40:$E$44,MATCH($C62,Activo_nvo!$A$40:$A$44,0),MATCH(R$50,Activo_nvo!$B$39:$E$39,0)),"0") -> 0.3306414122 | S62: =+IFERROR(INDEX(Activo_nvo!$B$40:$E$44,MATCH($C62,Activo_nvo!$A$40:$A$44,0),MATCH(S$50,Activo_nvo!$B$39:$E$39,0)),"0") -> 0.236871183 | T62: =+IFERROR(INDEX(Activo_nvo!$B$40:$E$44,MATCH($C62,Activo_nvo!$A$40:$A$44,0),MATCH(T$50,Activo_nvo!$B$39:$E$39,0)),"0") -> 0.1782237646 | U62: =+IFERROR(INDEX(Activo_nvo!$B$40:$E$44,MATCH($C62,Activo_nvo!$A$40:$A$44,0),MATCH(U$50,Activo_nvo!$B$39:$E$39,0)),"0") -> 0.2542636403 | V62: 0 | W62: 0 | X62: 0 | Y62: 4050000 | Z62: 0 | AA62: 0 | AB62: 0 | AC62: 0 | AD62: 1339097.719 | AE62: 0 | AF62: 0 | AG62: 0 | AH62: 0 | AI62: 959328.291 | AJ62: 0 | AK62: 0 | AL62: 0 | AM62: 0 | AN62: 721806.2467 | AO62: 0 | AP62: 0 | AQ62: 0 | AR62: 0 | AS62: 1029767.743 | AT62: 0
A63: Proyecto de inversión | B63: Construcción de la nueva torre de control del Aeropuerto de Tarapoto. | C63: SV-SNAR- APROX - A/D | D63: Obra | H63: 1 | I63: 4050000 | P63: 1 | Q63: 4050000 | R63: =+IFERROR(INDEX(Activo_nvo!$B$40:$E$44,MATCH($C63,Activo_nvo!$A$40:$A$44,0),MATCH(R$50,Activo_nvo!$B$39:$E$39,0)),"0") -> 0.3306414122 | S63: =+IFERROR(INDEX(Activo_nvo!$B$40:$E$44,MATCH($C63,Activo_nvo!$A$40:$A$44,0),MATCH(S$50,Activo_nvo!$B$39:$E$39,0)),"0") -> 0.236871183 | T63: =+IFERROR(INDEX(Activo_nvo!$B$40:$E$44,MATCH($C63,Activo_nvo!$A$40:$A$44,0),MATCH(T$50,Activo_nvo!$B$39:$E$39,0)),"0") -> 0.1782237646 | U63: =+IFERROR(INDEX(Activo_nvo!$B$40:$E$44,MATCH($C63,Activo_nvo!$A$40:$A$44,0),MATCH(U$50,Activo_nvo!$B$39:$E$39,0)),"0") -> 0.2542636403 | V63: 0 | W63: 0 | X63: 0 | Y63: 0 | Z63: 4050000 | AA63: 0 | AB63: 0 | AC63: 0 | AD63: 0 | AE63: 1339097.719 | AF63: 0 | AG63: 0 | AH63: 0 | AI63: 0 | AJ63: 959328.291 | AK63: 0 | AL63: 0 | AM63: 0 | AN63: 0 | AO63: 721806.2467 | AP63: 0 | AQ63: 0 | AR63: 0 | AS63: 0 | AT63: 1029767.743
A64: Proyecto de inversión | B64: Construcción de la nueva torre de control del Aeropuerto de Iquitos. | C64: SV-SNAR- APROX - A/D | D64: Obra | H64: 1 | I64: 4050000 | O64: 2025000 | P64: 1 | Q64: 2025000 | R64: =+IFERROR(INDEX(Activo_nvo!$B$40:$E$44,MATCH($C64,Activo_nvo!$A$40:$A$44,0),MATCH(R$50,Activo_nvo!$B$39:$E$39,0)),"0") -> 0.3306414122 | S64: =+IFERROR(INDEX(Activo_nvo!$B$40:$E$44,MATCH($C64,Activo_nvo!$A$40:$A$44,0),MATCH(S$50,Activo_nvo!$B$39:$E$39,0)),"0") -> 0.236871183 | T64: =+IFERROR(INDEX(Activo_nvo!$B$40:$E$44,MATCH($C64,Activo_nvo!$A$40:$A$44,0),MATCH(T$50,Activo_nvo!$B$39:$E$39,0)),"0") -> 0.1782237646 | U64: =+IFERROR(INDEX(Activo_nvo!$B$40:$E$44,MATCH($C64,Activo_nvo!$A$40:$A$44,0),MATCH(U$50,Activo_nvo!$B$39:$E$39,0)),"0") -> 0.2542636403 | V64: 0 | W64: 0 | X64: 0 | Y64: 2025000 | Z64: 2025000 | AA64: 0 | AB64: 0 | AC64: 0 | AD64: 669548.8596 | AE64: 669548.8596 | AF64: 0 | AG64: 0 | AH64: 0 | AI64: 479664.1455 | AJ64: 479664.1455 | AK64: 0 | AL64: 0 | AM64: 0 | AN64: 360903.1234 | AO64: 360903.1234 | AP64: 0 | AQ64: 0 | AR64: 0 | AS64: 514883.8715 | AT64: 514883.8715
A65: Proyecto de inversión | B65: Construcción de la torre de control del Aeródromo de Atalaya. | C65: SV-SNAR- APROX - A/D | D65: Obra | H65: 1 | I65: 2160000 | N65: 1 | O65: 2160000 | R65: =+IFERROR(INDEX(Activo_nvo!$B$40:$E$44,MATCH($C65,Activo_nvo!$A$40:$A$44,0),MATCH(R$50,Activo_nvo!$B$39:$E$39,0)),"0") -> 0.3306414122 | S65: =+IFERROR(INDEX(Activo_nvo!$B$40:$E$44,MATCH($C65,Activo_nvo!$A$40:$A$44,0),MATCH(S$50,Activo_nvo!$B$39:$E$39,0)),"0") -> 0.236871183 | T65: =+IFERROR(INDEX(Activo_nvo!$B$40:$E$44,MATCH($C65,Activo_nvo!$A$40:$A$44,0),MATCH(T$50,Activo_nvo!$B$39:$E$39,0)),"0") -> 0.1782237646 | U65: =+IFERROR(INDEX(Activo_nvo!$B$40:$E$44,MATCH($C65,Activo_nvo!$A$40:$A$44,0),MATCH(U$50,Activo_nvo!$B$39:$E$39,0)),"0") -> 0.2542636403 | V65: 0 | W65: 0 | X65: 0 | Y65: 2160000 | Z65: 0 | AA65: 0 | AB65: 0 | AC65: 0 | AD65: 714185.4503 | AE65: 0 | AF65: 0 | AG65: 0 | AH65: 0 | AI65: 511641.7552 | AJ65: 0 | AK65: 0 | AL65: 0 | AM65: 0 | AN65: 384963.3316 | AO65: 0 | AP65: 0 | AQ65: 0 | AR65: 0 | AS65: 549209.463 | AT65: 0
A66: Proyecto de inversión | B66: Construcción de la torre de control del Aeródromo de Huánuco. | C66: SV-SNAR- A/D | D66: Obra | H66: 1 | I66: 2800000 | M66: 560000 | N66: 1 | O66: 2240000 | R66: =+IFERROR(INDEX(Activo_nvo!$B$40:$E$44,MATCH($C66,Activo_nvo!$A$40:$A$44,0),MATCH(R$50,Activo_nvo!$B$39:$E$39,0)),"0") -> 0.4023496883 | S66: =+IFERROR(INDEX(Activo_nvo!$B$40:$E$44,MATCH($C66,Activo_nvo!$A$40:$A$44,0),MATCH(S$50,Activo_nvo!$B$39:$E$39,0)),"0") -> 0.2882429216 | T66: =+IFERROR(INDEX(Activo_nvo!$B$40:$E$44,MATCH($C66,Activo_nvo!$A$40:$A$44,0),MATCH(T$50,Activo_nvo!$B$39:$E$39,0)),"0") -> 0 | U66: =+IFERROR(INDEX(Activo_nvo!$B$40:$E$44,MATCH($C66,Activo_nvo!$A$40:$A$44,0),MATCH(U$50,Activo_nvo!$B$39:$E$39,0)),"0") -> 0.3094073901 | V66: 0 | W66: 0 | X66: 560000 | Y66: 2240000 | Z66: 0 | AA66: 0 | AB66: 0 | AC66: 225315.8254 | AD66: 901263.3018 | AE66: 0 | AF66: 0 | AG66: 0 | AH66: 161416.0361 | AI66: 645664.1443 | AJ66: 0 | AK66: 0 | AL66: 0 | AM66: 0 | AN66: 0 | AO66: 0 | AP66: 0 | AQ66: 0 | AR66: 173268.1385 | AS66: 693072.5539 | AT66: 0
A67: Proyecto de inversión | B67: Construcción torres de control de los Aeropuertos de Jauja, Mazamari | C67: SV-SNAR- APROX - A/D | D67: Obra | H67: 2 | I67: 4320000 | N67: 1 | O67: 2160000 | P67: 1 | Q67: 2160000 | R67: =+IFERROR(INDEX(Activo_nvo!$B$40:$E$44,MATCH($C67,Activo_nvo!$A$40:$A$44,0),MATCH(R$50,Activo_nvo!$B$39:$E$39,0)),"0") -> 0.3306414122 | S67: =+IFERROR(INDEX(Activo_nvo!$B$40:$E$44,MATCH($C67,Activo_nvo!$A$40:$A$44,0),MATCH(S$50,Activo_nvo!$B$39:$E$39,0)),"0") -> 0.236871183 | T67: =+IFERROR(INDEX(Activo_nvo!$B$40:$E$44,MATCH($C67,Activo_nvo!$A$40:$A$44,0),MATCH(T$50,Activo_nvo!$B$39:$E$39,0)),"0") -> 0.1782237646 | U67: =+IFERROR(INDEX(Activo_nvo!$B$40:$E$44,MATCH($C67,Activo_nvo!$A$40:$A$44,0),MATCH(U$50,Activo_nvo!$B$39:$E$39,0)),"0") -> 0.2542636403 | V67: 0 | W67: 0 | X67: 0 | Y67: 2160000 | Z67: 2160000 | AA67: 0 | AB67: 0 | AC67: 0 | AD67: 714185.4503 | AE67: 714185.4503 | AF67: 0 | AG67: 0 | AH67: 0 | AI67: 511641.7552 | AJ67: 511641.7552 | AK67: 0 | AL67: 0 | AM67: 0 | AN67: 384963.3316 | AO67: 384963.3316 | AP67: 0 | AQ67: 0 | AR67: 0 | AS67: 549209.463 | AT67: 549209.463
A68: Equipos de comunicaciones | C68: SV-SNAR- APROX - A/D | D68: Equipos | G68: 941160.3397 | R68: =+IFERROR(INDEX(Activo_nvo!$B$40:$E$44,MATCH($C68,Activo_nvo!$A$40:$A$44,0),MATCH(R$50,Activo_nvo!$B$39:$E$39,0)),"0") -> 0.3306414122 | S68: =+IFERROR(INDEX(Activo_nvo!$B$40:$E$44,MATCH($C68,Activo_nvo!$A$40:$A$44,0),MATCH(S$50,Activo_nvo!$B$39:$E$39,0)),"0") -> 0.236871183 | T68: =+IFERROR(INDEX(Activo_nvo!$B$40:$E$44,MATCH($C68,Activo_nvo!$A$40:$A$44,0),MATCH(T$50,Activo_nvo!$B$39:$E$39,0)),"0") -> 0.1782237646 | U68: =+IFERROR(INDEX(Activo_nvo!$B$40:$E$44,MATCH($C68,Activo_nvo!$A$40:$A$44,0),MATCH(U$50,Activo_nvo!$B$39:$E$39,0)),"0") -> 0.2542636403 | V68: 941160.3397 | W68: 0 | X68: 0 | Y68: 0 | Z68: 0 | AA68: 311186.5838 | AB68: 0 | AC68: 0 | AD68: 0 | AE68: 0 | AF68: 222933.763 | AG68: 0 | AH68: 0 | AI68: 0 | AJ68: 0 | AK68: 167737.1389 | AL68: 0 | AM68: 0 | AN68: 0 | AO68: 0 | AP68: 239302.854 | AQ68: 0 | AR68: 0 | AS68: 0 | AT68: 0
A69: Equipos de comunicaciones | B69: Equipos de radio VHF TWR -Dual Nivel nacional | C69: SV-SNAR- APROX - A/D | D69: Equipos | H69: =+J69+L69+N69+P69 -> 68 | I69: 6903281 | K69: 2796110 | L69: 43 | M69: 1864073 | N69: 15 | O69: 579773 | P69: 10 | Q69: 1663325 | R69: =+IFERROR(INDEX(Activo_nvo!$B$40:$E$44,MATCH($C69,Activo_nvo!$A$40:$A$44,0),MATCH(R$50,Activo_nvo!$B$39:$E$39,0)),"0") -> 0.3306414122 | S69: =+IFERROR(INDEX(Activo_nvo!$B$40:$E$44,MATCH($C69,Activo_nvo!$A$40:$A$44,0),MATCH(S$50,Activo_nvo!$B$39:$E$39,0)),"0") -> 0.236871183 | T69: =+IFERROR(INDEX(Activo_nvo!$B$40:$E$44,MATCH($C69,Activo_nvo!$A$40:$A$44,0),MATCH(T$50,Activo_nvo!$B$39:$E$39,0)),"0") -> 0.1782237646 | U69: =+IFERROR(INDEX(Activo_nvo!$B$40:$E$44,MATCH($C69,Activo_nvo!$A$40:$A$44,0),MATCH(U$50,Activo_nvo!$B$39:$E$39,0)),"0") -> 0.2542636403 | V69: 0 | W69: 2796110 | X69: 1864073 | Y69: 579773 | Z69: 1663325 | AA69: 0 | AB69: 924509.759 | AC69: 616339.7291 | AD69: 191696.9635 | AE69: 549964.1269 | AF69: 0 | AG69: 662317.8834 | AH69: 441545.1766 | AI69: 137331.5164 | AJ69: 393993.7604 | AK69: 0 | AL69: 498333.2505 | AM69: 332222.1076 | AN69: 103329.3267 | AO69: 296444.0433 | AP69: 0 | AQ69: 710949.1072 | AR69: 473965.9867 | AS69: 147415.1935 | AT69: 422923.0694
A70: Equipos de comunicaciones | B70: Sistemas de grabaciòn Nivel nacional. | C70: SV-SNAR- APROX - A/D | D70: Equipos | E70: 10 | F70: =1169100/2.6 -> 449653.8462 | H70: 20 | I70: 3367905 | K70: 190550 | L70: 10 | M70: 1714950 | P70: 10 | Q70: 1462405 | R70: =+IFERROR(INDEX(Activo_nvo!$B$40:$E$44,MATCH($C70,Activo_nvo!$A$40:$A$44,0),MATCH(R$50,Activo_nvo!$B$39:$E$39,0)),"0") -> 0.3306414122 | S70: =+IFERROR(INDEX(Activo_nvo!$B$40:$E$44,MATCH($C70,Activo_nvo!$A$40:$A$44,0),MATCH(S$50,Activo_nvo!$B$39:$E$39,0)),"0") -> 0.236871183 | T70: =+IFERROR(INDEX(Activo_nvo!$B$40:$E$44,MATCH($C70,Activo_nvo!$A$40:$A$44,0),MATCH(T$50,Activo_nvo!$B$39:$E$39,0)),"0") -> 0.1782237646 | U70: =+IFERROR(INDEX(Activo_nvo!$B$40:$E$44,MATCH($C70,Activo_nvo!$A$40:$A$44,0),MATCH(U$50,Activo_nvo!$B$39:$E$39,0)),"0") -> 0.2542636403 | V70: 0 | W70: 190550 | X70: 1714950 | Y70: 0 | Z70: 1462405 | AA70: 0 | AB70: 63003.72109 | AC70: 567033.4898 | AD70: 0 | AE70: 483531.6543 | AF70: 0 | AG70: 45135.80391 | AH70: 406222.2352 | AI70: 0 | AJ70: 346401.6023 | AK70: 0 | AL70: 33960.53835 | AM70: 305644.8451 | AN70: 0 | AO70: 260635.3245 | AP70: 0 | AQ70: 48449.93665 | AR70: 436049.4299 | AS70: 0 | AT70: 371836.4188
A71: Equipos de comunicaciones | B71: Sistemas ATIS (Lima, Cuzco, Arequipa, Pucallpa, Chiclayo y Tarapoto). | C71: A/D | D71: Equipos | H71: 6 | I71: 4128103 | K71: 2476862 | L71: 6 | M71: 1651241 | R71: =+IFERROR(INDEX(Activo_nvo!$B$40:$E$44,MATCH($C71,Activo_nvo!$A$40:$A$44,0),MATCH(R$50,Activo_nvo!$B$39:$E$39,0)),"0") -> 0 | S71: =+IFERROR(INDEX(Activo_nvo!$B$40:$E$44,MATCH($C71,Activo_nvo!$A$40:$A$44,0),MATCH(S$50,Activo_nvo!$B$39:$E$39,0)),"0") -> 0 | T71: =+IFERROR(INDEX(Activo_nvo!$B$40:$E$44,MATCH($C71,Activo_nvo!$A$40:$A$44,0),MATCH(T$50,Activo_nvo!$B$39:$E$39,0)),"0") -> 0 | U71: =+IFERROR(INDEX(Activo_nvo!$B$40:$E$44,MATCH($C71,Activo_nvo!$A$40:$A$44,0),MATCH(U$50,Activo_nvo!$B$39:$E$39,0)),"0") -> 1 | V71: 0 | W71: 2476862 | X71: 1651241 | Y71: 0 | Z71: 0 | AA71: 0 | AB71: 0 | AC71: 0 | AD71: 0 | AE71: 0 | AF71: 0 | AG71: 0 | AH71: 0 | AI71: 0 | AJ71: 0 | AK71: 0 | AL71: 0 | AM71: 0 | AN71: 0 | AO71: 0 | AP71: 0 | AQ71: 2476862 | AR71: 1651241 | AS71: 0 | AT71: 0
A72: Equipos de comunicaciones | B72: Equipos HF tierra-aire | C72: SV-SNAR- APROX - A/D | D72: Equipos | H72: 44 | I72: 9976744 | L72: 11 | M72: 4386816 | N72: 13 | O72: =1050000+2924544 -> 3974544 | P72: 20 | Q72: =807692*2 -> 1615384 | R72: =+IFERROR(INDEX(Activo_nvo!$B$40:$E$44,MATCH($C72,Activo_nvo!$A$40:$A$44,0),MATCH(R$50,Activo_nvo!$B$39:$E$39,0)),"0") -> 0.3306414122 | S72: =+IFERROR(INDEX(Activo_nvo!$B$40:$E$44,MATCH($C72,Activo_nvo!$A$40:$A$44,0),MATCH(S$50,Activo_nvo!$B$39:$E$39,0)),"0") -> 0.236871183 | T72: =+IFERROR(INDEX(Activo_nvo!$B$40:$E$44,MATCH($C72,Activo_nvo!$A$40:$A$44,0),MATCH(T$50,Activo_nvo!$B$39:$E$39,0)),"0") -> 0.1782237646 | U72: =+IFERROR(INDEX(Activo_nvo!$B$40:$E$44,MATCH($C72,Activo_nvo!$A$40:$A$44,0),MATCH(U$50,Activo_nvo!$B$39:$E$39,0)),"0") -> 0.2542636403 | V72: 0 | W72: 0 | X72: 4386816 | Y72: 3974544 | Z72: 1615384 | AA72: 0 | AB72: 0 | AC72: 1450463.037 | AD72: 1314148.841 | AE72: 534112.8469 | AF72: 0 | AG72: 0 | AH72: 1039110.295 | AI72: 941454.939 | AJ72: 382637.919 | AK72: 0 | AL72: 0 | AM72: 781834.8622 | AN72: 708358.1943 | AO72: 287899.8178 | AP72: 0 | AQ72: 0 | AR72: 1115407.805 | AS72: 1010582.026 | AT72: 410733.4163
A73: Equipos de comunicaciones | B73: Terminales AMHS | C73: SV-SNAR- APROX - A/D | D73: Equipos | H73: 100 | I73: 685389 | L73: 40 | M73: 228461 | N73: 20 | O73: 228464 | P73: 40 | Q73: =114232*2 -> 228464 | R73: =+IFERROR(INDEX(Activo_nvo!$B$40:$E$44,MATCH($C73,Activo_nvo!$A$40:$A$44,0),MATCH(R$50,Activo_nvo!$B$39:$E$39,0)),"0") -> 0.3306414122 | S73: =+IFERROR(INDEX(Activo_nvo!$B$40:$E$44,MATCH($C73,Activo_nvo!$A$40:$A$44,0),MATCH(S$50,Activo_nvo!$B$39:$E$39,0)),"0") -> 0.236871183 | T73: =+IFERROR(INDEX(Activo_nvo!$B$40:$E$44,MATCH($C73,Activo_nvo!$A$40:$A$44,0),MATCH(T$50,Activo_nvo!$B$39:$E$39,0)),"0") -> 0.1782237646 | U73: =+IFERROR(INDEX(Activo_nvo!$B$40:$E$44,MATCH($C73,Activo_nvo!$A$40:$A$44,0),MATCH(U$50,Activo_nvo!$B$39:$E$39,0)),"0") -> 0.2542636403 | V73: 0 | W73: 0 | X73: 228461 | Y73: 228464 | Z73: 228464 | AA73: 0 | AB73: 0 | AC73: 75538.66766 | AD73: 75539.65959 | AE73: 75539.65959 | AF73: 0 | AG73: 0 | AH73: 54115.82733 | AI73: 54116.53794 | AJ73: 54116.53794 | AK73: 0 | AL73: 0 | AM73: 40717.17949 | AN73: 40717.71416 | AO73: 40717.71416 | AP73: 0 | AQ73: 0 | AR73: 58089.32552 | AS73: 58090.08831 | AT73: 58090.08831
A74: Equipos de comunicaciones | B74: Renovación central de canales orales ATS | C74: SV-SNAR- APROX - A/D | D74: Equipos | H74: 1 | I74: 2937600 | L74: 0.1 | M74: 293760 | N74: 0.9 | O74: 2643840 | R74: =+IFERROR(INDEX(Activo_nvo!$B$40:$E$44,MATCH($C74,Activo_nvo!$A$40:$A$44,0),MATCH(R$50,Activo_nvo!$B$39:$E$39,0)),"0") -> 0.3306414122 | S74: =+IFERROR(INDEX(Activo_nvo!$B$40:$E$44,MATCH($C74,Activo_nvo!$A$40:$A$44,0),MATCH(S$50,Activo_nvo!$B$39:$E$39,0)),"0") -> 0.236871183 | T74: =+IFERROR(INDEX(Activo_nvo!$B$40:$E$44,MATCH($C74,Activo_nvo!$A$40:$A$44,0),MATCH(T$50,Activo_nvo!$B$39:$E$39,0)),"0") -> 0.1782237646 | U74: =+IFERROR(INDEX(Activo_nvo!$B$40:$E$44,MATCH($C74,Activo_nvo!$A$40:$A$44,0),MATCH(U$50,Activo_nvo!$B$39:$E$39,0)),"0") -> 0.2542636403 | V74: 0 | W74: 0 | X74: 293760 | Y74: 2643840 | Z74: 0 | AA74: 0 | AB74: 0 | AC74: 97129.22124 | AD74: 874162.9911 | AE74: 0 | AF74: 0 | AG74: 0 | AH74: 69583.27871 | AI74: 626249.5084 | AJ74: 0 | AK74: 0 | AL74: 0 | AM74: 52355.0131 | AN74: 471195.1179 | AO74: 0 | AP74: 0 | AQ74: 0 | AR74: 74692.48696 | AS74: 672232.3827 | AT74: 0
A75: Equipos de comunicaciones | B75: Interfase para sistemas AMHS | C75: SV-SNAR- APROX - A/D | D75: Equipos | H75: 1 | I75: 289935 | L75: 0.1 | M75: 30251 | N75: 0.9 | O75: 259684 | R75: =+IFERROR(INDEX(Activo_nvo!$B$40:$E$44,MATCH($C75,Activo_nvo!$A$40:$A$44,0),MATCH(R$50,Activo_nvo!$B$39:$E$39,0)),"0") -> 0.3306414122 | S75: =+IFERROR(INDEX(Activo_nvo!$B$40:$E$44,MATCH($C75,Activo_nvo!$A$40:$A$44,0),MATCH(S$50,Activo_nvo!$B$39:$E$39,0)),"0") -> 0.236871183 | T75: =+IFERROR(INDEX(Activo_nvo!$B$40:$E$44,MATCH($C75,Activo_nvo!$A$40:$A$44,0),MATCH(T$50,Activo_nvo!$B$39:$E$39,0)),"0") -> 0.1782237646 | U75: =+IFERROR(INDEX(Activo_nvo!$B$40:$E$44,MATCH($C75,Activo_nvo!$A$40:$A$44,0),MATCH(U$50,Activo_nvo!$B$39:$E$39,0)),"0") -> 0.2542636403 | V75: 0 | W75: 0 | X75: 30251 | Y75: 259684 | Z75: 0 | AA75: 0 | AB75: 0 | AC75: 10002.23336 | AD75: 85862.28448 | AE75: 0 | AF75: 0 | AG75: 0 | AH75: 7165.590156 | AI75: 61511.65628 | AJ75: 0 | AK75: 0 | AL75: 0 | AM75: 5391.447104 | AN75: 46281.86009 | AO75: 0 | AP75: 0 | AQ75: 0 | AR75: 7691.729381 | AS75: 66028.19916 | AT75: 0
A76: Equipos de comunicaciones | B76: Equipos diversosNivel Nacional. | C76: SV-SNAR- APROX - A/D | D76: Equipos | F76: =541900/2.6 -> 208423.0769 | H76: Varios | I76: =+K76+M76+O76+Q76 -> 3441718 | K76: 741718 | M76: 675000 | O76: 675000 | Q76: =675000+675000 -> 1350000 | R76: =+IFERROR(INDEX(Activo_nvo!$B$40:$E$44,MATCH($C76,Activo_nvo!$A$40:$A$44,0),MATCH(R$50,Activo_nvo!$B$39:$E$39,0)),"0") -> 0.3306414122 | S76: =+IFERROR(INDEX(Activo_nvo!$B$40:$E$44,MATCH($C76,Activo_nvo!$A$40:$A$44,0),MATCH(S$50,Activo_nvo!$B$39:$E$39,0)),"0") -> 0.236871183 | T76: =+IFERROR(INDEX(Activo_nvo!$B$40:$E$44,MATCH($C76,Activo_nvo!$A$40:$A$44,0),MATCH(T$50,Activo_nvo!$B$39:$E$39,0)),"0") -> 0.1782237646 | U76: =+IFERROR(INDEX(Activo_nvo!$B$40:$E$44,MATCH($C76,Activo_nvo!$A$40:$A$44,0),MATCH(U$50,Activo_nvo!$B$39:$E$39,0)),"0") -> 0.2542636403 | V76: 0 | W76: 741718 | X76: 675000 | Y76: 675000 | Z76: 1350000 | AA76: 0 | AB76: 245242.6869 | AC76: 223182.9532 | AD76: 223182.9532 | AE76: 446365.9064 | AF76: 0 | AG76: 175691.6201 | AH76: 159888.0485 | AI76: 159888.0485 | AJ76: 319776.097 | AK76: 0 | AL76: 132191.7742 | AM76: 120301.0411 | AN76: 120301.0411 | AO76: 240602.0822 | AP76: 0 | AQ76: 188591.9187 | AR76: 171627.9572 | AS76: 171627.9572 | AT76: 343255.9143
A77: Equipo de electricidad | C77: SV-SNAR- APROX - A/D | D77: Sistemas | G77: 420994.7658 | R77: =+IFERROR(INDEX(Activo_nvo!$B$40:$E$44,MATCH($C77,Activo_nvo!$A$40:$A$44,0),MATCH(R$50,Activo_nvo!$B$39:$E$39,0)),"0") -> 0.3306414122 | S77: =+IFERROR(INDEX(Activo_nvo!$B$40:$E$44,MATCH($C77,Activo_nvo!$A$40:$A$44,0),MATCH(S$50,Activo_nvo!$B$39:$E$39,0)),"0") -> 0.236871183 | T77: =+IFERROR(INDEX(Activo_nvo!$B$40:$E$44,MATCH($C77,Activo_nvo!$A$40:$A$44,0),MATCH(T$50,Activo_nvo!$B$39:$E$39,0)),"0") -> 0.1782237646 | U77: =+IFERROR(INDEX(Activo_nvo!$B$40:$E$44,MATCH($C77,Activo_nvo!$A$40:$A$44,0),MATCH(U$50,Activo_nvo!$B$39:$E$39,0)),"0") -> 0.2542636403 | V77: 420994.7658 | W77: 0 | X77: 0 | Y77: 0 | Z77: 0 | AA77: 139198.3039 | AB77: 0 | AC77: 0 | AD77: 0 | AE77: 0 | AF77: 99721.52819 | AG77: 0 | AH77: 0 | AI77: 0 | AJ77: 0 | AK77: 75031.27204 | AL77: 0 | AM77: 0 | AN77: 0 | AO77: 0 | AP77: 107043.6617 | AQ77: 0 | AR77: 0 | AS77: 0 | AT77: 0
A78: Equipo de electricidad | B78: Mejoramiento sistema eléctrico Edificio Radar | C78: SV-SNAR- APROX - A/D | D78: Sistemas | H78: =+J78+L78+N78+P78 -> 1 | I78: 261892 | L78: 1 | M78: 261892 | R78: =+IFERROR(INDEX(Activo_nvo!$B$40:$E$44,MATCH($C78,Activo_nvo!$A$40:$A$44,0),MATCH(R$50,Activo_nvo!$B$39:$E$39,0)),"0") -> 0.3306414122 | S78: =+IFERROR(INDEX(Activo_nvo!$B$40:$E$44,MATCH($C78,Activo_nvo!$A$40:$A$44,0),MATCH(S$50,Activo_nvo!$B$39:$E$39,0)),"0") -> 0.236871183 | T78: =+IFERROR(INDEX(Activo_nvo!$B$40:$E$44,MATCH($C78,Activo_nvo!$A$40:$A$44,0),MATCH(T$50,Activo_nvo!$B$39:$E$39,0)),"0") -> 0.1782237646 | U78: =+IFERROR(INDEX(Activo_nvo!$B$40:$E$44,MATCH($C78,Activo_nvo!$A$40:$A$44,0),MATCH(U$50,Activo_nvo!$B$39:$E$39,0)),"0") -> 0.2542636403 | V78: 0 | W78: 0 | X78: 261892 | Y78: 0 | Z78: 0 | AA78: 0 | AB78: 0 | AC78: 86592.34071 | AD78: 0 | AE78: 0 | AF78: 0 | AG78: 0 | AH78: 62034.66785 | AI78: 0 | AJ78: 0 | AK78: 0 | AL78: 0 | AM78: 46675.37816 | AN78: 0 | AO78: 0 | AP78: 0 | AQ78: 0 | AR78: 66589.61327 | AS78: 0 | AT78: 0
A79: Equipo de electricidad | B79: Instalación de sistemas APAPI (Chachapoyas y Atalaya). | C79: APROX - A/D | D79: Sistemas | H79: 2 | I79: 180000 | K79: 54000 | L79: 2 | M79: 126000 | R79: =+IFERROR(INDEX(Activo_nvo!$B$40:$E$44,MATCH($C79,Activo_nvo!$A$40:$A$44,0),MATCH(R$50,Activo_nvo!$B$39:$E$39,0)),"0") -> 0 | S79: =+IFERROR(INDEX(Activo_nvo!$B$40:$E$44,MATCH($C79,Activo_nvo!$A$40:$A$44,0),MATCH(S$50,Activo_nvo!$B$39:$E$39,0)),"0") -> 0 | T79: =+IFERROR(INDEX(Activo_nvo!$B$40:$E$44,MATCH($C79,Activo_nvo!$A$40:$A$44,0),MATCH(T$50,Activo_nvo!$B$39:$E$39,0)),"0") -> 0.4120900692 | U79: =+IFERROR(INDEX(Activo_nvo!$B$40:$E$44,MATCH($C79,Activo_nvo!$A$40:$A$44,0),MATCH(U$50,Activo_nvo!$B$39:$E$39,0)),"0") -> 0.5879099308 | V79: 0 | W79: 54000 | X79: 126000 | Y79: 0 | Z79: 0 | AA79: 0 | AB79: 0 | AC79: 0 | AD79: 0 | AE79: 0 | AF79: 0 | AG79: 0 | AH79: 0 | AI79: 0 | AJ79: 0 | AK79: 0 | AL79: 22252.86374 | AM79: 51923.34872 | AN79: 0 | AO79: 0 | AP79: 0 | AQ79: 31747.13626 | AR79: 74076.65128 | AS79: 0 | AT79: 0
A80: Equipo de electricidad | B80: Sistemas UPS para Torres de Control de aeropuertos controlados Nivel nacional. | C80: SV-SNAR- APROX - A/D | D80: Sistemas | H80: 18 | I80: 1080000 | M80: 108000 | N80: 18 | O80: 972000 | R80: =+IFERROR(INDEX(Activo_nvo!$B$40:$E$44,MATCH($C80,Activo_nvo!$A$40:$A$44,0),MATCH(R$50,Activo_nvo!$B$39:$E$39,0)),"0") -> 0.3306414122 | S80: =+IFERROR(INDEX(Activo_nvo!$B$40:$E$44,MATCH($C80,Activo_nvo!$A$40:$A$44,0),MATCH(S$50,Activo_nvo!$B$39:$E$39,0)),"0") -> 0.236871183 | T80: =+IFERROR(INDEX(Activo_nvo!$B$40:$E$44,MATCH($C80,Activo_nvo!$A$40:$A$44,0),MATCH(T$50,Activo_nvo!$B$39:$E$39,0)),"0") -> 0.1782237646 | U80: =+IFERROR(INDEX(Activo_nvo!$B$40:$E$44,MATCH($C80,Activo_nvo!$A$40:$A$44,0),MATCH(U$50,Activo_nvo!$B$39:$E$39,0)),"0") -> 0.2542636403 | V80: 0 | W80: 0 | X80: 108000 | Y80: 972000 | Z80: 0 | AA80: 0 | AB80: 0 | AC80: 35709.27251 | AD80: 321383.4526 | AE80: 0 | AF80: 0 | AG80: 0 | AH80: 25582.08776 | AI80: 230238.7898 | AJ80: 0 | AK80: 0 | AL80: 0 | AM80: 19248.16658 | AN80: 173233.4992 | AO80: 0 | AP80: 0 | AQ80: 0 | AR80: 27460.47315 | AS80: 247144.2583 | AT80: 0
A81: Equipo de electricidad | B81: Sistemas UPS para equipos de comunicaciones a nivel nacional | C81: SV-SNAR- APROX - A/D | D81: Sistemas | H81: 34 | I81: 704502 | K81: 29647 | L81: 14 | M81: 266820 | N81: 10 | O81: 204018 | P81: 10 | Q81: 204017 | R81: =+IFERROR(INDEX(Activo_nvo!$B$40:$E$44,MATCH($C81,Activo_nvo!$A$40:$A$44,0),MATCH(R$50,Activo_nvo!$B$39:$E$39,0)),"0") -> 0.3306414122 | S81: =+IFERROR(INDEX(Activo_nvo!$B$40:$E$44,MATCH($C81,Activo_nvo!$A$40:$A$44,0),MATCH(S$50,Activo_nvo!$B$39:$E$39,0)),"0") -> 0.236871183 | T81: =+IFERROR(INDEX(Activo_nvo!$B$40:$E$44,MATCH($C81,Activo_nvo!$A$40:$A$44,0),MATCH(T$50,Activo_nvo!$B$39:$E$39,0)),"0") -> 0.1782237646 | U81: =+IFERROR(INDEX(Activo_nvo!$B$40:$E$44,MATCH($C81,Activo_nvo!$A$40:$A$44,0),MATCH(U$50,Activo_nvo!$B$39:$E$39,0)),"0") -> 0.2542636403 | V81: 0 | W81: 29647 | X81: 266820 | Y81: 204018 | Z81: 204017 | AA81: 0 | AB81: 9802.525946 | AC81: 88221.74159 | AD81: 67456.79963 | AE81: 67456.46898 | AF81: 0 | AG81: 7022.519961 | AH81: 63201.96904 | AI81: 48325.98501 | AJ81: 48325.74813 | AK81: 0 | AL81: 5283.79995 | AM81: 47553.66488 | AN81: 36360.85601 | AO81: 36360.67779 | AP81: 0 | AQ81: 7538.154143 | AR81: 67842.62449 | AS81: 51874.35936 | AT81: 51874.10509
A82: Equipo de electricidad | B82: Equipos de aire acondicionado para estaciones Nivel nacional | C82: SV-SNAR- APROX - A/D | D82: Equipos | E82: 14 | F82: =104235/2.6 -> 40090.38462 | H82: 488 | I82: 7088017 | J82: 53 | K82: 500017 | L82: 110 | M82: 1620000 | N82: 105 | O82: 1674000 | P82: 220 | Q82: 3294000 | R82: =+IFERROR(INDEX(Activo_nvo!$B$40:$E$44,MATCH($C82,Activo_nvo!$A$40:$A$44,0),MATCH(R$50,Activo_nvo!$B$39:$E$39,0)),"0") -> 0.3306414122 | S82: =+IFERROR(INDEX(Activo_nvo!$B$40:$E$44,MATCH($C82,Activo_nvo!$A$40:$A$44,0),MATCH(S$50,Activo_nvo!$B$39:$E$39,0)),"0") -> 0.236871183 | T82: =+IFERROR(INDEX(Activo_nvo!$B$40:$E$44,MATCH($C82,Activo_nvo!$A$40:$A$44,0),MATCH(T$50,Activo_nvo!$B$39:$E$39,0)),"0") -> 0.1782237646 | U82: =+IFERROR(INDEX(Activo_nvo!$B$40:$E$44,MATCH($C82,Activo_nvo!$A$40:$A$44,0),MATCH(U$50,Activo_nvo!$B$39:$E$39,0)),"0") -> 0.2542636403 | V82: 0 | W82: 500017 | X82: 1620000 | Y82: 1674000 | Z82: 3294000 | AA82: 0 | AB82: 165326.327 | AC82: 535639.0877 | AD82: 553493.724 | AE82: 1089132.812 | AF82: 0 | AG82: 118439.6183 | AH82: 383731.3164 | AI82: 396522.3603 | AJ82: 780253.6767 | AK82: 0 | AL82: 89114.91211 | AM82: 288722.4987 | AN82: 298346.582 | AO82: 587069.0807 | AP82: 0 | AQ82: 127136.1426 | AR82: 411907.0972 | AS82: 425637.3338 | AT82: 837544.431
A83: Equipo de electricidad | B83: Luces de borde pista renovación Jorge Chávez | C83: APROX - A/D | D83: Sistemas | H83: 0 | I83: 124382 | K83: 124382 | R83: =+IFERROR(INDEX(Activo_nvo!$B$40:$E$44,MATCH($C83,Activo_nvo!$A$40:$A$44,0),MATCH(R$50,Activo_nvo!$B$39:$E$39,0)),"0") -> 0 | S83: =+IFERROR(INDEX(Activo_nvo!$B$40:$E$44,MATCH($C83,Activo_nvo!$A$40:$A$44,0),MATCH(S$50,Activo_nvo!$B$39:$E$39,0)),"0") -> 0 | T83: =+IFERROR(INDEX(Activo_nvo!$B$40:$E$44,MATCH($C83,Activo_nvo!$A$40:$A$44,0),MATCH(T$50,Activo_nvo!$B$39:$E$39,0)),"0") -> 0.4120900692 | U83: =+IFERROR(INDEX(Activo_nvo!$B$40:$E$44,MATCH($C83,Activo_nvo!$A$40:$A$44,0),MATCH(U$50,Activo_nvo!$B$39:$E$39,0)),"0") -> 0.5879099308 | V83: 0 | W83: 124382 | X83: 0 | Y83: 0 | Z83: 0 | AA83: 0 | AB83: 0 | AC83: 0 | AD83: 0 | AE83: 0 | AF83: 0 | AG83: 0 | AH83: 0 | AI83: 0 | AJ83: 0 | AK83: 0 | AL83: 51256.58699 | AM83: 0 | AN83: 0 | AO83: 0 | AP83: 0 | AQ83: 73125.41301 | AR83: 0 | AS83: 0 | AT83: 0
A84: Equipo de electricidad | B84: Estudios, equipos diversos,obras e instalación Nivel nacional. | C84: SV-SNAR- APROX - A/D | D84: Equipos | F84: 302112 | H84: Varios | I84: =+K84+M84+O84+Q84 -> 2168514 | K84: 1205114 | M84: 383400 | O84: 310000 | Q84: 270000 | R84: =+IFERROR(INDEX(Activo_nvo!$B$40:$E$44,MATCH($C84,Activo_nvo!$A$40:$A$44,0),MATCH(R$50,Activo_nvo!$B$39:$E$39,0)),"0") -> 0.3306414122 | S84: =+IFERROR(INDEX(Activo_nvo!$B$40:$E$44,MATCH($C84,Activo_nvo!$A$40:$A$44,0),MATCH(S$50,Activo_nvo!$B$39:$E$39,0)),"0") -> 0.236871183 | T84: =+IFERROR(INDEX(Activo_nvo!$B$40:$E$44,MATCH($C84,Activo_nvo!$A$40:$A$44,0),MATCH(T$50,Activo_nvo!$B$39:$E$39,0)),"0") -> 0.1782237646 | U84: =+IFERROR(INDEX(Activo_nvo!$B$40:$E$44,MATCH($C84,Activo_nvo!$A$40:$A$44,0),MATCH(U$50,Activo_nvo!$B$39:$E$39,0)),"0") -> 0.2542636403 | V84: 0 | W84: 1205114 | X84: 383400 | Y84: 310000 | Z84: 270000 | AA84: 0 | AB84: 398460.5948 | AC84: 126767.9174 | AD84: 102498.8378 | AE84: 89273.18128 | AF84: 0 | AG84: 285456.7788 | AH84: 90816.41155 | AI84: 73430.06672 | AJ84: 63955.2194 | AK84: 0 | AL84: 214779.9539 | AM84: 68330.99136 | AN84: 55249.36703 | AO84: 48120.41645 | AP84: 0 | AQ84: 306416.6726 | AR84: 97484.67967 | AS84: 78821.72848 | AT84: 68651.18287
A85: Equipo de radioayudas | C85: APROX - A/D | D85: Sistemas | G85: 1306753.66 | R85: =+IFERROR(INDEX(Activo_nvo!$B$40:$E$44,MATCH($C85,Activo_nvo!$A$40:$A$44,0),MATCH(R$50,Activo_nvo!$B$39:$E$39,0)),"0") -> 0 | S85: =+IFERROR(INDEX(Activo_nvo!$B$40:$E$44,MATCH($C85,Activo_nvo!$A$40:$A$44,0),MATCH(S$50,Activo_nvo!$B$39:$E$39,0)),"0") -> 0 | T85: =+IFERROR(INDEX(Activo_nvo!$B$40:$E$44,MATCH($C85,Activo_nvo!$A$40:$A$44,0),MATCH(T$50,Activo_nvo!$B$39:$E$39,0)),"0") -> 0.4120900692 | U85: =+IFERROR(INDEX(Activo_nvo!$B$40:$E$44,MATCH($C85,Activo_nvo!$A$40:$A$44,0),MATCH(U$50,Activo_nvo!$B$39:$E$39,0)),"0") -> 0.5879099308 | V85: 1306753.66 | W85: 0 | X85: 0 | Y85: 0 | Z85: 0 | AA85: 0 | AB85: 0 | AC85: 0 | AD85: 0 | AE85: 0 | AF85: 0 | AG85: 0 | AH85: 0 | AI85: 0 | AJ85: 0 | AK85: 538500.2062 | AL85: 0 | AM85: 0 | AN85: 0 | AO85: 0 | AP85: 768253.4538 | AQ85: 0 | AR85: 0 | AS85: 0 | AT85: 0
A86: Equipo de radioayudas | B86: Adquisición Sistemas VOR/DME (Asia). | C86: APROX - A/D | D86: Sistemas | H86: =+J86+L86+N86+P86 -> 2 | I86: =+K86+M86+O86+Q86 -> 4222583 | K86: 1689033 | L86: 2 | M86: 2533550 | R86: =+IFERROR(INDEX(Activo_nvo!$B$40:$E$44,MATCH($C86,Activo_nvo!$A$40:$A$44,0),MATCH(R$50,Activo_nvo!$B$39:$E$39,0)),"0") -> 0 | S86: =+IFERROR(INDEX(Activo_nvo!$B$40:$E$44,MATCH($C86,Activo_nvo!$A$40:$A$44,0),MATCH(S$50,Activo_nvo!$B$39:$E$39,0)),"0") -> 0 | T86: =+IFERROR(INDEX(Activo_nvo!$B$40:$E$44,MATCH($C86,Activo_nvo!$A$40:$A$44,0),MATCH(T$50,Activo_nvo!$B$39:$E$39,0)),"0") -> 0.4120900692 | U86: =+IFERROR(INDEX(Activo_nvo!$B$40:$E$44,MATCH($C86,Activo_nvo!$A$40:$A$44,0),MATCH(U$50,Activo_nvo!$B$39:$E$39,0)),"0") -> 0.5879099308 | V86: 0 | W86: 1689033 | X86: 2533550 | Y86: 0 | Z86: 0 | AA86: 0 | AB86: 0 | AC86: 0 | AD86: 0 | AE86: 0 | AF86: 0 | AG86: 0 | AH86: 0 | AI86: 0 | AJ86: 0 | AK86: 0 | AL86: 696033.7259 | AM86: 1044050.795 | AN86: 0 | AO86: 0 | AP86: 0 | AQ86: 992999.2741 | AR86: 1489499.205 | AS86: 0 | AT86: 0
A87: Equipo de radioayudas | B87: Renovación de Sistemas de Radioayudas: | C87: APROX - A/D | D87: Sistemas | H87: =+J87+L87+N87+P87 -> 20 | I87: =+K87+M87+O87+Q87 -> 37877188 | K87: 7796309 | L87: 7 | M87: 7796309 | N87: 8 | O87: 3898155 | P87: 5 | Q87: 18386415 | R87: =+IFERROR(INDEX(Activo_nvo!$B$40:$E$44,MATCH($C87,Activo_nvo!$A$40:$A$44,0),MATCH(R$50,Activo_nvo!$B$39:$E$39,0)),"0") -> 0 | S87: =+IFERROR(INDEX(Activo_nvo!$B$40:$E$44,MATCH($C87,Activo_nvo!$A$40:$A$44,0),MATCH(S$50,Activo_nvo!$B$39:$E$39,0)),"0") -> 0 | T87: =+IFERROR(INDEX(Activo_nvo!$B$40:$E$44,MATCH($C87,Activo_nvo!$A$40:$A$44,0),MATCH(T$50,Activo_nvo!$B$39:$E$39,0)),"0") -> 0.4120900692 | U87: =+IFERROR(INDEX(Activo_nvo!$B$40:$E$44,MATCH($C87,Activo_nvo!$A$40:$A$44,0),MATCH(U$50,Activo_nvo!$B$39:$E$39,0)),"0") -> 0.5879099308 | V87: 0 | W87: 7796309 | X87: 7796309 | Y87: 3898155 | Z87: 18386415 | AA87: 0 | AB87: 0 | AC87: 0 | AD87: 0 | AE87: 0 | AF87: 0 | AG87: 0 | AH87: 0 | AI87: 0 | AJ87: 0 | AK87: 0 | AL87: 3212781.516 | AM87: 3212781.516 | AN87: 1606390.964 | AO87: 7576859.03 | AP87: 0 | AQ87: 4583527.484 | AR87: 4583527.484 | AS87: 2291764.036 | AT87: 10809555.97
A88: Equipo de radioayudas | B88: Sistemas VOR (Ilo, Juliaca, Piura, Andahuaylas, Arequipa, | I88: =+K88+M88+O88+Q88 -> 0 | R88: =+IFERROR(INDEX(Activo_nvo!$B$40:$E$44,MATCH($C88,Activo_nvo!$A$40:$A$44,0),MATCH(R$50,Activo_nvo!$B$39:$E$39,0)),"0") -> 0 | S88: =+IFERROR(INDEX(Activo_nvo!$B$40:$E$44,MATCH($C88,Activo_nvo!$A$40:$A$44,0),MATCH(S$50,Activo_nvo!$B$39:$E$39,0)),"0") -> 0 | T88: =+IFERROR(INDEX(Activo_nvo!$B$40:$E$44,MATCH($C88,Activo_nvo!$A$40:$A$44,0),MATCH(T$50,Activo_nvo!$B$39:$E$39,0)),"0") -> 0 | U88: =+IFERROR(INDEX(Activo_nvo!$B$40:$E$44,MATCH($C88,Activo_nvo!$A$40:$A$44,0),MATCH(U$50,Activo_nvo!$B$39:$E$39,0)),"0") -> 0 | V88: 0 | W88: 0 | X88: 0 | Y88: 0 | Z88: 0 | AA88: 0 | AB88: 0 | AC88: 0 | AD88: 0 | AE88: 0 | AF88: 0 | AG88: 0 | AH88: 0 | AI88: 0 | AJ88: 0 | AK88: 0 | AL88: 0 | AM88: 0 | AN88: 0 | AO88: 0 | AP88: 0 | AQ88: 0 | AR88: 0 | AS88: 0 | AT88: 0
A89: Equipo de radioayudas | B89: Trujillo, Talara,Chimbote, Chachapoyas,Chilliorco,Lima (DVOR),Tacna y Puerto Esperanza). | E89: 4 | I89: 0 | J89: 3 | L89: 3 | R89: =+IFERROR(INDEX(Activo_nvo!$B$40:$E$44,MATCH($C89,Activo_nvo!$A$40:$A$44,0),MATCH(R$50,Activo_nvo!$B$39:$E$39,0)),"0") -> 0 | S89: =+IFERROR(INDEX(Activo_nvo!$B$40:$E$44,MATCH($C89,Activo_nvo!$A$40:$A$44,0),MATCH(S$50,Activo_nvo!$B$39:$E$39,0)),"0") -> 0 | T89: =+IFERROR(INDEX(Activo_nvo!$B$40:$E$44,MATCH($C89,Activo_nvo!$A$40:$A$44,0),MATCH(T$50,Activo_nvo!$B$39:$E$39,0)),"0") -> 0 | U89: =+IFERROR(INDEX(Activo_nvo!$B$40:$E$44,MATCH($C89,Activo_nvo!$A$40:$A$44,0),MATCH(U$50,Activo_nvo!$B$39:$E$39,0)),"0") -> 0 | V89: 0 | W89: 0 | X89: 0 | Y89: 0 | Z89: 0 | AA89: 0 | AB89: 0 | AC89: 0 | AD89: 0 | AE89: 0 | AF89: 0 | AG89: 0 | AH89: 0 | AI89: 0 | AJ89: 0 | AK89: 0 | AL89: 0 | AM89: 0 | AN89: 0 | AO89: 0 | AP89: 0 | AQ89: 0 | AR89: 0 | AS89: 0 | AT89: 0
A90: Equipo de radioayudas | B90: Sistemas DME (Arequipa, Trujillo, Tacna, Chilliorco,Juliaca,Lima y Tarapoto). | I90: 0 | J90: 4 | L90: 3 | R90: =+IFERROR(INDEX(Activo_nvo!$B$40:$E$44,MATCH($C90,Activo_nvo!$A$40:$A$44,0),MATCH(R$50,Activo_nvo!$B$39:$E$39,0)),"0") -> 0 | S90: =+IFERROR(INDEX(Activo_nvo!$B$40:$E$44,MATCH($C90,Activo_nvo!$A$40:$A$44,0),MATCH(S$50,Activo_nvo!$B$39:$E$39,0)),"0") -> 0 | T90: =+IFERROR(INDEX(Activo_nvo!$B$40:$E$44,MATCH($C90,Activo_nvo!$A$40:$A$44,0),MATCH(T$50,Activo_nvo!$B$39:$E$39,0)),"0") -> 0 | U90: =+IFERROR(INDEX(Activo_nvo!$B$40:$E$44,MATCH($C90,Activo_nvo!$A$40:$A$44,0),MATCH(U$50,Activo_nvo!$B$39:$E$39,0)),"0") -> 0 | V90: 0 | W90: 0 | X90: 0 | Y90: 0 | Z90: 0 | AA90: 0 | AB90: 0 | AC90: 0 | AD90: 0 | AE90: 0 | AF90: 0 | AG90: 0 | AH90: 0 | AI90: 0 | AJ90: 0 | AK90: 0 | AL90: 0 | AM90: 0 | AN90: 0 | AO90: 0 | AP90: 0 | AQ90: 0 | AR90: 0 | AS90: 0 | AT90: 0
A91: Equipo de radioayudas | B91: Sistemas ILS CAT I (Pisco y Puerto Maldonado). | I91: 0 | R91: =+IFERROR(INDEX(Activo_nvo!$B$40:$E$44,MATCH($C91,Activo_nvo!$A$40:$A$44,0),MATCH(R$50,Activo_nvo!$B$39:$E$39,0)),"0") -> 0 | S91: =+IFERROR(INDEX(Activo_nvo!$B$40:$E$44,MATCH($C91,Activo_nvo!$A$40:$A$44,0),MATCH(S$50,Activo_nvo!$B$39:$E$39,0)),"0") -> 0 | T91: =+IFERROR(INDEX(Activo_nvo!$B$40:$E$44,MATCH($C91,Activo_nvo!$A$40:$A$44,0),MATCH(T$50,Activo_nvo!$B$39:$E$39,0)),"0") -> 0 | U91: =+IFERROR(INDEX(Activo_nvo!$B$40:$E$44,MATCH($C91,Activo_nvo!$A$40:$A$44,0),MATCH(U$50,Activo_nvo!$B$39:$E$39,0)),"0") -> 0 | V91: 0 | W91: 0 | X91: 0 | Y91: 0 | Z91: 0 | AA91: 0 | AB91: 0 | AC91: 0 | AD91: 0 | AE91: 0 | AF91: 0 | AG91: 0 | AH91: 0 | AI91: 0 | AJ91: 0 | AK91: 0 | AL91: 0 | AM91: 0 | AN91: 0 | AO91: 0 | AP91: 0 | AQ91: 0 | AR91: 0 | AS91: 0 | AT91: 0
A92: Equipo de radioayudas | B92: Sistemas GS (Tarapoto) | I92: 0 | J92: 1 | R92: =+IFERROR(INDEX(Activo_nvo!$B$40:$E$44,MATCH($C92,Activo_nvo!$A$40:$A$44,0),MATCH(R$50,Activo_nvo!$B$39:$E$39,0)),"0") -> 0 | S92: =+IFERROR(INDEX(Activo_nvo!$B$40:$E$44,MATCH($C92,Activo_nvo!$A$40:$A$44,0),MATCH(S$50,Activo_nvo!$B$39:$E$39,0)),"0") -> 0 | T92: =+IFERROR(INDEX(Activo_nvo!$B$40:$E$44,MATCH($C92,Activo_nvo!$A$40:$A$44,0),MATCH(T$50,Activo_nvo!$B$39:$E$39,0)),"0") -> 0 | U92: =+IFERROR(INDEX(Activo_nvo!$B$40:$E$44,MATCH($C92,Activo_nvo!$A$40:$A$44,0),MATCH(U$50,Activo_nvo!$B$39:$E$39,0)),"0") -> 0 | V92: 0 | W92: 0 | X92: 0 | Y92: 0 | Z92: 0 | AA92: 0 | AB92: 0 | AC92: 0 | AD92: 0 | AE92: 0 | AF92: 0 | AG92: 0 | AH92: 0 | AI92: 0 | AJ92: 0 | AK92: 0 | AL92: 0 | AM92: 0 | AN92: 0 | AO92: 0 | AP92: 0 | AQ92: 0 | AR92: 0 | AS92: 0 | AT92: 0
A93: Equipo de radioayudas | B93: Equipos diversos, obras e instalación Nivel nacional. | C93: APROX - A/D | D93: Equipos | F93: =438991/2.6 -> 168842.6923 | H93: Varios | I93: 3899159 | K93: 1334159 | M93: 945000 | O93: 540000 | Q93: 1080000 | R93: =+IFERROR(INDEX(Activo_nvo!$B$40:$E$44,MATCH($C93,Activo_nvo!$A$40:$A$44,0),MATCH(R$50,Activo_nvo!$B$39:$E$39,0)),"0") -> 0 | S93: =+IFERROR(INDEX(Activo_nvo!$B$40:$E$44,MATCH($C93,Activo_nvo!$A$40:$A$44,0),MATCH(S$50,Activo_nvo!$B$39:$E$39,0)),"0") -> 0 | T93: =+IFERROR(INDEX(Activo_nvo!$B$40:$E$44,MATCH($C93,Activo_nvo!$A$40:$A$44,0),MATCH(T$50,Activo_nvo!$B$39:$E$39,0)),"0") -> 0.4120900692 | U93: =+IFERROR(INDEX(Activo_nvo!$B$40:$E$44,MATCH($C93,Activo_nvo!$A$40:$A$44,0),MATCH(U$50,Activo_nvo!$B$39:$E$39,0)),"0") -> 0.5879099308 | V93: 0 | W93: 1334159 | X93: 945000 | Y93: 540000 | Z93: 1080000 | AA93: 0 | AB93: 0 | AC93: 0 | AD93: 0 | AE93: 0 | AF93: 0 | AG93: 0 | AH93: 0 | AI93: 0 | AJ93: 0 | AK93: 0 | AL93: 549793.6747 | AM93: 389425.1154 | AN93: 222528.6374 | AO93: 445057.2748 | AP93: 0 | AQ93: 784365.3253 | AR93: 555574.8846 | AS93: 317471.3626 | AT93: 634942.7252
A94: Equipos de grupos electrógenos | C94: SV-SNAR- APROX - A/D | D94: Equipos | G94: 466579.7658 | R94: =+IFERROR(INDEX(Activo_nvo!$B$40:$E$44,MATCH($C94,Activo_nvo!$A$40:$A$44,0),MATCH(R$50,Activo_nvo!$B$39:$E$39,0)),"0") -> 0.3306414122 | S94: =+IFERROR(INDEX(Activo_nvo!$B$40:$E$44,MATCH($C94,Activo_nvo!$A$40:$A$44,0),MATCH(S$50,Activo_nvo!$B$39:$E$39,0)),"0") -> 0.236871183 | T94: =+IFERROR(INDEX(Activo_nvo!$B$40:$E$44,MATCH($C94,Activo_nvo!$A$40:$A$44,0),MATCH(T$50,Activo_nvo!$B$39:$E$39,0)),"0") -> 0.1782237646 | U94: =+IFERROR(INDEX(Activo_nvo!$B$40:$E$44,MATCH($C94,Activo_nvo!$A$40:$A$44,0),MATCH(U$50,Activo_nvo!$B$39:$E$39,0)),"0") -> 0.2542636403 | V94: 466579.7658 | W94: 0 | X94: 0 | Y94: 0 | Z94: 0 | AA94: 154270.5926 | AB94: 0 | AC94: 0 | AD94: 0 | AE94: 0 | AF94: 110519.3011 | AG94: 0 | AH94: 0 | AI94: 0 | AJ94: 0 | AK94: 83155.60235 | AL94: 0 | AM94: 0 | AN94: 0 | AO94: 0 | AP94: 118634.2697 | AQ94: 0 | AR94: 0 | AS94: 0 | AT94: 0
A95: Equipos de grupos electrógenos | B95: Grupos electrógenos Nivel nacional. | C95: SV-SNAR- APROX - A/D | D95: Equipos | H95: =+J95+L95+N95+P95 -> 58 | I95: =+K95+M95+O95+Q95 -> 7222926 | J95: 19 | K95: 2356790 | L95: 19 | M95: 1693575 | N95: 20 | O95: =2618656+553905 -> 3172561 | R95: =+IFERROR(INDEX(Activo_nvo!$B$40:$E$44,MATCH($C95,Activo_nvo!$A$40:$A$44,0),MATCH(R$50,Activo_nvo!$B$39:$E$39,0)),"0") -> 0.3306414122 | S95: =+IFERROR(INDEX(Activo_nvo!$B$40:$E$44,MATCH($C95,Activo_nvo!$A$40:$A$44,0),MATCH(S$50,Activo_nvo!$B$39:$E$39,0)),"0") -> 0.236871183 | T95: =+IFERROR(INDEX(Activo_nvo!$B$40:$E$44,MATCH($C95,Activo_nvo!$A$40:$A$44,0),MATCH(T$50,Activo_nvo!$B$39:$E$39,0)),"0") -> 0.1782237646 | U95: =+IFERROR(INDEX(Activo_nvo!$B$40:$E$44,MATCH($C95,Activo_nvo!$A$40:$A$44,0),MATCH(U$50,Activo_nvo!$B$39:$E$39,0)),"0") -> 0.2542636403 | V95: 0 | W95: 2356790 | X95: 1693575 | Y95: 3172561 | Z95: 0 | AA95: 0 | AB95: 779252.3738 | AC95: 559966.0296 | AD95: 1048980.049 | AE95: 0 | AF95: 0 | AG95: 558255.6353 | AH95: 401159.1137 | AI95: 751488.2771 | AJ95: 0 | AK95: 0 | AL95: 420035.9862 | AM95: 301835.3122 | AN95: 565425.7649 | AO95: 0 | AP95: 0 | AQ95: 599246.0047 | AR95: 430614.5445 | AS95: 806666.9088 | AT95: 0
A96: Equipos de grupos electrógenos | B96: Construcción y/o remodelacion casa de fuerza Nivel nacional. | C96: SV-SNAR- APROX - A/D | D96: Obra | E96: 2 | F96: =162335/2.6 -> 62436.53846 | H96: =+J96+L96+N96+P96 -> 5 | I96: =+K96+M96+O96+Q96 -> 723620 | L96: 2 | M96: 289440 | N96: 3 | O96: 434180 | R96: =+IFERROR(INDEX(Activo_nvo!$B$40:$E$44,MATCH($C96,Activo_nvo!$A$40:$A$44,0),MATCH(R$50,Activo_nvo!$B$39:$E$39,0)),"0") -> 0.3306414122 | S96: =+IFERROR(INDEX(Activo_nvo!$B$40:$E$44,MATCH($C96,Activo_nvo!$A$40:$A$44,0),MATCH(S$50,Activo_nvo!$B$39:$E$39,0)),"0") -> 0.236871183 | T96: =+IFERROR(INDEX(Activo_nvo!$B$40:$E$44,MATCH($C96,Activo_nvo!$A$40:$A$44,0),MATCH(T$50,Activo_nvo!$B$39:$E$39,0)),"0") -> 0.1782237646 | U96: =+IFERROR(INDEX(Activo_nvo!$B$40:$E$44,MATCH($C96,Activo_nvo!$A$40:$A$44,0),MATCH(U$50,Activo_nvo!$B$39:$E$39,0)),"0") -> 0.2542636403 | V96: 0 | W96: 0 | X96: 289440 | Y96: 434180 | Z96: 0 | AA96: 0 | AB96: 0 | AC96: 95700.85034 | AD96: 143557.8883 | AE96: 0 | AF96: 0 | AG96: 0 | AH96: 68559.9952 | AI96: 102844.7302 | AJ96: 0 | AK96: 0 | AL96: 0 | AM96: 51585.08643 | AN96: 77381.19412 | AO96: 0 | AP96: 0 | AQ96: 0 | AR96: 73594.06804 | AS96: 110396.1873 | AT96: 0
A97: Equipos de grupos electrógenos | B97: Equipos diversos y gastos de instalación. | C97: SV-SNAR- APROX - A/D | D97: Equipos | F97: =319582/2.6 -> 122916.1538 | H97: Varios | I97: =+K97+M97+O97+Q97 -> 1199000 | K97: 227000 | M97: 324000 | O97: 270000 | Q97: =54000+324000 -> 378000 | R97: =+IFERROR(INDEX(Activo_nvo!$B$40:$E$44,MATCH($C97,Activo_nvo!$A$40:$A$44,0),MATCH(R$50,Activo_nvo!$B$39:$E$39,0)),"0") -> 0.3306414122 | S97: =+IFERROR(INDEX(Activo_nvo!$B$40:$E$44,MATCH($C97,Activo_nvo!$A$40:$A$44,0),MATCH(S$50,Activo_nvo!$B$39:$E$39,0)),"0") -> 0.236871183 | T97: =+IFERROR(INDEX(Activo_nvo!$B$40:$E$44,MATCH($C97,Activo_nvo!$A$40:$A$44,0),MATCH(T$50,Activo_nvo!$B$39:$E$39,0)),"0") -> 0.1782237646 | U97: =+IFERROR(INDEX(Activo_nvo!$B$40:$E$44,MATCH($C97,Activo_nvo!$A$40:$A$44,0),MATCH(U$50,Activo_nvo!$B$39:$E$39,0)),"0") -> 0.2542636403 | V97: 0 | W97: 227000 | X97: 324000 | Y97: 270000 | Z97: 378000 | AA97: 0 | AB97: 75055.60056 | AC97: 107127.8175 | AD97: 89273.18128 | AE97: 124982.4538 | AF97: 0 | AG97: 53769.75853 | AH97: 76746.26328 | AI97: 63955.2194 | AJ97: 89537.30716 | AK97: 0 | AL97: 40456.79457 | AM97: 57744.49974 | AN97: 48120.41645 | AO97: 67368.58303 | AP97: 0 | AQ97: 57717.84634 | AR97: 82381.41944 | AS97: 68651.18287 | AT97: 96111.65602
A98: Sistema VHF-AA y medios de transmisión | C98: SV-SNAR- APROX - A/D | D98: Sistemas | G98: 2134912.337 | R98: =+IFERROR(INDEX(Activo_nvo!$B$40:$E$44,MATCH($C98,Activo_nvo!$A$40:$A$44,0),MATCH(R$50,Activo_nvo!$B$39:$E$39,0)),"0") -> 0.3306414122 | S98: =+IFERROR(INDEX(Activo_nvo!$B$40:$E$44,MATCH($C98,Activo_nvo!$A$40:$A$44,0),MATCH(S$50,Activo_nvo!$B$39:$E$39,0)),"0") -> 0.236871183 | T98: =+IFERROR(INDEX(Activo_nvo!$B$40:$E$44,MATCH($C98,Activo_nvo!$A$40:$A$44,0),MATCH(T$50,Activo_nvo!$B$39:$E$39,0)),"0") -> 0.1782237646 | U98: =+IFERROR(INDEX(Activo_nvo!$B$40:$E$44,MATCH($C98,Activo_nvo!$A$40:$A$44,0),MATCH(U$50,Activo_nvo!$B$39:$E$39,0)),"0") -> 0.2542636403 | V98: 2134912.337 | W98: 0 | X98: 0 | Y98: 0 | Z98: 0 | AA98: 705890.43 | AB98: 0 | AC98: 0 | AD98: 0 | AE98: 0 | AF98: 505699.2108 | AG98: 0 | AH98: 0 | AI98: 0 | AJ98: 0 | AK98: 380492.1139 | AL98: 0 | AM98: 0 | AN98: 0 | AO98: 0 | AP98: 542830.5825 | AQ98: 0 | AR98: 0 | AS98: 0 | AT98: 0
A99: Sistema VHF-AA y medios de transmisión | B99: Renovaciòn de REDAP y RED de VHF-AA del ACC | C99: SV-SNAR- APROX - A/D | D99: Sistemas | H99: =+J99+L99+N99+P99 -> 14 | I99: 6750000 | L99: 5 | M99: 2411100 | N99: 5 | O99: 2411100 | P99: 4 | Q99: 1927800 | R99: =+IFERROR(INDEX(Activo_nvo!$B$40:$E$44,MATCH($C99,Activo_nvo!$A$40:$A$44,0),MATCH(R$50,Activo_nvo!$B$39:$E$39,0)),"0") -> 0.3306414122 | S99: =+IFERROR(INDEX(Activo_nvo!$B$40:$E$44,MATCH($C99,Activo_nvo!$A$40:$A$44,0),MATCH(S$50,Activo_nvo!$B$39:$E$39,0)),"0") -> 0.236871183 | T99: =+IFERROR(INDEX(Activo_nvo!$B$40:$E$44,MATCH($C99,Activo_nvo!$A$40:$A$44,0),MATCH(T$50,Activo_nvo!$B$39:$E$39,0)),"0") -> 0.1782237646 | U99: =+IFERROR(INDEX(Activo_nvo!$B$40:$E$44,MATCH($C99,Activo_nvo!$A$40:$A$44,0),MATCH(U$50,Activo_nvo!$B$39:$E$39,0)),"0") -> 0.2542636403 | V99: 0 | W99: 0 | X99: 2411100 | Y99: 2411100 | Z99: 1927800 | AA99: 0 | AB99: 0 | AC99: 797209.5089 | AD99: 797209.5089 | AE99: 637410.5144 | AF99: 0 | AG99: 0 | AH99: 571120.1092 | AI99: 571120.1092 | AJ99: 456640.2665 | AK99: 0 | AL99: 0 | AM99: 429715.3189 | AN99: 429715.3189 | AO99: 343579.7734 | AP99: 0 | AQ99: 0 | AR99: 613055.063 | AS99: 613055.063 | AT99: 490169.4457
A100: Sistema VHF-AA y medios de transmisión | B100: Instalación estaciones VHF-AA para TWR/APP (Huánuco, Cajamarca, Trujillo) | C100: SV-SNAR- APROX - A/D | D100: Estaciones | F100: =29897/2.6 -> 11498.84615 | H100: 0 | I100: 41830 | K100: 41830 | R100: =+IFERROR(INDEX(Activo_nvo!$B$40:$E$44,MATCH($C100,Activo_nvo!$A$40:$A$44,0),MATCH(R$50,Activo_nvo!$B$39:$E$39,0)),"0") -> 0.3306414122 | S100: =+IFERROR(INDEX(Activo_nvo!$B$40:$E$44,MATCH($C100,Activo_nvo!$A$40:$A$44,0),MATCH(S$50,Activo_nvo!$B$39:$E$39,0)),"0") -> 0.236871183 | T100: =+IFERROR(INDEX(Activo_nvo!$B$40:$E$44,MATCH($C100,Activo_nvo!$A$40:$A$44,0),MATCH(T$50,Activo_nvo!$B$39:$E$39,0)),"0") -> 0.1782237646 | U100: =+IFERROR(INDEX(Activo_nvo!$B$40:$E$44,MATCH($C100,Activo_nvo!$A$40:$A$44,0),MATCH(U$50,Activo_nvo!$B$39:$E$39,0)),"0") -> 0.2542636403 | V100: 0 | W100: 41830 | X100: 0 | Y100: 0 | Z100: 0 | AA100: 0 | AB100: 13830.73027 | AC100: 0 | AD100: 0 | AE100: 0 | AF100: 0 | AG100: 9908.321583 | AH100: 0 | AI100: 0 | AJ100: 0 | AK100: 0 | AL100: 7455.100074 | AM100: 0 | AN100: 0 | AO100: 0 | AP100: 0 | AQ100: 10635.84807 | AR100: 0 | AS100: 0 | AT100: 0
A101: Sistema VHF-AA y medios de transmisión | B101: VHF-AA frecuencia Emergencia 121.5 Mhz | C101: SV-SNAR- APROX - A/D | D101: Sistemas | H101: 15 | I101: 1620000 | N101: 15 | O101: 1620000 | R101: =+IFERROR(INDEX(Activo_nvo!$B$40:$E$44,MATCH($C101,Activo_nvo!$A$40:$A$44,0),MATCH(R$50,Activo_nvo!$B$39:$E$39,0)),"0") -> 0.3306414122 | S101: =+IFERROR(INDEX(Activo_nvo!$B$40:$E$44,MATCH($C101,Activo_nvo!$A$40:$A$44,0),MATCH(S$50,Activo_nvo!$B$39:$E$39,0)),"0") -> 0.236871183 | T101: =+IFERROR(INDEX(Activo_nvo!$B$40:$E$44,MATCH($C101,Activo_nvo!$A$40:$A$44,0),MATCH(T$50,Activo_nvo!$B$39:$E$39,0)),"0") -> 0.1782237646 | U101: =+IFERROR(INDEX(Activo_nvo!$B$40:$E$44,MATCH($C101,Activo_nvo!$A$40:$A$44,0),MATCH(U$50,Activo_nvo!$B$39:$E$39,0)),"0") -> 0.2542636403 | V101: 0 | W101: 0 | X101: 0 | Y101: 1620000 | Z101: 0 | AA101: 0 | AB101: 0 | AC101: 0 | AD101: 535639.0877 | AE101: 0 | AF101: 0 | AG101: 0 | AH101: 0 | AI101: 383731.3164 | AJ101: 0 | AK101: 0 | AL101: 0 | AM101: 0 | AN101: 288722.4987 | AO101: 0 | AP101: 0 | AQ101: 0 | AR101: 0 | AS101: 411907.0972 | AT101: 0
A102: Sistema VHF-AA y medios de transmisión | B102: Obras e instalación | C102: SV-SNAR- APROX - A/D | D102: Obra | H102: VARIAS | I102: =+K102+M102+O102+Q102 -> 540000 | M102: 135000 | O102: 135000 | Q102: 270000 | R102: =+IFERROR(INDEX(Activo_nvo!$B$40:$E$44,MATCH($C102,Activo_nvo!$A$40:$A$44,0),MATCH(R$50,Activo_nvo!$B$39:$E$39,0)),"0") -> 0.3306414122 | S102: =+IFERROR(INDEX(Activo_nvo!$B$40:$E$44,MATCH($C102,Activo_nvo!$A$40:$A$44,0),MATCH(S$50,Activo_nvo!$B$39:$E$39,0)),"0") -> 0.236871183 | T102: =+IFERROR(INDEX(Activo_nvo!$B$40:$E$44,MATCH($C102,Activo_nvo!$A$40:$A$44,0),MATCH(T$50,Activo_nvo!$B$39:$E$39,0)),"0") -> 0.1782237646 | U102: =+IFERROR(INDEX(Activo_nvo!$B$40:$E$44,MATCH($C102,Activo_nvo!$A$40:$A$44,0),MATCH(U$50,Activo_nvo!$B$39:$E$39,0)),"0") -> 0.2542636403 | V102: 0 | W102: 0 | X102: 135000 | Y102: 135000 | Z102: 270000 | AA102: 0 | AB102: 0 | AC102: 44636.59064 | AD102: 44636.59064 | AE102: 89273.18128 | AF102: 0 | AG102: 0 | AH102: 31977.6097 | AI102: 31977.6097 | AJ102: 63955.2194 | AK102: 0 | AL102: 0 | AM102: 24060.20822 | AN102: 24060.20822 | AO102: 48120.41645 | AP102: 0 | AQ102: 0 | AR102: 34325.59143 | AS102: 34325.59143 | AT102: 68651.18287
A103: Equipos de meteorología | C103: SV-SNAR- APROX - A/D | D103: Sistemas | G103: 628139.4719 | R103: =+IFERROR(INDEX(Activo_nvo!$B$40:$E$44,MATCH($C103,Activo_nvo!$A$40:$A$44,0),MATCH(R$50,Activo_nvo!$B$39:$E$39,0)),"0") -> 0.3306414122 | S103: =+IFERROR(INDEX(Activo_nvo!$B$40:$E$44,MATCH($C103,Activo_nvo!$A$40:$A$44,0),MATCH(S$50,Activo_nvo!$B$39:$E$39,0)),"0") -> 0.236871183 | T103: =+IFERROR(INDEX(Activo_nvo!$B$40:$E$44,MATCH($C103,Activo_nvo!$A$40:$A$44,0),MATCH(T$50,Activo_nvo!$B$39:$E$39,0)),"0") -> 0.1782237646 | U103: =+IFERROR(INDEX(Activo_nvo!$B$40:$E$44,MATCH($C103,Activo_nvo!$A$40:$A$44,0),MATCH(U$50,Activo_nvo!$B$39:$E$39,0)),"0") -> 0.2542636403 | V103: 628139.4719 | W103: 0 | X103: 0 | Y103: 0 | Z103: 0 | AA103: =+$R103*V103 -> 207688.922 | AB103: 0 | AC103: 0 | AD103: 0 | AE103: 0 | AF103: =+$S103*V103 -> 148788.1398 | AG103: 0 | AH103: 0 | AI103: 0 | AJ103: 0 | AK103: =+$T103*V103 -> 111949.3814 | AL103: 0 | AM103: 0 | AN103: 0 | AO103: 0 | AP103: 159713.0287 | AQ103: 0 | AR103: 0 | AS103: 0 | AT103: 0
A104: Equipos de meteorología | B104: Renovación equipos e instrumentos meteorológicosNiv. Nac. Fase I | C104: SV-SNAR- APROX - A/D | D104: Sistemas | E104: 1 | F104: =464304/2.6 -> 178578.4615 | H104: VARIAS | I104: =+K104+M104+O104+Q104 -> 7552660 | K104: 755266 | M104: 3398697 | O104: 3398697 | R104: =+IFERROR(INDEX(Activo_nvo!$B$40:$E$44,MATCH($C104,Activo_nvo!$A$40:$A$44,0),MATCH(R$50,Activo_nvo!$B$39:$E$39,0)),"0") -> 0.3306414122 | S104: =+IFERROR(INDEX(Activo_nvo!$B$40:$E$44,MATCH($C104,Activo_nvo!$A$40:$A$44,0),MATCH(S$50,Activo_nvo!$B$39:$E$39,0)),"0") -> 0.236871183 | T104: =+IFERROR(INDEX(Activo_nvo!$B$40:$E$44,MATCH($C104,Activo_nvo!$A$40:$A$44,0),MATCH(T$50,Activo_nvo!$B$39:$E$39,0)),"0") -> 0.1782237646 | U104: =+IFERROR(INDEX(Activo_nvo!$B$40:$E$44,MATCH($C104,Activo_nvo!$A$40:$A$44,0),MATCH(U$50,Activo_nvo!$B$39:$E$39,0)),"0") -> 0.2542636403 | V104: 0 | W104: 755266 | X104: 3398697 | Y104: 3398697 | Z104: 0 | AA104: 0 | AB104: 249722.2168 | AC104: 1123749.976 | AD104: 1123749.976 | AE104: 0 | AF104: 0 | AG104: 178900.7509 | AH104: 805053.3789 | AI104: 805053.3789 | AJ104: 0 | AK104: 0 | AL104: 134606.3498 | AM104: 605728.5741 | AN104: 605728.5741 | AO104: 0 | AP104: 0 | AQ104: 192036.6825 | AR104: 864165.0713 | AS104: 864165.0713 | AT104: 0
A105: Equipos de meteorología | B105: Renovación equipos e instrumentos meteorológicos Nivel nacional Fase II. | C105: SV-SNAR- APROX - A/D | D105: Equipos | H105: VARIAS | I105: 7192800 | M105: 719280 | O105: 3236760 | Q105: 3236760 | R105: =+IFERROR(INDEX(Activo_nvo!$B$40:$E$44,MATCH($C105,Activo_nvo!$A$40:$A$44,0),MATCH(R$50,Activo_nvo!$B$39:$E$39,0)),"0") -> 0.3306414122 | S105: =+IFERROR(INDEX(Activo_nvo!$B$40:$E$44,MATCH($C105,Activo_nvo!$A$40:$A$44,0),MATCH(S$50,Activo_nvo!$B$39:$E$39,0)),"0") -> 0.236871183 | T105: =+IFERROR(INDEX(Activo_nvo!$B$40:$E$44,MATCH($C105,Activo_nvo!$A$40:$A$44,0),MATCH(T$50,Activo_nvo!$B$39:$E$39,0)),"0") -> 0.1782237646 | U105: =+IFERROR(INDEX(Activo_nvo!$B$40:$E$44,MATCH($C105,Activo_nvo!$A$40:$A$44,0),MATCH(U$50,Activo_nvo!$B$39:$E$39,0)),"0") -> 0.2542636403 | V105: 0 | W105: 0 | X105: 719280 | Y105: 3236760 | Z105: 3236760 | AA105: 0 | AB105: 0 | AC105: 237823.7549 | AD105: 1070206.897 | AE105: 1070206.897 | AF105: 0 | AG105: 0 | AH105: 170376.7045 | AI105: 766695.1702 | AJ105: 766695.1702 | AK105: 0 | AL105: 0 | AM105: 128192.7894 | AN105: 576867.5524 | AO105: 576867.5524 | AP105: 0 | AQ105: 0 | AR105: 182886.7512 | AS105: 822990.3802 | AT105: 822990.3802
A106: Equipos de meteorología | B106: Renovación Sistema Mundial Pronostico Área WAFS (Lima). | C106: SV-SNAR- APROX - A/D | D106: Sistemas | H106: =+J106+L106+N106+P106 -> 0 | I106: 0 | R106: =+IFERROR(INDEX(Activo_nvo!$B$40:$E$44,MATCH($C106,Activo_nvo!$A$40:$A$44,0),MATCH(R$50,Activo_nvo!$B$39:$E$39,0)),"0") -> 0.3306414122 | S106: =+IFERROR(INDEX(Activo_nvo!$B$40:$E$44,MATCH($C106,Activo_nvo!$A$40:$A$44,0),MATCH(S$50,Activo_nvo!$B$39:$E$39,0)),"0") -> 0.236871183 | T106: =+IFERROR(INDEX(Activo_nvo!$B$40:$E$44,MATCH($C106,Activo_nvo!$A$40:$A$44,0),MATCH(T$50,Activo_nvo!$B$39:$E$39,0)),"0") -> 0.1782237646 | U106: =+IFERROR(INDEX(Activo_nvo!$B$40:$E$44,MATCH($C106,Activo_nvo!$A$40:$A$44,0),MATCH(U$50,Activo_nvo!$B$39:$E$39,0)),"0") -> 0.2542636403 | V106: 0 | W106: 0 | X106: 0 | Y106: 0 | Z106: 0 | AA106: 0 | AB106: 0 | AC106: 0 | AD106: 0 | AE106: 0 | AF106: 0 | AG106: 0 | AH106: 0 | AI106: 0 | AJ106: 0 | AK106: 0 | AL106: 0 | AM106: 0 | AN106: 0 | AO106: 0 | AP106: 0 | AQ106: 0 | AR106: 0 | AS106: 0 | AT106: 0
A107: Equipos de meteorología | B107: Renovación Sistema Automático Radiosondaje (Lima) | C107: SV-SNAR- APROX - A/D | D107: Sistemas | H107: =+J107+L107+N107+P107 -> 1 | I107: 680000 | K107: 68000 | L107: 1 | M107: 612000 | R107: =+IFERROR(INDEX(Activo_nvo!$B$40:$E$44,MATCH($C107,Activo_nvo!$A$40:$A$44,0),MATCH(R$50,Activo_nvo!$B$39:$E$39,0)),"0") -> 0.3306414122 | S107: =+IFERROR(INDEX(Activo_nvo!$B$40:$E$44,MATCH($C107,Activo_nvo!$A$40:$A$44,0),MATCH(S$50,Activo_nvo!$B$39:$E$39,0)),"0") -> 0.236871183 | T107: =+IFERROR(INDEX(Activo_nvo!$B$40:$E$44,MATCH($C107,Activo_nvo!$A$40:$A$44,0),MATCH(T$50,Activo_nvo!$B$39:$E$39,0)),"0") -> 0.1782237646 | U107: =+IFERROR(INDEX(Activo_nvo!$B$40:$E$44,MATCH($C107,Activo_nvo!$A$40:$A$44,0),MATCH(U$50,Activo_nvo!$B$39:$E$39,0)),"0") -> 0.2542636403 | V107: 0 | W107: 68000 | X107: 612000 | Y107: 0 | Z107: 0 | AA107: 0 | AB107: 22483.61603 | AC107: 202352.5442 | AD107: 0 | AE107: 0 | AF107: 0 | AG107: 16107.24044 | AH107: 144965.164 | AI107: 0 | AJ107: 0 | AK107: 0 | AL107: 12119.21599 | AM107: 109072.9439 | AN107: 0 | AO107: 0 | AP107: 0 | AQ107: 17289.92754 | AR107: 155609.3478 | AS107: 0 | AT107: 0
A108: Equipos de meteorología | B108: Renovación sistema AWOS de Cusco,Arequipa e Iquitos | C108: SV-SNAR- APROX - A/D | D108: Sistemas | H108: =+J108+L108+N108+P108 -> 3 | I108: 2592000 | L108: 1 | M108: 259200 | N108: 1 | O108: 1555200 | P108: 1 | Q108: 777600 | R108: =+IFERROR(INDEX(Activo_nvo!$B$40:$E$44,MATCH($C108,Activo_nvo!$A$40:$A$44,0),MATCH(R$50,Activo_nvo!$B$39:$E$39,0)),"0") -> 0.3306414122 | S108: =+IFERROR(INDEX(Activo_nvo!$B$40:$E$44,MATCH($C108,Activo_nvo!$A$40:$A$44,0),MATCH(S$50,Activo_nvo!$B$39:$E$39,0)),"0") -> 0.236871183 | T108: =+IFERROR(INDEX(Activo_nvo!$B$40:$E$44,MATCH($C108,Activo_nvo!$A$40:$A$44,0),MATCH(T$50,Activo_nvo!$B$39:$E$39,0)),"0") -> 0.1782237646 | U108: =+IFERROR(INDEX(Activo_nvo!$B$40:$E$44,MATCH($C108,Activo_nvo!$A$40:$A$44,0),MATCH(U$50,Activo_nvo!$B$39:$E$39,0)),"0") -> 0.2542636403 | V108: 0 | W108: 0 | X108: 259200 | Y108: 1555200 | Z108: 777600 | AA108: 0 | AB108: 0 | AC108: 85702.25403 | AD108: 514213.5242 | AE108: 257106.7621 | AF108: 0 | AG108: 0 | AH108: 61397.01062 | AI108: 368382.0637 | AJ108: 184191.0319 | AK108: 0 | AL108: 0 | AM108: 46195.59979 | AN108: 277173.5987 | AO108: 138586.7994 | AP108: 0 | AQ108: 0 | AR108: 65905.13555 | AS108: 395430.8133 | AT108: 197715.4067
A109: Equipos de meteorología | B109: Renovaciòn sistema GVAR (Lima). | C109: SV-SNAR- APROX - A/D | D109: Sistemas | H109: =+J109+L109+N109+P109 -> 1 | I109: 422519 | L109: 1 | M109: =40658 -> 40658 | O109: 381861 | R109: =+IFERROR(INDEX(Activo_nvo!$B$40:$E$44,MATCH($C109,Activo_nvo!$A$40:$A$44,0),MATCH(R$50,Activo_nvo!$B$39:$E$39,0)),"0") -> 0.3306414122 | S109: =+IFERROR(INDEX(Activo_nvo!$B$40:$E$44,MATCH($C109,Activo_nvo!$A$40:$A$44,0),MATCH(S$50,Activo_nvo!$B$39:$E$39,0)),"0") -> 0.236871183 | T109: =+IFERROR(INDEX(Activo_nvo!$B$40:$E$44,MATCH($C109,Activo_nvo!$A$40:$A$44,0),MATCH(T$50,Activo_nvo!$B$39:$E$39,0)),"0") -> 0.1782237646 | U109: =+IFERROR(INDEX(Activo_nvo!$B$40:$E$44,MATCH($C109,Activo_nvo!$A$40:$A$44,0),MATCH(U$50,Activo_nvo!$B$39:$E$39,0)),"0") -> 0.2542636403 | V109: 0 | W109: 0 | X109: 40658 | Y109: 381861 | Z109: 0 | AA109: 0 | AB109: 0 | AC109: 13443.21854 | AD109: 126259.0603 | AE109: 0 | AF109: 0 | AG109: 0 | AH109: 9630.708557 | AI109: 90451.8668 | AJ109: 0 | AK109: 0 | AL109: 0 | AM109: 7246.221822 | AN109: 68056.70498 | AO109: 0 | AP109: 0 | AQ109: 0 | AR109: 10337.85109 | AS109: 97093.36793 | AT109: 0
A110: Equipos de meteorología | B110: Equipos diversos de meteorologìa Nivel nacional. | C110: SV-SNAR- APROX - A/D | D110: Equipos | F110: =164249/2.6 -> 63172.69231 | H110: Varios | I110: 4211543 | K110: 586687 | M110: 1175956 | O110: 928800 | Q110: =591300+928800 -> 1520100 | R110: =+IFERROR(INDEX(Activo_nvo!$B$40:$E$44,MATCH($C110,Activo_nvo!$A$40:$A$44,0),MATCH(R$50,Activo_nvo!$B$39:$E$39,0)),"0") -> 0.3306414122 | S110: =+IFERROR(INDEX(Activo_nvo!$B$40:$E$44,MATCH($C110,Activo_nvo!$A$40:$A$44,0),MATCH(S$50,Activo_nvo!$B$39:$E$39,0)),"0") -> 0.236871183 | T110: =+IFERROR(INDEX(Activo_nvo!$B$40:$E$44,MATCH($C110,Activo_nvo!$A$40:$A$44,0),MATCH(T$50,Activo_nvo!$B$39:$E$39,0)),"0") -> 0.1782237646 | U110: =+IFERROR(INDEX(Activo_nvo!$B$40:$E$44,MATCH($C110,Activo_nvo!$A$40:$A$44,0),MATCH(U$50,Activo_nvo!$B$39:$E$39,0)),"0") -> 0.2542636403 | V110: 0 | W110: 586687 | X110: 1175956 | Y110: 928800 | Z110: 1520100 | AA110: 0 | AB110: 193983.0182 | AC110: 388819.7525 | AD110: 307099.7436 | AE110: 502608.0106 | AF110: 0 | AG110: 138969.2437 | AH110: 278550.0888 | AI110: 220005.9547 | AJ110: 360067.8852 | AK110: 0 | AL110: 104561.5658 | AM110: 209583.3053 | AN110: 165534.2326 | AO110: 270917.9446 | AP110: 0 | AQ110: 149173.1723 | AR110: 299002.8533 | AS110: 236160.0691 | AT110: 386506.1596
A111: Informática | C111: SV-SNAR- APROX - A/D | D111: Equipos | G111: 2027086.491 | R111: =+IFERROR(INDEX(Activo_nvo!$B$40:$E$44,MATCH($C111,Activo_nvo!$A$40:$A$44,0),MATCH(R$50,Activo_nvo!$B$39:$E$39,0)),"0") -> 0.3306414122 | S111: =+IFERROR(INDEX(Activo_nvo!$B$40:$E$44,MATCH($C111,Activo_nvo!$A$40:$A$44,0),MATCH(S$50,Activo_nvo!$B$39:$E$39,0)),"0") -> 0.236871183 | T111: =+IFERROR(INDEX(Activo_nvo!$B$40:$E$44,MATCH($C111,Activo_nvo!$A$40:$A$44,0),MATCH(T$50,Activo_nvo!$B$39:$E$39,0)),"0") -> 0.1782237646 | U111: =+IFERROR(INDEX(Activo_nvo!$B$40:$E$44,MATCH($C111,Activo_nvo!$A$40:$A$44,0),MATCH(U$50,Activo_nvo!$B$39:$E$39,0)),"0") -> 0.2542636403 | V111: 2027086.491 | W111: 0 | X111: 0 | Y111: 0 | Z111: 0 | AA111: 670238.74 | AB111: 0 | AC111: 0 | AD111: 0 | AE111: 0 | AF111: 480158.3751 | AG111: 0 | AH111: 0 | AI111: 0 | AJ111: 0 | AK111: 361274.9857 | AL111: 0 | AM111: 0 | AN111: 0 | AO111: 0 | AP111: 515414.3903 | AQ111: 0 | AR111: 0 | AS111: 0 | AT111: 0
A112: Informática | B112: Adquisición de equipos, hardware y software. | C112: SV-SNAR- APROX - A/D | D112: Equipos | F112: =223975/2.6 -> 86144.23077 | H112: Varios | I112: =+K112+M112+O112+Q112 -> 13860000 | K112: 2604000 | M112: 2996000 | O112: 4480000 | Q112: 3780000 | R112: =+IFERROR(INDEX(Activo_nvo!$B$40:$E$44,MATCH($C112,Activo_nvo!$A$40:$A$44,0),MATCH(R$50,Activo_nvo!$B$39:$E$39,0)),"0") -> 0.3306414122 | S112: =+IFERROR(INDEX(Activo_nvo!$B$40:$E$44,MATCH($C112,Activo_nvo!$A$40:$A$44,0),MATCH(S$50,Activo_nvo!$B$39:$E$39,0)),"0") -> 0.236871183 | T112: =+IFERROR(INDEX(Activo_nvo!$B$40:$E$44,MATCH($C112,Activo_nvo!$A$40:$A$44,0),MATCH(T$50,Activo_nvo!$B$39:$E$39,0)),"0") -> 0.1782237646 | U112: =+IFERROR(INDEX(Activo_nvo!$B$40:$E$44,MATCH($C112,Activo_nvo!$A$40:$A$44,0),MATCH(U$50,Activo_nvo!$B$39:$E$39,0)),"0") -> 0.2542636403 | V112: 0 | W112: 2604000 | X112: 2996000 | Y112: 4480000 | Z112: 3780000 | AA112: 0 | AB112: 860990.2373 | AC112: 990601.6708 | AD112: 1481273.526 | AE112: 1249824.538 | AF112: 0 | AG112: 616812.5604 | AH112: 709666.0642 | AI112: 1061182.9 | AJ112: 895373.0716 | AK112: 0 | AL112: 464094.6831 | AM112: 533958.3988 | AN112: 798442.4655 | AO112: 673685.8303 | AP112: 0 | AQ112: 662102.5192 | AR112: 761773.8662 | AS112: 1139101.108 | AT112: 961116.5602
A113: Capacitación | B113: Simulador de Control de Tránsito Aéreo de Aeródromos | C113: APROX - A/D | D113: Sistemas | H113: =+J113+L113+N113+P113 -> 0.5 | I113: =+K113+M113+O113+Q113 -> 5129130 | K113: 512913 | L113: 0.5 | M113: 4616217 | R113: =+IFERROR(INDEX(Activo_nvo!$B$40:$E$44,MATCH($C113,Activo_nvo!$A$40:$A$44,0),MATCH(R$50,Activo_nvo!$B$39:$E$39,0)),"0") -> 0 | S113: =+IFERROR(INDEX(Activo_nvo!$B$40:$E$44,MATCH($C113,Activo_nvo!$A$40:$A$44,0),MATCH(S$50,Activo_nvo!$B$39:$E$39,0)),"0") -> 0 | T113: =+IFERROR(INDEX(Activo_nvo!$B$40:$E$44,MATCH($C113,Activo_nvo!$A$40:$A$44,0),MATCH(T$50,Activo_nvo!$B$39:$E$39,0)),"0") -> 0.4120900692 | U113: =+IFERROR(INDEX(Activo_nvo!$B$40:$E$44,MATCH($C113,Activo_nvo!$A$40:$A$44,0),MATCH(U$50,Activo_nvo!$B$39:$E$39,0)),"0") -> 0.5879099308 | V113: 0 | W113: 512913 | X113: 4616217 | Y113: 0 | Z113: 0 | AA113: 0 | AB113: 0 | AC113: 0 | AD113: 0 | AE113: 0 | AF113: 0 | AG113: 0 | AH113: 0 | AI113: 0 | AJ113: 0 | AK113: 0 | AL113: 211366.3537 | AM113: 1902297.183 | AN113: 0 | AO113: 0 | AP113: 0 | AQ113: 301546.6463 | AR113: 2713919.817 | AS113: 0 | AT113: 0
A114: Otras inversiones | C114: SV-SNAR- APROX - A/D | D114: Sistemas | G114: =(304420.331873419+14471)*2.70278198811423 -> 861893.748 | R114: =+IFERROR(INDEX(Activo_nvo!$B$40:$E$44,MATCH($C114,Activo_nvo!$A$40:$A$44,0),MATCH(R$50,Activo_nvo!$B$39:$E$39,0)),"0") -> 0.3306414122 | S114: =+IFERROR(INDEX(Activo_nvo!$B$40:$E$44,MATCH($C114,Activo_nvo!$A$40:$A$44,0),MATCH(S$50,Activo_nvo!$B$39:$E$39,0)),"0") -> 0.236871183 | T114: =+IFERROR(INDEX(Activo_nvo!$B$40:$E$44,MATCH($C114,Activo_nvo!$A$40:$A$44,0),MATCH(T$50,Activo_nvo!$B$39:$E$39,0)),"0") -> 0.1782237646 | U114: =+IFERROR(INDEX(Activo_nvo!$B$40:$E$44,MATCH($C114,Activo_nvo!$A$40:$A$44,0),MATCH(U$50,Activo_nvo!$B$39:$E$39,0)),"0") -> 0.2542636403 | V114: 861893.748 | W114: 0 | X114: 0 | Y114: 0 | Z114: 0 | AA114: 284977.766 | AB114: 0 | AC114: 0 | AD114: 0 | AE114: 0 | AF114: 204157.7917 | AG114: 0 | AH114: 0 | AI114: 0 | AJ114: 0 | AK114: 153609.9485 | AL114: 0 | AM114: 0 | AN114: 0 | AO114: 0 | AP114: 219148.2419 | AQ114: 0 | AR114: 0 | AS114: 0 | AT114: 0
A115: Otras inversiones | B115: Modernización de Estaciones de Trabajo de Torres de Control en los Aeropuertos Controlados Nivel nacional. | C115: APROX - A/D | D115: Sistemas | H115: =+J115+L115+N115+P115 -> 15 | I115: 11540570 | J115: 5 | K115: 1154057 | L115: 5 | M115: 5193257 | N115: 5 | O115: 5193256 | R115: =+IFERROR(INDEX(Activo_nvo!$B$40:$E$44,MATCH($C115,Activo_nvo!$A$40:$A$44,0),MATCH(R$50,Activo_nvo!$B$39:$E$39,0)),"0") -> 0 | S115: =+IFERROR(INDEX(Activo_nvo!$B$40:$E$44,MATCH($C115,Activo_nvo!$A$40:$A$44,0),MATCH(S$50,Activo_nvo!$B$39:$E$39,0)),"0") -> 0 | T115: =+IFERROR(INDEX(Activo_nvo!$B$40:$E$44,MATCH($C115,Activo_nvo!$A$40:$A$44,0),MATCH(T$50,Activo_nvo!$B$39:$E$39,0)),"0") -> 0.4120900692 | U115: =+IFERROR(INDEX(Activo_nvo!$B$40:$E$44,MATCH($C115,Activo_nvo!$A$40:$A$44,0),MATCH(U$50,Activo_nvo!$B$39:$E$39,0)),"0") -> 0.5879099308 | V115: 0 | W115: 1154057 | X115: 5193257 | Y115: 5193256 | Z115: 0 | AA115: 0 | AB115: 0 | AC115: 0 | AD115: 0 | AE115: 0 | AF115: 0 | AG115: 0 | AH115: 0 | AI115: 0 | AJ115: 0 | AK115: 0 | AL115: 475575.429 | AM115: 2140089.637 | AN115: 2140089.225 | AO115: 0 | AP115: =+$U115*V115 -> 0 | AQ115: =+$U115*W115 -> 678481.571 | AR115: =+$U115*X115 -> 3053167.363 | AS115: =+$U115*Y115 -> 3053166.775 | AT115: =+$U115*Z115 -> 0
A116: Otras inversiones | B116: Sistema de Gestión Administrativa de mantenimiento de Equipos de la Gerencia Tecnica. | C116: SV-SNAR- APROX - A/D | D116: Sistemas | H116: 1 | I116: 2034262 | M116: =196620 -> 196620 | N116: 1 | O116: 1837642 | R116: =+IFERROR(INDEX(Activo_nvo!$B$40:$E$44,MATCH($C116,Activo_nvo!$A$40:$A$44,0),MATCH(R$50,Activo_nvo!$B$39:$E$39,0)),"0") -> 0.3306414122 | S116: =+IFERROR(INDEX(Activo_nvo!$B$40:$E$44,MATCH($C116,Activo_nvo!$A$40:$A$44,0),MATCH(S$50,Activo_nvo!$B$39:$E$39,0)),"0") -> 0.236871183 | T116: =+IFERROR(INDEX(Activo_nvo!$B$40:$E$44,MATCH($C116,Activo_nvo!$A$40:$A$44,0),MATCH(T$50,Activo_nvo!$B$39:$E$39,0)),"0") -> 0.1782237646 | U116: =+IFERROR(INDEX(Activo_nvo!$B$40:$E$44,MATCH($C116,Activo_nvo!$A$40:$A$44,0),MATCH(U$50,Activo_nvo!$B$39:$E$39,0)),"0") -> 0.2542636403 | V116: =+G116 -> 0 | W116: =+K116 -> 0 | X116: =+M116 -> 196620 | Y116: =+O116 -> 1837642 | Z116: =+Q116 -> 0 | AA116: =+$R116*V116 -> 0 | AB116: =+$R116*W116 -> 0 | AC116: =+$R116*X116 -> 65010.71446 | AD116: =+$R116*Y116 -> 607600.5459 | AE116: =+$R116*Z116 -> 0 | AF116: 0 | AG116: 0 | AH116: 46573.61199 | AI116: 435284.4344 | AJ116: 0 | AK116: =+$T116*V116 -> 0 | AL116: =+$T116*W116 -> 0 | AM116: =+$T116*X116 -> 35042.3566 | AN116: =+$T116*Y116 -> 327511.4753 | AO116: =+$T116*Z116 -> 0 | AP116: =+$U116*V116 -> 0 | AQ116: =+$U116*W116 -> 0 | AR116: =+$U116*X116 -> 49993.31695 | AS116: =+$U116*Y116 -> 467245.5444 | AT116: =+$U116*Z116 -> 0
A117: Otras inversiones | B117: Sistema radar primario | C117: SV-SNAR- APROX - A/D | D117: Sistemas | E117: 1 | F117: =5385156/2.6 -> 2071213.846 | H117: 1 | I117: 11540580 | J117: 0.1 | K117: 1154058 | L117: 0.9 | M117: 10386522 | R117: =+IFERROR(INDEX(Activo_nvo!$B$40:$E$44,MATCH($C117,Activo_nvo!$A$40:$A$44,0),MATCH(R$50,Activo_nvo!$B$39:$E$39,0)),"0") -> 0.3306414122 | S117: =+IFERROR(INDEX(Activo_nvo!$B$40:$E$44,MATCH($C117,Activo_nvo!$A$40:$A$44,0),MATCH(S$50,Activo_nvo!$B$39:$E$39,0)),"0") -> 0.236871183 | T117: =+IFERROR(INDEX(Activo_nvo!$B$40:$E$44,MATCH($C117,Activo_nvo!$A$40:$A$44,0),MATCH(T$50,Activo_nvo!$B$39:$E$39,0)),"0") -> 0.1782237646 | U117: =+IFERROR(INDEX(Activo_nvo!$B$40:$E$44,MATCH($C117,Activo_nvo!$A$40:$A$44,0),MATCH(U$50,Activo_nvo!$B$39:$E$39,0)),"0") -> 0.2542636403 | V117: 0 | W117: 1154058 | X117: 10386522 | Y117: 0 | Z117: 0 | AA117: 0 | AB117: 381579.3668 | AC117: 3434214.301 | AD117: 0 | AE117: 0 | AF117: 0 | AG117: 273363.0837 | AH117: 2460267.753 | AI117: 0 | AJ117: 0 | AK117: 0 | AL117: 205680.5614 | AM117: 1851125.052 | AN117: 0 | AO117: 0 | AP117: 0 | AQ117: 293434.9881 | AR117: 2640914.893 | AS117: 0 | AT117: 0
A118: Otras inversiones | B118: Equipos del Sistema de Vigilancia Aérea. | C118: SV-SNAR- APROX - A/D | D118: Equipos | H118: Varios | I118: =+K118+M118+O118+Q118 -> 2534319 | K118: 522755 | M118: 594000 | O118: =378000+357782 -> 735782 | Q118: =324000+357782 -> 681782 | R118: =+IFERROR(INDEX(Activo_nvo!$B$40:$E$44,MATCH($C118,Activo_nvo!$A$40:$A$44,0),MATCH(R$50,Activo_nvo!$B$39:$E$39,0)),"0") -> 0.3306414122 | S118: =+IFERROR(INDEX(Activo_nvo!$B$40:$E$44,MATCH($C118,Activo_nvo!$A$40:$A$44,0),MATCH(S$50,Activo_nvo!$B$39:$E$39,0)),"0") -> 0.236871183 | T118: =+IFERROR(INDEX(Activo_nvo!$B$40:$E$44,MATCH($C118,Activo_nvo!$A$40:$A$44,0),MATCH(T$50,Activo_nvo!$B$39:$E$39,0)),"0") -> 0.1782237646 | U118: =+IFERROR(INDEX(Activo_nvo!$B$40:$E$44,MATCH($C118,Activo_nvo!$A$40:$A$44,0),MATCH(U$50,Activo_nvo!$B$39:$E$39,0)),"0") -> 0.2542636403 | V118: 0 | W118: 522755 | X118: 594000 | Y118: 735782 | Z118: 681782 | AA118: 0 | AB118: 172844.4514 | AC118: 196400.9988 | AD118: 243279.9995 | AE118: 225425.3633 | AF118: 0 | AG118: 123825.5953 | AH118: 140701.4827 | AI118: 174285.5527 | AJ118: 161494.5089 | AK118: 0 | AL118: 93167.36407 | AM118: 105864.9162 | AN118: 131133.838 | AO118: 121509.7547 | AP118: 0 | AQ118: 132917.5893 | AR118: 151032.6023 | AS118: 187082.6098 | AT118: 173352.3732
A119: Otras inversiones | B119: Estudios para elaboración proyecto para implantación nuevos sistemas CNS/ATM | C119: SV-SNAR- APROX - A/D | D119: Estudios | H119: 1 | I119: 1608368 | L119: 0.6 | M119: 950400 | N119: 0.4 | O119: 657968 | R119: =+IFERROR(INDEX(Activo_nvo!$B$40:$E$44,MATCH($C119,Activo_nvo!$A$40:$A$44,0),MATCH(R$50,Activo_nvo!$B$39:$E$39,0)),"0") -> 0.3306414122 | S119: =+IFERROR(INDEX(Activo_nvo!$B$40:$E$44,MATCH($C119,Activo_nvo!$A$40:$A$44,0),MATCH(S$50,Activo_nvo!$B$39:$E$39,0)),"0") -> 0.236871183 | T119: =+IFERROR(INDEX(Activo_nvo!$B$40:$E$44,MATCH($C119,Activo_nvo!$A$40:$A$44,0),MATCH(T$50,Activo_nvo!$B$39:$E$39,0)),"0") -> 0.1782237646 | U119: =+IFERROR(INDEX(Activo_nvo!$B$40:$E$44,MATCH($C119,Activo_nvo!$A$40:$A$44,0),MATCH(U$50,Activo_nvo!$B$39:$E$39,0)),"0") -> 0.2542636403 | V119: 0 | W119: 0 | X119: 950400 | Y119: 657968 | Z119: 0 | AA119: 0 | AB119: 0 | AC119: 314241.5981 | AD119: 217551.4687 | AE119: 0 | AF119: 0 | AG119: 0 | AH119: 225122.3723 | AI119: 155853.6585 | AJ119: 0 | AK119: 0 | AL119: 0 | AM119: 169383.8659 | AN119: 117265.534 | AO119: 0 | AP119: 0 | AQ119: 0 | AR119: 241652.1637 | AS119: 167297.3389 | AT119: 0
A120: Otras inversiones | B120: Actualización del sistema AMHS | C120: SV-SNAR- APROX - A/D | D120: Equipos | H120: 1 | I120: 4384640 | J120: 1 | K120: 4384640 | R120: =+IFERROR(INDEX(Activo_nvo!$B$40:$E$44,MATCH($C120,Activo_nvo!$A$40:$A$44,0),MATCH(R$50,Activo_nvo!$B$39:$E$39,0)),"0") -> 0.3306414122 | S120: =+IFERROR(INDEX(Activo_nvo!$B$40:$E$44,MATCH($C120,Activo_nvo!$A$40:$A$44,0),MATCH(S$50,Activo_nvo!$B$39:$E$39,0)),"0") -> 0.236871183 | T120: =+IFERROR(INDEX(Activo_nvo!$B$40:$E$44,MATCH($C120,Activo_nvo!$A$40:$A$44,0),MATCH(T$50,Activo_nvo!$B$39:$E$39,0)),"0") -> 0.1782237646 | U120: =+IFERROR(INDEX(Activo_nvo!$B$40:$E$44,MATCH($C120,Activo_nvo!$A$40:$A$44,0),MATCH(U$50,Activo_nvo!$B$39:$E$39,0)),"0") -> 0.2542636403 | V120: 0 | W120: 4384640 | X120: 0 | Y120: 0 | Z120: 0 | AA120: 0 | AB120: 1449743.561 | AC120: 0 | AD120: 0 | AE120: 0 | AF120: 0 | AG120: 1038594.864 | AH120: 0 | AI120: 0 | AJ120: 0 | AK120: 0 | AL120: 781447.0473 | AM120: 0 | AN120: 0 | AO120: 0 | AP120: 0 | AQ120: 1114854.528 | AR120: 0 | AS120: 0 | AT120: 0
A121: Otras inversiones | B121: Gastos complementarios Proyecto PER/08/802 | C121: SV-SNAR | D121: Actividad | F121: =1153762/2.6 -> 443754.6154 | H121: Varios | I121: 1097760 | K121: 1097760 | R121: =+IFERROR(INDEX(Activo_nvo!$B$40:$E$44,MATCH($C121,Activo_nvo!$A$40:$A$44,0),MATCH(R$50,Activo_nvo!$B$39:$E$39,0)),"0") -> 0.5826151085 | S121: =+IFERROR(INDEX(Activo_nvo!$B$40:$E$44,MATCH($C121,Activo_nvo!$A$40:$A$44,0),MATCH(S$50,Activo_nvo!$B$39:$E$39,0)),"0") -> 0.4173848915 | T121: =+IFERROR(INDEX(Activo_nvo!$B$40:$E$44,MATCH($C121,Activo_nvo!$A$40:$A$44,0),MATCH(T$50,Activo_nvo!$B$39:$E$39,0)),"0") -> 0 | U121: =+IFERROR(INDEX(Activo_nvo!$B$40:$E$44,MATCH($C121,Activo_nvo!$A$40:$A$44,0),MATCH(U$50,Activo_nvo!$B$39:$E$39,0)),"0") -> 0 | V121: 0 | W121: 1097760 | X121: 0 | Y121: 0 | Z121: 0 | AA121: 0 | AB121: 639571.5615 | AC121: 0 | AD121: 0 | AE121: 0 | AF121: 0 | AG121: 458188.4385 | AH121: 0 | AI121: 0 | AJ121: 0 | AK121: 0 | AL121: 0 | AM121: 0 | AN121: 0 | AO121: 0 | AP121: 0 | AQ121: 0 | AR121: 0 | AS121: 0 | AT121: 0
A122: Otras inversiones | B122: Sistema integrado de calibración y monitoreo en tierra para el mantenimiento de sistemas de radioayudas | C122: SV-SNAR- APROX - A/D | D122: Sistemas | H122: =+J122+L122+N122+P122 -> 1 | I122: 1350000 | O122: 135000 | P122: 1 | Q122: 1215000 | R122: =+IFERROR(INDEX(Activo_nvo!$B$40:$E$44,MATCH($C122,Activo_nvo!$A$40:$A$44,0),MATCH(R$50,Activo_nvo!$B$39:$E$39,0)),"0") -> 0.3306414122 | S122: =+IFERROR(INDEX(Activo_nvo!$B$40:$E$44,MATCH($C122,Activo_nvo!$A$40:$A$44,0),MATCH(S$50,Activo_nvo!$B$39:$E$39,0)),"0") -> 0.236871183 | T122: =+IFERROR(INDEX(Activo_nvo!$B$40:$E$44,MATCH($C122,Activo_nvo!$A$40:$A$44,0),MATCH(T$50,Activo_nvo!$B$39:$E$39,0)),"0") -> 0.1782237646 | U122: =+IFERROR(INDEX(Activo_nvo!$B$40:$E$44,MATCH($C122,Activo_nvo!$A$40:$A$44,0),MATCH(U$50,Activo_nvo!$B$39:$E$39,0)),"0") -> 0.2542636403 | V122: 0 | W122: 0 | X122: 0 | Y122: 135000 | Z122: 1215000 | AA122: 0 | AB122: 0 | AC122: 0 | AD122: 44636.59064 | AE122: 401729.3158 | AF122: 0 | AG122: 0 | AH122: 0 | AI122: 31977.6097 | AJ122: 287798.4873 | AK122: 0 | AL122: 0 | AM122: 0 | AN122: 24060.20822 | AO122: 216541.874 | AP122: 0 | AQ122: 0 | AR122: 0 | AS122: 34325.59143 | AT122: 308930.3229
A123: Otras inversiones | B123: Sistemas de Módulo NOTAM Office e integrado de diseño procedimiento de vuelo | C123: SV-SNAR- APROX - A/D | D123: Sistemas | H123: =+J123+L123+N123+P123 -> 2 | I123: 5416200 | O123: 2166480 | P123: 2 | Q123: 3249720 | R123: =+IFERROR(INDEX(Activo_nvo!$B$40:$E$44,MATCH($C123,Activo_nvo!$A$40:$A$44,0),MATCH(R$50,Activo_nvo!$B$39:$E$39,0)),"0") -> 0.3306414122 | S123: =+IFERROR(INDEX(Activo_nvo!$B$40:$E$44,MATCH($C123,Activo_nvo!$A$40:$A$44,0),MATCH(S$50,Activo_nvo!$B$39:$E$39,0)),"0") -> 0.236871183 | T123: =+IFERROR(INDEX(Activo_nvo!$B$40:$E$44,MATCH($C123,Activo_nvo!$A$40:$A$44,0),MATCH(T$50,Activo_nvo!$B$39:$E$39,0)),"0") -> 0.1782237646 | U123: =+IFERROR(INDEX(Activo_nvo!$B$40:$E$44,MATCH($C123,Activo_nvo!$A$40:$A$44,0),MATCH(U$50,Activo_nvo!$B$39:$E$39,0)),"0") -> 0.2542636403 | V123: 0 | W123: 0 | X123: 0 | Y123: 2166480 | Z123: 3249720 | AA123: 0 | AB123: 0 | AC123: 0 | AD123: 716328.0066 | AE123: 1074492.01 | AF123: 0 | AG123: 0 | AH123: 0 | AI123: 513176.6805 | AJ123: 769765.0207 | AK123: 0 | AL123: 0 | AM123: 0 | AN123: 386118.2216 | AO123: 579177.3324 | AP123: 0 | AQ123: 0 | AR123: 0 | AS123: 550857.0913 | AT123: 826285.637
A124: Otras inversiones | B124: Investigación,capacitación y actualización tecnológica GREPECAS | C124: SV-SNAR- APROX - A/D | D124: Actividad | F124: 67795 | H124: Varios | I124: 3865382 | K124: 1219382 | M124: 675000 | O124: 675000 | Q124: =621000+675000 -> 1296000 | R124: =+IFERROR(INDEX(Activo_nvo!$B$40:$E$44,MATCH($C124,Activo_nvo!$A$40:$A$44,0),MATCH(R$50,Activo_nvo!$B$39:$E$39,0)),"0") -> 0.3306414122 | S124: =+IFERROR(INDEX(Activo_nvo!$B$40:$E$44,MATCH($C124,Activo_nvo!$A$40:$A$44,0),MATCH(S$50,Activo_nvo!$B$39:$E$39,0)),"0") -> 0.236871183 | T124: =+IFERROR(INDEX(Activo_nvo!$B$40:$E$44,MATCH($C124,Activo_nvo!$A$40:$A$44,0),MATCH(T$50,Activo_nvo!$B$39:$E$39,0)),"0") -> 0.1782237646 | U124: =+IFERROR(INDEX(Activo_nvo!$B$40:$E$44,MATCH($C124,Activo_nvo!$A$40:$A$44,0),MATCH(U$50,Activo_nvo!$B$39:$E$39,0)),"0") -> 0.2542636403 | V124: 0 | W124: 1219382 | X124: 675000 | Y124: 675000 | Z124: 1296000 | AA124: 0 | AB124: 403178.1864 | AC124: 223182.9532 | AD124: 223182.9532 | AE124: 428511.2702 | AF124: 0 | AG124: 288836.4568 | AH124: 159888.0485 | AI124: 159888.0485 | AJ124: 306985.0531 | AK124: 0 | AL124: 217322.8506 | AM124: 120301.0411 | AN124: 120301.0411 | AO124: 230977.9989 | AP124: 0 | AQ124: 310044.5062 | AR124: 171627.9572 | AS124: 171627.9572 | AT124: 329525.6778
A125: Total | V125: =SUM(V51:V124) -> 25996659.77 | W125: =SUM(W51:W124) -> 53671721 | X125: =SUM(X51:X124) -> 99923989 | Y125: =SUM(Y51:Y124) -> 83719171 | Z125: =SUM(Z51:Z124) -> 75224088 | AA125: =SUM(AA51:AA124) -> 3427552.639 | AB125: 12276147.57 | AC125: 25520182.35 | AD125: 24657108.13 | AE125: 18435795.74 | AF125: 2455495.345 | AG125: 8794620.066 | AH125: 18282633.58 | AI125: 17664328.05 | AJ125: 13207385.96 | AK125: 8288619.673 | AL125: 12413838.89 | AM125: 22375116 | AN125: 16773987.09 | AO125: 17959258.69 | AP125: 11824992.11 | AQ125: 20187114.47 | AR125: 33746057.07 | AS125: 24623747.73 | AT125: 25621647.6
V126: =+V125-AA125-AF125-AK125-AP125 -> 0 | W126: =+W125-AB125-AG125-AL125-AQ125 -> 0 | X126: =+X125-AC125-AH125-AM125-AR125 -> 0 | Y126: =+Y125-AD125-AI125-AN125-AS125 -> 0 | Z126: =+Z125-AE125-AJ125-AO125-AT125 -> 0
A127: Inversiones proyectadas
A128: En miles de soles de 2013
A130: Escenario: x% ejecución, 0% de reasignación, 100% de usuarios
A132: SNAR nacional
A133: Ajuste requerido: | B133: =+VLOOKUP(A132,$A$13:$G$16,$E$11,0) -> 0.3200535748
A134: Actividad | H134: =+SUMIF($D$51:$D$124,$A134,AA$51:AA$124)*$B$133/1000 -> 0 | I134: =+SUMIF($D$51:$D$124,$A134,AB$51:AB$124)*$B$133/1000 -> 333.7357844 | J134: =+SUMIF($D$51:$D$124,$A134,AC$51:AC$124)*$B$133/1000 -> 71.43050201 | K134: =+SUMIF($D$51:$D$124,$A134,AD$51:AD$124)*$B$133/1000 -> 71.43050201 | L134: =+SUMIF($D$51:$D$124,$A134,AE$51:AE$124)*$B$133/1000 -> 137.1465639 | M134: 0
A135: Aeronave | H135: =+SUMIF($D$51:$D$124,$A135,AA$51:AA$124)*$B$133/1000 -> 0 | I135: =+SUMIF($D$51:$D$124,$A135,AB$51:AB$124)*$B$133/1000 -> 521.2394846 | J135: 2438.182194 | K135: 777.6546688 | L135: 0 | M135: 0
A136: Equipos | H136: =+SUMIF($D$51:$D$124,$A136,AA$51:AA$124)*$B$133/1000 -> 363.4835379 | I136: 1705.377415 | J136: 1978.83888 | K136: 2451.834309 | L136: 2061.454658 | M136: 0
A137: Estaciones | H137: 0 | I137: 4.426574665 | J137: 0 | K137: 0 | L137: 0 | M137: 0
A138: Estudios | H138: 0 | I138: 0 | J138: 100.5741468 | K138: 69.62812525 | L138: 0 | M138: 0
A139: Obra | H139: 193.0092176 | I139: 58.50211251 | J139: 117.0286351 | K139: 1448.714588 | L139: 900.0243253 | M139: 0
A140: Red | H140: 102.8372862 | I140: 867.5019648 | J140: 1463.506751 | K140: 917.5773923 | L140: 1211.461314 | M140: 0
A141: Sistemas | H141: =+SUMIF($D$51:$D$124,$A141,AA$51:AA$124)*$B$133/1000 -> 437.6704331 | I141: 438.24158 | J141: 1998.264484 | K141: 2154.756015 | L141: 1590.35547 | M141: 0
A142: Total | H142: =+SUM(H134:H141) -> 1097.000475 | I142: 3929.024916 | J142: 8167.825592 | K142: 7891.595601 | L142: 5900.442331 | M142: 0
A145: SNAR internacional
A146: Ajuste requerido: | B146: =+VLOOKUP(A145,$A$13:$G$16,$E$11,0) -> 0.2799464252
A147: Actividad | H147: =+SUMIF($D$51:$D$124,$A147,AA$51:AA$124)*$B$146/1000 -> 0 | I147: =+SUMIF($D$51:$D$124,$A147,AB$51:AB$124)*$B$146/1000 -> 291.9140643 | J147: =+SUMIF($D$51:$D$124,$A147,AC$51:AC$124)*$B$146/1000 -> 62.47926992 | K147: =+SUMIF($D$51:$D$124,$A147,AD$51:AD$124)*$B$146/1000 -> 62.47926992 | L147: =+SUMIF($D$51:$D$124,$A147,AE$51:AE$124)*$B$146/1000 -> 119.9601982 | M147: 0
A148: Aeronave | H148: =+SUMIF($D$51:$D$124,$A148,AA$51:AA$124)*$B$146/1000 -> 0 | I148: =+SUMIF($D$51:$D$124,$A148,AB$51:AB$124)*$B$146/1000 -> 455.9209516 | J148: =+SUMIF($D$51:$D$124,$A148,AC$51:AC$124)*$B$146/1000 -> 2132.644166 | K148: =+SUMIF($D$51:$D$124,$A148,AD$51:AD$124)*$B$146/1000 -> 680.2037587 | L148: =+SUMIF($D$51:$D$124,$A148,AE$51:AE$124)*$B$146/1000 -> 0 | M148: 0
A149: Equipos | H149: 317.9340119 | I149: 1491.669984 | J149: 1730.862937 | K149: 2144.585482 | L149: 1803.125812 | M149: 0
A150: Estaciones | H150: 0 | I150: 3.871863497 | J150: 0 | K150: 0 | L150: 0 | M150: 0
A151: Estudios | H151: 0 | I151: 0 | J151: 87.97081204 | K151: 60.90275595 | L151: 0 | M151: 0
A152: Obra | H152: 168.8224871 | I152: 51.17098683 | J152: 102.3633248 | K152: 1267.170568 | L152: 787.2388009 | M152: 0
A153: Red | H153: 89.95034868 | I153: 758.7919431 | J153: 1280.109067 | K153: 802.5922253 | L153: 1059.648418 | M153: 0
A154: Sistemas | H154: =+SUMIF($D$51:$D$124,$A154,AA$51:AA$124)*$B$146/1000 -> 382.8242608 | I154: 383.323835 | J154: 1747.854244 | K154: 1884.735217 | L154: 1391.061884 | M154: 0
A155: Total | H155: =+SUM(H147:H154) -> 959.5311085 | I155: 3436.663628 | J155: 7144.283821 | K155: 6902.669276 | L155: 5161.035113 | M155: 0
H156: =+(H142+H155)-(AA125/1000) -> -1371.021056 | I156: =+(I142+I155)-(AB125/1000) -> -4910.459029 | J156: =+(J142+J155)-(AC125/1000) -> -10208.07294 | K156: =+(K142+K155)-(AD125/1000) -> -9862.843251 | L156: =+(L142+L155)-(AE125/1000) -> -7374.318296
A158: Aproximación
A159: Ajuste requerido: | B159: =+VLOOKUP(A158,$A$13:$G$16,$E$11,0) -> 0.6
A160: Actividad | H160: =+SUMIF($D$51:$D$124,$A160,AK$51:AK$124)*$B$159/1000 -> 0 | I160: =+SUMIF($D$51:$D$124,$A160,AL$51:AL$124)*$B$159/1000 -> 130.3937103 | J160: =+SUMIF($D$51:$D$124,$A160,AM$51:AM$124)*$B$159/1000 -> 72.18062467 | K160: =+SUMIF($D$51:$D$124,$A160,AN$51:AN$124)*$B$159/1000 -> 72.18062467 | L160: =+SUMIF($D$51:$D$124,$A160,AO$51:AO$124)*$B$159/1000 -> 138.5867994 | M160: 0
A161: Aeronave | H161: 0 | I161: =+SUMIF($D$51:$D$124,$A161,AL$51:AL$124)*$B$159/1000 -> 526.7132463 | J161: =+SUMIF($D$51:$D$124,$A161,AM$51:AM$124)*$B$159/1000 -> 2463.786602 | K161: =+SUMIF($D$51:$D$124,$A161,AN$51:AN$124)*$B$159/1000 -> 785.8211575 | L161: =+SUMIF($D$51:$D$124,$A161,AO$51:AO$124)*$B$159/1000 -> 0 | M161: 0
A162: Equipos | H162: 367.3006361 | I162: 2053.162527 | J162: 2233.274594 | K162: 2611.099266 | L162: 2350.137251 | M162: 0
A163: Estaciones | H163: 0 | I163: 4.473060044 | J163: 0 | K163: 0 | L163: 0 | M163: 0
A164: Estudios | H164: 0 | I164: 0 | J164: 101.6303195 | K164: 70.35932038 | L164: 0 | M164: 0
A165: Obra | H165: 0 | I165: 0 | J165: 45.38717679 | K165: 1172.446461 | L165: 909.4758709 | M165: 0
A166: Red | H166: 103.9172251 | I166: 876.611979 | J166: 1478.875669 | K166: 927.2132702 | L166: 1224.183394 | M166: 0
A167: Sistemas | H167: 4501.953943 | I167: 3856.948814 | J167: 7029.934613 | K167: 4425.272155 | L167: 6153.1719 | M167: 0
A168: Total | H168: =+SUM(H160:H167) -> 4973.171804 | I168: 7448.303337 | J168: 13425.0696 | K168: 10064.39226 | L168: 10775.55522 | M168: 0
H169: =+H168-(AK125/1000) -> -3315.447869 | I169: =+I168-(AL125/1000) -> -4965.535558 | J169: =+J168-(AM125/1000) -> -8950.046399 | K169: =+K168-(AN125/1000) -> -6709.594837 | L169: =+L168-(AO125/1000) -> -7183.703477
A171: Sobrevuelo
A172: Ajuste requerido: | B172: =+VLOOKUP(A171,$A$13:$G$16,$E$11,0) -> 0.6
A173: Actividad | H173: =+SUMIF($D$51:$D$124,$A173,AF$51:AF$124)*$B$172/1000 -> 0 | I173: 448.2149372 | J173: 95.9328291 | K173: 95.9328291 | L173: 184.1910319 | M173: 0
A174: Aeronave | H174: 0 | I174: 700.0367768 | J174: 3274.535516 | K174: 1044.408346 | L174: 0 | M174: 0
A175: Equipos | H175: 488.1668635 | I175: 2290.361617 | J175: 2657.626738 | K175: 3292.870624 | L175: 2768.581653 | M175: 0
A176: Estaciones | H176: 0 | I176: 5.94499295 | J176: 0 | K176: 0 | L176: 0 | M176: 0
A177: Estudios | H177: 0 | I177: 0 | J177: 135.0734234 | K177: 93.51219511 | L177: 0 | M177: 0
A178: Obra | H178: 259.215878 | I178: 78.56970066 | J178: 157.1721846 | K178: 1945.657459 | L178: 1208.753647 | M178: 0
A179: Red | H179: 138.1128723 | I179: 1165.075359 | J179: 1965.523677 | K179: 1232.327825 | L179: 1627.020782 | M179: 0
A180: Sistemas | H180: 587.8015929 | I180: 588.5686564 | J180: 2683.715778 | K180: 2893.887552 | L180: 2135.884464 | M180: 0
A181: Total | H181: =+SUM(H173:H180) -> 1473.297207 | I181: 5276.772039 | J181: 10969.58015 | K181: 10598.59683 | L181: 7924.431578 | M181: 0
H182: =+H181-(AF125/1000) -> -982.1981378 | I182: =+I181-(AG125/1000) -> -3517.848026 | J182: =+J181-(AH125/1000) -> -7313.053431 | K182: =+K181-(AI125/1000) -> -7065.73122 | L182: =+L181-(AJ125/1000) -> -5282.954385
A184: Aterrizaje y despegue
A185: Ajuste requerido: | B185: 1
A186: Actividad | H186: =+SUMIF($D$51:$D$124,$A186,AP$51:AP$124)*$B$185/1000 -> 0 | I186: 310.0445062 | J186: 171.6279572 | K186: 171.6279572 | L186: 329.5256778 | M186: 0
A187: Aeronave | H187: 0 | I187: 1252.395901 | J187: 5858.28487 | K187: 1868.491449 | L187: 0 | M187: 0
A188: Equipos | H188: 873.3515141 | I188: 7358.782762 | J188: 6961.424419 | K188: 6208.558531 | L188: 5588.054375 | M188: 0
A189: Estaciones | H189: 0 | I189: 10.63584807 | J189: 0 | K189: 0 | L189: 0 | M189: 0
A190: Estudios | H190: 0 | I190: 0 | J190: 241.6521637 | K190: 167.2973389 | L190: 0 | M190: 0
A191: Obra | H191: 0 | I191: 0 | J191: 281.1877979 | K191: 3480.864873 | L191: 2162.51226 | M191: 0
A192: Red | H192: 247.0898686 | I192: 2084.369924 | J192: 3516.406393 | K192: 2204.687479 | L192: 2910.810154 | M192: 0
A193: Sistemas | H193: 10704.55073 | I193: 9170.885524 | J193: 16715.47347 | K193: 10522.2201 | L193: 14630.74514 | M193: 0
A194: Total | H194: =+SUM(H186:H193) -> 11824.99211 | I194: 20187.11447 | J194: 33746.05707 | K194: 24623.74773 | L194: 25621.6476 | M194: 0
H195: =+H194-(AP125/1000) -> 0 | I195: =+I194-(AQ125/1000) -> 0 | J195: =+J194-(AR125/1000) -> 0 | K195: =+K194-(AS125/1000) -> 0 | L195: =+L194-(AT125/1000) -> 0
A197: Servicios regulados + A/D
A198: Actividad | H198: =+H134+H147+H160+H173+H186 -> 0 | I198: 1514.303002 | J198: 473.6511829 | K198: 473.6511829 | L198: 909.4102711 | M198: 0
A199: Aeronave | H199: =+H135+H148+H161+H174+H187 -> 0 | I199: 3456.30636 | J199: 16167.43335 | K199: 5156.57938 | L199: 0 | M199: 0
A200: Equipos | H200: =+H136+H149+H162+H175+H188 -> 2410.236564 | I200: 14899.3543 | J200: 15562.02757 | K200: 16708.94821 | L200: 14571.35375 | M200: 0
A201: Estaciones | H201: =+H137+H150+H163+H176+H189 -> 0 | I201: 29.35233923 | J201: 0 | K201: 0 | L201: 0 | M201: 0
A202: Estudios | H202: =+H138+H151+H164+H177+H190 -> 0 | I202: 0 | J202: 666.9008655 | K202: 461.6997355 | L202: 0 | M202: 0
A203: Obra | H203: =+H139+H152+H165+H178+H191 -> 621.0475827 | I203: 188.2428 | J203: 703.1391192 | K203: 9314.853949 | L203: 5968.004904 | M203: 0
A204: Red | H204: =+H140+H153+H166+H179+H192 -> 681.9076009 | I204: 5752.35117 | J204: 9704.421557 | K204: 6084.398192 | L204: 8033.124061 | M204: 0
A205: Sistemas | H205: =+H141+H154+H167+H180+H193 -> 16614.80096 | I205: 14437.96841 | J205: 30175.24259 | K205: 21880.87104 | L205: 25901.21885 | M205: 0
A206: Total | H206: =+SUM(H198:H205) -> 20327.99271 | I206: 40277.87839 | J206: 73452.81623 | K206: 60081.00169 | L206: 55383.11184 | M206: 0
H207: =+H206-(V125/1000) -> -5668.667063 | I207: =+I206-(W125/1000) -> -13393.84261 | J207: =+J206-(X125/1000) -> -26471.17277 | K207: =+K206-(Y125/1000) -> -23638.16931 | L207: =+L206-(Z125/1000) -> -19840.97616
A209: Servicio regulado: | B209: =+servicio -> Aproximación
A211: Actividad | B211: =+(IF(B209=A132,0, IF(B209=A145,1,IF(B209=A158,2,3)))*(ROW(A145)-ROW(A132)))+(ROW(A134)-ROW(A132)) -> 28 | H211: =OFFSET($A$132,$B211,COLUMN(H$2)-1) -> 0 | I211: 130.3937103 | J211: 72.18062467 | K211: 72.18062467 | L211: 138.5867994 | M211: 0
A212: Aeronave | B212: =+B211+1 -> 29 | H212: 0 | I212: 526.7132463 | J212: 2463.786602 | K212: 785.8211575 | L212: 0 | M212: 0
A213: Equipos | B213: =+B212+1 -> 30 | H213: 367.3006361 | I213: 2053.162527 | J213: 2233.274594 | K213: 2611.099266 | L213: 2350.137251 | M213: 0
A214: Estaciones | B214: 31 | H214: =OFFSET($A$132,$B214,COLUMN(H$2)-1) -> 0 | I214: 4.473060044 | J214: 0 | K214: 0 | L214: 0 | M214: 0
A215: Estudios | B215: 32 | H215: 0 | I215: 0 | J215: 101.6303195 | K215: 70.35932038 | L215: 0 | M215: 0
A216: Obra | B216: 33 | H216: 0 | I216: 0 | J216: 45.38717679 | K216: 1172.446461 | L216: 909.4758709 | M216: 0
A217: Red | B217: 34 | H217: 103.9172251 | I217: 876.611979 | J217: 1478.875669 | K217: 927.2132702 | L217: 1224.183394 | M217: 0
A218: Sistemas | B218: 35 | H218: =OFFSET($A$132,$B218,COLUMN(H$2)-1) -> 4501.953943 | I218: 3856.948814 | J218: 7029.934613 | K218: 4425.272155 | L218: 6153.1719 | M218: 0
A219: Total | H219: =+SUM(H211:H218) -> 4973.171804 | I219: 7448.303337 | J219: 13425.0696 | K219: 10064.39226 | L219: 10775.55522 | M219: 0
A222: Escenario: x% ejecución, x% de reasignación, 100% de usuarios
A224: Costos de aproximación a reasignar
A225: Actividad | H225: =+H160-H259 -> 0 | I225: 0 | J225: 0 | K225: 0 | L225: 0 | M225: 0
A226: Aeronave | H226: =+H161-H260 -> 0 | I226: 0 | J226: 0 | K226: 0 | L226: 0 | M226: 0
... 1140 more rows

Sheet Activo_ext
D2: 2009 | E2: 2010 | F2: 2011 | G2: 2012 | H2: 2013 | I2: 2014 | J2: 2015 | K2: 2016 | L2: 2017 | M2: 2018
A4: ESTIMACIÓN DE INVERSIONES, DEPRECIACIÓN E INTANGIBLES: ACTIVOS EXISTENTES
A5: Servicio regulado: | B5: =+servicio -> Aproximación
A6: Periodo: | B6: 2014-2018
A8: SUPUESTOS
A10: Ajustes de activos existentes
B11: 2 | C11: =+B11+1 -> 3 | D11: =+C11+1 -> 4 | E11: =+D11+1 -> 5
A12: Servicios | B12: Código | C12: =+Vínculos!C107 -> Distribución según participación en la depreciación de activos de aeronavegación
A13: SNAR nacional | B13: SNAR | C13: =+Vínculos!C108 -> 0.1392509291
A14: SNAR internacional | B14: SNAR | C14: =+Vínculos!C109 -> 0.1885295248
A15: Aproximación | B15: APROX | C15: =+Vínculos!C110 -> 0.1766816385
A16: Sobrevuelo | B16: SV | C16: =+Vínculos!C111 -> 0.2348215953
A19: Valor de activos | C19: …
A21: Valor de activos - totales
B22: 2 | C22: =+B22+1 -> 3
A23: Activo 1/ | B23: Valor de adquisición (S/. miles) | C23: Depreciación / Amortización acumulada (S/. Miles a dic-2013) | D23: Valor del activo (S/. miles a dic-2013)
A24: Terrenos | B24: =+VLOOKUP($A24,'BD-existentes '!$A$9326:$I$9332,B$22,0)/1000 -> 21625.72361 | C24: =+VLOOKUP($A24,'BD-existentes '!$A$9326:$I$9332,C$22,0)/1000 -> 0 | D24: =+B24-C24 -> 21625.72361
A25: Edificio | B25: =+VLOOKUP($A25,'BD-existentes '!$A$9326:$I$9332,B$22,0)/1000 -> 137286.9181 | C25: =+VLOOKUP($A25,'BD-existentes '!$A$9326:$I$9332,C$22,0)/1000 -> 116035.4834 | D25: 21251.43474
A26: Herramientas y unidades de reemplazo | B26: =+VLOOKUP($A26,'BD-existentes '!$A$9326:$I$9332,B$22,0)/1000 -> 117159.2501 | C26: =+VLOOKUP($A26,'BD-existentes '!$A$9326:$I$9332,C$22,0)/1000 -> 10272.12655 | D26: 106887.1235
A27: Intangible | B27: =+VLOOKUP($A27,'BD-existentes '!$A$9326:$I$9332,B$22,0)/1000 -> 5705.04304 | C27: =+VLOOKUP($A27,'BD-existentes '!$A$9326:$I$9332,C$22,0)/1000 -> 1384.829335 | D27: 4320.213705
A28: Maquinaria y equipo | B28: =+VLOOKUP($A28,'BD-existentes '!$A$9326:$I$9332,B$22,0)/1000 -> 45005.22231 | C28: =+VLOOKUP($A28,'BD-existentes '!$A$9326:$I$9332,C$22,0)/1000 -> 26712.89712 | D28: 18292.32519
A29: Otros | B29: =+VLOOKUP($A29,'BD-existentes '!$A$9326:$I$9332,B$22,0)/1000 -> 82402.74491 | C29: =+VLOOKUP($A29,'BD-existentes '!$A$9326:$I$9332,C$22,0)/1000 -> 44208.50396 | D29: 38194.24095
A30: Unidades por recibir | B30: =+VLOOKUP($A30,'BD-existentes '!$A$9326:$I$9332,B$22,0)/1000 -> 13129.59614 | C30: =+VLOOKUP($A30,'BD-existentes '!$A$9326:$I$9332,C$22,0)/1000 -> 2815.56895 | D30: 10314.02719
A31: Total general | B31: =+SUM(B24:B30) -> 422314.4982 | C31: =+SUM(C24:C30) -> 201429.4093 | D31: =+SUM(D24:D30) -> 220885.0889
A32: 1/ Terrenos incluye áreas de estaciones aeronáuticas y torres de control.
A35: Reasignación
A36: Atribución
A37: S/. miles
A38: Servicios | B38: Código | C38: % | D38: Valor de adquisición | E38: D&A acumulada | F38: Valor del activo (2013)
A39: SNAR nacional | B39: SNAR | C39: =+VLOOKUP(A39,$A$13:$E$16,$C$11,0)*100% -> 0.1392509291 | D39: =+$C39*B$31 -> 58807.68624 | E39: 28049.23239 | F39: =+D39-E39 -> 30758.45385
A40: SNAR internacional | B40: SNAR | C40: =+VLOOKUP(A40,$A$13:$E$16,$C$11,0)*100% -> 0.1885295248 | D40: 79618.75166 | E40: 37975.39082 | F40: =+D40-E40 -> 41643.36085
A41: Aproximación | B41: APROX | C41: =+VLOOKUP(A41,$A$13:$E$16,$C$11,0)*100% -> 0.1766816385 | D41: 74615.21751 | E41: 35588.87808 | F41: =+D41-E41 -> 39026.33943
A42: Sobrevuelo | B42: SV | C42: =+VLOOKUP(A42,$A$13:$E$16,$C$11,0)*100% -> 0.2348215953 | D42: 99168.56417 | E42: 47299.97523 | F42: =+D42-E42 -> 51868.58895
A43: Total | C43: =SUM(C39:C42) -> 0.7392836877 | D43: =SUM(D39:D42) -> 312210.2196 | E43: =SUM(E39:E42) -> 148913.4765 | F43: =SUM(F39:F42) -> 163296.7431
A46: D&A | C46: … | H46: 4 | I46: =+H46+1 -> 5 | J46: =+I46+1 -> 6 | K46: =+J46+1 -> 7 | L46: =+K46+1 -> 8 | M46: =+L46+1 -> 9
A48: Total aeronavegación y A/D
A49: En S/. miles del 2013
A51: Terrenos | H51: =+VLOOKUP($A51,'BD-existentes '!$A$9326:$I$9332,H$46,0)/1000 -> 0 | I51: =+VLOOKUP($A51,'BD-existentes '!$A$9326:$I$9332,I$46,0)/1000 -> 0 | J51: =+VLOOKUP($A51,'BD-existentes '!$A$9326:$I$9332,J$46,0)/1000 -> 0 | K51: =+VLOOKUP($A51,'BD-existentes '!$A$9326:$I$9332,K$46,0)/1000 -> 0 | L51: =+VLOOKUP($A51,'BD-existentes '!$A$9326:$I$9332,L$46,0)/1000 -> 0 | M51: =+VLOOKUP($A51,'BD-existentes '!$A$9326:$I$9332,M$46,0)/1000 -> 0
A52: Edificio | H52: =+VLOOKUP($A52,'BD-existentes '!$A$9326:$I$9332,H$46,0)/1000 -> 2221.97707 | I52: =+VLOOKUP($A52,'BD-existentes '!$A$9326:$I$9332,I$46,0)/1000 -> 1961.802786 | J52: =+VLOOKUP($A52,'BD-existentes '!$A$9326:$I$9332,J$46,0)/1000 -> 1677.84241 | K52: =+VLOOKUP($A52,'BD-existentes '!$A$9326:$I$9332,K$46,0)/1000 -> 1493.954601 | L52: =+VLOOKUP($A52,'BD-existentes '!$A$9326:$I$9332,L$46,0)/1000 -> 1421.763341 | M52: =+VLOOKUP($A52,'BD-existentes '!$A$9326:$I$9332,M$46,0)/1000 -> 1421.659295
A53: Herramientas y unidades de reemplazo | H53: =+VLOOKUP($A53,'BD-existentes '!$A$9326:$I$9332,H$46,0)/1000 -> 10272.12655 | I53: =+VLOOKUP($A53,'BD-existentes '!$A$9326:$I$9332,I$46,0)/1000 -> 10272.12655 | J53: =+VLOOKUP($A53,'BD-existentes '!$A$9326:$I$9332,J$46,0)/1000 -> 10272.12655 | K53: =+VLOOKUP($A53,'BD-existentes '!$A$9326:$I$9332,K$46,0)/1000 -> 10272.12655 | L53: =+VLOOKUP($A53,'BD-existentes '!$A$9326:$I$9332,L$46,0)/1000 -> 10272.12655 | M53: =+VLOOKUP($A53,'BD-existentes '!$A$9326:$I$9332,M$46,0)/1000 -> 10272.12655
A54: Intangible | H54: =+VLOOKUP($A54,'BD-existentes '!$A$9326:$I$9332,H$46,0)/1000 -> 495.79622 | I54: =+VLOOKUP($A54,'BD-existentes '!$A$9326:$I$9332,I$46,0)/1000 -> 494.0996032 | J54: =+VLOOKUP($A54,'BD-existentes '!$A$9326:$I$9332,J$46,0)/1000 -> 492.82901 | K54: =+VLOOKUP($A54,'BD-existentes '!$A$9326:$I$9332,K$46,0)/1000 -> 492.50627 | L54: =+VLOOKUP($A54,'BD-existentes '!$A$9326:$I$9332,L$46,0)/1000 -> 492.50627 | M54: =+VLOOKUP($A54,'BD-existentes '!$A$9326:$I$9332,M$46,0)/1000 -> 487.935883
A55: Maquinaria y equipo | H55: =+VLOOKUP($A55,'BD-existentes '!$A$9326:$I$9332,H$46,0)/1000 -> 3176.23003 | I55: =+VLOOKUP($A55,'BD-existentes '!$A$9326:$I$9332,I$46,0)/1000 -> 2667.700009 | J55: =+VLOOKUP($A55,'BD-existentes '!$A$9326:$I$9332,J$46,0)/1000 -> 2554.940078 | K55: =+VLOOKUP($A55,'BD-existentes '!$A$9326:$I$9332,K$46,0)/1000 -> 2354.777949 | L55: =+VLOOKUP($A55,'BD-existentes '!$A$9326:$I$9332,L$46,0)/1000 -> 1546.05725 | M55: =+VLOOKUP($A55,'BD-existentes '!$A$9326:$I$9332,M$46,0)/1000 -> 897.690455
A56: Otros | H56: =+VLOOKUP($A56,'BD-existentes '!$A$9326:$I$9332,H$46,0)/1000 -> 7180.39081 | I56: =+VLOOKUP($A56,'BD-existentes '!$A$9326:$I$9332,I$46,0)/1000 -> 6958.014457 | J56: =+VLOOKUP($A56,'BD-existentes '!$A$9326:$I$9332,J$46,0)/1000 -> 6346.915911 | K56: =+VLOOKUP($A56,'BD-existentes '!$A$9326:$I$9332,K$46,0)/1000 -> 4881.561453 | L56: =+VLOOKUP($A56,'BD-existentes '!$A$9326:$I$9332,L$46,0)/1000 -> 4286.726919 | M56: =+VLOOKUP($A56,'BD-existentes '!$A$9326:$I$9332,M$46,0)/1000 -> 3837.425365
A57: Unidades por recibir | H57: =+VLOOKUP($A57,'BD-existentes '!$A$9326:$I$9332,H$46,0)/1000 -> 1312.959614 | I57: =+VLOOKUP($A57,'BD-existentes '!$A$9326:$I$9332,I$46,0)/1000 -> 1312.959614 | J57: =+VLOOKUP($A57,'BD-existentes '!$A$9326:$I$9332,J$46,0)/1000 -> 1312.959614 | K57: =+VLOOKUP($A57,'BD-existentes '!$A$9326:$I$9332,K$46,0)/1000 -> 1312.959614 | L57: =+VLOOKUP($A57,'BD-existentes '!$A$9326:$I$9332,L$46,0)/1000 -> 1312.959614 | M57: =+VLOOKUP($A57,'BD-existentes '!$A$9326:$I$9332,M$46,0)/1000 -> 1312.959614
A58: D&A del periodo | H58: =+SUM(H51:H57) -> 24659.48029 | I58: 23666.70302 | J58: 22657.61357 | K58: 20807.88644 | L58: 19332.13994 | M58: 18229.79716
A61: Servicios regulados
A62: En S/. miles del 2013
A64: Servicios | B64: Código | C64: %
A65: SNAR nacional | B65: SNAR | C65: =+C39 -> 0.1392509291 | H65: =+$C65*H$58 -> 3433.855542 | I65: 494.1099327 | J65: 920.4405884 | K65: 2897.517519 | L65: 2692.018448 | M65: 2538.516192
A66: SNAR internacional | B66: SNAR | C66: =+C40 -> 0.1885295248 | H66: =+$C66*H$58 -> 4649.040102 | I66: 4461.872274 | J66: 4271.62912 | K66: =+$C66*K$58 -> 3922.900942 | L66: 3644.679157 | M66: 3436.854996
A67: Aproximación | B67: APROX | C67: =+C41 -> 0.1766816385 | H67: =+$C67*H$58 -> 4356.877383 | I67: 4181.471868 | J67: 4003.184291 | K67: 3676.37147 | L67: 3415.634161 | M67: 3220.870432
A68: Sobrevuelo | B68: SV | C68: =+C42 -> 0.2348215953 | H68: =+$C68*H$58 -> 5790.578501 | I68: 5557.452958 | J68: 5320.496964 | K68: 4886.141087 | L68: 4539.603942 | M68: 4280.750051
A69: Total | C69: =SUM(C65:C68) -> 0.7392836877 | H69: =SUM(H65:H68) -> 18230.35153 | I69: =SUM(I65:I68) -> 14694.90703 | J69: 14515.75096 | K69: 15382.93102 | L69: 14291.93571 | M69: 13476.99167
H71: =H65/'FC SNAR N e I'!E2 -> 1271.798349 | I71: =I65/'FC SNAR N e I'!F2 -> 177.7417395 | J71: =J65/'FC SNAR N e I'!G2 -> 319.4106288 | K71: =K65/'FC SNAR N e I'!H2 -> 999.1123986 | L71: =L65/'FC SNAR N e I'!I2 -> 928.2528895 | M71: =M65/'FC SNAR N e I'!J2 -> 875.3227496
H72: =H66/'FC SNAR N e I'!E2 -> 1721.866704 | I72: =I66/'FC SNAR N e I'!F2 -> 1605.02934 | J72: =J66/'FC SNAR N e I'!G2 -> 1482.337655 | K72: =K66/'FC SNAR N e I'!H2 -> 1352.681716 | L72: =L66/'FC SNAR N e I'!I2 -> 1256.746201 | M72: =M66/'FC SNAR N e I'!J2 -> 1185.084962
H73: =H67/'FC SNAR N e I'!E2 -> 1613.65829 | I73: =I67/'FC SNAR N e I'!F2 -> 1504.163414 | J73: =J67/'FC SNAR N e I'!G2 -> 1389.182124 | K73: =K67/'FC SNAR N e I'!H2 -> 1267.67424 | L73: =L67/'FC SNAR N e I'!I2 -> 1177.767664 | M73: =M67/'FC SNAR N e I'!J2 -> 1110.60988
H74: =H68/'FC SNAR N e I'!E2 -> 2144.658704 | I74: =I68/'FC SNAR N e I'!F2 -> 1999.132764 | J74: =J68/'FC SNAR N e I'!G2 -> 1846.315017 | K74: =K68/'FC SNAR N e I'!H2 -> 1684.822994 | L74: =L68/'FC SNAR N e I'!I2 -> 1565.331203 | M74: =M68/'FC SNAR N e I'!J2 -> 1476.074061
A77: RESULTADOS
A80: En S/. miles del 2013
A82: Servicio regulado: | B82: =+servicio -> Aproximación
B84: Valor adq. | C84: Valor al 2013
A85: Valor inicial de activos | B85: =+SUMIF($A$39:$A$42,$B$82,D$39:D$42) -> 74615.21751 | C85: =+SUMIF($A$39:$A$42,$B$82,F$39:F$42) -> 39026.33943 | H85: =+B85 -> 74615.21751 | I85: =+H88 -> 39026.33943 | J85: =+I88 -> 34844.86756 | K85: =+J88 -> 30841.68327 | L85: =+K88 -> 27165.3118 | M85: =+L88 -> 23749.67764
A86: D&A del periodo | H86: =+SUMIF($A$65:$A$68,$B$82,H$65:H$68) -> 4356.877383 | I86: =+SUMIF($A$65:$A$68,$B$82,I$65:I$68) -> 4181.471868 | J86: 4003.184291 | K86: 3676.37147 | L86: 3415.634161 | M86: 3220.870432
A87: D&A acumulada | B87: =+B61 -> 0 | H87: =+H85-H88 -> 35588.87808 | I87: =+H87+I86 -> 39770.34995 | J87: =+I87+J86 -> 43773.53424 | K87: =+J87+K86 -> 47449.90571 | L87: =+K87+L86 -> 50865.53987 | M87: =+L87+M86 -> 54086.4103
A88: Valor final de activos | H88: =+C85 -> 39026.33943 | I88: =+I85-I86 -> 34844.86756 | J88: =+J85-J86 -> 30841.68327 | K88: =+K85-K86 -> 27165.3118 | L88: =+L85-L86 -> 23749.67764 | M88: =+M85-M86 -> 20528.80721
A92: Capital de trabajo
A94: SNAR Nacional | H94: 24957.74977 | I94: 34350.13185 | J94: 41919.44377 | K94: 45514.52214 | L94: 49212.45262 | M94: 53230.52497
A96: Capital de trabajo | H96: 2013 | I96: 2014 | J96: 2015 | K96: 2016 | L96: 2017 | M96: 2018
A97: Caja | B97: 2 | H97: =(H94)/365*$B$97 -> 136.7547933 | I97: 188.2199005 | J97: 229.6955823 | K97: 249.3946419 | L97: 269.6572747 | M97: 291.6741094
A98: Cuentas por cobrar | B98: =SUMIF(Vínculos!$C$143:$C$145,A98,Vínculos!$D$143:$D$145) -> 0.05520660223 | H98: =H94*$B$98 -> 1377.832564 | I98: 1896.354066 | J98: 2314.230058 | K98: 2512.70212 | L98: 2716.852297 | M98: 2938.676418
A99: Inventario | B99: =SUMIF(Vínculos!$C$143:$C$145,A99,Vínculos!$D$143:$D$145) -> 0.02878259378 | H99: =$B$99*(SUM(Opex!$L$224:$L$229)+Activo_nvo!$H$1440) -> 849.1991094 | I99: =$B$99*(SUM(Opex!$M$224:$M$229)+Activo_nvo!$I$1440) -> 875.7046081 | J99: =$B$99*(SUM(Opex!$N$224:$N$229)+Activo_nvo!$J$1440) -> 955.1670976 | K99: =$B$99*(SUM(Opex!$O$224:$O$229)+Activo_nvo!$K$1440) -> 954.9669452 | L99: =$B$99*(SUM(Opex!$P$224:$P$229)+Activo_nvo!$L$1440) -> 1010.737977 | M99: =$B$99*(SUM(Opex!$Q$224:$Q$229)+Activo_nvo!$M$1440) -> 984.9238259
A100: Cuentas por pagar | B100: =SUMIF(Vínculos!$C$143:$C$145,A100,Vínculos!$D$143:$D$145) -> 0.06165725444 | H100: =$B$100*(SUM(Opex!$L$224:$L$229)+Activo_nvo!$H$1440) -> 1819.130199 | I100: =$B$100*(SUM(Opex!$M$224:$M$229)+Activo_nvo!$I$1440) -> 1875.909525 | J100: =$B$100*(SUM(Opex!$N$224:$N$229)+Activo_nvo!$J$1440) -> 2046.131812 | K100: =$B$100*(SUM(Opex!$O$224:$O$229)+Activo_nvo!$K$1440) -> 2045.703051 | L100: =$B$100*(SUM(Opex!$P$224:$P$229)+Activo_nvo!$L$1440) -> 2165.174171 | M100: =$B$100*(SUM(Opex!$Q$224:$Q$229)+Activo_nvo!$M$1440) -> 2109.875829
A101: Capital de trabajo | H101: =+SUM(H97:H99)-H100 -> 544.6562679 | I101: =+SUM(I97:I99)-I100 -> 1084.369049 | J101: =+SUM(J97:J99)-J100 -> 1452.960926 | K101: 1671.360656 | L101: 1832.073378 | M101: =+SUM(M97:M99)-M100 -> 2105.398524
A102: Variación del capital de trabajo (miles $) | H102: =-H101/'FC SNAR N e I'!$E$2 -> -201.7245437 | I102: =(H101-I101)/'FC SNAR N e I'!$F$2 -> -194.1460436 | J102: =(I101-J101)/'FC SNAR N e I'!$G$2 -> -127.9084871 | K102: =(J101-K101)/'FC SNAR N e I'!$H$2 -> -75.30787178 | L102: =(K101-L101)/'FC SNAR N e I'!$I$2 -> -55.41642886 | M102: =(L101-M101+M101)/'FC SNAR N e I'!$J$2 -> 631.7294771
A105: SNAR Internacional | H105: 16715.49143 | I105: 16527.32948 | J105: 17414.15595 | K105: 18570.67949 | L105: 19828.20759 | M105: 21170.75581
A107: Capital de trabajo | H107: 2013 | I107: 2014 | J107: 2015 | K107: 2016 | L107: 2017 | M107: 2018
A108: Caja | B108: 2 | H108: =(H105)/365*$B$108 -> 91.59173389 | I108: 90.56070948 | J108: 95.42003262 | K108: 101.7571479 | L108: 108.6477128 | M108: 116.0041414
A109: Cuentas por cobrar | B109: =SUMIF(Vínculos!$C$143:$C$145,A109,Vínculos!$D$143:$D$145) -> 0.05520660223 | H109: =$B$109*H105 -> 922.8054868 | I109: 912.4177046 | J109: 961.3763809 | K109: 1025.224116 | L109: 1094.647969 | M109: 1168.765495
A110: Inventario | B110: =SUMIF(Vínculos!$C$143:$C$145,A110,Vínculos!$D$143:$D$145) -> 0.02878259378 | H110: =$B$110*((SUM(Opex!$L$236:$L$241)+Activo_nvo!$H$1441)/'FC SNAR N e I'!$E$2) -> 422.2811492 | I110: =$B$110*((SUM(Opex!M236:$M$241)+Activo_nvo!$I$1441)/'FC SNAR N e I'!$F$2) -> 419.7477575 | J110: =$B$110*((SUM(Opex!$N$236:$N$241)+Activo_nvo!$J$1441)/'FC SNAR N e I'!$G$2) -> 440.3926657 | K110: =$B$110*((SUM(Opex!$O$236:$O$241)+Activo_nvo!$K$1441)/'FC SNAR N e I'!$H$2) -> 433.9941522 | L110: =$B$110*((SUM(Opex!$P$236:$P$241)+Activo_nvo!$L$1441)/'FC SNAR N e I'!$I$2) -> 452.2779256 | M110: =$B$110*((SUM(Opex!$Q$236:$Q$241)+Activo_nvo!$M$1441)/'FC SNAR N e I'!$J$2) -> 445.9188591
A111: Cuentas por pagar | B111: =SUMIF(Vínculos!$C$143:$C$145,A111,Vínculos!$D$143:$D$145) -> 0.06165725444 | H111: =$B$111*((SUM(Opex!$L$236:$L$241)+Activo_nvo!$H$1441)/'FC SNAR N e I'!$E$2) -> 904.5986772 | I111: =$B$111*((SUM(Opex!$M$236:$M$241)+Activo_nvo!$I$1441)/'FC SNAR N e I'!$F$2) -> 899.1717175 | J111: =$B$111*((SUM(Opex!$N$236:$N$241)+Activo_nvo!$J$1441)/'FC SNAR N e I'!$G$2) -> 943.396653 | K111: =$B$111*((SUM(Opex!$O$236:$O$241)+Activo_nvo!$K$1441)/'FC SNAR N e I'!$H$2) -> 929.6899393 | L111: =$B$111*((SUM(Opex!$P$236:$P$241)+Activo_nvo!$L$1441)/'FC SNAR N e I'!$I$2) -> 968.8569191 | M111: =$B$111*((SUM(Opex!$Q$236:$Q$241)+Activo_nvo!$M$1441)/'FC SNAR N e I'!$J$2) -> 955.2347075
A112: Capital de trabajo | H112: =+SUM(H108:H110)-H111 -> 532.0796927 | I112: =+SUM(I108:I110)-I111 -> 523.5544541 | J112: =+SUM(J108:J110)-J111 -> 553.7924262 | K112: =+SUM(K108:K110)-K111 -> 631.2854763 | L112: 686.7166888 | M112: 775.4537877
A113: Variación del capital de trabajo (miles $) | H113: =-H112 -> -532.0796927 | I113: =(H112-I112) -> 8.525238547 | J113: =(I112-J112) -> -30.23797202 | K113: =(J112-K112) -> -77.49305019 | L113: =(K112-L112) -> -55.43121245 | M113: =(L112-M112+M112) -> 686.7166888

Sheet WACC
B2: 1. WACC para flujos en US$
B3: Parámetros | C3: Valor | D3: Resumen de fuente
B4: Tasa libre de riesgo | C4: 0.0521 | D4: Bonos T-bonds EE.UU
B5: ERP | C5: 0.0629 | D5: Mercados capitales EE.UU
B6: Beta de activos | C6: 0.5 | D6: Servicios aeronavegacion en America Latina
B7: Beta apalancado | C7: 0.355 | D7: calculo
B8: Riesgo país | C8: 0.0155 | D8: Índice de bonos de mercados emergentes para Perú
B9: Costo de patrimonio (US$) | C9: =+C4+C5*C7+C8 -> 0.0899295 | D9: calculo
B10: Apalancamiento | C10: 0 | D10: Estructura de capital de Corpac
B11: Costo de deuda | C11: n/a
B12: Impuesto | C12: 0.335 | D12: Impuesto a la renta y impuestos a los trabajadores
B13: WACC nominal (US$) | C13: =+IFERROR(C11*(1-C12)*C10,0)+C9*(1-C10) -> 0.0899295 | D13: calculo
B14: Inflación | C14: =+AVERAGE(Supuestos!D10:H10)/100 -> 0.0202 | D14: Inflacion proyectada EE.UU.
B15: WACC real (US$) | C15: =+(1+C13)/(1+C$14)-1 -> 0.06834885317 | D15: calculo
B16: WACC real post-tax (soles) | C16: =+C25 -> 0.08510628852 | D16: calculo
B18: 2. Ajuste al WACC para tipo de cambio
D19: 2013 | E19: =+D19+1 -> 2014 | F19: =+E19+1 -> 2015 | G19: =+F19+1 -> 2016 | H19: =+G19+1 -> 2017 | I19: =+H19+1 -> 2018
B20: Tipo de cambio (real) | D20: =+Supuestos!C16 -> 2.7 | E20: =+Supuestos!D16 -> 2.779931907 | F20: =+Supuestos!E16 -> 2.881684281 | G20: =+Supuestos!F16 -> 2.900091644 | H20: =+Supuestos!G16 -> 2.900091644 | I20: =+Supuestos!H16 -> 2.900091644
B21: Inversion | C21: 10
B22: Retorno (US$) | C22: =+C15 -> 0.06834885317
B23: TIR
B24: flujo de caja en US$ | C24: =+IRR(D24:I24) -> 0.06834885317 | D24: =-C21 -> -10 | E24: =-D24*$C$22 -> 0.6834885317 | F24: =+E24 -> 0.6834885317 | G24: =+F24 -> 0.6834885317 | H24: =+G24 -> 0.6834885317 | I24: =+H24-D24 -> 10.68348853
B25: flujo de caja en soles | C25: =+IRR(D25:I25) -> 0.08510628852 | D25: =+D24*D20 -> -27 | E25: 1.900051577 | F25: 1.969598158 | G25: 1.982179379 | H25: 1.982179379 | I25: 30.98309582

Sheet Ingresos AIJCh
C2: 2013 | D2: 2014 | E2: 2015 | F2: 2016 | G2: 2017 | H2: 2018
A4: Servicio regulado: | B4: Aproximación
A5: Periodo: | B5: 2013-2018
A7: Transferencias de LAP a CORPAC (S/. Miles) | B7: 1 | C7: =(+'2013'!W9+'2013'!X9)/1000 -> 86897.83408 | D7: =+C7*(1+$B$9) -> 91546.8682 | E7: 96444.62565 | F7: 101604.4131 | G7: 107040.2492 | H7: 112766.9026
A8: Transferencias a Aeronavegación (S/. Miles) | B8: 0.9329 | C8: =+B8*C7 -> 81066.98941 | D8: 85404.07335 | E8: 89973.19127 | F8: 94786.757 | G8: 99857.8485 | H8: 105200.2434
A9: Crecimiento de transferencias | B9: 0.0535
A11: Ingresos Transferidos a a considerar en
A12: SNAR Nacional | B12: 0.06065467053 | C12: =$B$12*C8 -> 4917.091533 | D12: =$B$12*D8 -> 5180.15593 | E12: 5457.294273 | F12: 5749.259516 | G12: 6056.8449 | H12: 6380.886103
A13: SNAR Internacional | B13: 0.003803208101 | C13: =$B$13*C8 -> 308.3146308 | D13: =$B$13*D8 -> 324.8094636 | E13: 342.1867699 | F13: 360.4937621 | G13: =$B$13*G8 -> 379.7801783 | H13: 400.0984179
A14: Aproximación | B14: 0.9355421214 | C14: =+C8*B14 -> 75841.58325 | D14: =+C14*(1+$B$9) -> 79899.10795 | E14: =+D14*(1+$B$9) -> 84173.71023 | F14: =+E14*(1+$B$9) -> 88677.00373 | G14: =+F14*(1+$B$9) -> 93421.22342 | H14: =+G14*(1+$B$9) -> 98419.25888
A15: Ingresos Transferidos a considerar en sobrevuelo | B15: 0 | C15: 0 | D15: 0 | E15: 0 | F15: 0 | G15: 0 | H15: 0

Sheet Laudo
B2: LAUDO (Miles de Soles) | G2: COSTOS DE PERSONAL - CONTABILIDAD REGULATORIA 2013 (Miles de soles)
B3: Concepto | C3: Periodo de Registro | D3: Incremento remuneraciones | E3: Cierre de Bolsa | F3: Total general | H3: Costos de aeronavegación | I3: Costos Aeroportuarios | J3: Total
B4: LAUDO ARBITRAL AÑO 2012 - SITE CORPAC | C4: 2012 | D4: =1370689/1000 -> 1370.689 | E4: =3415500/1000 -> 3415.5 | F4: =4786189/1000 -> 4786.189 | H4: 120431.4924 | I4: 6641.272261 | J4: 127072.7647
B5: LAUDO ARBITRAL AÑO 2012 - SINEACOR | C5: 2012 | D5: =893113/1000 -> 893.113 | E5: =1386000/1000 -> 1386 | F5: =2279113/1000 -> 2279.113 | H5: =+H4/$J$4 -> 0.947736462 | I5: =+I4/$J$4 -> 0.05226353797 | J5: =+J4/$J$4 -> 1
B6: LAUDO ARBITRAL AÑO 2012 - SIPEACOR | C6: 2013 | D6: =403239/1000 -> 403.239 | E6: =614250/1000 -> 614.25 | F6: =1017489/1000 -> 1017.489
B7: SUB TOTAL AÑO 2012 | D7: =2667041/1000 -> 2667.041 | E7: =5415750/1000 -> 5415.75 | F7: =8082791/1000 -> 8082.791
B8: LAUDO ARBITRAL AÑO 2012 – SITPRUCOR | C8: 2013 | D8: =626369/1000 -> 626.369 | F8: =626369/1000 -> 626.369
B9: TOTAL LAUDOS ARBITRALES | D9: =3293410/1000 -> 3293.41 | E9: =5415750/1000 -> 5415.75 | F9: =8709160/1000 -> 8709.16
B10: TOTAL LAUDOS ARBITRALES ASIGNADOS A AERONAVEGACION | D10: =+D9*H5 -> 3121.284741 | E10: =+E9*$H$5 -> 5132.703744 | F10: =+F9*H5 -> 8253.988486
B11: NUEVOS CONTROLADORES AEREOS AERONAVEGACION | F11: =3462366.7455/1000 -> 3462.366745
I14: Proyección de Costos con Laudo e ingreso de Controladores (Miles de soles)
C15: Distribución de Laudo y Remuneraciones por Servicio (Miles de soles) | I15: 2014 | J15: 2015 | K15: 2015 | L15: 2015 | M15: 2016
C16: Costos 2013 | D16: Participación x Servicio en costos 2013 | E16: Incremento de Remuneración (A) | F16: Ciere de Bolsa (B) | G16: Nuevoc Controladores Aereos (C ) | I16: Costos 2014 | J16: Costos 2015 | K16: Costo 2015+ A + B + C | L16: Costo 2015 + A +C | M16: Costo 2016
B17: =+Opex!A221 -> SNAR nacional | C17: =+Opex!L224 -> 19685.42358 | D17: =+C17/$C$21 -> 0.1634574411 | E17: =+D17*$D$10 -> 510.1972169 | F17: =+$E$10*D17 -> 838.9786201 | G17: =+D17*$F$11 -> 565.9496085 | I17: =+C17*(1+Opex!$M$222*0.3) -> 20206.1242 | J17: =+I17*(1+Opex!$N$222*0.3) -> 20789.6504 | K17: =+J17+F17+E17+G17 -> 22704.77585 | L17: =+J17+E17+G17 -> 21865.79723 | M17: =+L17*(1+Opex!$O$222*0.3) -> 22460.14782
B18: =+Opex!A233 -> SNAR internacional | C18: =+Opex!L236 -> 27836.13799 | D18: =+C18/$C$21 -> 0.2311367021 | E18: =+D18*$D$10 -> 721.4434615 | F18: =+$E$10*D18 -> 1186.356216 | G18: =+D18*$F$11 -> 800.2800311 | I18: =+C18*(1+Opex!$M$234*0.3) -> 28402.05396 | J18: =+I18*(1+Opex!$N$234*0.3) -> 29011.19475 | K18: =+J18+F18+E18+G18 -> 31719.27446 | L18: =+J18+E18+G18 -> 30532.91825 | M18: =+L18*(1+Opex!$O$234*0.3) -> 31146.6153
B19: =+Opex!A245 -> Aproximación | C19: =+Opex!L248 -> 38032.20891 | D19: =+C19/$C$21 -> 0.3157995318 | E19: =+D19*$D$10 -> 985.7002598 | F19: =+$E$10*D19 -> 1620.905439 | G19: =+D19*$F$11 -> 1093.413797 | I19: =+C19*(1+Opex!$M$246*0.3) -> 38991.16837 | J19: =+I19*(1+Opex!$N$246*0.3) -> 40073.47071 | K19: =+J19+F19+E19+G19 -> 43773.49021 | L19: =+J19+E19+G19 -> 42152.58477 | M19: =+L19*(1+Opex!$O$246*0.3) -> 43248.49728
B20: =+Opex!A257 -> Sobrevuelo | C20: =+Opex!L260 -> 34877.72193 | D20: =+C20/$C$21 -> 0.289606325 | E20: =+D20*$D$10 -> 903.9438032 | F20: =+$E$10*D20 -> 1486.463469 | G20: =+D20*$F$11 -> 1002.723309 | I20: =+C20*(1+Opex!$M$258*0.3) -> 35580.41026 | J20: =+I20*(1+Opex!$N$258*0.3) -> 36298.53795 | K20: =+J20+F20+E20+G20 -> 39691.66853 | L20: =+J20+E20+G20 -> 38205.20506 | M20: =+L20*(1+Opex!$O$258*0.3) -> 38849.95559
B21: Total | C21: =+SUM(C17:C20) -> 120431.4924 | E21: =+SUM(E17:E20) -> 3121.284741 | F21: =+SUM(F17:F20) -> 5132.703744 | G21: =+SUM(G17:G20) -> 3462.366745 | I21: =SUM(I17:I20) -> 123179.7568 | J21: =SUM(J17:J20) -> 126172.8538 | K21: =SUM(K17:K20) -> 137889.209 | L21: =SUM(L17:L20) -> 132756.5053 | M21: =SUM(M17:M20) -> 135705.216

Sheet inversion aeronaveg. Soles
K1: 2.48 | M1: 2.5 | O1: 2.5 | Q1: 2.5
C3: PROGRAMA DE INVERSIONES CORPAC S.A. 2014-2017 - AERONAVEGACIÓN
C5: (EN NUEVOS SOLES)
C6: DESCRIPCION | D6: Servicio | E6: UNIDAD DE MEDIDA | H6: META FISICA TOTAL | I6: INVERSION TOTAL 2014-2017
F7: EJECUCION 2012 | J7: 2014 | L7: 2015 | N7: 2016 | P7: 2017
F8: META FISICA | G8: INVERSION | J8: META FISICA | K8: INVERSION | L8: META FISICA | M8: INVERSION | N8: META FISICA | O8: INVERSION | P8: META FISICA | Q8: INVERSION
B9: I. | C9: PROYECTOS DE INVERSION | G9: =SUM(G10:G25) ->  | I9: =SUM(I10:I25) -> 118091948 | K9: =SUM(K10:K25) -> 18048682 | M9: =SUM(M10:M25) -> 38371544 | O9: =SUM(O10:O25) -> 34334406 | Q9: =SUM(Q10:Q25) -> 27337316
B10: 1.1 | C10: Modernización de Sistemas de Ayudas Luminosas en Aeropuertos del Perú (II Etapa). | D10: APROX - A/D | E10: Sistemas | F10: 0.2 | G10: =1596453/$E$1 ->  | H10: =+J10+L10+N10+P10 -> 0 | I10: =+K10+M10+O10+Q10 -> 2477392 | K10: 2477392
B11: 1.2 | C11: Modernización de la Estación Meteorológica en el Aeropuerto de Chiclayo. | D11: SV-SNAR- APROX - A/D | E11: Sistema | H11: =+J11+L11+N11+P11 -> 0 | I11: =+K11+M11+O11+Q11 -> 1067150 | K11: 1067150
B12: 1.3 | C12: Modernización de la Estación Meteorológica en el Aeropuerto de Pisco. | D12: SV-SNAR- APROX - A/D | E12: Sistema | H12: =+J12+L12+N12+P12 -> 0 | I12: 1067150 | K12: 1067150
B13: 1.4 | C13: Adquisición de Aeronave de Inspección en Vuelo (incluye UP Grade de Consola ADFIS -14). | D13: SV-SNAR- APROX - A/D | E13: Aeronave | H13: 1 | I13: 35314417 | K13: 4925580 | L13: 1 | M13: 23040199 | O13: 7348638
B14: 1.5 | C14: Adquisición de un Sistema de Vigilancia de Superfície para el Aeropuerto Internacional Jorge Chávez. | D14: SV-SNAR- APROX - A/D | E14: Sistema | H14: 1 | I14: 4860000 | N14: 0.2 | O14: 972000 | P14: 0.8 | Q14: 3888000
B15: 1.6 | C15: Implantación de Estaciones Automáticas de Observaciones Meteorológicas (AWOS). | D15: SV-SNAR- APROX - A/D | E15: Sistemas | H15: 14 | I15: 9415792 | L15: 5 | M15: 941580 | N15: 5 | O15: 4707896 | P15: 4 | Q15: 3766316
B16: 1.7 | C16: Proyecto de Comunicaciones Satelitales VSAT (Mejoramiento de la Conectividad de la Red de Comunicaciones Aeronáuticas de CORPAC S.A.) | D16: SV-SNAR- APROX - A/D | E16: Red | H16: 17 | I16: 27836309 | K16: 8197672 | L16: 12 | M16: 13829765 | N16: 5 | O16: 5808872
B17: 1.8 | C17: Proyecto de Comunicaciones Satelitales VSAT (Mejoramiento de la Conectividad de la Red de Comunicaciones Aeronáuticas de CORPAC S.A.) - II ETAPA | D17: SV-SNAR- APROX - A/D | E17: Red | H17: 12 | I17: 14310000 | O17: 2862000 | P17: 12 | Q17: 11448000
B18: 1.9 | C18: Automatización y Modernización de los Servicios de Tránsito Aéreo Red de Radares de Vigilancia Aérea ( a cargo del MTC) | D18: SV-SNAR | E18: Obras | H18: 0 | I18: 313738 | K18: 313738
B19: 1.10 | C19: Construcción de la nueva torre de control del Aeropuerto de Puerto Maldonado. | D19: SV-SNAR- APROX - A/D | E19: Obra | H19: 1 | I19: 4050000 | N19: 1 | O19: 4050000
B20: 1.11 | C20: Construcción de la nueva torre de control del Aeropuerto de Tarapoto. | D20: SV-SNAR- APROX - A/D | E20: Obra | H20: 1 | I20: 4050000 | P20: 1 | Q20: 4050000
B21: 1.12 | C21: Construcción de la nueva torre de control del Aeropuerto de Iquitos. | D21: SV-SNAR- APROX - A/D | E21: Obra | H21: 1 | I21: 4050000 | O21: 2025000 | P21: 1 | Q21: 2025000
B22: 1.13 | C22: Construcción de la torre de control del Aeródromo de Atalaya. | D22: SV-SNAR- APROX - A/D | E22: Obra | H22: 1 | I22: 2160000 | N22: 1 | O22: 2160000
B23: 1.14 | C23: Construcción de la torre de control del Aeródromo de Huánuco. | D23: SV-SNAR- A/D | E23: Obra | H23: 1 | I23: 2800000 | M23: 560000 | N23: 1 | O23: 2240000
B24: 1.15 | C24: Construcción torres de control de los Aeropuertos de Jauja, Mazamari | D24: SV-SNAR- APROX - A/D | E24: Obras | H24: 2 | I24: 4320000 | N24: 1 | O24: 2160000 | P24: 1 | Q24: 2160000
B27: II. | C27: GASTOS DE CAPITAL NO LIGADOS A PROYECTOS | G27: =+G28+G37+G45+G55+G59+G64+G73+G76+G81 ->  | I27: =+I28+I37+I45+I55+I59+I64+I73+I76+I81 -> 194447021 | K27: =+K28+K37+K45+K55+K59+K64+K73+K76+K81 -> 35623039 | M27: =+M28+M37+M45+M55+M59+M64+M73+M76+M81 -> 61552445 | O27: =+O28+O37+O45+O55+O59+O64+O73+O76+O81 -> 49384765 | Q27: =+Q28+Q37+Q45+Q55+Q59+Q64+Q73+Q76+Q81 -> 47886772
B28: 2.1 | C28: EQUIPO DE COMUNICACIONES | G28: =SUM(G29:G36) -> 658076.9231 | I28: =SUM(I29:I36) -> 31730675 | K28: =SUM(K29:K36) -> 6205240 | M28: =SUM(M29:M36) -> 10844552 | O28: =SUM(O29:O36) -> 8361305 | Q28: =SUM(Q29:Q36) -> 6319578
C29: - Equipos de radio VHF TWR -Dual - Nivel nacional | D29: SV-SNAR- APROX - A/D | E29: Equipos | H29: =+J29+L29+N29+P29 -> 68 | I29: 6903281 | K29: 2796110 | L29: 43 | M29: 1864073 | N29: 15 | O29: 579773 | P29: 10 | Q29: 1663325
C30: - Sistemas de grabaciòn - Nivel nacional. | D30: SV-SNAR- APROX - A/D | E30: Equipos | F30: 10 | G30: =1169100/2.6 -> 449653.8462 | H30: 20 | I30: 3367905 | K30: 190550 | L30: 10 | M30: 1714950 | P30: 10 | Q30: 1462405
C31: - Sistemas ATIS (Lima, Cuzco, Arequipa, Pucallpa, Chiclayo y Tarapoto). | D31: A/D | E31: Equipos | H31: 6 | I31: 4128103 | K31: 2476862 | L31: 6 | M31: 1651241
C32: - Equipos HF tierra-aire | D32: SV-SNAR- APROX - A/D | E32: Equipos | H32: 44 | I32: 9976744 | L32: 11 | M32: 4386816 | N32: 13 | O32: =1050000+2924544 -> 3974544 | P32: 20 | Q32: =807692*2 -> 1615384
C33: - Terminales AMHS | D33: SV-SNAR- APROX - A/D | E33: Equipos | H33: 100 | I33: 685389 | L33: 40 | M33: 228461 | N33: 20 | O33: 228464 | P33: 40 | Q33: =114232*2 -> 228464
C34: - Renovación central de canales orales ATS | D34: SV-SNAR- APROX - A/D | E34: Equipos | H34: 1 | I34: 2937600 | L34: 0.1 | M34: 293760 | N34: 0.9 | O34: 2643840
C35: - Interfase para sistemas AMHS | D35: SV-SNAR- APROX - A/D | E35: Equipos | H35: 1 | I35: 289935 | L35: 0.1 | M35: 30251 | N35: 0.9 | O35: 259684
C36: - Equipos diversos- Nivel Nacional. | D36: SV-SNAR- APROX - A/D | E36: Equipos | G36: =541900/2.6 -> 208423.0769 | H36: Varios | I36: 3441718 | K36: 741718 | M36: 675000 | O36: 675000 | Q36: =675000+675000 -> 1350000
B37: 2.2 | C37: EQUIPO DE ELECTRICIDAD | G37: =SUM(G38:G44) -> 342202.3846 | I37: =SUM(I38:I44) -> 11607307 | K37: =SUM(K38:K44) -> 1913160 | M37: =SUM(M38:M44) -> 2766112 | O37: =SUM(O38:O44) -> 3160018 | Q37: =SUM(Q38:Q44) -> 3768017
C38: - Mejoramiento sistema eléctrico Edificio Radar | D38: SV-SNAR- APROX - A/D | E38: Sistema | H38: =+J38+L38+N38+P38 -> 1 | I38: 261892 | L38: 1 | M38: 261892
C39: - Instalación de sistemas APAPI (Chachapoyas y Atalaya). | D39: APROX - A/D | E39: Sistemas | H39: 2 | I39: 180000 | K39: 54000 | L39: 2 | M39: 126000
C40: - Sistemas UPS para Torres de Control de aeropuertos controlados Nivel nacional. | D40: SV-SNAR- APROX - A/D | E40: Sistemas | H40: 18 | I40: 1080000 | M40: 108000 | N40: 18 | O40: 972000
C41: - Sistemas UPS para equipos de comunicaciones a nivel nacional | D41: SV-SNAR- APROX - A/D | E41: Sistemas | H41: 34 | I41: 704502 | K41: 29647 | L41: 14 | M41: 266820 | N41: 10 | O41: 204018 | P41: 10 | Q41: 204017
C42: - Equipos de aire acondicionado para estaciones - Nivel nacional | D42: SV-SNAR- APROX - A/D | E42: Equipos | F42: 14 | G42: =104235/2.6 -> 40090.38462 | H42: 488 | I42: 7088017 | J42: 53 | K42: 500017 | L42: 110 | M42: 1620000 | N42: 105 | O42: 1674000 | P42: 220 | Q42: 3294000
C43: - Luces de borde pista renovación Jorge Chávez | D43: APROX - A/D | E43: Sistema | H43: 0 | I43: 124382 | K43: 124382
C44: - Estudios, equipos diversos,obras e instalación - Nivel nacional. | D44: SV-SNAR- APROX - A/D | E44: Equipos | G44: 302112 | H44: Varios | I44: 2168514 | K44: 1205114 | M44: 383400 | O44: 310000 | Q44: 270000
B45: 2.3 | C45: EQUIPO DE RADIOAYUDAS | G45: =+#REF!+G46+G47+G53 ->  | I45: =+I46+I47+I53 -> 45998930 | K45: =+K46+K47+K53 -> 10819501 | M45: =+M46+M47+M53 -> 11274859 | O45: =+O46+O47+O53 -> 4438155 | Q45: =+Q46+Q47+Q53 -> 19466415
C46: - Adquisición Sistemas VOR/DME (Asia). | D46: APROX - A/D | E46: Sistema | H46: =+J46+L46+N46+P46 -> 2 | I46: =+K46+M46+O46+Q46 -> 4222583 | K46: 1689033 | L46: 2 | M46: 2533550
C47: - Renovación de Sistemas de Radioayudas: | D47: APROX - A/D | E47: Sistemas | H47: =+J47+L47+N47+P47 -> 20 | I47: 37877188 | K47: 7796309 | L47: 7 | M47: 7796309 | N47: 8 | O47: 3898155 | P47: 5 | Q47: 18386415
C48: .Sistemas VOR (Ilo, Juliaca, Piura, Andahuaylas, Arequipa, | I48: 0
C49: Trujillo, Talara,Chimbote, Chachapoyas,Chilliorco,Lima (DVOR),Tacna y Puerto Esperanza). | E49: Sistemas | F49: 4 | H49: =+#REF!+#REF!+#REF!+J49+L49 ->  | I49: 0 | J49: 3 | L49: 3
C50: .Sistemas DME (Arequipa, Trujillo, Tacna, Chilliorco,Juliaca,Lima y Tarapoto). | E50: Sistemas | H50: =+#REF!+#REF!+#REF!+J50+L50 ->  | I50: 0 | J50: 4 | L50: 3
C51: .Sistemas ILS CAT I (Pisco y Puerto Maldonado). | E51: Sistemas | H51: =+#REF!+#REF!+#REF!+J51+L51 ->  | I51: 0
C52: .Sistemas GS (Tarapoto) | E52: Sistemas | H52: =+#REF!+#REF!+#REF!+J52+L52 ->  | I52: 0 | J52: 1
C53: - Equipos diversos, obras e instalación - Nivel nacional. | D53: APROX - A/D | E53: Equipos | G53: =438991/2.6 -> 168842.6923 | H53: Varios | I53: 3899159 | K53: 1334159 | M53: 945000 | O53: 540000 | Q53: 1080000
B55: 2.4 | C55: EQUIPOS DE GRUPOS ELECTROGENOS | G55: =SUM(G56:G58) -> 185352.6923 | I55: =SUM(I56:I58) -> 9145546 | K55: =SUM(K56:K58) -> 2583790 | M55: =SUM(M56:M58) -> 2307015 | O55: =SUM(O56:O58) -> 3876741 | Q55: =SUM(Q56:Q58) -> 378000
C56: - Grupos electrógenos - Nivel nacional. | D56: SV-SNAR- APROX - A/D | E56: Equipos | H56: =+J56+L56+N56+P56 -> 58 | I56: =+K56+M56+O56+Q56 -> 7222926 | J56: 19 | K56: 2356790 | L56: 19 | M56: 1693575 | N56: 20 | O56: =2618656+553905 -> 3172561
C57: - Construcción y/o remodelacion casa de fuerza - Nivel nacional. | D57: SV-SNAR- APROX - A/D | E57: Obras | F57: 2 | G57: =162335/2.6 -> 62436.53846 | H57: =+J57+L57+N57+P57 -> 5 | I57: =+K57+M57+O57+Q57 -> 723620 | L57: 2 | M57: 289440 | N57: 3 | O57: 434180
C58: - Equipos diversos y gastos de instalación. | D58: SV-SNAR- APROX - A/D | E58: Equipos | G58: =319582/2.6 -> 122916.1538 | H58: Varios | I58: =+K58+M58+O58+Q58 -> 1199000 | K58: 227000 | M58: 324000 | O58: 270000 | Q58: =54000+324000 -> 378000
B59: 2.5 | C59: SISTEMA VHF-AA Y MEDIOS DE TRANSMISION | G59: =SUM(G60:G63) -> 11498.84615 | I59: =SUM(I60:I63) -> 8951830 | K59: =SUM(K60:K63) -> 41830 | M59: =SUM(M60:M63) -> 2546100 | O59: =SUM(O60:O63) -> 4166100 | Q59: =SUM(Q60:Q63) -> 2197800
C60: - Renovaciòn de REDAP y RED de VHF-AA del ACC | D60: SV-SNAR- APROX - A/D | E60: Sistemas | H60: =+J60+L60+N60+P60 -> 14 | I60: =+K60+M60+O60+Q60 -> 6750000 | L60: 5 | M60: 2411100 | N60: 5 | O60: 2411100 | P60: 4 | Q60: 1927800
C61: - Instalación estaciones VHF-AA para TWR/APP (Huánuco, Cajamarca, Trujillo) | D61: SV-SNAR- APROX - A/D | E61: Estaciones | G61: =29897/2.6 -> 11498.84615 | H61: =+J61+L61+N61+P61 -> 0 | I61: 41830 | K61: 41830
C62: - VHF-AA frecuencia Emergencia 121.5 Mhz | D62: SV-SNAR- APROX - A/D | E62: Sistemas | H62: =+J62+L62+N62+P62 -> 15 | I62: 1620000 | N62: 15 | O62: 1620000
C63: - Obras e instalación | D63: SV-SNAR- APROX - A/D | E63: Obras | H63: VARIAS | I63: 540000 | M63: 135000 | O63: 135000 | Q63: 270000
B64: 2.6 | C64: EQUIPOS DE METEOROLOGIA | G64: =SUM(G65:G71) -> 241751.1538 | I64: =SUM(I65:I71) -> 22651522 | K64: =SUM(K65:K71) -> 1409953 | M64: =SUM(M65:M71) -> 6205791 | O64: =SUM(O65:O71) -> 9501318 | Q64: =SUM(Q65:Q71) -> 5534460
C65: - Renovación equipos e instrumentos meteorológicos- Niv. Nac. - Fase I | D65: SV-SNAR- APROX - A/D | E65: Sistema | F65: 1 | G65: =464304/2.6 -> 178578.4615 | H65: VARIAS | I65: 7552660 | K65: 755266 | M65: 3398697 | O65: 3398697
C66: -Renovación equipos e instrumentos meteorológicos - Nivel nacional Fase II. | D66: SV-SNAR- APROX - A/D | E66: Equipos | H66: VARIAS | I66: 7192800 | M66: 719280 | O66: 3236760 | Q66: 3236760
C67: -Renovación Sistema Mundial Pronostico Área WAFS (Lima). | D67: SV-SNAR- APROX - A/D | E67: Sistema | H67: =+J67+L67+N67+P67 -> 0 | I67: 0
C68: -Renovación Sistema Automático Radiosondaje (Lima) | D68: SV-SNAR- APROX - A/D | E68: Sistema | H68: =+J68+L68+N68+P68 -> 1 | I68: 680000 | K68: 68000 | L68: 1 | M68: 612000
C69: -Renovación sistema AWOS de Cusco,Arequipa e Iquitos | D69: SV-SNAR- APROX - A/D | E69: Sistemas | H69: =+J69+L69+N69+P69 -> 3 | I69: 2592000 | L69: 1 | M69: 259200 | N69: 1 | O69: 1555200 | P69: 1 | Q69: 777600
C70: - Renovaciòn sistema GVAR (Lima). | D70: SV-SNAR- APROX - A/D | E70: Sistema | H70: =+J70+L70+N70+P70 -> 1 | I70: 422519 | L70: 1 | M70: =40658 -> 40658 | O70: 381861
C71: -Equipos diversos de meteorologìa - Nivel nacional. | D71: SV-SNAR- APROX - A/D | E71: Equipos | G71: =164249/2.6 -> 63172.69231 | H71: Varios | I71: 4211543 | K71: 586687 | M71: 1175956 | O71: 928800 | Q71: =591300+928800 -> 1520100
B73: 2.10 | C73: INFORMATICA | G73: =SUM(G74:G74) -> 86144.23077 | I73: =SUM(I74:I74) -> 13860000 | K73: =SUM(K74:K74) -> 2604000 | M73: =SUM(M74:M74) -> 2996000 | O73: =SUM(O74:O74) -> 4480000 | Q73: =SUM(Q74:Q74) -> 3780000
C74: - Adquisición de equipos, hardware y software. | D74: SV-SNAR- APROX - A/D | E74: Equipos | G74: =223975/2.6 -> 86144.23077 | H74: Varios | I74: =+K74+M74+O74+Q74 -> 13860000 | K74: 2604000 | M74: 2996000 | O74: 4480000 | Q74: 3780000
B76: 2.11 | C76: CAPACITACION | G76: =SUM(G78:G78) -> 0 | I76: =SUM(I78:I78) -> 5129130 | K76: =SUM(K78:K78) -> 512913 | M76: =SUM(M78:M78) -> 4616217 | O76: =SUM(O78:O78) -> 0 | Q76: =SUM(Q78:Q78) -> 0
C78: -Simulador de Control de Tránsito Aéreo de Aeródromos | D78: APROX - A/D | E78: Sistema | H78: =+J78+L78+N78+P78 -> 0.5 | I78: =+K78+M78+O78+Q78 -> 5129130 | K78: 512913 | L78: 0.5 | M78: 4616217
B81: 2.12 | C81: OTRAS INVERSIONES | G81: =SUM(G82:G92) -> 2582763.462 | I81: =SUM(I82:I92) -> 45372081 | K81: =SUM(K82:K92) -> 9532652 | M81: =SUM(M82:M92) -> 17995799 | O81: =SUM(O82:O92) -> 11401128 | Q81: =SUM(Q82:Q92) -> 6442502
C82: - Modernización de Estaciones de Trabajo de Torres de Control en los Aeropuertos | I82: =+K82+M82+O82+Q82 -> 0
C83: -Controlados - Nivel nacional. | D83: APROX - A/D | E83: Sistemas | H83: =+J83+L83+N83+P83 -> 15 | I83: 11540570 | J83: 5 | K83: 1154057 | L83: 5 | M83: 5193257 | N83: 5 | O83: 5193256
C84: -Sistema de Gestión Administrativa de mantenimiento de Equipos de la Gerencia Tecnica. | D84: SV-SNAR- APROX - A/D | E84: Sistema | H84: =+J84+L84+N84+P84 -> 1 | I84: 2034262 | M84: =196620 -> 196620 | N84: 1 | O84: 1837642
C85: -Sistema radar primario | D85: SV-SNAR- APROX - A/D | E85: Sistema | F85: 1 | G85: =5385156/2.6 -> 2071213.846 | H85: =+J85+L85+N85+P85 -> 1 | I85: 11540580 | J85: 0.1 | K85: 1154058 | L85: 0.9 | M85: 10386522
C86: - Equipos del Sistema de Vigilancia Aérea. | D86: SV-SNAR- APROX - A/D | E86: Equipos | H86: Varios | I86: 2534319 | K86: 522755 | M86: 594000 | O86: =378000+357782 -> 735782 | Q86: =324000+357782 -> 681782
C87: - Estudios para elaboración proyecto para implantación nuevos sistemas CNS/ATM | D87: SV-SNAR- APROX - A/D | E87: Estudios | H87: 1 | I87: 1608368 | L87: 0.6 | M87: 950400 | N87: 0.4 | O87: 657968
C88: - Actualización del sistema AMHS | D88: SV-SNAR- APROX - A/D | E88: Equipos | H88: 1 | I88: 4384640 | J88: 1 | K88: 4384640
C89: - Gastos complementarios Proyecto PER/08/802 | D89: SV-SNAR | E89: Actividad | G89: =1153762/2.6 -> 443754.6154 | H89: Varios | I89: 1097760 | K89: 1097760
C90: - Sistema integrado de calibración y monitoreo en tierra para el mantenimiento de sistemas de radioayudas | D90: SV-SNAR- APROX - A/D | E90: Sistema | H90: =+J90+L90+N90+P90 -> 1 | I90: 1350000 | O90: 135000 | P90: 1 | Q90: 1215000
C91: - Sistemas de Módulo NOTAM Office e integrado de diseño procedimiento de vuelo | D91: SV-SNAR- APROX - A/D | E91: Sistema | H91: =+J91+L91+N91+P91 -> 2 | I91: 5416200 | O91: 2166480 | P91: 2 | Q91: 3249720
C92: - Investigación,capacitación y actualización tecnológica GREPECAS | D92: SV-SNAR- APROX - A/D | E92: Actividad | G92: 67795 | H92: Varios | I92: 3865382 | K92: 1219382 | M92: 675000 | O92: 675000 | Q92: =621000+675000 -> 1296000
C95: T O T A L | G95: =+G27+G9 ->  | I95: =+I27+I9 -> 312538969 | K95: =+K27+K9 -> 53671721 | M95: =+M27+M9 -> 99923989 | O95: =+O27+O9 -> 83719171 | Q95: =+Q27+Q9 -> 75224088
C113: Sobrevuelo | D113: SV
C114: Servicio Navegación Aérea en Ruta | D114: SNAR
C115: Aproximación | D115: APROX
C116: Aterrizaje/Despegue | D116: A/D

Sheet BD-existentes
A2: Anexo 4 - ACTIVOS QUE FORMAN LA BASE DE CAPITAL DEL SERVICIO DE AERONAVEGACION
G3: 12 | J3: Números raros
A4: Número | B4: Tipo | C4: Descripción | D4: Valor de Adquisición (S/.) | E4: Año de adquisición | F4: Inicio de Uso | G4: Vida útil (años) | H4: Vida útil (meses) | I4: Depreciación del año Revaluación | J4: Depreciación Acumulada al 2013 | K4: Depreciación del Ejercicio-2013 | L4: Valor del activo (S/.) | M4: * | N4: 2014 | O4: 2015 | P4: 2016 | Q4: 2017 | R4: 2018 | S4: 2019 | T4: 2020 | U4: 2021 | V4: 2022 | W4: 2023 | X4: 2024
A5: Activo 0 | B5: Terrenos | C5: AYACUCHO - TOCTO | D5: 0 | K5: 0 | L5: =+D5-J5 -> 0 | N5: 0 | O5: 0 | P5: 0 | Q5: 0 | R5: 0 | S5: 0 | T5: 0 | U5: 0 | V5: 0 | W5: 0 | X5: 0
A6: Activo 0 | B6: Terrenos | C6: PTO. ESPERANZA | D6: 560.31 | K6: 0 | L6: 560.31 | N6: 0 | O6: 0 | P6: 0 | Q6: 0 | R6: 0 | S6: 0 | T6: 0 | U6: 0 | V6: 0 | W6: 0 | X6: 0
A7: Activo 0 | B7: Terrenos | C7: GUEIPPI | D7: 575.69 | K7: 0 | L7: 575.69 | N7: 0 | O7: 0 | P7: 0 | Q7: 0 | R7: 0 | S7: 0 | T7: 0 | U7: 0 | V7: 0 | W7: 0 | X7: 0
A8: Activo 0 | B8: Terrenos | C8: CALLAO | D8: 11478611.04 | K8: 0 | L8: 11478611.04 | N8: 0 | O8: 0 | P8: 0 | Q8: 0 | R8: 0 | S8: 0 | T8: 0 | U8: 0 | V8: 0 | W8: 0 | X8: 0
A9: Activo 0 | B9: Terrenos | C9: LAS SALINAS - HUACHO | D9: 6460.65 | K9: 0 | L9: 6460.65 | N9: 0 | O9: 0 | P9: 0 | Q9: 0 | R9: 0 | S9: 0 | T9: 0 | U9: 0 | V9: 0 | W9: 0 | X9: 0
A10: Activo 0 | B10: Terrenos | C10: MALA - BUJAMA | D10: 64.41 | K10: 0 | L10: 64.41 | N10: 0 | O10: 0 | P10: 0 | Q10: 0 | R10: 0 | S10: 0 | T10: 0 | U10: 0 | V10: 0 | W10: 0 | X10: 0
A11: Activo 0 | B11: Terrenos | C11: OYON | D11: 47664 | K11: 0 | L11: 47664 | N11: 0 | O11: 0 | P11: 0 | Q11: 0 | R11: 0 | S11: 0 | T11: 0 | U11: 0 | V11: 0 | W11: 0 | X11: 0
A12: Activo 0 | B12: Terrenos | C12: BREU | D12: 139.72 | K12: 0 | L12: 139.72 | N12: 0 | O12: 0 | P12: 0 | Q12: 0 | R12: 0 | S12: 0 | T12: 0 | U12: 0 | V12: 0 | W12: 0 | X12: 0
A13: Activo 0 | B13: Terrenos | C13: GALILEA | D13: 4285.21 | K13: 0 | L13: 4285.21 | N13: 0 | O13: 0 | P13: 0 | Q13: 0 | R13: 0 | S13: 0 | T13: 0 | U13: 0 | V13: 0 | W13: 0 | X13: 0
A14: Activo 0 | B14: Terrenos | C14: SAN MARTIN DE PORRES-ESTACION | D14: 56647.99 | K14: 0 | L14: 56647.99 | N14: 0 | O14: 0 | P14: 0 | Q14: 0 | R14: 0 | S14: 0 | T14: 0 | U14: 0 | V14: 0 | W14: 0 | X14: 0
A15: Activo 0 | B15: Terrenos | C15: CIRO ALEGRIA | D15: 4675.19 | K15: 0 | L15: 4675.19 | N15: 0 | O15: 0 | P15: 0 | Q15: 0 | R15: 0 | S15: 0 | T15: 0 | U15: 0 | V15: 0 | W15: 0 | X15: 0
A16: Activo 0 | B16: Terrenos | C16: RODRIGUEZ DE MENDOZA | D16: 59405.01 | K16: 0 | L16: 59405.01 | N16: 0 | O16: 0 | P16: 0 | Q16: 0 | R16: 0 | S16: 0 | T16: 0 | U16: 0 | V16: 0 | W16: 0 | X16: 0
A17: Activo 0 | B17: Terrenos | C17: IQUITOS (TRANSMISORA - RECEPTORA) | D17: 1139762.01 | K17: 0 | L17: 1139762.01 | N17: 0 | O17: 0 | P17: 0 | Q17: 0 | R17: 0 | S17: 0 | T17: 0 | U17: 0 | V17: 0 | W17: 0 | X17: 0
A18: Activo 0 | B18: Terrenos | C18: VENTANILLA - CHILLON | D18: 537824.17 | K18: 0 | L18: 537824.17 | N18: 0 | O18: 0 | P18: 0 | Q18: 0 | R18: 0 | S18: 0 | T18: 0 | U18: 0 | V18: 0 | W18: 0 | X18: 0
A19: Activo 0 | B19: Terrenos | C19: JAEN | D19: 4126.47 | K19: 0 | L19: 4126.47 | N19: 0 | O19: 0 | P19: 0 | Q19: 0 | R19: 0 | S19: 0 | T19: 0 | U19: 0 | V19: 0 | W19: 0 | X19: 0
A20: Activo 0 | B20: Terrenos | C20: AREQUIPA | D20: 53521.12 | K20: 0 | L20: 53521.12 | N20: 0 | O20: 0 | P20: 0 | Q20: 0 | R20: 0 | S20: 0 | T20: 0 | U20: 0 | V20: 0 | W20: 0 | X20: 0
A21: Activo 0 | B21: Terrenos | C21: INTUTO | D21: 125.94 | K21: 0 | L21: 125.94 | N21: 0 | O21: 0 | P21: 0 | Q21: 0 | R21: 0 | S21: 0 | T21: 0 | U21: 0 | V21: 0 | W21: 0 | X21: 0
A22: Activo 0 | B22: Terrenos | C22: CHIRIORCO (CUSCO) | D22: 5346 | K22: 0 | L22: 5346 | N22: 0 | O22: 0 | P22: 0 | Q22: 0 | R22: 0 | S22: 0 | T22: 0 | U22: 0 | V22: 0 | W22: 0 | X22: 0
A23: Activo 0 | B23: Terrenos | C23: PIURA (BAYOBAR) | D23: 297601.2 | K23: 0 | L23: 297601.2 | N23: 0 | O23: 0 | P23: 0 | Q23: 0 | R23: 0 | S23: 0 | T23: 0 | U23: 0 | V23: 0 | W23: 0 | X23: 0
A24: Activo 0 | B24: Terrenos | C24: ATALAYA | D24: 712.32 | K24: 0 | L24: 712.32 | N24: 0 | O24: 0 | P24: 0 | Q24: 0 | R24: 0 | S24: 0 | T24: 0 | U24: 0 | V24: 0 | W24: 0 | X24: 0
A25: Activo 0 | B25: Terrenos | C25: CONTAMANA-ESTACION | D25: 25600 | K25: 0 | L25: 25600 | N25: 0 | O25: 0 | P25: 0 | Q25: 0 | R25: 0 | S25: 0 | T25: 0 | U25: 0 | V25: 0 | W25: 0 | X25: 0
A26: Activo 0 | B26: Terrenos | C26: TARAPOTO (CERRO MIRADOR9 | D26: 17431.41 | K26: 0 | L26: 17431.41 | N26: 0 | O26: 0 | P26: 0 | Q26: 0 | R26: 0 | S26: 0 | T26: 0 | U26: 0 | V26: 0 | W26: 0 | X26: 0
A27: Activo 0 | B27: Terrenos | C27: IÑAPARI | D27: 6927.1 | K27: 0 | L27: 6927.1 | N27: 0 | O27: 0 | P27: 0 | Q27: 0 | R27: 0 | S27: 0 | T27: 0 | U27: 0 | V27: 0 | W27: 0 | X27: 0
A28: Activo 0 | B28: Terrenos | C28: CABALLOCOCHA | D28: 55237 | K28: 0 | L28: 55237 | N28: 0 | O28: 0 | P28: 0 | Q28: 0 | R28: 0 | S28: 0 | T28: 0 | U28: 0 | V28: 0 | W28: 0 | X28: 0
A29: Activo 0 | B29: Terrenos | C29: SHAPAJILLA | D29: 2290.5 | K29: 0 | L29: 2290.5 | N29: 0 | O29: 0 | P29: 0 | Q29: 0 | R29: 0 | S29: 0 | T29: 0 | U29: 0 | V29: 0 | W29: 0 | X29: 0
A30: Activo 0 | B30: Terrenos | C30: MOQUEGUA | D30: 154386.32 | K30: 0 | L30: 154386.32 | N30: 0 | O30: 0 | P30: 0 | Q30: 0 | R30: 0 | S30: 0 | T30: 0 | U30: 0 | V30: 0 | W30: 0 | X30: 0
A31: Activo 0 | B31: Terrenos | C31: CAJAMARCA (LLACANORA) | D31: 355735.75 | K31: 0 | L31: 355735.75 | N31: 0 | O31: 0 | P31: 0 | Q31: 0 | R31: 0 | S31: 0 | T31: 0 | U31: 0 | V31: 0 | W31: 0 | X31: 0
A32: Activo 0 | B32: Terrenos | C32: ILO | D32: 16558.15 | K32: 0 | L32: 16558.15 | N32: 0 | O32: 0 | P32: 0 | Q32: 0 | R32: 0 | S32: 0 | T32: 0 | U32: 0 | V32: 0 | W32: 0 | X32: 0
A33: Activo 0 | B33: Terrenos | C33: PATRIA | D33: 792.64 | K33: 0 | L33: 792.64 | N33: 0 | O33: 0 | P33: 0 | Q33: 0 | R33: 0 | S33: 0 | T33: 0 | U33: 0 | V33: 0 | W33: 0 | X33: 0
A34: Activo 0 | B34: Terrenos | C34: UCHIZA | D34: 518976 | K34: 0 | L34: 518976 | N34: 0 | O34: 0 | P34: 0 | Q34: 0 | R34: 0 | S34: 0 | T34: 0 | U34: 0 | V34: 0 | W34: 0 | X34: 0
A35: Activo 0 | B35: Terrenos | C35: TOCACHE | D35: 4458445.15 | K35: 0 | L35: 4458445.15 | N35: 0 | O35: 0 | P35: 0 | Q35: 0 | R35: 0 | S35: 0 | T35: 0 | U35: 0 | V35: 0 | W35: 0 | X35: 0
A36: Activo 0 | B36: Terrenos | C36: SAPOSOA | D36: 215880 | K36: 0 | L36: 215880 | N36: 0 | O36: 0 | P36: 0 | Q36: 0 | R36: 0 | S36: 0 | T36: 0 | U36: 0 | V36: 0 | W36: 0 | X36: 0
A37: Activo 0 | B37: Terrenos | C37: MOYOBAMBA | D37: 539228.16 | K37: 0 | L37: 539228.16 | N37: 0 | O37: 0 | P37: 0 | Q37: 0 | R37: 0 | S37: 0 | T37: 0 | U37: 0 | V37: 0 | W37: 0 | X37: 0
A38: Activo 0 | B38: Terrenos | C38: IBERIA | D38: 307189.07 | K38: 0 | L38: 307189.07 | N38: 0 | O38: 0 | P38: 0 | Q38: 0 | R38: 0 | S38: 0 | T38: 0 | U38: 0 | V38: 0 | W38: 0 | X38: 0
A39: Activo 0 | B39: Terrenos | C39: QUINCEMIL | D39: 604951.41 | K39: 0 | L39: 604951.41 | N39: 0 | O39: 0 | P39: 0 | Q39: 0 | R39: 0 | S39: 0 | T39: 0 | U39: 0 | V39: 0 | W39: 0 | X39: 0
A40: Activo 0 | B40: Terrenos | C40: RIOJA | D40: 362683.06 | K40: 0 | L40: 362683.06 | N40: 0 | O40: 0 | P40: 0 | Q40: 0 | R40: 0 | S40: 0 | T40: 0 | U40: 0 | V40: 0 | W40: 0 | X40: 0
A41: Activo 0 | B41: Terrenos | C41: SAN JUAN DE MARCONA | D41: 279419.69 | K41: 0 | L41: 279419.69 | N41: 0 | O41: 0 | P41: 0 | Q41: 0 | R41: 0 | S41: 0 | T41: 0 | U41: 0 | V41: 0 | W41: 0 | X41: 0
A42: Activo 0 | B42: Terrenos | C42: PAMPA HERMOZA | D42: 2456.25 | K42: 0 | L42: 2456.25 | N42: 0 | O42: 0 | P42: 0 | Q42: 0 | R42: 0 | S42: 0 | T42: 0 | U42: 0 | V42: 0 | W42: 0 | X42: 0
A43: Activo 0 | B43: Terrenos | C43: REQUENA | D43: 3427.5 | K43: 0 | L43: 3427.5 | N43: 0 | O43: 0 | P43: 0 | Q43: 0 | R43: 0 | S43: 0 | T43: 0 | U43: 0 | V43: 0 | W43: 0 | X43: 0
A44: Activo 1 | B44: Edificio | C44: MANTENIMIENTO SALA DE COMBUSTIBLE Y CASA DE FUERZA GGEE -AEROPUERTO CHICLAYO | D44: 8557.36 | E44: 41260 | F44: 41260 | G44: =+H44/$G$3 -> 20 | H44: 240 | J44: 427.87 | K44: 427.87 | L44: 8129.49 | N44: =+IF(($L44-SUM($M44:M44))<$K44,$L44-SUM($M44:M44),IF(SUM($M44:M44)<$L44,$K44,0)) -> 427.87 | O44: =+IF(($L44-SUM($M44:N44))<$K44,$L44-SUM($M44:N44),IF(SUM($M44:N44)<$L44,$K44,0)) -> 427.87 | P44: =+IF(($L44-SUM($M44:O44))<$K44,$L44-SUM($M44:O44),IF(SUM($M44:O44)<$L44,$K44,0)) -> 427.87 | Q44: =+IF(($L44-SUM($M44:P44))<$K44,$L44-SUM($M44:P44),IF(SUM($M44:P44)<$L44,$K44,0)) -> 427.87 | R44: =+IF(($L44-SUM($M44:Q44))<$K44,$L44-SUM($M44:Q44),IF(SUM($M44:Q44)<$L44,$K44,0)) -> 427.87 | S44: =+IF(($L44-SUM($M44:R44))<$K44,$L44-SUM($M44:R44),IF(SUM($M44:R44)<$L44,$K44,0)) -> 427.87 | T44: =+IF(($L44-SUM($M44:S44))<$K44,$L44-SUM($M44:S44),IF(SUM($M44:S44)<$L44,$K44,0)) -> 427.87 | U44: =+IF(($L44-SUM($M44:T44))<$K44,$L44-SUM($M44:T44),IF(SUM($M44:T44)<$L44,$K44,0)) -> 427.87 | V44: =+IF(($L44-SUM($M44:U44))<$K44,$L44-SUM($M44:U44),IF(SUM($M44:U44)<$L44,$K44,0)) -> 427.87 | W44: =+IF(($L44-SUM($M44:V44))<$K44,$L44-SUM($M44:V44),IF(SUM($M44:V44)<$L44,$K44,0)) -> 427.87 | X44: =+IF(($L44-SUM($M44:W44))<$K44,$L44-SUM($M44:W44),IF(SUM($M44:W44)<$L44,$K44,0)) -> 427.87
A45: Activo 1 | B45: Edificio | C45: MANTENIMIENTO DE LA CASA DE FUERZA GGEE -ESTACION VOR CAPOTE - CHICLAYO | D45: 4420.78 | E45: 41265 | F45: 41265 | G45: 20 | H45: 240 | J45: 221.04 | K45: 221.04 | L45: 4199.74 | N45: =+IF(($L45-SUM($M45:M45))<$K45,$L45-SUM($M45:M45),IF(SUM($M45:M45)<$L45,$K45,0)) -> 221.04 | O45: =+IF(($L45-SUM($M45:N45))<$K45,$L45-SUM($M45:N45),IF(SUM($M45:N45)<$L45,$K45,0)) -> 221.04 | P45: =+IF(($L45-SUM($M45:O45))<$K45,$L45-SUM($M45:O45),IF(SUM($M45:O45)<$L45,$K45,0)) -> 221.04 | Q45: =+IF(($L45-SUM($M45:P45))<$K45,$L45-SUM($M45:P45),IF(SUM($M45:P45)<$L45,$K45,0)) -> 221.04 | R45: =+IF(($L45-SUM($M45:Q45))<$K45,$L45-SUM($M45:Q45),IF(SUM($M45:Q45)<$L45,$K45,0)) -> 221.04 | S45: =+IF(($L45-SUM($M45:R45))<$K45,$L45-SUM($M45:R45),IF(SUM($M45:R45)<$L45,$K45,0)) -> 221.04 | T45: =+IF(($L45-SUM($M45:S45))<$K45,$L45-SUM($M45:S45),IF(SUM($M45:S45)<$L45,$K45,0)) -> 221.04 | U45: =+IF(($L45-SUM($M45:T45))<$K45,$L45-SUM($M45:T45),IF(SUM($M45:T45)<$L45,$K45,0)) -> 221.04 | V45: =+IF(($L45-SUM($M45:U45))<$K45,$L45-SUM($M45:U45),IF(SUM($M45:U45)<$L45,$K45,0)) -> 221.04 | W45: =+IF(($L45-SUM($M45:V45))<$K45,$L45-SUM($M45:V45),IF(SUM($M45:V45)<$L45,$K45,0)) -> 221.04 | X45: =+IF(($L45-SUM($M45:W45))<$K45,$L45-SUM($M45:W45),IF(SUM($M45:W45)<$L45,$K45,0)) -> 221.04
A46: Activo 1 | B46: Edificio | C46: MANTENIMIENTO DEL CERCO PERIMETRICO METALICO EN EL AEROPUERTO DE CHICLAYO | D46: 8443 | E46: 41437 | F46: 41437 | G46: 20 | H46: 240 | J46: 211.08 | K46: 211.08 | L46: 8231.92 | N46: =+IF(($L46-SUM($M46:M46))<$K46,$L46-SUM($M46:M46),IF(SUM($M46:M46)<$L46,$K46,0)) -> 211.08 | O46: =+IF(($L46-SUM($M46:N46))<$K46,$L46-SUM($M46:N46),IF(SUM($M46:N46)<$L46,$K46,0)) -> 211.08 | P46: =+IF(($L46-SUM($M46:O46))<$K46,$L46-SUM($M46:O46),IF(SUM($M46:O46)<$L46,$K46,0)) -> 211.08 | Q46: =+IF(($L46-SUM($M46:P46))<$K46,$L46-SUM($M46:P46),IF(SUM($M46:P46)<$L46,$K46,0)) -> 211.08 | R46: =+IF(($L46-SUM($M46:Q46))<$K46,$L46-SUM($M46:Q46),IF(SUM($M46:Q46)<$L46,$K46,0)) -> 211.08 | S46: =+IF(($L46-SUM($M46:R46))<$K46,$L46-SUM($M46:R46),IF(SUM($M46:R46)<$L46,$K46,0)) -> 211.08 | T46: =+IF(($L46-SUM($M46:S46))<$K46,$L46-SUM($M46:S46),IF(SUM($M46:S46)<$L46,$K46,0)) -> 211.08 | U46: =+IF(($L46-SUM($M46:T46))<$K46,$L46-SUM($M46:T46),IF(SUM($M46:T46)<$L46,$K46,0)) -> 211.08 | V46: =+IF(($L46-SUM($M46:U46))<$K46,$L46-SUM($M46:U46),IF(SUM($M46:U46)<$L46,$K46,0)) -> 211.08 | W46: =+IF(($L46-SUM($M46:V46))<$K46,$L46-SUM($M46:V46),IF(SUM($M46:V46)<$L46,$K46,0)) -> 211.08 | X46: =+IF(($L46-SUM($M46:W46))<$K46,$L46-SUM($M46:W46),IF(SUM($M46:W46)<$L46,$K46,0)) -> 211.08
A47: Activo 1 | B47: Edificio | C47: MANTENIMIENTO DE VEREDAS EN OFICINAS GRUPOS ELECTROGENOS DEL AEROPUERTO DE CHICLAYO | D47: 8652.28 | E47: 41519 | F47: 41519 | G47: 20 | H47: 240 | J47: 108.15 | K47: 108.15 | L47: 8544.13 | N47: =+IF(($L47-SUM($M47:M47))<$K47,$L47-SUM($M47:M47),IF(SUM($M47:M47)<$L47,$K47,0)) -> 108.15 | O47: =+IF(($L47-SUM($M47:N47))<$K47,$L47-SUM($M47:N47),IF(SUM($M47:N47)<$L47,$K47,0)) -> 108.15 | P47: =+IF(($L47-SUM($M47:O47))<$K47,$L47-SUM($M47:O47),IF(SUM($M47:O47)<$L47,$K47,0)) -> 108.15 | Q47: =+IF(($L47-SUM($M47:P47))<$K47,$L47-SUM($M47:P47),IF(SUM($M47:P47)<$L47,$K47,0)) -> 108.15 | R47: =+IF(($L47-SUM($M47:Q47))<$K47,$L47-SUM($M47:Q47),IF(SUM($M47:Q47)<$L47,$K47,0)) -> 108.15 | S47: =+IF(($L47-SUM($M47:R47))<$K47,$L47-SUM($M47:R47),IF(SUM($M47:R47)<$L47,$K47,0)) -> 108.15 | T47: =+IF(($L47-SUM($M47:S47))<$K47,$L47-SUM($M47:S47),IF(SUM($M47:S47)<$L47,$K47,0)) -> 108.15 | U47: =+IF(($L47-SUM($M47:T47))<$K47,$L47-SUM($M47:T47),IF(SUM($M47:T47)<$L47,$K47,0)) -> 108.15 | V47: =+IF(($L47-SUM($M47:U47))<$K47,$L47-SUM($M47:U47),IF(SUM($M47:U47)<$L47,$K47,0)) -> 108.15 | W47: =+IF(($L47-SUM($M47:V47))<$K47,$L47-SUM($M47:V47),IF(SUM($M47:V47)<$L47,$K47,0)) -> 108.15 | X47: =+IF(($L47-SUM($M47:W47))<$K47,$L47-SUM($M47:W47),IF(SUM($M47:W47)<$L47,$K47,0)) -> 108.15
A48: Activo 1 | B48: Edificio | C48: MANTENIMIENTO DE LAS AREAS DE USO DE CORPAC -AEROPUERTO DE CHICLAYO | D48: 181491.39 | E48: 41432 | F48: 41432 | G48: 20 | H48: 240 | J48: 4537.28 | K48: 4537.28 | L48: 176954.11 | N48: =+IF(($L48-SUM($M48:M48))<$K48,$L48-SUM($M48:M48),IF(SUM($M48:M48)<$L48,$K48,0)) -> 4537.28 | O48: =+IF(($L48-SUM($M48:N48))<$K48,$L48-SUM($M48:N48),IF(SUM($M48:N48)<$L48,$K48,0)) -> 4537.28 | P48: =+IF(($L48-SUM($M48:O48))<$K48,$L48-SUM($M48:O48),IF(SUM($M48:O48)<$L48,$K48,0)) -> 4537.28 | Q48: =+IF(($L48-SUM($M48:P48))<$K48,$L48-SUM($M48:P48),IF(SUM($M48:P48)<$L48,$K48,0)) -> 4537.28 | R48: =+IF(($L48-SUM($M48:Q48))<$K48,$L48-SUM($M48:Q48),IF(SUM($M48:Q48)<$L48,$K48,0)) -> 4537.28 | S48: =+IF(($L48-SUM($M48:R48))<$K48,$L48-SUM($M48:R48),IF(SUM($M48:R48)<$L48,$K48,0)) -> 4537.28 | T48: =+IF(($L48-SUM($M48:S48))<$K48,$L48-SUM($M48:S48),IF(SUM($M48:S48)<$L48,$K48,0)) -> 4537.28 | U48: =+IF(($L48-SUM($M48:T48))<$K48,$L48-SUM($M48:T48),IF(SUM($M48:T48)<$L48,$K48,0)) -> 4537.28 | V48: =+IF(($L48-SUM($M48:U48))<$K48,$L48-SUM($M48:U48),IF(SUM($M48:U48)<$L48,$K48,0)) -> 4537.28 | W48: =+IF(($L48-SUM($M48:V48))<$K48,$L48-SUM($M48:V48),IF(SUM($M48:V48)<$L48,$K48,0)) -> 4537.28 | X48: =+IF(($L48-SUM($M48:W48))<$K48,$L48-SUM($M48:W48),IF(SUM($M48:W48)<$L48,$K48,0)) -> 4537.28
A49: Activo 1 | B49: Edificio | C49: REPOSICION CERCO TRAMO NORTE UMBRAL15 DEL AEROPUERTO INTERNACIONAL JORGE CHAVEZ | D49: 145658.67 | E49: 41589 | F49: 41589 | G49: 20 | H49: 240 | J49: 606.91 | K49: 606.91 | L49: 145051.76 | N49: =+IF(($L49-SUM($M49:M49))<$K49,$L49-SUM($M49:M49),IF(SUM($M49:M49)<$L49,$K49,0)) -> 606.91 | O49: =+IF(($L49-SUM($M49:N49))<$K49,$L49-SUM($M49:N49),IF(SUM($M49:N49)<$L49,$K49,0)) -> 606.91 | P49: =+IF(($L49-SUM($M49:O49))<$K49,$L49-SUM($M49:O49),IF(SUM($M49:O49)<$L49,$K49,0)) -> 606.91 | Q49: =+IF(($L49-SUM($M49:P49))<$K49,$L49-SUM($M49:P49),IF(SUM($M49:P49)<$L49,$K49,0)) -> 606.91 | R49: =+IF(($L49-SUM($M49:Q49))<$K49,$L49-SUM($M49:Q49),IF(SUM($M49:Q49)<$L49,$K49,0)) -> 606.91 | S49: =+IF(($L49-SUM($M49:R49))<$K49,$L49-SUM($M49:R49),IF(SUM($M49:R49)<$L49,$K49,0)) -> 606.91 | T49: =+IF(($L49-SUM($M49:S49))<$K49,$L49-SUM($M49:S49),IF(SUM($M49:S49)<$L49,$K49,0)) -> 606.91 | U49: =+IF(($L49-SUM($M49:T49))<$K49,$L49-SUM($M49:T49),IF(SUM($M49:T49)<$L49,$K49,0)) -> 606.91 | V49: =+IF(($L49-SUM($M49:U49))<$K49,$L49-SUM($M49:U49),IF(SUM($M49:U49)<$L49,$K49,0)) -> 606.91 | W49: =+IF(($L49-SUM($M49:V49))<$K49,$L49-SUM($M49:V49),IF(SUM($M49:V49)<$L49,$K49,0)) -> 606.91 | X49: =+IF(($L49-SUM($M49:W49))<$K49,$L49-SUM($M49:W49),IF(SUM($M49:W49)<$L49,$K49,0)) -> 606.91
A50: Activo 1 | B50: Edificio | C50: OBRAS CIVILES INSTALACIÓN SISTEMA AUTOMATICO OBSERVACIÓN METEREOLOGICA AWOS - AEROPUERTO DE PISCO | D50: 155796.01 | E50: 40623 | F50: 40623 | G50: 10 | H50: 120 | J50: 42843.90038 | K50: 15579.6 | L50: 112952.1096 | N50: =+IF(($L50-SUM($M50:M50))<$K50,$L50-SUM($M50:M50),IF(SUM($M50:M50)<$L50,$K50,0)) -> 15579.6 | O50: =+IF(($L50-SUM($M50:N50))<$K50,$L50-SUM($M50:N50),IF(SUM($M50:N50)<$L50,$K50,0)) -> 15579.6 | P50: =+IF(($L50-SUM($M50:O50))<$K50,$L50-SUM($M50:O50),IF(SUM($M50:O50)<$L50,$K50,0)) -> 15579.6 | Q50: =+IF(($L50-SUM($M50:P50))<$K50,$L50-SUM($M50:P50),IF(SUM($M50:P50)<$L50,$K50,0)) -> 15579.6 | R50: =+IF(($L50-SUM($M50:Q50))<$K50,$L50-SUM($M50:Q50),IF(SUM($M50:Q50)<$L50,$K50,0)) -> 15579.6 | S50: =+IF(($L50-SUM($M50:R50))<$K50,$L50-SUM($M50:R50),IF(SUM($M50:R50)<$L50,$K50,0)) -> 15579.6 | T50: =+IF(($L50-SUM($M50:S50))<$K50,$L50-SUM($M50:S50),IF(SUM($M50:S50)<$L50,$K50,0)) -> 15579.6 | U50: =+IF(($L50-SUM($M50:T50))<$K50,$L50-SUM($M50:T50),IF(SUM($M50:T50)<$L50,$K50,0)) -> 3894.909623 | V50: =+IF(($L50-SUM($M50:U50))<$K50,$L50-SUM($M50:U50),IF(SUM($M50:U50)<$L50,$K50,0)) -> 0 | W50: =+IF(($L50-SUM($M50:V50))<$K50,$L50-SUM($M50:V50),IF(SUM($M50:V50)<$L50,$K50,0)) -> 0 | X50: =+IF(($L50-SUM($M50:W50))<$K50,$L50-SUM($M50:W50),IF(SUM($M50:W50)<$L50,$K50,0)) -> 0
A51: Activo 1 | B51: Edificio | C51: REMODELACION CASA DE FUERZA DEL AEROPUERTO DE HUANUCO | D51: 62859.38 | E51: 40798 | F51: 40798 | G51: 20 | H51: 240 | J51: 7071.681514 | K51: 3142.97 | L51: 55787.69849 | N51: =+IF(($L51-SUM($M51:M51))<$K51,$L51-SUM($M51:M51),IF(SUM($M51:M51)<$L51,$K51,0)) -> 3142.97 | O51: =+IF(($L51-SUM($M51:N51))<$K51,$L51-SUM($M51:N51),IF(SUM($M51:N51)<$L51,$K51,0)) -> 3142.97 | P51: =+IF(($L51-SUM($M51:O51))<$K51,$L51-SUM($M51:O51),IF(SUM($M51:O51)<$L51,$K51,0)) -> 3142.97 | Q51: =+IF(($L51-SUM($M51:P51))<$K51,$L51-SUM($M51:P51),IF(SUM($M51:P51)<$L51,$K51,0)) -> 3142.97 | R51: =+IF(($L51-SUM($M51:Q51))<$K51,$L51-SUM($M51:Q51),IF(SUM($M51:Q51)<$L51,$K51,0)) -> 3142.97 | S51: =+IF(($L51-SUM($M51:R51))<$K51,$L51-SUM($M51:R51),IF(SUM($M51:R51)<$L51,$K51,0)) -> 3142.97 | T51: =+IF(($L51-SUM($M51:S51))<$K51,$L51-SUM($M51:S51),IF(SUM($M51:S51)<$L51,$K51,0)) -> 3142.97 | U51: =+IF(($L51-SUM($M51:T51))<$K51,$L51-SUM($M51:T51),IF(SUM($M51:T51)<$L51,$K51,0)) -> 3142.97 | V51: =+IF(($L51-SUM($M51:U51))<$K51,$L51-SUM($M51:U51),IF(SUM($M51:U51)<$L51,$K51,0)) -> 3142.97 | W51: =+IF(($L51-SUM($M51:V51))<$K51,$L51-SUM($M51:V51),IF(SUM($M51:V51)<$L51,$K51,0)) -> 3142.97 | X51: =+IF(($L51-SUM($M51:W51))<$K51,$L51-SUM($M51:W51),IF(SUM($M51:W51)<$L51,$K51,0)) -> 3142.97
A52: Activo 1 | B52: Edificio | C52: REMODELACIÓN CASA DE FUERZA PARA EL AEROPUERTO DE CHIMBOTE | D52: 23509.28 | E52: 40169 | F52: 40169 | G52: 20 | H52: 240 | J52: 4231.66494 | K52: 1175.46 | L52: 19277.61506 | N52: =+IF(($L52-SUM($M52:M52))<$K52,$L52-SUM($M52:M52),IF(SUM($M52:M52)<$L52,$K52,0)) -> 1175.46 | O52: =+IF(($L52-SUM($M52:N52))<$K52,$L52-SUM($M52:N52),IF(SUM($M52:N52)<$L52,$K52,0)) -> 1175.46 | P52: =+IF(($L52-SUM($M52:O52))<$K52,$L52-SUM($M52:O52),IF(SUM($M52:O52)<$L52,$K52,0)) -> 1175.46 | Q52: =+IF(($L52-SUM($M52:P52))<$K52,$L52-SUM($M52:P52),IF(SUM($M52:P52)<$L52,$K52,0)) -> 1175.46 | R52: =+IF(($L52-SUM($M52:Q52))<$K52,$L52-SUM($M52:Q52),IF(SUM($M52:Q52)<$L52,$K52,0)) -> 1175.46 | S52: =+IF(($L52-SUM($M52:R52))<$K52,$L52-SUM($M52:R52),IF(SUM($M52:R52)<$L52,$K52,0)) -> 1175.46 | T52: =+IF(($L52-SUM($M52:S52))<$K52,$L52-SUM($M52:S52),IF(SUM($M52:S52)<$L52,$K52,0)) -> 1175.46 | U52: =+IF(($L52-SUM($M52:T52))<$K52,$L52-SUM($M52:T52),IF(SUM($M52:T52)<$L52,$K52,0)) -> 1175.46 | V52: =+IF(($L52-SUM($M52:U52))<$K52,$L52-SUM($M52:U52),IF(SUM($M52:U52)<$L52,$K52,0)) -> 1175.46 | W52: =+IF(($L52-SUM($M52:V52))<$K52,$L52-SUM($M52:V52),IF(SUM($M52:V52)<$L52,$K52,0)) -> 1175.46 | X52: =+IF(($L52-SUM($M52:W52))<$K52,$L52-SUM($M52:W52),IF(SUM($M52:W52)<$L52,$K52,0)) -> 1175.46
A53: Activo 1 | B53: Edificio | C53: CONSTRUCCIÓN DE LOZA PARA SHELTER EN AEROPUERTO DE CHACHAPOYAS | D53: 29274.42 | E53: 40487 | F53: 40487 | G53: 20 | H53: 240 | J53: 4464.352171 | K53: 1463.72 | L53: 24810.06783 | N53: =+IF(($L53-SUM($M53:M53))<$K53,$L53-SUM($M53:M53),IF(SUM($M53:M53)<$L53,$K53,0)) -> 1463.72 | O53: =+IF(($L53-SUM($M53:N53))<$K53,$L53-SUM($M53:N53),IF(SUM($M53:N53)<$L53,$K53,0)) -> 1463.72 | P53: =+IF(($L53-SUM($M53:O53))<$K53,$L53-SUM($M53:O53),IF(SUM($M53:O53)<$L53,$K53,0)) -> 1463.72 | Q53: =+IF(($L53-SUM($M53:P53))<$K53,$L53-SUM($M53:P53),IF(SUM($M53:P53)<$L53,$K53,0)) -> 1463.72 | R53: =+IF(($L53-SUM($M53:Q53))<$K53,$L53-SUM($M53:Q53),IF(SUM($M53:Q53)<$L53,$K53,0)) -> 1463.72 | S53: =+IF(($L53-SUM($M53:R53))<$K53,$L53-SUM($M53:R53),IF(SUM($M53:R53)<$L53,$K53,0)) -> 1463.72 | T53: =+IF(($L53-SUM($M53:S53))<$K53,$L53-SUM($M53:S53),IF(SUM($M53:S53)<$L53,$K53,0)) -> 1463.72 | U53: =+IF(($L53-SUM($M53:T53))<$K53,$L53-SUM($M53:T53),IF(SUM($M53:T53)<$L53,$K53,0)) -> 1463.72 | V53: =+IF(($L53-SUM($M53:U53))<$K53,$L53-SUM($M53:U53),IF(SUM($M53:U53)<$L53,$K53,0)) -> 1463.72 | W53: =+IF(($L53-SUM($M53:V53))<$K53,$L53-SUM($M53:V53),IF(SUM($M53:V53)<$L53,$K53,0)) -> 1463.72 | X53: =+IF(($L53-SUM($M53:W53))<$K53,$L53-SUM($M53:W53),IF(SUM($M53:W53)<$L53,$K53,0)) -> 1463.72
A54: Activo 1 | B54: Edificio | C54: CONSTRUCCIÓN ALMACEN DMA AEROPUERTO DE AYACUCHO | D54: 42765.04 | E54: 40521 | F54: 40521 | G54: 20 | H54: 240 | J54: 6414.753711 | K54: 2138.25 | L54: 36350.28629 | N54: =+IF(($L54-SUM($M54:M54))<$K54,$L54-SUM($M54:M54),IF(SUM($M54:M54)<$L54,$K54,0)) -> 2138.25 | O54: =+IF(($L54-SUM($M54:N54))<$K54,$L54-SUM($M54:N54),IF(SUM($M54:N54)<$L54,$K54,0)) -> 2138.25 | P54: =+IF(($L54-SUM($M54:O54))<$K54,$L54-SUM($M54:O54),IF(SUM($M54:O54)<$L54,$K54,0)) -> 2138.25 | Q54: =+IF(($L54-SUM($M54:P54))<$K54,$L54-SUM($M54:P54),IF(SUM($M54:P54)<$L54,$K54,0)) -> 2138.25 | R54: =+IF(($L54-SUM($M54:Q54))<$K54,$L54-SUM($M54:Q54),IF(SUM($M54:Q54)<$L54,$K54,0)) -> 2138.25 | S54: =+IF(($L54-SUM($M54:R54))<$K54,$L54-SUM($M54:R54),IF(SUM($M54:R54)<$L54,$K54,0)) -> 2138.25 | T54: =+IF(($L54-SUM($M54:S54))<$K54,$L54-SUM($M54:S54),IF(SUM($M54:S54)<$L54,$K54,0)) -> 2138.25 | U54: =+IF(($L54-SUM($M54:T54))<$K54,$L54-SUM($M54:T54),IF(SUM($M54:T54)<$L54,$K54,0)) -> 2138.25 | V54: =+IF(($L54-SUM($M54:U54))<$K54,$L54-SUM($M54:U54),IF(SUM($M54:U54)<$L54,$K54,0)) -> 2138.25 | W54: =+IF(($L54-SUM($M54:V54))<$K54,$L54-SUM($M54:V54),IF(SUM($M54:V54)<$L54,$K54,0)) -> 2138.25 | X54: =+IF(($L54-SUM($M54:W54))<$K54,$L54-SUM($M54:W54),IF(SUM($M54:W54)<$L54,$K54,0)) -> 2138.25
A55: Activo 1 | B55: Edificio | C55: CONSTRUCCIÓN ALMACEN DMA AEROPUERTO DE TRUJILLO | D55: 34432.9 | E55: 40578 | F55: 40578 | G55: 20 | H55: 240 | J55: 4877.996377 | K55: 1721.65 | L55: 29554.90362 | N55: =+IF(($L55-SUM($M55:M55))<$K55,$L55-SUM($M55:M55),IF(SUM($M55:M55)<$L55,$K55,0)) -> 1721.65 | O55: =+IF(($L55-SUM($M55:N55))<$K55,$L55-SUM($M55:N55),IF(SUM($M55:N55)<$L55,$K55,0)) -> 1721.65 | P55: =+IF(($L55-SUM($M55:O55))<$K55,$L55-SUM($M55:O55),IF(SUM($M55:O55)<$L55,$K55,0)) -> 1721.65 | Q55: =+IF(($L55-SUM($M55:P55))<$K55,$L55-SUM($M55:P55),IF(SUM($M55:P55)<$L55,$K55,0)) -> 1721.65 | R55: =+IF(($L55-SUM($M55:Q55))<$K55,$L55-SUM($M55:Q55),IF(SUM($M55:Q55)<$L55,$K55,0)) -> 1721.65 | S55: =+IF(($L55-SUM($M55:R55))<$K55,$L55-SUM($M55:R55),IF(SUM($M55:R55)<$L55,$K55,0)) -> 1721.65 | T55: =+IF(($L55-SUM($M55:S55))<$K55,$L55-SUM($M55:S55),IF(SUM($M55:S55)<$L55,$K55,0)) -> 1721.65 | U55: =+IF(($L55-SUM($M55:T55))<$K55,$L55-SUM($M55:T55),IF(SUM($M55:T55)<$L55,$K55,0)) -> 1721.65 | V55: =+IF(($L55-SUM($M55:U55))<$K55,$L55-SUM($M55:U55),IF(SUM($M55:U55)<$L55,$K55,0)) -> 1721.65 | W55: =+IF(($L55-SUM($M55:V55))<$K55,$L55-SUM($M55:V55),IF(SUM($M55:V55)<$L55,$K55,0)) -> 1721.65 | X55: =+IF(($L55-SUM($M55:W55))<$K55,$L55-SUM($M55:W55),IF(SUM($M55:W55)<$L55,$K55,0)) -> 1721.65
A56: Activo 1 | B56: Edificio | C56: MANTENIMIENTO EDIFICACIONES AREAS DE USO CORPAC - AEROPUERTO DE PIURA | D56: 175768.57 | E56: 40636 | F56: 40636 | G56: 20 | H56: 240 | J56: 23435.82553 | K56: 8788.44 | L56: 152332.7445 | N56: =+IF(($L56-SUM($M56:M56))<$K56,$L56-SUM($M56:M56),IF(SUM($M56:M56)<$L56,$K56,0)) -> 8788.44 | O56: =+IF(($L56-SUM($M56:N56))<$K56,$L56-SUM($M56:N56),IF(SUM($M56:N56)<$L56,$K56,0)) -> 8788.44 | P56: =+IF(($L56-SUM($M56:O56))<$K56,$L56-SUM($M56:O56),IF(SUM($M56:O56)<$L56,$K56,0)) -> 8788.44 | Q56: =+IF(($L56-SUM($M56:P56))<$K56,$L56-SUM($M56:P56),IF(SUM($M56:P56)<$L56,$K56,0)) -> 8788.44 | R56: =+IF(($L56-SUM($M56:Q56))<$K56,$L56-SUM($M56:Q56),IF(SUM($M56:Q56)<$L56,$K56,0)) -> 8788.44 | S56: =+IF(($L56-SUM($M56:R56))<$K56,$L56-SUM($M56:R56),IF(SUM($M56:R56)<$L56,$K56,0)) -> 8788.44 | T56: =+IF(($L56-SUM($M56:S56))<$K56,$L56-SUM($M56:S56),IF(SUM($M56:S56)<$L56,$K56,0)) -> 8788.44 | U56: =+IF(($L56-SUM($M56:T56))<$K56,$L56-SUM($M56:T56),IF(SUM($M56:T56)<$L56,$K56,0)) -> 8788.44 | V56: =+IF(($L56-SUM($M56:U56))<$K56,$L56-SUM($M56:U56),IF(SUM($M56:U56)<$L56,$K56,0)) -> 8788.44 | W56: =+IF(($L56-SUM($M56:V56))<$K56,$L56-SUM($M56:V56),IF(SUM($M56:V56)<$L56,$K56,0)) -> 8788.44 | X56: =+IF(($L56-SUM($M56:W56))<$K56,$L56-SUM($M56:W56),IF(SUM($M56:W56)<$L56,$K56,0)) -> 8788.44
A57: Activo 1 | B57: Edificio | C57: CONSTRUCCIÓN DMA AEROPUERTO DE PIURA | D57: 31346.44 | E57: 40436 | F57: 40436 | G57: 20 | H57: 240 | J57: 4937.063254 | K57: 1567.32 | L57: 26409.37675 | N57: =+IF(($L57-SUM($M57:M57))<$K57,$L57-SUM($M57:M57),IF(SUM($M57:M57)<$L57,$K57,0)) -> 1567.32 | O57: =+IF(($L57-SUM($M57:N57))<$K57,$L57-SUM($M57:N57),IF(SUM($M57:N57)<$L57,$K57,0)) -> 1567.32 | P57: =+IF(($L57-SUM($M57:O57))<$K57,$L57-SUM($M57:O57),IF(SUM($M57:O57)<$L57,$K57,0)) -> 1567.32 | Q57: =+IF(($L57-SUM($M57:P57))<$K57,$L57-SUM($M57:P57),IF(SUM($M57:P57)<$L57,$K57,0)) -> 1567.32 | R57: =+IF(($L57-SUM($M57:Q57))<$K57,$L57-SUM($M57:Q57),IF(SUM($M57:Q57)<$L57,$K57,0)) -> 1567.32 | S57: =+IF(($L57-SUM($M57:R57))<$K57,$L57-SUM($M57:R57),IF(SUM($M57:R57)<$L57,$K57,0)) -> 1567.32 | T57: =+IF(($L57-SUM($M57:S57))<$K57,$L57-SUM($M57:S57),IF(SUM($M57:S57)<$L57,$K57,0)) -> 1567.32 | U57: =+IF(($L57-SUM($M57:T57))<$K57,$L57-SUM($M57:T57),IF(SUM($M57:T57)<$L57,$K57,0)) -> 1567.32 | V57: =+IF(($L57-SUM($M57:U57))<$K57,$L57-SUM($M57:U57),IF(SUM($M57:U57)<$L57,$K57,0)) -> 1567.32 | W57: =+IF(($L57-SUM($M57:V57))<$K57,$L57-SUM($M57:V57),IF(SUM($M57:V57)<$L57,$K57,0)) -> 1567.32 | X57: =+IF(($L57-SUM($M57:W57))<$K57,$L57-SUM($M57:W57),IF(SUM($M57:W57)<$L57,$K57,0)) -> 1567.32
A58: Activo 1 | B58: Edificio | C58: CONSTRUCCIÓN DEL DEPOSITO DE MATERIAL AERONAUTICO PARA EL AEROPUERTO DE CHICLAYO | D58: 26892.47 | E58: 40554 | F58: 40554 | G58: 20 | H58: 240 | J58: 3921.814576 | K58: 1344.62 | L58: 22970.65542 | N58: =+IF(($L58-SUM($M58:M58))<$K58,$L58-SUM($M58:M58),IF(SUM($M58:M58)<$L58,$K58,0)) -> 1344.62 | O58: =+IF(($L58-SUM($M58:N58))<$K58,$L58-SUM($M58:N58),IF(SUM($M58:N58)<$L58,$K58,0)) -> 1344.62 | P58: =+IF(($L58-SUM($M58:O58))<$K58,$L58-SUM($M58:O58),IF(SUM($M58:O58)<$L58,$K58,0)) -> 1344.62 | Q58: =+IF(($L58-SUM($M58:P58))<$K58,$L58-SUM($M58:P58),IF(SUM($M58:P58)<$L58,$K58,0)) -> 1344.62 | R58: =+IF(($L58-SUM($M58:Q58))<$K58,$L58-SUM($M58:Q58),IF(SUM($M58:Q58)<$L58,$K58,0)) -> 1344.62 | S58: =+IF(($L58-SUM($M58:R58))<$K58,$L58-SUM($M58:R58),IF(SUM($M58:R58)<$L58,$K58,0)) -> 1344.62 | T58: =+IF(($L58-SUM($M58:S58))<$K58,$L58-SUM($M58:S58),IF(SUM($M58:S58)<$L58,$K58,0)) -> 1344.62 | U58: =+IF(($L58-SUM($M58:T58))<$K58,$L58-SUM($M58:T58),IF(SUM($M58:T58)<$L58,$K58,0)) -> 1344.62 | V58: =+IF(($L58-SUM($M58:U58))<$K58,$L58-SUM($M58:U58),IF(SUM($M58:U58)<$L58,$K58,0)) -> 1344.62 | W58: =+IF(($L58-SUM($M58:V58))<$K58,$L58-SUM($M58:V58),IF(SUM($M58:V58)<$L58,$K58,0)) -> 1344.62 | X58: =+IF(($L58-SUM($M58:W58))<$K58,$L58-SUM($M58:W58),IF(SUM($M58:W58)<$L58,$K58,0)) -> 1344.62
A59: Activo 1 | B59: Edificio | C59: CONSTRUCCION DEL AERÓDROMO DE VILCASHUAMAN | D59: 3192617.49 | E59: 39933 | F59: 39933 | G59: 20 | H59: 240 | J59: 638523.7467 | K59: 159631 | L59: 2554093.743 | N59: =+IF(($L59-SUM($M59:M59))<$K59,$L59-SUM($M59:M59),IF(SUM($M59:M59)<$L59,$K59,0)) -> 159631 | O59: =+IF(($L59-SUM($M59:N59))<$K59,$L59-SUM($M59:N59),IF(SUM($M59:N59)<$L59,$K59,0)) -> 159631 | P59: =+IF(($L59-SUM($M59:O59))<$K59,$L59-SUM($M59:O59),IF(SUM($M59:O59)<$L59,$K59,0)) -> 159631 | Q59: =+IF(($L59-SUM($M59:P59))<$K59,$L59-SUM($M59:P59),IF(SUM($M59:P59)<$L59,$K59,0)) -> 159631 | R59: =+IF(($L59-SUM($M59:Q59))<$K59,$L59-SUM($M59:Q59),IF(SUM($M59:Q59)<$L59,$K59,0)) -> 159631 | S59: =+IF(($L59-SUM($M59:R59))<$K59,$L59-SUM($M59:R59),IF(SUM($M59:R59)<$L59,$K59,0)) -> 159631 | T59: =+IF(($L59-SUM($M59:S59))<$K59,$L59-SUM($M59:S59),IF(SUM($M59:S59)<$L59,$K59,0)) -> 159631 | U59: =+IF(($L59-SUM($M59:T59))<$K59,$L59-SUM($M59:T59),IF(SUM($M59:T59)<$L59,$K59,0)) -> 159631 | V59: =+IF(($L59-SUM($M59:U59))<$K59,$L59-SUM($M59:U59),IF(SUM($M59:U59)<$L59,$K59,0)) -> 159631 | W59: =+IF(($L59-SUM($M59:V59))<$K59,$L59-SUM($M59:V59),IF(SUM($M59:V59)<$L59,$K59,0)) -> 159631 | X59: =+IF(($L59-SUM($M59:W59))<$K59,$L59-SUM($M59:W59),IF(SUM($M59:W59)<$L59,$K59,0)) -> 159631
A60: Activo 1 | B60: Edificio | C60: MEJORAMIENTO DE LA PISTA DE ATERRIZAJE DE ANDAHUAYLAS | D60: 11290178.14 | E60: 39447 | F60: 39447 | G60: 20 | H60: 240 | J60: 2709643.566 | K60: 564509.36 | L60: 8580534.574 | N60: =+IF(($L60-SUM($M60:M60))<$K60,$L60-SUM($M60:M60),IF(SUM($M60:M60)<$L60,$K60,0)) -> 564509.36 | O60: =+IF(($L60-SUM($M60:N60))<$K60,$L60-SUM($M60:N60),IF(SUM($M60:N60)<$L60,$K60,0)) -> 564509.36 | P60: =+IF(($L60-SUM($M60:O60))<$K60,$L60-SUM($M60:O60),IF(SUM($M60:O60)<$L60,$K60,0)) -> 564509.36 | Q60: =+IF(($L60-SUM($M60:P60))<$K60,$L60-SUM($M60:P60),IF(SUM($M60:P60)<$L60,$K60,0)) -> 564509.36 | R60: =+IF(($L60-SUM($M60:Q60))<$K60,$L60-SUM($M60:Q60),IF(SUM($M60:Q60)<$L60,$K60,0)) -> 564509.36 | S60: =+IF(($L60-SUM($M60:R60))<$K60,$L60-SUM($M60:R60),IF(SUM($M60:R60)<$L60,$K60,0)) -> 564509.36 | T60: =+IF(($L60-SUM($M60:S60))<$K60,$L60-SUM($M60:S60),IF(SUM($M60:S60)<$L60,$K60,0)) -> 564509.36 | U60: =+IF(($L60-SUM($M60:T60))<$K60,$L60-SUM($M60:T60),IF(SUM($M60:T60)<$L60,$K60,0)) -> 564509.36 | V60: =+IF(($L60-SUM($M60:U60))<$K60,$L60-SUM($M60:U60),IF(SUM($M60:U60)<$L60,$K60,0)) -> 564509.36 | W60: =+IF(($L60-SUM($M60:V60))<$K60,$L60-SUM($M60:V60),IF(SUM($M60:V60)<$L60,$K60,0)) -> 564509.36 | X60: =+IF(($L60-SUM($M60:W60))<$K60,$L60-SUM($M60:W60),IF(SUM($M60:W60)<$L60,$K60,0)) -> 564509.36
A61: Activo 1 | B61: Edificio | C61: REMODELACION DE LA CASA DE FUERZA DEL AEROPUERTO DE YURIMAGUAS | D61: 53178.63 | E61: 38644 | F61: 38644 | G61: 20 | H61: 240 | J61: 16219.48513 | K61: 2658.93 | L61: 36959.14487 | N61: =+IF(($L61-SUM($M61:M61))<$K61,$L61-SUM($M61:M61),IF(SUM($M61:M61)<$L61,$K61,0)) -> 2658.93 | O61: =+IF(($L61-SUM($M61:N61))<$K61,$L61-SUM($M61:N61),IF(SUM($M61:N61)<$L61,$K61,0)) -> 2658.93 | P61: =+IF(($L61-SUM($M61:O61))<$K61,$L61-SUM($M61:O61),IF(SUM($M61:O61)<$L61,$K61,0)) -> 2658.93 | Q61: =+IF(($L61-SUM($M61:P61))<$K61,$L61-SUM($M61:P61),IF(SUM($M61:P61)<$L61,$K61,0)) -> 2658.93 | R61: =+IF(($L61-SUM($M61:Q61))<$K61,$L61-SUM($M61:Q61),IF(SUM($M61:Q61)<$L61,$K61,0)) -> 2658.93 | S61: =+IF(($L61-SUM($M61:R61))<$K61,$L61-SUM($M61:R61),IF(SUM($M61:R61)<$L61,$K61,0)) -> 2658.93 | T61: =+IF(($L61-SUM($M61:S61))<$K61,$L61-SUM($M61:S61),IF(SUM($M61:S61)<$L61,$K61,0)) -> 2658.93 | U61: =+IF(($L61-SUM($M61:T61))<$K61,$L61-SUM($M61:T61),IF(SUM($M61:T61)<$L61,$K61,0)) -> 2658.93 | V61: =+IF(($L61-SUM($M61:U61))<$K61,$L61-SUM($M61:U61),IF(SUM($M61:U61)<$L61,$K61,0)) -> 2658.93 | W61: =+IF(($L61-SUM($M61:V61))<$K61,$L61-SUM($M61:V61),IF(SUM($M61:V61)<$L61,$K61,0)) -> 2658.93 | X61: =+IF(($L61-SUM($M61:W61))<$K61,$L61-SUM($M61:W61),IF(SUM($M61:W61)<$L61,$K61,0)) -> 2658.93
A62: Activo 1 | B62: Edificio | C62: REMODELACION CASA DE FUERZA DEL AEROPUERTO DE PUERTO MALDONADO | D62: 55856.72 | E62: 40332 | F62: 40332 | G62: 20 | H62: 240 | J62: 10054.21423 | K62: 2792.84 | L62: 45802.50577 | N62: =+IF(($L62-SUM($M62:M62))<$K62,$L62-SUM($M62:M62),IF(SUM($M62:M62)<$L62,$K62,0)) -> 2792.84 | O62: =+IF(($L62-SUM($M62:N62))<$K62,$L62-SUM($M62:N62),IF(SUM($M62:N62)<$L62,$K62,0)) -> 2792.84 | P62: =+IF(($L62-SUM($M62:O62))<$K62,$L62-SUM($M62:O62),IF(SUM($M62:O62)<$L62,$K62,0)) -> 2792.84 | Q62: =+IF(($L62-SUM($M62:P62))<$K62,$L62-SUM($M62:P62),IF(SUM($M62:P62)<$L62,$K62,0)) -> 2792.84 | R62: =+IF(($L62-SUM($M62:Q62))<$K62,$L62-SUM($M62:Q62),IF(SUM($M62:Q62)<$L62,$K62,0)) -> 2792.84 | S62: =+IF(($L62-SUM($M62:R62))<$K62,$L62-SUM($M62:R62),IF(SUM($M62:R62)<$L62,$K62,0)) -> 2792.84 | T62: =+IF(($L62-SUM($M62:S62))<$K62,$L62-SUM($M62:S62),IF(SUM($M62:S62)<$L62,$K62,0)) -> 2792.84 | U62: =+IF(($L62-SUM($M62:T62))<$K62,$L62-SUM($M62:T62),IF(SUM($M62:T62)<$L62,$K62,0)) -> 2792.84 | V62: =+IF(($L62-SUM($M62:U62))<$K62,$L62-SUM($M62:U62),IF(SUM($M62:U62)<$L62,$K62,0)) -> 2792.84 | W62: =+IF(($L62-SUM($M62:V62))<$K62,$L62-SUM($M62:V62),IF(SUM($M62:V62)<$L62,$K62,0)) -> 2792.84 | X62: =+IF(($L62-SUM($M62:W62))<$K62,$L62-SUM($M62:W62),IF(SUM($M62:W62)<$L62,$K62,0)) -> 2792.84
A63: Activo 1 | B63: Edificio | C63: MANTENIMIENTO DE LAS INSTALACIONES DEL AEROPUERTO DE PUERTO MALDONADO | D63: 475955.65 | E63: 40221 | F63: 40221 | G63: 20 | H63: 240 | J63: 85672.05404 | K63: 23797.8 | L63: =+D63-J63 -> 390283.596 | N63: =+IF(($L63-SUM($M63:M63))<$K63,$L63-SUM($M63:M63),IF(SUM($M63:M63)<$L63,$K63,0)) -> 23797.8 | O63: =+IF(($L63-SUM($M63:N63))<$K63,$L63-SUM($M63:N63),IF(SUM($M63:N63)<$L63,$K63,0)) -> 23797.8 | P63: =+IF(($L63-SUM($M63:O63))<$K63,$L63-SUM($M63:O63),IF(SUM($M63:O63)<$L63,$K63,0)) -> 23797.8 | Q63: =+IF(($L63-SUM($M63:P63))<$K63,$L63-SUM($M63:P63),IF(SUM($M63:P63)<$L63,$K63,0)) -> 23797.8 | R63: =+IF(($L63-SUM($M63:Q63))<$K63,$L63-SUM($M63:Q63),IF(SUM($M63:Q63)<$L63,$K63,0)) -> 23797.8 | S63: =+IF(($L63-SUM($M63:R63))<$K63,$L63-SUM($M63:R63),IF(SUM($M63:R63)<$L63,$K63,0)) -> 23797.8 | T63: =+IF(($L63-SUM($M63:S63))<$K63,$L63-SUM($M63:S63),IF(SUM($M63:S63)<$L63,$K63,0)) -> 23797.8 | U63: =+IF(($L63-SUM($M63:T63))<$K63,$L63-SUM($M63:T63),IF(SUM($M63:T63)<$L63,$K63,0)) -> 23797.8 | V63: =+IF(($L63-SUM($M63:U63))<$K63,$L63-SUM($M63:U63),IF(SUM($M63:U63)<$L63,$K63,0)) -> 23797.8 | W63: =+IF(($L63-SUM($M63:V63))<$K63,$L63-SUM($M63:V63),IF(SUM($M63:V63)<$L63,$K63,0)) -> 23797.8 | X63: =+IF(($L63-SUM($M63:W63))<$K63,$L63-SUM($M63:W63),IF(SUM($M63:W63)<$L63,$K63,0)) -> 23797.8
A64: Activo 1 | B64: Edificio | C64: CONSTRUCCION CERCO PERIMETRICO DEL AEROPUERTO DE JULIACA - V ETAPA | D64: 172004.55 | E64: 40252 | F64: 40252 | G64: 20 | H64: 240 | J64: 30960.83188 | K64: 8600.23 | L64: 141043.7181 | N64: =+IF(($L64-SUM($M64:M64))<$K64,$L64-SUM($M64:M64),IF(SUM($M64:M64)<$L64,$K64,0)) -> 8600.23 | O64: =+IF(($L64-SUM($M64:N64))<$K64,$L64-SUM($M64:N64),IF(SUM($M64:N64)<$L64,$K64,0)) -> 8600.23 | P64: =+IF(($L64-SUM($M64:O64))<$K64,$L64-SUM($M64:O64),IF(SUM($M64:O64)<$L64,$K64,0)) -> 8600.23 | Q64: =+IF(($L64-SUM($M64:P64))<$K64,$L64-SUM($M64:P64),IF(SUM($M64:P64)<$L64,$K64,0)) -> 8600.23 | R64: =+IF(($L64-SUM($M64:Q64))<$K64,$L64-SUM($M64:Q64),IF(SUM($M64:Q64)<$L64,$K64,0)) -> 8600.23 | S64: =+IF(($L64-SUM($M64:R64))<$K64,$L64-SUM($M64:R64),IF(SUM($M64:R64)<$L64,$K64,0)) -> 8600.23 | T64: =+IF(($L64-SUM($M64:S64))<$K64,$L64-SUM($M64:S64),IF(SUM($M64:S64)<$L64,$K64,0)) -> 8600.23 | U64: =+IF(($L64-SUM($M64:T64))<$K64,$L64-SUM($M64:T64),IF(SUM($M64:T64)<$L64,$K64,0)) -> 8600.23 | V64: =+IF(($L64-SUM($M64:U64))<$K64,$L64-SUM($M64:U64),IF(SUM($M64:U64)<$L64,$K64,0)) -> 8600.23 | W64: =+IF(($L64-SUM($M64:V64))<$K64,$L64-SUM($M64:V64),IF(SUM($M64:V64)<$L64,$K64,0)) -> 8600.23 | X64: =+IF(($L64-SUM($M64:W64))<$K64,$L64-SUM($M64:W64),IF(SUM($M64:W64)<$L64,$K64,0)) -> 8600.23
A65: Activo 1 | B65: Edificio | C65: CONSTRUCCION CERCO PERIMETRICO DEL AEROPUERTO DE JULIACA - IV ETAPA | D65: 756764 | E65: 39856 | F65: 39856 | G65: 20 | H65: 240 | J65: 155136.6803 | K65: 37838.23 | L65: 601627.3197 | N65: =+IF(($L65-SUM($M65:M65))<$K65,$L65-SUM($M65:M65),IF(SUM($M65:M65)<$L65,$K65,0)) -> 37838.23 | O65: =+IF(($L65-SUM($M65:N65))<$K65,$L65-SUM($M65:N65),IF(SUM($M65:N65)<$L65,$K65,0)) -> 37838.23 | P65: =+IF(($L65-SUM($M65:O65))<$K65,$L65-SUM($M65:O65),IF(SUM($M65:O65)<$L65,$K65,0)) -> 37838.23 | Q65: =+IF(($L65-SUM($M65:P65))<$K65,$L65-SUM($M65:P65),IF(SUM($M65:P65)<$L65,$K65,0)) -> 37838.23 | R65: =+IF(($L65-SUM($M65:Q65))<$K65,$L65-SUM($M65:Q65),IF(SUM($M65:Q65)<$L65,$K65,0)) -> 37838.23 | S65: =+IF(($L65-SUM($M65:R65))<$K65,$L65-SUM($M65:R65),IF(SUM($M65:R65)<$L65,$K65,0)) -> 37838.23 | T65: =+IF(($L65-SUM($M65:S65))<$K65,$L65-SUM($M65:S65),IF(SUM($M65:S65)<$L65,$K65,0)) -> 37838.23 | U65: =+IF(($L65-SUM($M65:T65))<$K65,$L65-SUM($M65:T65),IF(SUM($M65:T65)<$L65,$K65,0)) -> 37838.23 | V65: =+IF(($L65-SUM($M65:U65))<$K65,$L65-SUM($M65:U65),IF(SUM($M65:U65)<$L65,$K65,0)) -> 37838.23 | W65: =+IF(($L65-SUM($M65:V65))<$K65,$L65-SUM($M65:V65),IF(SUM($M65:V65)<$L65,$K65,0)) -> 37838.23 | X65: =+IF(($L65-SUM($M65:W65))<$K65,$L65-SUM($M65:W65),IF(SUM($M65:W65)<$L65,$K65,0)) -> 37838.23
A66: Activo 1 | B66: Edificio | C66: CONSTRUCCION CERCO PERIMETRICO DEL AEROPUERTO DE JULIACA - III ETAPA | D66: 668946.63 | E66: 39499 | F66: 39499 | G66: 20 | H66: 240 | J66: 157202.5098 | K66: 33447.36 | L66: 511744.1202 | N66: =+IF(($L66-SUM($M66:M66))<$K66,$L66-SUM($M66:M66),IF(SUM($M66:M66)<$L66,$K66,0)) -> 33447.36 | O66: =+IF(($L66-SUM($M66:N66))<$K66,$L66-SUM($M66:N66),IF(SUM($M66:N66)<$L66,$K66,0)) -> 33447.36 | P66: =+IF(($L66-SUM($M66:O66))<$K66,$L66-SUM($M66:O66),IF(SUM($M66:O66)<$L66,$K66,0)) -> 33447.36 | Q66: =+IF(($L66-SUM($M66:P66))<$K66,$L66-SUM($M66:P66),IF(SUM($M66:P66)<$L66,$K66,0)) -> 33447.36 | R66: =+IF(($L66-SUM($M66:Q66))<$K66,$L66-SUM($M66:Q66),IF(SUM($M66:Q66)<$L66,$K66,0)) -> 33447.36 | S66: =+IF(($L66-SUM($M66:R66))<$K66,$L66-SUM($M66:R66),IF(SUM($M66:R66)<$L66,$K66,0)) -> 33447.36 | T66: =+IF(($L66-SUM($M66:S66))<$K66,$L66-SUM($M66:S66),IF(SUM($M66:S66)<$L66,$K66,0)) -> 33447.36 | U66: =+IF(($L66-SUM($M66:T66))<$K66,$L66-SUM($M66:T66),IF(SUM($M66:T66)<$L66,$K66,0)) -> 33447.36 | V66: =+IF(($L66-SUM($M66:U66))<$K66,$L66-SUM($M66:U66),IF(SUM($M66:U66)<$L66,$K66,0)) -> 33447.36 | W66: =+IF(($L66-SUM($M66:V66))<$K66,$L66-SUM($M66:V66),IF(SUM($M66:V66)<$L66,$K66,0)) -> 33447.36 | X66: =+IF(($L66-SUM($M66:W66))<$K66,$L66-SUM($M66:W66),IF(SUM($M66:W66)<$L66,$K66,0)) -> 33447.36
A67: Activo 1 | B67: Edificio | C67: INCREMENTO VALOR CERCO PERIMETRICO AEROP. JULIACA II ETAPA | D67: 4728.29 | E67: 39021 | F67: 39021 | G67: 20 | H67: 240 | J67: 1300.279189 | K67: 236.41 | L67: 3428.010811 | N67: =+IF(($L67-SUM($M67:M67))<$K67,$L67-SUM($M67:M67),IF(SUM($M67:M67)<$L67,$K67,0)) -> 236.41 | O67: =+IF(($L67-SUM($M67:N67))<$K67,$L67-SUM($M67:N67),IF(SUM($M67:N67)<$L67,$K67,0)) -> 236.41 | P67: =+IF(($L67-SUM($M67:O67))<$K67,$L67-SUM($M67:O67),IF(SUM($M67:O67)<$L67,$K67,0)) -> 236.41 | Q67: =+IF(($L67-SUM($M67:P67))<$K67,$L67-SUM($M67:P67),IF(SUM($M67:P67)<$L67,$K67,0)) -> 236.41 | R67: =+IF(($L67-SUM($M67:Q67))<$K67,$L67-SUM($M67:Q67),IF(SUM($M67:Q67)<$L67,$K67,0)) -> 236.41 | S67: =+IF(($L67-SUM($M67:R67))<$K67,$L67-SUM($M67:R67),IF(SUM($M67:R67)<$L67,$K67,0)) -> 236.41 | T67: =+IF(($L67-SUM($M67:S67))<$K67,$L67-SUM($M67:S67),IF(SUM($M67:S67)<$L67,$K67,0)) -> 236.41 | U67: =+IF(($L67-SUM($M67:T67))<$K67,$L67-SUM($M67:T67),IF(SUM($M67:T67)<$L67,$K67,0)) -> 236.41 | V67: =+IF(($L67-SUM($M67:U67))<$K67,$L67-SUM($M67:U67),IF(SUM($M67:U67)<$L67,$K67,0)) -> 236.41 | W67: =+IF(($L67-SUM($M67:V67))<$K67,$L67-SUM($M67:V67),IF(SUM($M67:V67)<$L67,$K67,0)) -> 236.41 | X67: =+IF(($L67-SUM($M67:W67))<$K67,$L67-SUM($M67:W67),IF(SUM($M67:W67)<$L67,$K67,0)) -> 236.41
A68: Activo 1 | B68: Edificio | C68: CONSTRUCCION DEL CUARTEL SEI Y VIA DE ACCESO DEL AEROPUERTO DE JAUJA | D68: 441841.59 | E68: 39996 | F68: 39996 | G68: 20 | H68: 240 | J68: 86159.14667 | K68: 22092.1 | L68: 355682.4433 | N68: =+IF(($L68-SUM($M68:M68))<$K68,$L68-SUM($M68:M68),IF(SUM($M68:M68)<$L68,$K68,0)) -> 22092.1 | O68: =+IF(($L68-SUM($M68:N68))<$K68,$L68-SUM($M68:N68),IF(SUM($M68:N68)<$L68,$K68,0)) -> 22092.1 | P68: =+IF(($L68-SUM($M68:O68))<$K68,$L68-SUM($M68:O68),IF(SUM($M68:O68)<$L68,$K68,0)) -> 22092.1 | Q68: =+IF(($L68-SUM($M68:P68))<$K68,$L68-SUM($M68:P68),IF(SUM($M68:P68)<$L68,$K68,0)) -> 22092.1 | R68: =+IF(($L68-SUM($M68:Q68))<$K68,$L68-SUM($M68:Q68),IF(SUM($M68:Q68)<$L68,$K68,0)) -> 22092.1 | S68: =+IF(($L68-SUM($M68:R68))<$K68,$L68-SUM($M68:R68),IF(SUM($M68:R68)<$L68,$K68,0)) -> 22092.1 | T68: =+IF(($L68-SUM($M68:S68))<$K68,$L68-SUM($M68:S68),IF(SUM($M68:S68)<$L68,$K68,0)) -> 22092.1 | U68: =+IF(($L68-SUM($M68:T68))<$K68,$L68-SUM($M68:T68),IF(SUM($M68:T68)<$L68,$K68,0)) -> 22092.1 | V68: =+IF(($L68-SUM($M68:U68))<$K68,$L68-SUM($M68:U68),IF(SUM($M68:U68)<$L68,$K68,0)) -> 22092.1 | W68: =+IF(($L68-SUM($M68:V68))<$K68,$L68-SUM($M68:V68),IF(SUM($M68:V68)<$L68,$K68,0)) -> 22092.1 | X68: =+IF(($L68-SUM($M68:W68))<$K68,$L68-SUM($M68:W68),IF(SUM($M68:W68)<$L68,$K68,0)) -> 22092.1
A69: Activo 1 | B69: Edificio | C69: CONSTRUCCION DEL CERCO PERIMETRAL DEL AEROPUERTO DE HUANUCO | D69: 286285.88 | E69: 39075 | F69: 39075 | G69: 20 | H69: 240 | J69: 77297.21945 | K69: 14314.31 | L69: =+D69-J69 -> 208988.6605 | N69: =+IF(($L69-SUM($M69:M69))<$K69,$L69-SUM($M69:M69),IF(SUM($M69:M69)<$L69,$K69,0)) -> 14314.31 | O69: =+IF(($L69-SUM($M69:N69))<$K69,$L69-SUM($M69:N69),IF(SUM($M69:N69)<$L69,$K69,0)) -> 14314.31 | P69: =+IF(($L69-SUM($M69:O69))<$K69,$L69-SUM($M69:O69),IF(SUM($M69:O69)<$L69,$K69,0)) -> 14314.31 | Q69: =+IF(($L69-SUM($M69:P69))<$K69,$L69-SUM($M69:P69),IF(SUM($M69:P69)<$L69,$K69,0)) -> 14314.31 | R69: =+IF(($L69-SUM($M69:Q69))<$K69,$L69-SUM($M69:Q69),IF(SUM($M69:Q69)<$L69,$K69,0)) -> 14314.31 | S69: =+IF(($L69-SUM($M69:R69))<$K69,$L69-SUM($M69:R69),IF(SUM($M69:R69)<$L69,$K69,0)) -> 14314.31 | T69: =+IF(($L69-SUM($M69:S69))<$K69,$L69-SUM($M69:S69),IF(SUM($M69:S69)<$L69,$K69,0)) -> 14314.31 | U69: =+IF(($L69-SUM($M69:T69))<$K69,$L69-SUM($M69:T69),IF(SUM($M69:T69)<$L69,$K69,0)) -> 14314.31 | V69: =+IF(($L69-SUM($M69:U69))<$K69,$L69-SUM($M69:U69),IF(SUM($M69:U69)<$L69,$K69,0)) -> 14314.31 | W69: =+IF(($L69-SUM($M69:V69))<$K69,$L69-SUM($M69:V69),IF(SUM($M69:V69)<$L69,$K69,0)) -> 14314.31 | X69: =+IF(($L69-SUM($M69:W69))<$K69,$L69-SUM($M69:W69),IF(SUM($M69:W69)<$L69,$K69,0)) -> 14314.31
A70: Activo 1 | B70: Edificio | C70: CONSTRUCCION SALA DE COMUNICACIONES TECNICA Y OPERACIONALES | D70: 277666.44 | E70: 39813 | F70: 39813 | G70: 20 | H70: 240 | J70: 58309.96511 | K70: 13883.33 | L70: 219356.4749 | N70: =+IF(($L70-SUM($M70:M70))<$K70,$L70-SUM($M70:M70),IF(SUM($M70:M70)<$L70,$K70,0)) -> 13883.33 | O70: =+IF(($L70-SUM($M70:N70))<$K70,$L70-SUM($M70:N70),IF(SUM($M70:N70)<$L70,$K70,0)) -> 13883.33 | P70: =+IF(($L70-SUM($M70:O70))<$K70,$L70-SUM($M70:O70),IF(SUM($M70:O70)<$L70,$K70,0)) -> 13883.33 | Q70: =+IF(($L70-SUM($M70:P70))<$K70,$L70-SUM($M70:P70),IF(SUM($M70:P70)<$L70,$K70,0)) -> 13883.33 | R70: =+IF(($L70-SUM($M70:Q70))<$K70,$L70-SUM($M70:Q70),IF(SUM($M70:Q70)<$L70,$K70,0)) -> 13883.33 | S70: =+IF(($L70-SUM($M70:R70))<$K70,$L70-SUM($M70:R70),IF(SUM($M70:R70)<$L70,$K70,0)) -> 13883.33 | T70: =+IF(($L70-SUM($M70:S70))<$K70,$L70-SUM($M70:S70),IF(SUM($M70:S70)<$L70,$K70,0)) -> 13883.33 | U70: =+IF(($L70-SUM($M70:T70))<$K70,$L70-SUM($M70:T70),IF(SUM($M70:T70)<$L70,$K70,0)) -> 13883.33 | V70: =+IF(($L70-SUM($M70:U70))<$K70,$L70-SUM($M70:U70),IF(SUM($M70:U70)<$L70,$K70,0)) -> 13883.33 | W70: =+IF(($L70-SUM($M70:V70))<$K70,$L70-SUM($M70:V70),IF(SUM($M70:V70)<$L70,$K70,0)) -> 13883.33 | X70: =+IF(($L70-SUM($M70:W70))<$K70,$L70-SUM($M70:W70),IF(SUM($M70:W70)<$L70,$K70,0)) -> 13883.33
